Workbook

Sheet Welcome
N2: Use these buttons at any point to save the calculator to your computer.
B9: Welcome to Pennsylvania's Mowing Calculator!
B10: Best practices for managing mowed areas.
B12: This calculator has been created for public and private land owners who regularly care for lawns. This tool calculates fuel, dollar, greenhouse gas (GHG), and other savings associated with changing current mowing practices. | M12: Please note: Before you begin, you should save the Mowing Calculator file to your computer and enable macros. Macros are programming rules that run Mowing Calculator features. Depending on your computer's security settings they may be disabled. Macros in this file will not harm your computer.
B13: Establishing a new approach for managing a lawn can lead to:
B14: • A healthier and more attractive lawn,
B15: • Improved air and water quality,
B16: • Money and time that will be available for other maintenance needs.
M17: Click here to learn more…
B18: This calculator presents best practices pertaining to Native Vegetation, Grass Cycling, Mower Maintenance, and Mowing. To access information on these topics click the buttons below. To access the calculator click the orange arrow above.
M19: Have questions? Contact:
M20: Ashley Rebert
M21: Department of Conservation and Natural Resources
M22: Bureau of Recreation and Conservation
M23: arebert@pa.gov
M24: https://www.dcnr.pa.gov/about/Pages/Recreation-and-Conservation.aspx
B39: Prepared for PA DCNR and PRPS by:
C42: v 1.0

Sheet Macros
B2: Enable macros before you begin
B6: To use the Mowing Calculator, you must save the Mowing Calculator file to your computer and enable macros if they aren't already.
B10: Depending on your security settings, opening the Mowing Calculator from a web browser or email may disable macros.
B12: Macros are programming rules that execute some Mowing Calculator functions.
B13: If macros aren't enabled, the Mowing Calculator will not function properly.
B15: You should therefore save the file to a folder before opening and enable macros before using the Calculator.
B17: To enable macros:
B18: When opening the Mowing Calculator, click the "Enable Content" button.
B42: If you do not see an Enable Content button,
B43: 1) Close the Mowing Calculator and reopen Excel.
B44: 2a) In Microsoft Excel 2010 and 2013, click the File tab and click on "Options" near the bottom of the panel.
B45: 2b) In Microsoft Excel 2007, Click on the "Office" icon in the top left-hand corner, and click on "Excel Options" to the bottom right.
B46: 3) In the "Excel Options" window, click on the "Trust Center," and then click on the "Trust Center Settings."
B75: 4) Under Message Bar, check to make sure that the "Show the Message Bar in all applications when content has been blocked" button is selected.
B97: 5) Under Macro Settings, select the option that says, "Disable all macros with notification."
B119: 6) Select 'Ok' twice to close out the dialog boxes.
B120: 7) Open the Mowing Calculator. Select the option to Enable Content if a message bar asks if you wish to do so.

Sheet Mowing Scenario
B2: Compare current and future practices
B7: Summary Results
D8: Mowed Area | H8: Mowing Hours | L8: Fuel Use | P8: Fuel Costs
C9: Current Practices | D9: =IFERROR(Results!D8,0) ->  | E9: acres | H9: =IFERROR(Results!D19,0) -> 0 | I9: hours | L9: =IFERROR(Results!H8,0) -> 0 | M9: GGE* | P9: =IFERROR(Results!J8,0) -> 0
C10: Future Practices | D10: =IF(A69>0,IFERROR(Results!D9,0),0) -> 0 | E10: acres | H10: =IF(A69>0,IFERROR(Results!D20,0),0) -> 0 | I10: hours | L10: =IF(A69>0,IFERROR(Results!H9,0),0) -> 0 | M10: GGE* | P10: =IF(A69>0,IFERROR(Results!J9,0),0) -> 0
C12: Savings | D12: =IF(A69>0,IFERROR(Results!D10,0),0) -> 0 | E12: acres | H12: =IF(A69>0,IFERROR(Results!D21,0),0) -> 0 | I12: hours | L12: =IF(A69>0,IFERROR(Results!H10,0),0) -> 0 | M12: GGE* | P12: =IF(A69>0,IFERROR(Results!K64,0),0) -> 0
B18: Current Mowing Practices
C19: You must enter the acres mowed in the yellow cell below. All other inputs are optional. Default data are provided where possible.
C20: General Information
H21: How large is the area that you mow? | K21: acres | AZ21: =IF(VLOOKUP($C$164,Scenarios!$A$3:$DZ$994,BA21,0)="","",VLOOKUP($C$164,Scenarios!$A$3:$DZ$994,BA21,0)) ->  | BA21: =COLUMN(Scenarios!B1) -> 2
H23: How frequently do you mow the lawn? Once every… | J23: 7 | K23: days | AZ23: =IF(VLOOKUP($C$164,Scenarios!$A$3:$DZ$994,BA23,0)="","",VLOOKUP($C$164,Scenarios!$A$3:$DZ$994,BA23,0)) ->  | BA23: =COLUMN(Scenarios!C1) -> 3
H25: How many weeks long is the mowing season? | J25: 26 | K25: weeks | AZ25: =IF(VLOOKUP($C$164,Scenarios!$A$3:$DZ$994,BA25,0)="","",VLOOKUP($C$164,Scenarios!$A$3:$DZ$994,BA25,0)) ->  | BA25: =COLUMN(Scenarios!D1) -> 4
H27: How many mowers do you have? | AZ27: =VLOOKUP($C$164,Scenarios!$A$3:$DZ$994,BA27,0) ->  | BA27: =COLUMN(Scenarios!E1) -> 5
A30: TRUE
C32: Single Mower Information
H34: How large is the mower's deck? | J34: 46 | K34: inches | AZ34: =IF(VLOOKUP($C$164,Scenarios!$A$3:$DZ$994,BA34,0)="","",VLOOKUP($C$164,Scenarios!$A$3:$DZ$994,BA34,0)) ->  | BA34: =COLUMN(Scenarios!F1) -> 6
H36: What's the mower's horsepower (hp)? | J36: 20 | K36: hp | AZ36: =IF(VLOOKUP($C$164,Scenarios!$A$3:$DZ$994,BA36,0)="","",VLOOKUP($C$164,Scenarios!$A$3:$DZ$994,BA36,0)) ->  | BA36: =COLUMN(Scenarios!G1) -> 7
H38: What type of fuel does the mower use? | J38: Gasoline | AZ38: =IF(VLOOKUP($C$164,Scenarios!$A$3:$DZ$994,BA38,0)="","",VLOOKUP($C$164,Scenarios!$A$3:$DZ$994,BA38,0)) ->  | BA38: =COLUMN(Scenarios!H1) -> 8
H40: What's the average fuel cost? | J40: 3.7 | K40: $/gallon | AZ40: =IF(VLOOKUP($C$164,Scenarios!$A$3:$DZ$994,BA40,0)="","",VLOOKUP($C$164,Scenarios!$A$3:$DZ$994,BA40,0)) ->  | BA40: =COLUMN(Scenarios!I1) -> 9
I41: Don't know? Here's the average. | J41: =IFERROR(VLOOKUP(J38,Factors!$B$45:$C$47,2,0),0) -> 3.7 | K41: $/gallon
H43: How fast do you go when you're mowing the lawn? | J43: 5 | K43: mph | AZ43: =IF(VLOOKUP($C$164,Scenarios!$A$3:$DZ$994,BA43,0)="","",VLOOKUP($C$164,Scenarios!$A$3:$DZ$994,BA43,0)) ->  | BA43: =COLUMN(Scenarios!J$1) -> 10
C46: Multiple Mower Information
C47: Complete the table below for up to 5 mowers. Leave additional rows blank if you have fewer than 5 mowers.
C48: Name | F48: Deck Size (in) | H48: Horsepower (hp) | J48: Fuel Type | L48: Fuel cost ($/gallon) | N48: Mow speed (mph) | P48: % of total acres
F49: 46 | H49: 20 | J49: Gasoline | L49: 3.7 | N49: 5 | P49: 100 | AS49: =IF(VLOOKUP($C$164,Scenarios!$A$3:$DZ$994,BA49,0)="","",VLOOKUP($C$164,Scenarios!$A$3:$DZ$994,BA49,0)) ->  | AU49: =IF(VLOOKUP($C$164,Scenarios!$A$3:$DZ$994,BB49,0)="","",VLOOKUP($C$164,Scenarios!$A$3:$DZ$994,BB49,0)) ->  | AV49: =IF(VLOOKUP($C$164,Scenarios!$A$3:$DZ$994,BC49,0)="","",VLOOKUP($C$164,Scenarios!$A$3:$DZ$994,BC49,0)) ->  | AW49: =IF(VLOOKUP($C$164,Scenarios!$A$3:$DZ$994,BD49,0)="","",VLOOKUP($C$164,Scenarios!$A$3:$DZ$994,BD49,0)) ->  | AX49: =IF(VLOOKUP($C$164,Scenarios!$A$3:$DZ$994,BE49,0)="","",VLOOKUP($C$164,Scenarios!$A$3:$DZ$994,BE49,0)) ->  | AY49: =IF(VLOOKUP($C$164,Scenarios!$A$3:$DZ$994,BF49,0)="","",VLOOKUP($C$164,Scenarios!$A$3:$DZ$994,BF49,0)) ->  | AZ49: =IF(VLOOKUP($C$164,Scenarios!$A$3:$DZ$994,BG49,0)="","",VLOOKUP($C$164,Scenarios!$A$3:$DZ$994,BG49,0)) ->  | BA49: =COLUMN(Scenarios!K$1) -> 11 | BB49: =COLUMN(Scenarios!L$1) -> 12 | BC49: =COLUMN(Scenarios!M$1) -> 13 | BD49: =COLUMN(Scenarios!N$1) -> 14 | BE49: =COLUMN(Scenarios!O$1) -> 15 | BF49: =COLUMN(Scenarios!P$1) -> 16 | BG49: =COLUMN(Scenarios!Q$1) -> 17
AS50: =IF(VLOOKUP($C$164,Scenarios!$A$3:$DZ$994,BA50,0)="","",VLOOKUP($C$164,Scenarios!$A$3:$DZ$994,BA50,0)) ->  | AU50: =IF(VLOOKUP($C$164,Scenarios!$A$3:$DZ$994,BB50,0)="","",VLOOKUP($C$164,Scenarios!$A$3:$DZ$994,BB50,0)) ->  | AV50: =IF(VLOOKUP($C$164,Scenarios!$A$3:$DZ$994,BC50,0)="","",VLOOKUP($C$164,Scenarios!$A$3:$DZ$994,BC50,0)) ->  | AW50: =IF(VLOOKUP($C$164,Scenarios!$A$3:$DZ$994,BD50,0)="","",VLOOKUP($C$164,Scenarios!$A$3:$DZ$994,BD50,0)) ->  | AX50: =IF(VLOOKUP($C$164,Scenarios!$A$3:$DZ$994,BE50,0)="","",VLOOKUP($C$164,Scenarios!$A$3:$DZ$994,BE50,0)) ->  | AY50: =IF(VLOOKUP($C$164,Scenarios!$A$3:$DZ$994,BF50,0)="","",VLOOKUP($C$164,Scenarios!$A$3:$DZ$994,BF50,0)) ->  | AZ50: =IF(VLOOKUP($C$164,Scenarios!$A$3:$DZ$994,BG50,0)="","",VLOOKUP($C$164,Scenarios!$A$3:$DZ$994,BG50,0)) ->  | BA50: =COLUMN(Scenarios!R$1) -> 18 | BB50: =COLUMN(Scenarios!S$1) -> 19 | BC50: =COLUMN(Scenarios!T$1) -> 20 | BD50: =COLUMN(Scenarios!U$1) -> 21 | BE50: =COLUMN(Scenarios!V$1) -> 22 | BF50: =COLUMN(Scenarios!W$1) -> 23 | BG50: =COLUMN(Scenarios!X$1) -> 24
AS51: =IF(VLOOKUP($C$164,Scenarios!$A$3:$DZ$994,BA51,0)="","",VLOOKUP($C$164,Scenarios!$A$3:$DZ$994,BA51,0)) ->  | AU51: =IF(VLOOKUP($C$164,Scenarios!$A$3:$DZ$994,BB51,0)="","",VLOOKUP($C$164,Scenarios!$A$3:$DZ$994,BB51,0)) ->  | AV51: =IF(VLOOKUP($C$164,Scenarios!$A$3:$DZ$994,BC51,0)="","",VLOOKUP($C$164,Scenarios!$A$3:$DZ$994,BC51,0)) ->  | AW51: =IF(VLOOKUP($C$164,Scenarios!$A$3:$DZ$994,BD51,0)="","",VLOOKUP($C$164,Scenarios!$A$3:$DZ$994,BD51,0)) ->  | AX51: =IF(VLOOKUP($C$164,Scenarios!$A$3:$DZ$994,BE51,0)="","",VLOOKUP($C$164,Scenarios!$A$3:$DZ$994,BE51,0)) ->  | AY51: =IF(VLOOKUP($C$164,Scenarios!$A$3:$DZ$994,BF51,0)="","",VLOOKUP($C$164,Scenarios!$A$3:$DZ$994,BF51,0)) ->  | AZ51: =IF(VLOOKUP($C$164,Scenarios!$A$3:$DZ$994,BG51,0)="","",VLOOKUP($C$164,Scenarios!$A$3:$DZ$994,BG51,0)) ->  | BA51: =COLUMN(Scenarios!Y$1) -> 25 | BB51: =COLUMN(Scenarios!Z$1) -> 26 | BC51: =COLUMN(Scenarios!AA$1) -> 27 | BD51: =COLUMN(Scenarios!AB$1) -> 28 | BE51: =COLUMN(Scenarios!AC$1) -> 29 | BF51: =COLUMN(Scenarios!AD$1) -> 30 | BG51: =COLUMN(Scenarios!AE$1) -> 31
AS52: =IF(VLOOKUP($C$164,Scenarios!$A$3:$DZ$994,BA52,0)="","",VLOOKUP($C$164,Scenarios!$A$3:$DZ$994,BA52,0)) ->  | AU52: =IF(VLOOKUP($C$164,Scenarios!$A$3:$DZ$994,BB52,0)="","",VLOOKUP($C$164,Scenarios!$A$3:$DZ$994,BB52,0)) ->  | AV52: =IF(VLOOKUP($C$164,Scenarios!$A$3:$DZ$994,BC52,0)="","",VLOOKUP($C$164,Scenarios!$A$3:$DZ$994,BC52,0)) ->  | AW52: =IF(VLOOKUP($C$164,Scenarios!$A$3:$DZ$994,BD52,0)="","",VLOOKUP($C$164,Scenarios!$A$3:$DZ$994,BD52,0)) ->  | AX52: =IF(VLOOKUP($C$164,Scenarios!$A$3:$DZ$994,BE52,0)="","",VLOOKUP($C$164,Scenarios!$A$3:$DZ$994,BE52,0)) ->  | AY52: =IF(VLOOKUP($C$164,Scenarios!$A$3:$DZ$994,BF52,0)="","",VLOOKUP($C$164,Scenarios!$A$3:$DZ$994,BF52,0)) ->  | AZ52: =IF(VLOOKUP($C$164,Scenarios!$A$3:$DZ$994,BG52,0)="","",VLOOKUP($C$164,Scenarios!$A$3:$DZ$994,BG52,0)) ->  | BA52: =COLUMN(Scenarios!AF$1) -> 32 | BB52: =COLUMN(Scenarios!AG$1) -> 33 | BC52: =COLUMN(Scenarios!AH$1) -> 34 | BD52: =COLUMN(Scenarios!AI$1) -> 35 | BE52: =COLUMN(Scenarios!AJ$1) -> 36 | BF52: =COLUMN(Scenarios!AK$1) -> 37 | BG52: =COLUMN(Scenarios!AL$1) -> 38
AS53: =IF(VLOOKUP($C$164,Scenarios!$A$3:$DZ$994,BA53,0)="","",VLOOKUP($C$164,Scenarios!$A$3:$DZ$994,BA53,0)) ->  | AU53: =IF(VLOOKUP($C$164,Scenarios!$A$3:$DZ$994,BB53,0)="","",VLOOKUP($C$164,Scenarios!$A$3:$DZ$994,BB53,0)) ->  | AV53: =IF(VLOOKUP($C$164,Scenarios!$A$3:$DZ$994,BC53,0)="","",VLOOKUP($C$164,Scenarios!$A$3:$DZ$994,BC53,0)) ->  | AW53: =IF(VLOOKUP($C$164,Scenarios!$A$3:$DZ$994,BD53,0)="","",VLOOKUP($C$164,Scenarios!$A$3:$DZ$994,BD53,0)) ->  | AX53: =IF(VLOOKUP($C$164,Scenarios!$A$3:$DZ$994,BE53,0)="","",VLOOKUP($C$164,Scenarios!$A$3:$DZ$994,BE53,0)) ->  | AY53: =IF(VLOOKUP($C$164,Scenarios!$A$3:$DZ$994,BF53,0)="","",VLOOKUP($C$164,Scenarios!$A$3:$DZ$994,BF53,0)) ->  | AZ53: =IF(VLOOKUP($C$164,Scenarios!$A$3:$DZ$994,BG53,0)="","",VLOOKUP($C$164,Scenarios!$A$3:$DZ$994,BG53,0)) ->  | BA53: =COLUMN(Scenarios!AM$1) -> 39 | BB53: =COLUMN(Scenarios!AN$1) -> 40 | BC53: =COLUMN(Scenarios!AO$1) -> 41 | BD53: =COLUMN(Scenarios!AP$1) -> 42 | BE53: =COLUMN(Scenarios!AQ$1) -> 43 | BF53: =COLUMN(Scenarios!AR$1) -> 44 | BG53: =COLUMN(Scenarios!AS$1) -> 45
P54: =SUM(Table1g)/100 -> 1
C56: Irrigation Information (Optional)
H58: What percent of the lawn is irrigated routinely? | K58: % | L58: =IFERROR(J21*J58/100,"") ->  | M58: acres | AZ58: =IF(VLOOKUP($C$164,Scenarios!$A$3:$DZ$994,BA58,0)="","",VLOOKUP($C$164,Scenarios!$A$3:$DZ$994,BA58,0)) ->  | BA58: =COLUMN(Scenarios!AT1) -> 46
H59: If none, leave blank.
H61: How often do you irrigate? | K61: times per season | AZ61: =IF(VLOOKUP($C$164,Scenarios!$A$3:$DZ$994,BA61,0)="","",VLOOKUP($C$164,Scenarios!$A$3:$DZ$994,BA61,0)) ->  | BA61: =COLUMN(Scenarios!AU1) -> 47
H62: Learn more
H64: How much water do you use? | J64: 1 | K64: inch(es) per irrigation cycle | AZ64: =IF(VLOOKUP($C$164,Scenarios!$A$3:$DZ$994,BA64,0)="","",VLOOKUP($C$164,Scenarios!$A$3:$DZ$994,BA64,0)) ->  | BA64: =COLUMN(Scenarios!AV1) -> 48
I65: Don't know? Here's the average. | J65: 1 | K65: inch per irrigation cycle
A69: =SUM(IF(CheckMowArea=TRUE,1,0),IF(CheckMowLess=TRUE,1,0),IF(CheckMower=TRUE,1,0),IF(CheckIrrigate=TRUE,1,0)) -> 0 | B69: Future Mowing Practices
C70: Save time, money and reduce the environmental impact by…
A71: FALSE | C71: Mowing less area. | AZ71: =VLOOKUP($C$164,Scenarios!$A$3:$DZ$994,BA71,0) ->  | BA71: =COLUMN(Scenarios!AW1) -> 49
C73: ="You currently mow about "&J21&" acres." -> You currently mow about acres. | L73: Acres | M73: or | N73: % of Total
C75: How much would you like to reduce this amount? Enter in acres or as a percent of total. | L75: 0 | N75: 0 | AY75: =VLOOKUP($C$164,Scenarios!$A$3:$DZ$994,BA75,0) ->  | AZ75: =VLOOKUP($C$164,Scenarios!$A$3:$DZ$994,BB75,0) ->  | BA75: =COLUMN(Scenarios!AX1) -> 50 | BB75: =COLUMN(Scenarios!AY1) -> 51
L76: =IFERROR(N75/100*J21,0) -> 0 | N76: =IFERROR(L75/J21,0) -> 0
E78: New mow area: | F78: =IFERROR(J21-IF(L75>0,L75,L76),0) -> 0 | G78: acres
C80: Do you still plan to mow the "unmowed" area a few times each season? If so, how many? | M80: times per season | AZ80: =IF(VLOOKUP($C$164,Scenarios!$A$3:$DZ$994,BA80,0)="","",VLOOKUP($C$164,Scenarios!$A$3:$DZ$994,BA80,0)) ->  | BA80: =COLUMN(Scenarios!AZ1) -> 52
A83: FALSE | C83: Mowing less often. | AZ83: =VLOOKUP($C$164,Scenarios!$A$3:$DZ$994,BA83,0) ->  | BA83: =COLUMN(Scenarios!BA1) -> 53
C85: =IFERROR("You currently mow the lawn once every "&J23&" days during a season that lasts "&J25&" weeks. This means you mow the lawn about "&(J25*7/J23)&" times each season.","") -> You currently mow the lawn once every 7 days during a season that lasts 26 weeks. This means you mow the lawn about 26 times each season.
C87: Enter a new frequency for mowing the lawn. | K87: Once every… | M87: days | AZ87: =IF(VLOOKUP($C$164,Scenarios!$A$3:$DZ$994,BA87,0)="","",VLOOKUP($C$164,Scenarios!$A$3:$DZ$994,BA87,0)) ->  | BA87: =COLUMN(Scenarios!BB1) -> 54
K89: During a season that lasts… | M89: weeks | AZ89: =IF(VLOOKUP($C$164,Scenarios!$A$3:$DZ$994,BA89,0)="","",VLOOKUP($C$164,Scenarios!$A$3:$DZ$994,BA89,0)) ->  | BA89: =COLUMN(Scenarios!BC1) -> 55
E91: New mow frequency: | F91: =IFERROR(IF(L87>0,IF(L89>0,L89*7/L87,J25*7/J23),J25*7/J23),0) -> 0 | G91: times per season
A95: FALSE | C95: Changing the type of mower used. | AZ95: =VLOOKUP($C$164,Scenarios!$A$3:$DZ$994,BA95,0) ->  | BA95: =COLUMN(Scenarios!BD1) -> 56
C97: ="You currently use a "&J36&" horsepower "&J38&" lawn mower with a "&J34&" inch deck and an average speed of about "&J43&" miles per hour." -> You currently use a 20 horsepower Gasoline lawn mower with a 46 inch deck and an average speed of about 5 miles per hour.
C99: Choose the specifications for the new mower. | K99: Deck Size: | M99: inches | AZ99: =IF(VLOOKUP($C$164,Scenarios!$A$3:$DZ$994,BA99,0)="","",VLOOKUP($C$164,Scenarios!$A$3:$DZ$994,BA99,0)) ->  | BA99: =COLUMN(Scenarios!BE1) -> 57
K101: Horsepower: | M101: hp | AZ101: =IF(VLOOKUP($C$164,Scenarios!$A$3:$DZ$994,BA101,0)="","",VLOOKUP($C$164,Scenarios!$A$3:$DZ$994,BA101,0)) ->  | BA101: =COLUMN(Scenarios!BF1) -> 58
K103: Fuel Type: | L103: Gasoline | AZ103: =IF(VLOOKUP($C$164,Scenarios!$A$3:$DZ$994,BA103,0)="","",VLOOKUP($C$164,Scenarios!$A$3:$DZ$994,BA103,0)) ->  | BA103: =COLUMN(Scenarios!BG1) -> 59
J105: What's the average fuel cost? | M105: $/gallon | AZ105: =IF(VLOOKUP($C$164,Scenarios!$A$3:$DZ$994,BA105,0)="","",VLOOKUP($C$164,Scenarios!$A$3:$DZ$994,BA105,0)) ->  | BA105: =COLUMN(Scenarios!BH1) -> 60
K106: Don't know? Here's the average. | L106: =VLOOKUP(L103,Factors!$B$45:$C$47,2,0) -> 3.7 | M106: $/gallon
K108: Mow Speed: | M108: mph | AZ108: =IF(VLOOKUP($C$164,Scenarios!$A$3:$DZ$994,BA108,0)="","",VLOOKUP($C$164,Scenarios!$A$3:$DZ$994,BA108,0)) ->  | BA108: =COLUMN(Scenarios!BI1) -> 61
C111: Please enter the parameters for the new mowers in the cells below.
C113: Name | F113: Deck Size (in) | H113: Horsepower (hp) | J113: Fuel Type | L113: Fuel cost ($/gallon) | N113: Mow speed (mph) | P113: % of total acres
AS114: =IF(VLOOKUP($C$164,Scenarios!$A$3:$DZ$994,BA114,0)="","",VLOOKUP($C$164,Scenarios!$A$3:$DZ$994,BA114,0)) ->  | AU114: =IF(VLOOKUP($C$164,Scenarios!$A$3:$DZ$994,BB114,0)="","",VLOOKUP($C$164,Scenarios!$A$3:$DZ$994,BB114,0)) ->  | AV114: =IF(VLOOKUP($C$164,Scenarios!$A$3:$DZ$994,BC114,0)="","",VLOOKUP($C$164,Scenarios!$A$3:$DZ$994,BC114,0)) ->  | AW114: =IF(VLOOKUP($C$164,Scenarios!$A$3:$DZ$994,BD114,0)="","",VLOOKUP($C$164,Scenarios!$A$3:$DZ$994,BD114,0)) ->  | AX114: =IF(VLOOKUP($C$164,Scenarios!$A$3:$DZ$994,BE114,0)="","",VLOOKUP($C$164,Scenarios!$A$3:$DZ$994,BE114,0)) ->  | AY114: =IF(VLOOKUP($C$164,Scenarios!$A$3:$DZ$994,BF114,0)="","",VLOOKUP($C$164,Scenarios!$A$3:$DZ$994,BF114,0)) ->  | AZ114: =IF(VLOOKUP($C$164,Scenarios!$A$3:$DZ$994,BG114,0)="","",VLOOKUP($C$164,Scenarios!$A$3:$DZ$994,BG114,0)) ->  | BA114: =COLUMN(Scenarios!BJ$1) -> 62 | BB114: =COLUMN(Scenarios!BK$1) -> 63 | BC114: =COLUMN(Scenarios!BL$1) -> 64 | BD114: =COLUMN(Scenarios!BM$1) -> 65 | BE114: =COLUMN(Scenarios!BN$1) -> 66 | BF114: =COLUMN(Scenarios!BO$1) -> 67 | BG114: =COLUMN(Scenarios!BP$1) -> 68
AS115: =IF(VLOOKUP($C$164,Scenarios!$A$3:$DZ$994,BA115,0)="","",VLOOKUP($C$164,Scenarios!$A$3:$DZ$994,BA115,0)) ->  | AU115: =IF(VLOOKUP($C$164,Scenarios!$A$3:$DZ$994,BB115,0)="","",VLOOKUP($C$164,Scenarios!$A$3:$DZ$994,BB115,0)) ->  | AV115: =IF(VLOOKUP($C$164,Scenarios!$A$3:$DZ$994,BC115,0)="","",VLOOKUP($C$164,Scenarios!$A$3:$DZ$994,BC115,0)) ->  | AW115: =IF(VLOOKUP($C$164,Scenarios!$A$3:$DZ$994,BD115,0)="","",VLOOKUP($C$164,Scenarios!$A$3:$DZ$994,BD115,0)) ->  | AX115: =IF(VLOOKUP($C$164,Scenarios!$A$3:$DZ$994,BE115,0)="","",VLOOKUP($C$164,Scenarios!$A$3:$DZ$994,BE115,0)) ->  | AY115: =IF(VLOOKUP($C$164,Scenarios!$A$3:$DZ$994,BF115,0)="","",VLOOKUP($C$164,Scenarios!$A$3:$DZ$994,BF115,0)) ->  | AZ115: =IF(VLOOKUP($C$164,Scenarios!$A$3:$DZ$994,BG115,0)="","",VLOOKUP($C$164,Scenarios!$A$3:$DZ$994,BG115,0)) ->  | BA115: =COLUMN(Scenarios!BQ$1) -> 69 | BB115: =COLUMN(Scenarios!BR$1) -> 70 | BC115: =COLUMN(Scenarios!BS$1) -> 71 | BD115: =COLUMN(Scenarios!BT$1) -> 72 | BE115: =COLUMN(Scenarios!BU$1) -> 73 | BF115: =COLUMN(Scenarios!BV$1) -> 74 | BG115: =COLUMN(Scenarios!BW$1) -> 75
AS116: =IF(VLOOKUP($C$164,Scenarios!$A$3:$DZ$994,BA116,0)="","",VLOOKUP($C$164,Scenarios!$A$3:$DZ$994,BA116,0)) ->  | AU116: =IF(VLOOKUP($C$164,Scenarios!$A$3:$DZ$994,BB116,0)="","",VLOOKUP($C$164,Scenarios!$A$3:$DZ$994,BB116,0)) ->  | AV116: =IF(VLOOKUP($C$164,Scenarios!$A$3:$DZ$994,BC116,0)="","",VLOOKUP($C$164,Scenarios!$A$3:$DZ$994,BC116,0)) ->  | AW116: =IF(VLOOKUP($C$164,Scenarios!$A$3:$DZ$994,BD116,0)="","",VLOOKUP($C$164,Scenarios!$A$3:$DZ$994,BD116,0)) ->  | AX116: =IF(VLOOKUP($C$164,Scenarios!$A$3:$DZ$994,BE116,0)="","",VLOOKUP($C$164,Scenarios!$A$3:$DZ$994,BE116,0)) ->  | AY116: =IF(VLOOKUP($C$164,Scenarios!$A$3:$DZ$994,BF116,0)="","",VLOOKUP($C$164,Scenarios!$A$3:$DZ$994,BF116,0)) ->  | AZ116: =IF(VLOOKUP($C$164,Scenarios!$A$3:$DZ$994,BG116,0)="","",VLOOKUP($C$164,Scenarios!$A$3:$DZ$994,BG116,0)) ->  | BA116: =COLUMN(Scenarios!BX$1) -> 76 | BB116: =COLUMN(Scenarios!BY$1) -> 77 | BC116: =COLUMN(Scenarios!BZ$1) -> 78 | BD116: =COLUMN(Scenarios!CA$1) -> 79 | BE116: =COLUMN(Scenarios!CB$1) -> 80 | BF116: =COLUMN(Scenarios!CC$1) -> 81 | BG116: =COLUMN(Scenarios!CD$1) -> 82
AS117: =IF(VLOOKUP($C$164,Scenarios!$A$3:$DZ$994,BA117,0)="","",VLOOKUP($C$164,Scenarios!$A$3:$DZ$994,BA117,0)) ->  | AU117: =IF(VLOOKUP($C$164,Scenarios!$A$3:$DZ$994,BB117,0)="","",VLOOKUP($C$164,Scenarios!$A$3:$DZ$994,BB117,0)) ->  | AV117: =IF(VLOOKUP($C$164,Scenarios!$A$3:$DZ$994,BC117,0)="","",VLOOKUP($C$164,Scenarios!$A$3:$DZ$994,BC117,0)) ->  | AW117: =IF(VLOOKUP($C$164,Scenarios!$A$3:$DZ$994,BD117,0)="","",VLOOKUP($C$164,Scenarios!$A$3:$DZ$994,BD117,0)) ->  | AX117: =IF(VLOOKUP($C$164,Scenarios!$A$3:$DZ$994,BE117,0)="","",VLOOKUP($C$164,Scenarios!$A$3:$DZ$994,BE117,0)) ->  | AY117: =IF(VLOOKUP($C$164,Scenarios!$A$3:$DZ$994,BF117,0)="","",VLOOKUP($C$164,Scenarios!$A$3:$DZ$994,BF117,0)) ->  | AZ117: =IF(VLOOKUP($C$164,Scenarios!$A$3:$DZ$994,BG117,0)="","",VLOOKUP($C$164,Scenarios!$A$3:$DZ$994,BG117,0)) ->  | BA117: =COLUMN(Scenarios!CE$1) -> 83 | BB117: =COLUMN(Scenarios!CF$1) -> 84 | BC117: =COLUMN(Scenarios!CG$1) -> 85 | BD117: =COLUMN(Scenarios!CH$1) -> 86 | BE117: =COLUMN(Scenarios!CI$1) -> 87 | BF117: =COLUMN(Scenarios!CJ$1) -> 88 | BG117: =COLUMN(Scenarios!CK$1) -> 89
AS118: =IF(VLOOKUP($C$164,Scenarios!$A$3:$DZ$994,BA118,0)="","",VLOOKUP($C$164,Scenarios!$A$3:$DZ$994,BA118,0)) ->  | AU118: =IF(VLOOKUP($C$164,Scenarios!$A$3:$DZ$994,BB118,0)="","",VLOOKUP($C$164,Scenarios!$A$3:$DZ$994,BB118,0)) ->  | AV118: =IF(VLOOKUP($C$164,Scenarios!$A$3:$DZ$994,BC118,0)="","",VLOOKUP($C$164,Scenarios!$A$3:$DZ$994,BC118,0)) ->  | AW118: =IF(VLOOKUP($C$164,Scenarios!$A$3:$DZ$994,BD118,0)="","",VLOOKUP($C$164,Scenarios!$A$3:$DZ$994,BD118,0)) ->  | AX118: =IF(VLOOKUP($C$164,Scenarios!$A$3:$DZ$994,BE118,0)="","",VLOOKUP($C$164,Scenarios!$A$3:$DZ$994,BE118,0)) ->  | AY118: =IF(VLOOKUP($C$164,Scenarios!$A$3:$DZ$994,BF118,0)="","",VLOOKUP($C$164,Scenarios!$A$3:$DZ$994,BF118,0)) ->  | AZ118: =IF(VLOOKUP($C$164,Scenarios!$A$3:$DZ$994,BG118,0)="","",VLOOKUP($C$164,Scenarios!$A$3:$DZ$994,BG118,0)) ->  | BA118: =COLUMN(Scenarios!CL$1) -> 90 | BB118: =COLUMN(Scenarios!CM$1) -> 91 | BC118: =COLUMN(Scenarios!CN$1) -> 92 | BD118: =COLUMN(Scenarios!CO$1) -> 93 | BE118: =COLUMN(Scenarios!CP$1) -> 94 | BF118: =COLUMN(Scenarios!CQ$1) -> 95 | BG118: =COLUMN(Scenarios!CR$1) -> 96
C121: =IF(L80>0,"Which of these mowers will you use to mow the 'unmowed' area that you only mow "&L80&" times per season?","") -> Which of these mowers will you use to mow the 'unmowed' area that you only mow times per season? | AX121: =IF(VLOOKUP($C$164,Scenarios!$A$3:$DZ$994,BA121,0)="","",VLOOKUP($C$164,Scenarios!$A$3:$DZ$994,BA121,0)) ->  | BA121: =COLUMN(Scenarios!CS1) -> 97
A125: FALSE | C125: Irrigating less. | AZ125: =VLOOKUP($C$164,Scenarios!$A$3:$DZ$994,BA125,0) ->  | BA125: =COLUMN(Scenarios!CT21) -> 98
C127: ="Under the new scenario you plan to mow approximately "&F78&" acres." -> Under the new scenario you plan to mow approximately 0 acres.
J129: What percent of this land do you plan to irrigate? | M129: % | N129: =IFERROR(L129/100*F78,0) -> 0 | O129: acres | AZ129: =IF(VLOOKUP($C$164,Scenarios!$A$3:$DZ$994,BA129,0)="","",VLOOKUP($C$164,Scenarios!$A$3:$DZ$994,BA129,0)) ->  | BA129: =COLUMN(Scenarios!CU25) -> 99
J131: How often? | M131: times per season | AZ131: =IF(VLOOKUP($C$164,Scenarios!$A$3:$DZ$994,BA131,0)="","",VLOOKUP($C$164,Scenarios!$A$3:$DZ$994,BA131,0)) ->  | BA131: =COLUMN(Scenarios!CV27) -> 100
J133: How much water do you use? | L133: 1 | M133: inch(es) per irrigation cycle | AZ133: =IF(VLOOKUP($C$164,Scenarios!$A$3:$DZ$994,BA133,0)="","",VLOOKUP($C$164,Scenarios!$A$3:$DZ$994,BA133,0)) ->  | BA133: =COLUMN(Scenarios!CW29) -> 101
A135: =IF(F78=J21,"off","on") -> on
A136: no | C136: =IF(F78=J21,"","Do you plan to irrigate the "&IFERROR(J21-F78,0)&" acres you no longer mow?") -> Do you plan to irrigate the 0 acres you no longer mow? | L136: no | AZ136: =IF(VLOOKUP($C$164,Scenarios!$A$3:$DZ$994,BA136,0)="","",VLOOKUP($C$164,Scenarios!$A$3:$DZ$994,BA136,0)) ->  | BA136: =COLUMN(Scenarios!CX32) -> 102
J138: =IF(F78=J21,"", "What percent of this land do you plan to irrigate?") -> What percent of this land do you plan to irrigate? | M138: =IF(F78=J21,"","%") -> % | N138: =IFERROR(L138/100*(J21-F78),0) -> 0 | O138: =IF(F78=J21,"","acres") -> acres | AZ138: =IF(VLOOKUP($C$164,Scenarios!$A$3:$DZ$994,BA138,0)="","",VLOOKUP($C$164,Scenarios!$A$3:$DZ$994,BA138,0)) ->  | BA138: =COLUMN(Scenarios!CY34) -> 103
J140: =IF(F78=J21,"","How often?") -> How often? | M140: =IF(F78=J21,"","times per season") -> times per season | AZ140: =IF(VLOOKUP($C$164,Scenarios!$A$3:$DZ$994,BA140,0)="","",VLOOKUP($C$164,Scenarios!$A$3:$DZ$994,BA140,0)) ->  | BA140: =COLUMN(Scenarios!CZ36) -> 104
J142: =IF(F78=J21,"","How much water do you use?") -> How much water do you use? | L142: 1 | M142: =IF(F78=J21,"","inch(es) per irrigation cycle") -> inch(es) per irrigation cycle | AZ142: =IF(VLOOKUP($C$164,Scenarios!$A$3:$DZ$994,BA142,0)="","",VLOOKUP($C$164,Scenarios!$A$3:$DZ$994,BA142,0)) ->  | BA142: =COLUMN(Scenarios!DA38) -> 105
D144: Click the buttons to the right to access information on best practices in these areas.
B147: Store this scenario
C149: Want to store the above scenario to review later? To do so, provide a name for the scenario below and click the "Store Scenario" button. Doing so will store the values you've entered above as a scenario that you can recall later. This is an optional feature that allows you to store multiple scenarios in the Mowing Calculator without creating multiple files. To recall the scenario, go to the Recall a Scenario section below.
C150: Please note: storing a scenario does not save the file. To save the file, click the "Save File" button in the header of this sheet.
C151: Enter a name for the scenario
C153: Please use letters and numbers only.
B158: Recall a scenario
C160: You can recall any stored scenario by selecting it from the dropdown list below and clicking the "Recall Scenario" button.
C161: When you recall a scenario, data from the stored scenario will be populated in the calculators above.
C163: Select a scenario to recall
C164: Select a scenario...
B168: * Fuel Saving units are in gallons of gasoline equivalent (GGE) for fuels other than gasoline. A GGE is the amount of fuel it takes to equal the energy content of one liquid gallon of gasoline. It is used here to present fuel savings even if you change the fuels used by the mower.
B170: ** lbsCO2e (pounds of carbon dioxide equivalent) are units used to report greenhouse gas (GHG) savings. GHGs include carbon dioxide, methane, and nitrous oxide, among others. GHGs vary in how much they heat the atmosphere and how long they stay in the atmosphere, which can be expressed numericall as a global warming potential (GWP). For reporting purposes GHGs like methane and nitrous oxide are converted to an equivalent amount of carbon dioxide using their GWP.

Sheet Calculations
B2: Calculations
B5: This sheet presents the calculations used on the previous sheet. Factors used in the Calculations sheet can be found on the Factors sheet.
B8: Current Scenario
B10: This section presents the calculations for the baseline (or current conditions) scenario.
B12: Primary Inputs
C13: Mowed Acres: | E13: =IFERROR('Mowing Scenario'!J21,0) ->  | F13: acres
C14: Mowing Frequency: | E14: =IFERROR('Mowing Scenario'!J23,0) -> 7 | F14: days
C15: Season Length: | E15: =IFERROR('Mowing Scenario'!J25,0) -> 26 | F15: weeks
C16: Mow Occurences: | E16: =IFERROR(E15*7/E14,0) -> 26 | F16: times
C17: One or Multiple Mowers? | E17: =IF('Mowing Scenario'!A30=TRUE,"Single","Multiple") -> Single
B19: Calculations for a Single Mower Baseline Scenario
B21: Single Mower Specifications
C22: Deck Size: | E22: =IFERROR('Mowing Scenario'!J34,0) -> 46 | F22: inches
C23: Horsepower: | E23: =IFERROR('Mowing Scenario'!J36,0) -> 20 | F23: hp
C24: Fuel Type: | E24: =IFERROR('Mowing Scenario'!J38,"") -> Gasoline
C25: Fuel Cost: | E25: =IFERROR('Mowing Scenario'!J40,0) -> 3.7 | F25: $/gallon
C26: Mow Speed: | E26: =IFERROR('Mowing Scenario'!J43,0) -> 5 | F26: mph
B28: Hours Spent Mowing (Single Mower)
C29: Mow Rate Coefficient | E29: Swath overlap | G29: Deck Size (in) | I29: Mow speed (mph) | K29: Mow time (hours/acre) | M29: Acres | O29: Hours/Mow | Q29: Mow Occurences | S29: Total Hours
C30: =Factors!B64 -> 108.9 | D30: / | E30: =Factors!D64 -> 0.9 | F30: x | G30: =E22 -> 46 | H30: x | I30: =E26 -> 5 | J30: = | K30: =IFERROR(C30/(E30*G30*I30),0) -> 0.5260869565 | L30: x | M30: =$E$13 ->  | N30: = | O30: =IFERROR(K30*M30,0) -> 0 | P30: x | Q30: =IFERROR(E16,0) -> 26 | R30: = | S30: =Q30*O30 -> 0
B32: Fuel Consumed Mowing and Fuel Costs (Single Mower)
C33: Hours | E33: Horsepower | G33: hp-hr | I33: BSCF (Btu/hp-hr) | K33: Energy (Btu) | M33: Btu/gallon | O33: Gallons | Q33: Fuel Cost ($/gallon) | S33: Fuel Costs
C34: =S30 -> 0 | D34: * | E34: =E23 -> 20 | F34: = | G34: =C34*E34 -> 0 | H34: x | I34: =VLOOKUP(E24,Factors!$B$71:$C$73,2,0) -> 9039 | J34: = | K34: =G34*I34 -> 0 | L34: / | M34: =VLOOKUP(E24,Factors!$B$71:$E$73,4,0) -> 125000 | N34: = | O34: =K34/M34 -> 0 | P34: x | Q34: =E25 -> 3.7 | R34: = | S34: =Q34*O34 -> 0
O36: Gallons | Q36: GGE/Gallon | S36: Fuel Consumption (GGE)
O37: =O34 -> 0 | P37: x | Q37: =VLOOKUP(E24,Factors!$B$32:$E$41,4,0) -> 1 | R37: = | S37: =IFERROR(Q37*O37,O37) -> 0
B38: GHG Emissions Produced Mowing (Single Mower)
E39: MMBtu | G39: kgCO2e/MMBtu | I39: GHGs (kgCO2e) | K39: lbs/kg | M39: GHGs (lbsCO2e)
C40: Upstream | E40: =K34/Factors!$K$112 -> 0 | F40: x | G40: =VLOOKUP($E$24,Factors!$B$56:$D$58,2,0) -> 0 | H40: = | I40: =G40*E40 -> 0 | J40: x | K40: =Factors!$I$134 -> 2.2046 | L40: = | M40: =K40*I40 -> 0
C41: CO2e | E41: =K34/Factors!$K$112 -> 0 | F41: x | G41: =VLOOKUP($E$24,Factors!$B$56:$D$58,3,0) -> 71.4182 | H41: = | I41: =G41*E41 -> 0 | J41: x | K41: =Factors!$I$134 -> 2.2046 | L41: = | M41: =K41*I41 -> 0
C43: Total | E43: NA | G43: NA | I43: =SUM(I40:I41) -> 0 | K43: NA | M43: =SUM(M40:M41) -> 0
B45: Pollutants Produced Mowing (Single Mower)
E46: hp-hr | G46: g/hp-hr | I46: Pollutant (grams) | K46: lbs/g | M46: Pollutants (lbs)
C47: HC | E47: =$G$34 -> 0 | F47: x | G47: =VLOOKUP($E$24,Factors!$G$56:$K$58,MATCH(Calculations!$C47,Factors!$G$54:$K$54,0),0) -> 0.27 | H47: = | I47: =G47*E47 -> 0 | J47: x | K47: =Factors!$I$133 -> 0.0022 | L47: = | M47: =K47*I47 -> 0
C48: CO | E48: =$G$34 -> 0 | F48: x | G48: =VLOOKUP($E$24,Factors!$G$56:$K$58,MATCH(Calculations!$C48,Factors!$G$54:$K$54,0),0) -> 11.94 | H48: = | I48: =G48*E48 -> 0 | J48: x | K48: =Factors!$I$133 -> 0.0022 | L48: = | M48: =K48*I48 -> 0
C49: NOx | E49: =$G$34 -> 0 | F49: x | G49: =VLOOKUP($E$24,Factors!$G$56:$K$58,MATCH(Calculations!$C49,Factors!$G$54:$K$54,0),0) -> 0.69 | H49: = | I49: 0 | J49: x | K49: =Factors!$I$133 -> 0.0022 | L49: = | M49: 0
C50: PM | E50: =$G$34 -> 0 | F50: x | G50: =VLOOKUP($E$24,Factors!$G$56:$K$58,MATCH(Calculations!$C50,Factors!$G$54:$K$54,0),0) -> 7.7 | H50: = | I50: 0 | J50: x | K50: =Factors!$I$133 -> 0.0022 | L50: = | M50: 0
B52: Calculations for a Multiple Mower Baseline Scenario
B54: Multiple Mower Specifications
C56: Name | E56: Deck Size (in) | G56: Horsepower (hp) | I56: Fuel Type | K56: Fuel Cost ($/gallon) | M56: Mow speed (mph) | O56: % of total acres
B57: 1) | C57: ='Mowing Scenario'!C49 ->  | E57: ='Mowing Scenario'!F49 -> 46 | G57: ='Mowing Scenario'!H49 -> 20 | I57: ='Mowing Scenario'!J49 -> Gasoline | K57: ='Mowing Scenario'!L49 -> 3.7 | M57: ='Mowing Scenario'!N49 -> 5 | O57: ='Mowing Scenario'!P49 -> 100
B58: 2) | C58: ='Mowing Scenario'!C50 ->  | E58: ='Mowing Scenario'!F50 ->  | G58: ='Mowing Scenario'!H50 ->  | I58: ='Mowing Scenario'!J50 ->  | K58: ='Mowing Scenario'!L50 ->  | M58: ='Mowing Scenario'!N50 ->  | O58: ='Mowing Scenario'!P50 -> 
B59: 3) | C59: ='Mowing Scenario'!C51 ->  | E59: ='Mowing Scenario'!F51 ->  | G59: ='Mowing Scenario'!H51 ->  | I59: ='Mowing Scenario'!J51 ->  | K59: ='Mowing Scenario'!L51 ->  | M59: ='Mowing Scenario'!N51 ->  | O59: ='Mowing Scenario'!P51 -> 
B60: 4) | C60: ='Mowing Scenario'!C52 ->  | E60: ='Mowing Scenario'!F52 ->  | G60: ='Mowing Scenario'!H52 ->  | I60: ='Mowing Scenario'!J52 ->  | K60: ='Mowing Scenario'!L52 ->  | M60: ='Mowing Scenario'!N52 ->  | O60: ='Mowing Scenario'!P52 -> 
B61: 5) | C61: ='Mowing Scenario'!C53 ->  | E61: ='Mowing Scenario'!F53 ->  | G61: ='Mowing Scenario'!H53 ->  | I61: ='Mowing Scenario'!J53 ->  | K61: ='Mowing Scenario'!L53 ->  | M61: ='Mowing Scenario'!N53 ->  | O61: ='Mowing Scenario'!P53 -> 
B63: Fuel Consumed Mowing and Fuel Costs (Multiple Mowers)
C65: Name | E65: Mow Rate Coefficient | G65: Swath overlap | I65: Deck Size (in) | K65: Mow speed (mph) | M65: Mow time (hours/acre) | O65: % of total acres | Q65: Acres | S65: Hours/Mow | U65: Mow Occurences | W65: Total Hours | Y65: Horsepower | AA65: hp-hr | AC65: BSCF (Btu/hp-hr) | AE65: Energy (Btu) | AG65: Btu/gallon | AI65: Gallons | AK65: Fuel Cost ($/gallon) | AM65: Fuel Costs
B66: 1) | C66: =C57 ->  | E66: =Factors!$B$64 -> 108.9 | F66: / | G66: =Factors!$D$64 -> 0.9 | H66: x | I66: =E57 -> 46 | J66: x | K66: =M57 -> 5 | L66: = | M66: =IFERROR(E66/(G66*I66*K66),0) -> 0.5260869565 | N66: x | O66: =IFERROR(O57/100,0) -> 1 | P66: x | Q66: =$E$13 ->  | R66: = | S66: =IFERROR(Q66*O66*M66,0) -> 0 | T66: x | U66: =$E$16 -> 26 | V66: = | W66: =U66*S66 -> 0 | X66: x | Y66: =G57 -> 20 | Z66: = | AA66: =IFERROR(Y66*W66,0) -> 0 | AB66: x | AC66: =IFERROR(VLOOKUP(I57,Factors!$B$71:$C$73,2,0),0) -> 9039 | AD66: = | AE66: =AC66*AA66 -> 0 | AF66: x | AG66: =IFERROR(VLOOKUP(I57,Factors!$B$71:$E$73,4,0),0) -> 125000 | AH66: = | AI66: =IFERROR(AE66/AG66,0) -> 0 | AJ66: x | AK66: =K57 -> 3.7 | AL66: = | AM66: =IFERROR(AK66*AI66,0) -> 0
B67: 2) | C67: =C58 ->  | E67: =Factors!$B$64 -> 108.9 | F67: / | G67: =Factors!$D$64 -> 0.9 | H67: x | I67: =E58 ->  | J67: x | K67: =M58 ->  | L67: = | M67: =IFERROR(E67/(G67*I67*K67),0) -> 0 | N67: x | O67: =IFERROR(O58/100,0) -> 0 | P67: x | Q67: =$E$13 ->  | R67: = | S67: =IFERROR(Q67*O67*M67,0) -> 0 | T67: x | U67: =$E$16 -> 26 | V67: = | W67: =U67*S67 -> 0 | X67: x | Y67: =G58 ->  | Z67: = | AA67: =IFERROR(Y67*W67,0) -> 0 | AB67: x | AC67: =IFERROR(VLOOKUP(I58,Factors!$B$71:$C$73,2,0),0) -> 0 | AD67: = | AE67: =AC67*AA67 -> 0 | AF67: x | AG67: =IFERROR(VLOOKUP(I58,Factors!$B$71:$E$73,4,0),0) -> 0 | AH67: = | AI67: =IFERROR(AE67/AG67,0) -> 0 | AJ67: x | AK67: =K58 ->  | AL67: = | AM67: =IFERROR(AK67*AI67,0) -> 0
B68: 3) | C68: =C59 ->  | E68: =Factors!$B$64 -> 108.9 | F68: / | G68: =Factors!$D$64 -> 0.9 | H68: x | I68: =E59 ->  | J68: x | K68: =M59 ->  | L68: = | M68: 0 | N68: x | O68: 0 | P68: x | R68: = | S68: 0 | T68: x | U68: 26 | V68: = | W68: 0 | X68: x | Y68: =G59 ->  | Z68: = | AA68: 0 | AB68: x | AC68: =IFERROR(VLOOKUP(I59,Factors!$B$71:$C$73,2,0),0) -> 0 | AD68: = | AE68: =AC68*AA68 -> 0 | AF68: x | AG68: =IFERROR(VLOOKUP(I59,Factors!$B$71:$E$73,4,0),0) -> 0 | AH68: = | AI68: 0 | AJ68: x | AK68: =K59 ->  | AL68: = | AM68: 0
B69: 4) | C69: =C60 ->  | E69: =Factors!$B$64 -> 108.9 | F69: / | G69: =Factors!$D$64 -> 0.9 | H69: x | I69: =E60 ->  | J69: x | K69: =M60 ->  | L69: = | M69: 0 | N69: x | O69: 0 | P69: x | R69: = | S69: 0 | T69: x | U69: 26 | V69: = | W69: 0 | X69: x | Y69: =G60 ->  | Z69: = | AA69: 0 | AB69: x | AC69: =IFERROR(VLOOKUP(I60,Factors!$B$71:$C$73,2,0),0) -> 0 | AD69: = | AE69: =AC69*AA69 -> 0 | AF69: x | AG69: =IFERROR(VLOOKUP(I60,Factors!$B$71:$E$73,4,0),0) -> 0 | AH69: = | AI69: 0 | AJ69: x | AK69: =K60 ->  | AL69: = | AM69: 0
B70: 5) | C70: =C61 ->  | E70: =Factors!$B$64 -> 108.9 | F70: / | G70: =Factors!$D$64 -> 0.9 | H70: x | I70: =E61 ->  | J70: x | K70: =M61 ->  | L70: = | M70: 0 | N70: x | O70: 0 | P70: x | R70: = | S70: 0 | T70: x | U70: 26 | V70: = | W70: 0 | X70: x | Y70: =G61 ->  | Z70: = | AA70: 0 | AB70: x | AC70: =IFERROR(VLOOKUP(I61,Factors!$B$71:$C$73,2,0),0) -> 0 | AD70: = | AE70: =AC70*AA70 -> 0 | AF70: x | AG70: =IFERROR(VLOOKUP(I61,Factors!$B$71:$E$73,4,0),0) -> 0 | AH70: = | AI70: 0 | AJ70: x | AK70: =K61 ->  | AL70: = | AM70: 0
C72: Total | S72: =IFERROR(SUM(S66:S70),0) -> 0 | W72: =SUM(W66:W70) -> 0 | AA72: =IFERROR(SUM(AA66:AA70),0) -> 0 | AE72: =IFERROR(SUM(AE66:AE70),0) -> 0 | AI72: =IFERROR(SUM(AI66:AI70),0) -> 0 | AM72: =IFERROR(SUM(AM66:AM70),0) -> 0
B74: Fuel Consumed in Gasoline Gallon Equivalents (Multiple Mowers)
E75: Gallons | G75: GGE/Gallon | I75: Fuel Consumption (GGE)
C76: =C66 ->  | E76: =AI66 -> 0 | F76: x | G76: =IFERROR(VLOOKUP(I57,Factors!$B$32:$E$41,4,0),0) -> 1 | H76: = | I76: =IFERROR(G76*E76,E76) -> 0
C77: =C67 ->  | E77: =AI67 -> 0 | F77: x | G77: =IFERROR(VLOOKUP(I58,Factors!$B$32:$E$41,4,0),0) -> 0 | H77: = | I77: =IFERROR(G77*E77,E77) -> 0
C78: =C68 ->  | E78: =AI68 -> 0 | F78: x | G78: =IFERROR(VLOOKUP(I59,Factors!$B$32:$E$41,4,0),0) -> 0 | H78: = | I78: 0
C79: =C69 ->  | E79: =AI69 -> 0 | F79: x | G79: =IFERROR(VLOOKUP(I60,Factors!$B$32:$E$41,4,0),0) -> 0 | H79: = | I79: 0
C80: =C70 ->  | E80: =AI70 -> 0 | F80: x | G80: =IFERROR(VLOOKUP(I61,Factors!$B$32:$E$41,4,0),0) -> 0 | H80: = | I80: 0
C82: Total | I82: =SUM(I76:I80) -> 0
B84: GHGs and Pollutants Produced Mowing (Multiple Mowers by Mower)
C86: =C66 ->  | Q86: =C58 ->  | AE86: =C59 ->  | AS86: =C60 ->  | BG86: =C70 -> 
E87: MMBtu | G87: kgCO2e/MMBtu | I87: GHGs (kgCO2e) | K87: lbs/kg | M87: GHGs (lbsCO2e) | S87: MMBtu | U87: kgCO2e/MMBtu | W87: GHGs (kgCO2e) | Y87: lbs/kg | AA87: GHGs (lbsCO2e) | AG87: MMBtu | AI87: kgCO2e/MMBtu | AK87: GHGs (kgCO2e) | AM87: lbs/kg | AO87: GHGs (lbsCO2e) | AU87: MMBtu | AW87: kgCO2e/MMBtu | AY87: GHGs (kgCO2e) | BA87: lbs/kg | BC87: GHGs (lbsCO2e) | BI87: MMBtu | BK87: kgCO2e/MMBtu | BM87: GHGs (kgCO2e) | BO87: lbs/kg | BQ87: GHGs (lbsCO2e)
C88: Upstream CO2 | E88: =$AE$66/Factors!$K$112 -> 0 | F88: x | G88: =VLOOKUP($I$57,Factors!$B$56:$D$58,2,0) -> 0 | H88: = | I88: =G88*E88 -> 0 | J88: x | K88: =Factors!$I$134 -> 2.2046 | L88: = | M88: =K88*I88 -> 0 | Q88: Upstream CO2 | S88: =$AE$67/Factors!$K$112 -> 0 | T88: x | U88: =IFERROR(VLOOKUP($I$58,Factors!$B$56:$D$58,2,0),0) -> 0 | V88: = | W88: =U88*S88 -> 0 | X88: x | Y88: =Factors!$I$134 -> 2.2046 | Z88: = | AA88: =Y88*W88 -> 0 | AE88: Upstream CO2 | AG88: =$AE$68/Factors!$K$112 -> 0 | AH88: x | AI88: =IFERROR(VLOOKUP($I$59,Factors!$B$56:$D$58,2,0),0) -> 0 | AJ88: = | AK88: =AI88*AG88 -> 0 | AL88: x | AM88: =Factors!$I$134 -> 2.2046 | AN88: = | AO88: =AM88*AK88 -> 0 | AS88: Upstream CO2 | AU88: =$AE$69/Factors!$K$112 -> 0 | AV88: x | AW88: =IFERROR(VLOOKUP($I$60,Factors!$B$56:$D$58,2,0),0) -> 0 | AX88: = | AY88: =AW88*AU88 -> 0 | AZ88: x | BA88: =Factors!$I$134 -> 2.2046 | BB88: = | BC88: =BA88*AY88 -> 0 | BG88: Upstream CO2 | BI88: =$AE$70/Factors!$K$112 -> 0 | BJ88: x | BK88: =IFERROR(VLOOKUP($I$61,Factors!$B$56:$D$58,2,0),0) -> 0 | BL88: = | BM88: =BK88*BI88 -> 0 | BN88: x | BO88: =Factors!$I$134 -> 2.2046 | BP88: = | BQ88: =BO88*BM88 -> 0
C89: CO2e | E89: =$AE$66/Factors!$K$112 -> 0 | F89: x | G89: =VLOOKUP($I$57,Factors!$B$56:$D$58,3,0) -> 71.4182 | H89: = | I89: =G89*E89 -> 0 | J89: x | K89: =Factors!$I$134 -> 2.2046 | L89: = | M89: =K89*I89 -> 0 | Q89: CO2e | S89: =$AE$67/Factors!$K$112 -> 0 | T89: x | U89: =IFERROR(VLOOKUP($I$58,Factors!$B$56:$D$58,3,0),0) -> 0 | V89: = | W89: =U89*S89 -> 0 | X89: x | Y89: =Factors!$I$134 -> 2.2046 | Z89: = | AA89: =Y89*W89 -> 0 | AE89: CO2e | AG89: =$AE$68/Factors!$K$112 -> 0 | AH89: x | AI89: =IFERROR(VLOOKUP($I$59,Factors!$B$56:$D$58,3,0),0) -> 0 | AJ89: = | AK89: =AI89*AG89 -> 0 | AL89: x | AM89: =Factors!$I$134 -> 2.2046 | AN89: = | AO89: =AM89*AK89 -> 0 | AS89: CO2e | AU89: =$AE$69/Factors!$K$112 -> 0 | AV89: x | AW89: =IFERROR(VLOOKUP($I$60,Factors!$B$56:$D$58,3,0),0) -> 0 | AX89: = | AY89: =AW89*AU89 -> 0 | AZ89: x | BA89: =Factors!$I$134 -> 2.2046 | BB89: = | BC89: =BA89*AY89 -> 0 | BG89: CO2e | BI89: =$AE$70/Factors!$K$112 -> 0 | BJ89: x | BK89: =IFERROR(VLOOKUP($I$61,Factors!$B$56:$D$58,3,0),0) -> 0 | BL89: = | BM89: =BK89*BI89 -> 0 | BN89: x | BO89: =Factors!$I$134 -> 2.2046 | BP89: = | BQ89: =BO89*BM89 -> 0
E91: hp-hr | G91: g/hp-hr | I91: Pollutant (grams) | K91: lbs/g | M91: Pollutants (lbs) | S91: hp-hr | U91: g/hp-hr | W91: Pollutant (grams) | Y91: lbs/g | AA91: Pollutants (lbs) | AG91: hp-hr | AI91: g/hp-hr | AK91: Pollutant (grams) | AM91: lbs/g | AO91: Pollutants (lbs) | AU91: hp-hr | AW91: g/hp-hr | AY91: Pollutant (grams) | BA91: lbs/g | BC91: Pollutants (lbs) | BI91: hp-hr | BK91: g/hp-hr | BM91: Pollutant (grams) | BO91: lbs/g | BQ91: Pollutants (lbs)
C92: HC | E92: =$AA$66 -> 0 | F92: x | G92: =VLOOKUP($I$57,Factors!$G$56:$K$58,2,0) -> 0.27 | H92: = | I92: =G92*E92 -> 0 | J92: x | K92: =Factors!$I$133 -> 0.0022 | L92: = | M92: =K92*I92 -> 0 | Q92: HC | S92: =$AA$67 -> 0 | T92: x | U92: =IFERROR(VLOOKUP($I$58,Factors!$G$56:$K$58,2,0),0) -> 0 | V92: = | W92: =U92*S92 -> 0 | X92: x | Y92: =Factors!$I$133 -> 0.0022 | Z92: = | AA92: =Y92*W92 -> 0 | AE92: HC | AG92: =$AA$68 -> 0 | AH92: x | AI92: =IFERROR(VLOOKUP($I$59,Factors!$G$56:$K$58,2,0),0) -> 0 | AJ92: = | AK92: =AI92*AG92 -> 0 | AL92: x | AM92: =Factors!$I$133 -> 0.0022 | AN92: = | AO92: =AM92*AK92 -> 0 | AS92: HC | AU92: =$AA$69 -> 0 | AV92: x | AW92: =IFERROR(VLOOKUP($I$60,Factors!$G$56:$K$58,2,0),0) -> 0 | AX92: = | AY92: =AW92*AU92 -> 0 | AZ92: x | BA92: =Factors!$I$133 -> 0.0022 | BB92: = | BC92: =BA92*AY92 -> 0 | BG92: HC | BI92: =$AA$70 -> 0 | BJ92: x | BK92: =IFERROR(VLOOKUP($I$61,Factors!$G$56:$K$58,2,0),0) -> 0 | BL92: = | BM92: =BK92*BI92 -> 0 | BN92: x | BO92: =Factors!$I$133 -> 0.0022 | BP92: = | BQ92: =BO92*BM92 -> 0
C93: CO | E93: =$AA$66 -> 0 | F93: x | G93: =VLOOKUP($I$57,Factors!$G$56:$K$58,3,0) -> 11.94 | H93: = | I93: =G93*E93 -> 0 | J93: x | K93: =Factors!$I$133 -> 0.0022 | L93: = | M93: 0 | Q93: CO | S93: =$AA$67 -> 0 | T93: x | U93: =IFERROR(VLOOKUP($I$58,Factors!$G$56:$K$58,3,0),0) -> 0 | V93: = | W93: =U93*S93 -> 0 | X93: x | Y93: =Factors!$I$133 -> 0.0022 | Z93: = | AA93: =Y93*W93 -> 0 | AE93: CO | AG93: =$AA$68 -> 0 | AH93: x | AI93: =IFERROR(VLOOKUP($I$59,Factors!$G$56:$K$58,3,0),0) -> 0 | AJ93: = | AK93: =AI93*AG93 -> 0 | AL93: x | AM93: =Factors!$I$133 -> 0.0022 | AN93: = | AO93: 0 | AS93: CO | AU93: =$AA$69 -> 0 | AV93: x | AW93: =IFERROR(VLOOKUP($I$60,Factors!$G$56:$K$58,3,0),0) -> 0 | AX93: = | AY93: =AW93*AU93 -> 0 | AZ93: x | BA93: =Factors!$I$133 -> 0.0022 | BB93: = | BC93: 0 | BG93: CO | BI93: =$AA$70 -> 0 | BJ93: x | BK93: =IFERROR(VLOOKUP($I$61,Factors!$G$56:$K$58,3,0),0) -> 0 | BL93: = | BM93: =BK93*BI93 -> 0 | BN93: x | BO93: =Factors!$I$133 -> 0.0022 | BP93: = | BQ93: 0
C94: NOx | E94: =$AA$66 -> 0 | F94: x | G94: =VLOOKUP($I$57,Factors!$G$56:$K$58,4,0) -> 0.69 | H94: = | I94: 0 | J94: x | K94: =Factors!$I$133 -> 0.0022 | L94: = | M94: 0 | Q94: NOx | S94: =$AA$67 -> 0 | T94: x | U94: =IFERROR(VLOOKUP($I$58,Factors!$G$56:$K$58,4,0),0) -> 0 | V94: = | W94: =U94*S94 -> 0 | X94: x | Y94: =Factors!$I$133 -> 0.0022 | Z94: = | AA94: =Y94*W94 -> 0 | AE94: NOx | AG94: =$AA$68 -> 0 | AH94: x | AI94: =IFERROR(VLOOKUP($I$59,Factors!$G$56:$K$58,4,0),0) -> 0 | AJ94: = | AK94: 0 | AL94: x | AM94: =Factors!$I$133 -> 0.0022 | AN94: = | AO94: 0 | AS94: NOx | AU94: =$AA$69 -> 0 | AV94: x | AW94: =IFERROR(VLOOKUP($I$60,Factors!$G$56:$K$58,4,0),0) -> 0 | AX94: = | AY94: 0 | AZ94: x | BA94: =Factors!$I$133 -> 0.0022 | BB94: = | BC94: 0 | BG94: NOx | BI94: =$AA$70 -> 0 | BJ94: x | BK94: =IFERROR(VLOOKUP($I$61,Factors!$G$56:$K$58,4,0),0) -> 0 | BL94: = | BM94: 0 | BN94: x | BO94: =Factors!$I$133 -> 0.0022 | BP94: = | BQ94: 0
C95: PM | E95: =$AA$66 -> 0 | F95: x | G95: =VLOOKUP($I$57,Factors!$G$56:$K$58,5,0) -> 7.7 | H95: = | I95: 0 | J95: x | K95: =Factors!$I$133 -> 0.0022 | L95: = | M95: 0 | Q95: PM | S95: =$AA$67 -> 0 | T95: x | U95: =IFERROR(VLOOKUP($I$58,Factors!$G$56:$K$58,5,0),0) -> 0 | V95: = | W95: =U95*S95 -> 0 | X95: x | Y95: =Factors!$I$133 -> 0.0022 | Z95: = | AA95: =Y95*W95 -> 0 | AE95: PM | AG95: =$AA$68 -> 0 | AH95: x | AI95: =IFERROR(VLOOKUP($I$59,Factors!$G$56:$K$58,5,0),0) -> 0 | AJ95: = | AK95: 0 | AL95: x | AM95: =Factors!$I$133 -> 0.0022 | AN95: = | AO95: 0 | AS95: PM | AU95: =$AA$69 -> 0 | AV95: x | AW95: =IFERROR(VLOOKUP($I$60,Factors!$G$56:$K$58,5,0),0) -> 0 | AX95: = | AY95: 0 | AZ95: x | BA95: =Factors!$I$133 -> 0.0022 | BB95: = | BC95: 0 | BG95: PM | BI95: =$AA$70 -> 0 | BJ95: x | BK95: =IFERROR(VLOOKUP($I$61,Factors!$G$56:$K$58,5,0),0) -> 0 | BL95: = | BM95: 0 | BN95: x | BO95: =Factors!$I$133 -> 0.0022 | BP95: = | BQ95: 0
C98: Total | E98: GHGs (lbsCO2e)
C99: Upstream CO2 | E99: =SUM(M88,AA88,AO88,BC88,BQ88) -> 0
C100: CO2e | E100: =SUM(M89,AA89,AO89,BC89,BQ89) -> 0
C102: Total | E102: =SUM(E99:E100) -> 0
E104: Pollutants (lbs)
C105: HC | E105: =SUM(M92,AA92,AO92,BC92,BQ92) -> 0
C106: CO | E106: =SUM(M93,AA93,AO93,BC93,BQ93) -> 0
C107: NOx | E107: =SUM(M94,AA94,AO94,BC94,BQ94) -> 0
C108: PM | E108: =SUM(M95,AA95,AO95,BC95,BQ95) -> 0
B111: Calculations for a Baseline Irrigation Scenario
C113: Irrigated Acres | E113: Irrigation Rate (inches per application) | G113: Irrigation Cycle Amount (gallons/ inch/ acre) | I113: Irrigation Volume (gallons/cycle) | K113: Irrigation Cycles per Season | M113: Seasonal Irrigation Volume (gallons)
C114: =IFERROR('Mowing Scenario'!L58,0) ->  | D114: x | E114: =IFERROR('Mowing Scenario'!J64,0) -> 1 | F114: x | G114: =Factors!$H$70 -> 27000 | H114: = | I114: =IFERROR(C114*E114*G114,0) -> 0 | J114: x | K114: =IFERROR('Mowing Scenario'!J61,0) ->  | L114: = | M114: =IFERROR(K114*I114,0) -> 0
B118: Planned Scenario
B120: This section presents the calculations for the planned (or future) scenario. The planned scenario allows you to consider several options that range from mowing less acreage to irrigating less.
B121: The options considered in the calculations presented below include:
B123: =IF('Mowing Scenario'!A71=TRUE,"a","") ->  | C123: Mow less area
B124: =IF('Mowing Scenario'!A83=TRUE,"a","") ->  | C124: Mow less often
B125: =IF('Mowing Scenario'!A95=TRUE,"a","") ->  | C125: Use a different type of lawn mower
B126: =IF('Mowing Scenario'!A125=TRUE,"a","") ->  | C126: Irrigate less
C128: Primary Inputs
E129: Mowed Area | I129: Unmowed Area
C130: Mowed Acres: | E130: =IFERROR(IF(B123="a",'Mowing Scenario'!F78,E13),0) ->  | F130: acres | I130: =IFERROR('Mowing Scenario'!J21-'Mowing Scenario'!F78,0) -> 0 | J130: acres
C131: Mow Occurences: | E131: =IFERROR(IF(B124="a",'Mowing Scenario'!F91,Q30),0) -> 26 | F131: times | I131: =IFERROR('Mowing Scenario'!L80,0) ->  | J131: times
B134: Calculations for a Single Mower Planned Scenario
B137: Single Mower Specifications
C138: Deck Size: | E138: =IFERROR('Mowing Scenario'!L99,0) ->  | F138: inches
C139: Horsepower: | E139: =IFERROR('Mowing Scenario'!L101,0) ->  | F139: hp
C140: Fuel Type: | E140: =IFERROR('Mowing Scenario'!L103,0) -> Gasoline
C141: Fuel Cost: | E141: =IFERROR('Mowing Scenario'!L105,0) ->  | F141: $/gallon
C142: Mow Speed: | E142: =IFERROR('Mowing Scenario'!L108,0) ->  | F142: mph
B145: Hours Spent Mowing (Single Mower)
E146: Mow Rate Coefficient | G146: Swath overlap | I146: Deck Size (in) | K146: Mow speed (mph) | M146: Mow time (hours/acre) | O146: Acres | Q146: Hours/Mow | S146: Mow Occurences | U146: Total Hours
C147: Mowed Area | E147: =Factors!$B$64 -> 108.9 | F147: / | G147: =Factors!$D$64 -> 0.9 | H147: x | I147: =IFERROR(IF($B$125="a",$E$138,$E$22),0) -> 46 | J147: x | K147: =IFERROR(IF($B$125="a",$E$142,$E$26),0) -> 5 | L147: = | M147: =IFERROR(E147/(G147*I147*K147),0) -> 0.5260869565 | N147: x | O147: =E130 ->  | P147: = | Q147: =M147*O147 ->  | R147: x | S147: =IFERROR(E131,0) -> 26 | T147: = | U147: =IFERROR(S147*Q147,0) -> 0
C148: Unmowed Area | E148: =Factors!$B$64 -> 108.9 | F148: / | G148: =Factors!$D$64 -> 0.9 | H148: x | I148: =IFERROR(IF($B$125="a",$E$138,$E$22),0) -> 46 | J148: x | K148: =IFERROR(IF($B$125="a",$E$142,$E$26),0) -> 5 | L148: = | M148: =IFERROR(E148/(G148*I148*K148),0) -> 0.5260869565 | N148: x | O148: =I130 -> 0 | P148: = | Q148: =M148*O148 -> 0 | R148: x | S148: =I131 ->  | T148: = | U148: =IFERROR(S148*Q148,0) -> 0
C149: Total | U149: =SUM(U147:U148) -> 0
B151: Fuel Consumed Mowing and Fuel Costs (Single Mower)
C152: Hours | E152: Horsepower | G152: hp-hr | I152: BSCF (Btu/hp-hr) | K152: Energy (Btu) | M152: Btu/gallon | O152: Gallons | Q152: Fuel Cost ($/gallon) | S152: Fuel Costs
C153: =U149 -> 0 | D153: * | E153: =IFERROR(IF(B125="a",E139,E23),0) -> 20 | F153: = | G153: =IFERROR(C153*E153,0) -> 0 | H153: x | I153: =VLOOKUP(E140,Factors!$B$71:$C$73,2,0) -> 9039 | J153: = | K153: =G153*I153 -> 0 | L153: / | M153: =VLOOKUP(E140,Factors!$B$71:$E$73,4,0) -> 125000 | N153: = | O153: =K153/M153 -> 0 | P153: x | Q153: =IFERROR(IF(B125="a",E141,E25),0) -> 3.7 | R153: = | S153: =IFERROR(Q153*O153,0) -> 0
Q155: GGE/Gallon | S155: Fuel Consumption (GGE)
O156: =O153 -> 0 | P156: x | Q156: =VLOOKUP(E140,Factors!$B$32:$E$41,4,0) -> 1 | R156: = | S156: =IFERROR(Q156*O156,O156) -> 0
B157: GHG Emissions Produced Mowing (Single Mower)
E158: MMBtu | G158: kgCO2e/MMBtu | I158: GHGs (kgCO2e) | K158: lbs/kg | M158: GHGs (lbsCO2e)
C159: Upstream | E159: =K153/Factors!$K$112 -> 0 | F159: x | G159: =VLOOKUP($E$140,Factors!$B$56:$D$58,2,0) -> 0 | H159: = | I159: =G159*E159 -> 0 | J159: x | K159: =Factors!$I$134 -> 2.2046 | L159: = | M159: =K159*I159 -> 0
C160: CO2e | E160: =K153/Factors!$K$112 -> 0 | F160: x | G160: =VLOOKUP($E$140,Factors!$B$56:$D$58,3,0) -> 71.4182 | H160: = | I160: =G160*E160 -> 0 | J160: x | K160: =Factors!$I$134 -> 2.2046 | L160: = | M160: =K160*I160 -> 0
C162: Total | E162: NA | G162: NA | I162: =SUM(I159:I160) -> 0 | K162: NA | M162: =SUM(M159:M160) -> 0
B165: Pollutants Produced Mowing (Single Mower)
E166: hp-hr | G166: g/hp-hr | I166: Pollutant (grams) | K166: lbs/g | M166: Pollutants (lbs)
C167: HC | E167: =$G$153 -> 0 | F167: x | G167: =VLOOKUP($E$140,Factors!$G$56:$K$58,MATCH(Calculations!$C167,Factors!$G$54:$K$54,0),0) -> 0.27 | H167: = | I167: =G167*E167 -> 0 | J167: x | K167: =Factors!$I$133 -> 0.0022 | L167: = | M167: =K167*I167 -> 0
C168: CO | E168: =$G$153 -> 0 | F168: x | G168: =VLOOKUP($E$140,Factors!$G$56:$K$58,MATCH(Calculations!$C168,Factors!$G$54:$K$54,0),0) -> 11.94 | H168: = | I168: =G168*E168 -> 0 | J168: x | K168: =Factors!$I$133 -> 0.0022 | L168: = | M168: =K168*I168 -> 0
C169: NOx | E169: 0 | F169: x | G169: =VLOOKUP($E$140,Factors!$G$56:$K$58,MATCH(Calculations!$C169,Factors!$G$54:$K$54,0),0) -> 0.69 | H169: = | I169: 0 | J169: x | K169: =Factors!$I$133 -> 0.0022 | L169: = | M169: 0
C170: PM | E170: 0 | F170: x | G170: =VLOOKUP($E$140,Factors!$G$56:$K$58,MATCH(Calculations!$C170,Factors!$G$54:$K$54,0),0) -> 7.7 | H170: = | I170: 0 | J170: x | K170: =Factors!$I$133 -> 0.0022 | L170: = | M170: 0
B172: Calculations for a Multiple Mower Planned Scenario
B175: Multiple Mower Specifications
C176: Name | E176: Deck Size (in) | G176: Horsepower (hp) | I176: Fuel Type | K176: Fuel Cost ($/gallon) | M176: Mow speed (mph) | O176: % of total acres
B177: 1) | C177: =IFERROR(IF($B$125="a",'Mowing Scenario'!C114,C57),0) ->  | E177: =IFERROR(IF($B$125="a",'Mowing Scenario'!F114,E57),0) -> 46 | G177: =IFERROR(IF($B$125="a",'Mowing Scenario'!H114,G57),0) -> 20 | I177: =IFERROR(IF($B$125="a",'Mowing Scenario'!J114,I57),0) -> Gasoline | K177: =IFERROR(IF($B$125="a",'Mowing Scenario'!L114,K57),0) -> 3.7 | M177: =IFERROR(IF($B$125="a",'Mowing Scenario'!N114,M57),0) -> 5 | O177: =IFERROR(IF($B$125="a",'Mowing Scenario'!P114,O57),0) -> 100
B178: 2) | C178: =IFERROR(IF($B$125="a",'Mowing Scenario'!C115,C58),0) ->  | E178: =IFERROR(IF($B$125="a",'Mowing Scenario'!F115,E58),0) ->  | G178: =IFERROR(IF($B$125="a",'Mowing Scenario'!H115,G58),0) ->  | I178: =IFERROR(IF($B$125="a",'Mowing Scenario'!J115,I58),0) ->  | K178: =IFERROR(IF($B$125="a",'Mowing Scenario'!L115,K58),0) ->  | M178: =IFERROR(IF($B$125="a",'Mowing Scenario'!N115,M58),0) ->  | O178: =IFERROR(IF($B$125="a",'Mowing Scenario'!P115,O58),0) -> 
B179: 3) | C179: =IFERROR(IF($B$125="a",'Mowing Scenario'!C116,C59),0) ->  | E179: =IFERROR(IF($B$125="a",'Mowing Scenario'!F116,E59),0) ->  | G179: =IFERROR(IF($B$125="a",'Mowing Scenario'!H116,G59),0) ->  | I179: =IFERROR(IF($B$125="a",'Mowing Scenario'!J116,I59),0) ->  | K179: =IFERROR(IF($B$125="a",'Mowing Scenario'!L116,K59),0) ->  | M179: =IFERROR(IF($B$125="a",'Mowing Scenario'!N116,M59),0) ->  | O179: =IFERROR(IF($B$125="a",'Mowing Scenario'!P116,O59),0) -> 
B180: 4) | C180: =IFERROR(IF($B$125="a",'Mowing Scenario'!C117,C60),0) ->  | E180: =IFERROR(IF($B$125="a",'Mowing Scenario'!F117,E60),0) ->  | G180: =IFERROR(IF($B$125="a",'Mowing Scenario'!H117,G60),0) ->  | I180: =IFERROR(IF($B$125="a",'Mowing Scenario'!J117,I60),0) ->  | K180: =IFERROR(IF($B$125="a",'Mowing Scenario'!L117,K60),0) ->  | M180: =IFERROR(IF($B$125="a",'Mowing Scenario'!N117,M60),0) ->  | O180: =IFERROR(IF($B$125="a",'Mowing Scenario'!P117,O60),0) -> 
B181: 5) | C181: =IFERROR(IF($B$125="a",'Mowing Scenario'!C118,C61),0) ->  | E181: =IFERROR(IF($B$125="a",'Mowing Scenario'!F118,E61),0) ->  | G181: =IFERROR(IF($B$125="a",'Mowing Scenario'!H118,G61),0) ->  | I181: =IFERROR(IF($B$125="a",'Mowing Scenario'!J118,I61),0) ->  | K181: =IFERROR(IF($B$125="a",'Mowing Scenario'!L118,K61),0) ->  | M181: =IFERROR(IF($B$125="a",'Mowing Scenario'!N118,M61),0) ->  | O181: =IFERROR(IF($B$125="a",'Mowing Scenario'!P118,O61),0) -> 
B184: Fuel Consumed Mowing and Fuel Costs (Multiple Mowers)
C185: Name | E185: Mow Rate Coefficient | G185: Swath overlap | I185: Deck Size (in) | K185: Mow speed (mph) | M185: Mow time (hours/acre) | O185: % of total acres | Q185: Acres | S185: Hours/Mow | U185: Mow Occurences | W185: Total Hours | Y185: Horsepower | AA185: hp-hr | AC185: BSCF (Btu/hp-hr) | AE185: Energy (Btu) | AG185: Btu/gallon | AI185: Gallons | AK185: Fuel Cost ($/gallon) | AM185: Fuel Costs
B186: 1) | C186: =C177 ->  | E186: =Factors!$B$64 -> 108.9 | F186: / | G186: =Factors!$D$64 -> 0.9 | H186: x | I186: =E177 -> 46 | J186: x | K186: =M177 -> 5 | L186: = | M186: =IFERROR(E186/(G186*I186*K186),0) -> 0.5260869565 | N186: x | O186: =IFERROR(O177/100,0) -> 1 | P186: x | Q186: =IFERROR('Mowing Scenario'!$F$78,0) -> 0 | R186: = | S186: =Q186*O186*M186 -> 0 | T186: x | U186: =IFERROR($E$131,0) -> 26 | V186: = | W186: =U186*S186 -> 0 | X186: x | Y186: =G177 -> 20 | Z186: = | AA186: =IFERROR(Y186*W186,0) -> 0 | AB186: x | AC186: =IFERROR(VLOOKUP(I177,Factors!$B$71:$C$73,2,0),0) -> 9039 | AD186: = | AE186: =AC186*AA186 -> 0 | AF186: x | AG186: =IFERROR(VLOOKUP(I177,Factors!$B$71:$E$73,4,0),0) -> 125000 | AH186: = | AI186: =IFERROR(AE186/AG186,0) -> 0 | AJ186: x | AK186: =K177 -> 3.7 | AL186: = | AM186: =IFERROR(AK186*AI186,0) -> 0
B187: 2) | C187: =C178 ->  | E187: =Factors!$B$64 -> 108.9 | F187: / | G187: =Factors!$D$64 -> 0.9 | H187: x | I187: =E178 ->  | J187: x | K187: =M178 ->  | L187: = | M187: =IFERROR(E187/(G187*I187*K187),0) -> 0 | N187: x | O187: =IFERROR(O178/100,0) -> 0 | P187: x | Q187: =IFERROR('Mowing Scenario'!$F$78,0) -> 0 | R187: = | S187: =Q187*O187*M187 -> 0 | T187: x | U187: =IFERROR($E$131,0) -> 26 | V187: = | W187: =U187*S187 -> 0 | X187: x | Y187: =G178 ->  | Z187: = | AA187: =IFERROR(Y187*W187,0) -> 0 | AB187: x | AC187: =IFERROR(VLOOKUP(I178,Factors!$B$71:$C$73,2,0),0) -> 0 | AD187: = | AE187: =AC187*AA187 -> 0 | AF187: x | AG187: =IFERROR(VLOOKUP(I178,Factors!$B$71:$E$73,4,0),0) -> 0 | AH187: = | AI187: =IFERROR(AE187/AG187,0) -> 0 | AJ187: x | AK187: =K178 ->  | AL187: = | AM187: =IFERROR(AK187*AI187,0) -> 0
B188: 3) | C188: =C179 ->  | E188: =Factors!$B$64 -> 108.9 | F188: / | G188: =Factors!$D$64 -> 0.9 | H188: x | I188: =E179 ->  | J188: x | K188: =M179 ->  | L188: = | M188: 0 | N188: x | O188: 0 | P188: x | Q188: =IFERROR('Mowing Scenario'!$F$78,0) -> 0 | R188: = | S188: 0 | T188: x | U188: 26 | V188: = | W188: 0 | X188: x | Y188: =G179 ->  | Z188: = | AA188: 0 | AB188: x | AC188: =IFERROR(VLOOKUP(I179,Factors!$B$71:$C$73,2,0),0) -> 0 | AD188: = | AE188: =AC188*AA188 -> 0 | AF188: x | AG188: =IFERROR(VLOOKUP(I179,Factors!$B$71:$E$73,4,0),0) -> 0 | AH188: = | AI188: 0 | AJ188: x | AK188: =K179 ->  | AL188: = | AM188: 0
B189: 4) | C189: =C180 ->  | E189: =Factors!$B$64 -> 108.9 | F189: / | G189: =Factors!$D$64 -> 0.9 | H189: x | I189: =E180 ->  | J189: x | K189: =M180 ->  | L189: = | M189: 0 | N189: x | O189: 0 | P189: x | Q189: =IFERROR('Mowing Scenario'!$F$78,0) -> 0 | R189: = | S189: 0 | T189: x | U189: 26 | V189: = | W189: 0 | X189: x | Y189: =G180 ->  | Z189: = | AA189: 0 | AB189: x | AC189: =IFERROR(VLOOKUP(I180,Factors!$B$71:$C$73,2,0),0) -> 0 | AD189: = | AE189: =AC189*AA189 -> 0 | AF189: x | AG189: =IFERROR(VLOOKUP(I180,Factors!$B$71:$E$73,4,0),0) -> 0 | AH189: = | AI189: 0 | AJ189: x | AK189: =K180 ->  | AL189: = | AM189: 0
B190: 5) | C190: =C181 ->  | E190: =Factors!$B$64 -> 108.9 | F190: / | G190: =Factors!$D$64 -> 0.9 | H190: x | I190: =E181 ->  | J190: x | K190: =M181 ->  | L190: = | M190: 0 | N190: x | O190: 0 | P190: x | Q190: =IFERROR('Mowing Scenario'!$F$78,0) -> 0 | R190: = | S190: 0 | T190: x | U190: 26 | V190: = | W190: 0 | X190: x | Y190: =G181 ->  | Z190: = | AA190: 0 | AB190: x | AC190: =IFERROR(VLOOKUP(I181,Factors!$B$71:$C$73,2,0),0) -> 0 | AD190: = | AE190: =AC190*AA190 -> 0 | AF190: x | AG190: =IFERROR(VLOOKUP(I181,Factors!$B$71:$E$73,4,0),0) -> 0 | AH190: = | AI190: 0 | AJ190: x | AK190: =K181 ->  | AL190: = | AM190: 0
C192: =IF($B$125="a",'Mowing Scenario'!N121,C186) ->  | E192: =Factors!$B$64 -> 108.9 | F192: / | G192: =Factors!$D$64 -> 0.9 | H192: x | I192: =IFERROR(VLOOKUP($C$192,$C$186:$AM$190,MATCH(I185,$C$185:$AM$185,0),0),0) -> 46 | J192: x | K192: =IFERROR(VLOOKUP($C$192,$C$186:$AM$190,MATCH(K185,$C$185:$AM$185,0),0),0) -> 5 | L192: = | M192: =IFERROR(E192/(G192*I192*K192),0) -> 0.5260869565 | N192: x | O192: 1 | P192: x | Q192: =IFERROR('Mowing Scenario'!D12,0) -> 0 | R192: = | S192: =Q192*O192*M192 -> 0 | T192: x | U192: =IFERROR('Mowing Scenario'!L80,0) ->  | V192: = | W192: =IFERROR(U192*S192,0) -> 0 | X192: x | Y192: =IFERROR(VLOOKUP($C$192,$C$186:$AM$190,MATCH(Y185,$C$185:$AM$185,0),0),0) -> 20 | Z192: = | AA192: =IFERROR(Y192*W192,0) -> 0 | AB192: x | AC192: =IFERROR(VLOOKUP($C$192,$C$186:$AM$190,MATCH(AC185,$C$185:$AM$185,0),0),0) -> 9039 | AD192: = | AE192: =AC192*AA192 -> 0 | AF192: x | AG192: =IFERROR(VLOOKUP($C$192,$C$186:$AM$190,MATCH(AG185,$C$185:$AM$185,0),0),0) -> 125000 | AH192: = | AI192: =IFERROR(AE192/AG192,0) -> 0 | AJ192: x | AK192: =IFERROR(VLOOKUP($C$192,$C$186:$AM$190,MATCH(AK185,$C$185:$AM$185,0),0),0) -> 3.7 | AL192: = | AM192: =IFERROR(AK192*AI192,0) -> 0
C194: Total | S194: =IFERROR(SUM(S186:S190),0) -> 0 | W194: =SUM(W186:W190,W192) -> 0 | AE194: =IFERROR(SUM(AE186:AE190,AE192),0) -> 0 | AI194: =IFERROR(SUM(AI186:AI190,AI192),0) -> 0 | AM194: =IFERROR(SUM(AM186:AM190,AM192),0) -> 0
B196: Fuel Consumed in Gasoline Gallon Equivalents (Multiple Mowers)
E197: Gallons | G197: GGE/Gallon | I197: Fuel Consumption (GGE)
C198: =C186 ->  | E198: =IF($C198=$C$192,$AI$192,0)+VLOOKUP($C198,$C$186:$AM$190,MATCH($E$197,$C$185:$AM$185,0),0) -> 0 | F198: x | G198: =IFERROR(VLOOKUP(I177,Factors!$B$32:$E$41,4,0),0) -> 1 | H198: = | I198: =IFERROR(G198*E198,E198) -> 0
C199: =C187 ->  | E199: =IF($C199=$C$192,$AI$192,0)+VLOOKUP($C199,$C$186:$AM$190,MATCH($E$197,$C$185:$AM$185,0),0) -> 0 | F199: x | G199: =IFERROR(VLOOKUP(I178,Factors!$B$32:$E$41,4,0),0) -> 0 | H199: = | I199: =IFERROR(G199*E199,E199) -> 0
C200: =C188 ->  | E200: =IF($C200=$C$192,$AI$192,0)+VLOOKUP($C200,$C$186:$AM$190,MATCH($E$197,$C$185:$AM$185,0),0) -> 0 | F200: x | G200: =IFERROR(VLOOKUP(I179,Factors!$B$32:$E$41,4,0),0) -> 0 | H200: = | I200: 0
C201: =C189 ->  | E201: =IF($C201=$C$192,$AI$192,0)+VLOOKUP($C201,$C$186:$AM$190,MATCH($E$197,$C$185:$AM$185,0),0) -> 0 | F201: x | G201: =IFERROR(VLOOKUP(I180,Factors!$B$32:$E$41,4,0),0) -> 0 | H201: = | I201: 0
C202: =C190 ->  | E202: =IF($C202=$C$192,$AI$192,0)+VLOOKUP($C202,$C$186:$AM$190,MATCH($E$197,$C$185:$AM$185,0),0) -> 0 | F202: x | G202: =IFERROR(VLOOKUP(I181,Factors!$B$32:$E$41,4,0),0) -> 0 | H202: = | I202: 0
C204: Total | I204: =SUM(I198:I202) -> 0
B207: GHGs and Pollutants Produced Mowing (Multiple Mowers by Mower)
C209: =C186 ->  | E209: Energy (Btu) | Q209: =C178 ->  | S209: Energy (Btu) | AE209: =C179 ->  | AG209: Energy (Btu) | AS209: =C180 ->  | AU209: Energy (Btu) | BG209: =C190 ->  | BI209: Energy (Btu)
E210: MMBtu | G210: kgCO2e/MMBtu | I210: GHGs (kgCO2e) | K210: lbs/kg | M210: GHGs (lbsCO2e) | S210: MMBtu | U210: kgCO2e/MMBtu | W210: GHGs (kgCO2e) | Y210: lbs/kg | AA210: GHGs (lbsCO2e) | AG210: MMBtu | AI210: kgCO2e/MMBtu | AK210: GHGs (kgCO2e) | AM210: lbs/kg | AO210: GHGs (lbsCO2e) | AU210: MMBtu | AW210: kgCO2e/MMBtu | AY210: GHGs (kgCO2e) | BA210: lbs/kg | BC210: GHGs (lbsCO2e) | BI210: MMBtu | BK210: kgCO2e/MMBtu | BM210: GHGs (kgCO2e) | BO210: lbs/kg | BQ210: GHGs (lbsCO2e)
C211: Upstream CO2 | E211: =IF($C$209=$C$192,$AE$192/Factors!$K$112,0)+VLOOKUP($C$209,$C$186:$AM$190,MATCH($E$209,$C$185:$AM$185,0),0)/Factors!$K$112 -> 0 | F211: x | G211: =IFERROR(VLOOKUP($I$177,Factors!$B$56:$D$58,2,0),0) -> 0 | H211: = | I211: =G211*E211 -> 0 | J211: x | K211: =Factors!$I$134 -> 2.2046 | L211: = | M211: =K211*I211 -> 0 | Q211: Upstream CO2 | S211: =IF($Q$209=$C$192,$AE$192/Factors!$K$112,0)+VLOOKUP($Q$209,$C$186:$AM$190,MATCH($E$209,$C$185:$AM$185,0),0)/Factors!$K$112 -> 0 | T211: x | U211: =IFERROR(VLOOKUP($I$178,Factors!$B$56:$D$58,2,0),0) -> 0 | V211: = | W211: =U211*S211 -> 0 | X211: x | Y211: =Factors!$I$134 -> 2.2046 | Z211: = | AA211: =Y211*W211 -> 0 | AE211: Upstream CO2 | AG211: =IF($AE$209=$C$192,$AE$192/Factors!$K$112,0)+VLOOKUP($AE$209,$C$186:$AM$190,MATCH($E$209,$C$185:$AM$185,0),0)/Factors!$K$112 -> 0 | AH211: x | AI211: =IFERROR(VLOOKUP($I$179,Factors!$B$56:$D$58,2,0),0) -> 0 | AJ211: = | AK211: =AI211*AG211 -> 0 | AL211: x | AM211: =Factors!$I$134 -> 2.2046 | AN211: = | AO211: =AM211*AK211 -> 0 | AS211: Upstream CO2 | AU211: =IF($AS$209=$C$192,$AE$192/Factors!$K$112,0)+VLOOKUP($AS$209,$C$186:$AM$190,MATCH($E$209,$C$185:$AM$185,0),0)/Factors!$K$112 -> 0 | AV211: x | AW211: =IFERROR(VLOOKUP($I$180,Factors!$B$56:$D$58,2,0),0) -> 0 | AX211: = | AY211: =AW211*AU211 -> 0 | AZ211: x | BA211: =Factors!$I$134 -> 2.2046 | BB211: = | BC211: =BA211*AY211 -> 0 | BG211: Upstream CO2 | BI211: =IF($BG$209=$C$192,$AE$192/Factors!$K$112,0)+VLOOKUP($BG$209,$C$186:$AM$190,MATCH($E$209,$C$185:$AM$185,0),0)/Factors!$K$112 -> 0 | BJ211: x | BK211: =IFERROR(VLOOKUP($I$181,Factors!$B$56:$D$58,2,0),0) -> 0 | BL211: = | BM211: =BK211*BI211 -> 0 | BN211: x | BO211: =Factors!$I$134 -> 2.2046 | BP211: = | BQ211: =BO211*BM211 -> 0
C212: CO2e | E212: =IF($C$209=$C$192,$AE$192/Factors!$K$112,0)+VLOOKUP($C$209,$C$186:$AM$190,MATCH($E$209,$C$185:$AM$185,0),0)/Factors!$K$112 -> 0 | F212: x | G212: =IFERROR(VLOOKUP($I$177,Factors!$B$56:$D$58,3,0),0) -> 71.4182 | H212: = | I212: =G212*E212 -> 0 | J212: x | K212: =Factors!$I$134 -> 2.2046 | L212: = | M212: =K212*I212 -> 0 | Q212: CO2e | S212: =IF($Q$209=$C$192,$AE$192/Factors!$K$112,0)+VLOOKUP($Q$209,$C$186:$AM$190,MATCH($E$209,$C$185:$AM$185,0),0)/Factors!$K$112 -> 0 | T212: x | U212: =IFERROR(VLOOKUP($I$178,Factors!$B$56:$D$58,3,0),0) -> 0 | V212: = | W212: =U212*S212 -> 0 | X212: x | Y212: =Factors!$I$134 -> 2.2046 | Z212: = | AA212: =Y212*W212 -> 0 | AE212: CO2e | AG212: =IF($AE$209=$C$192,$AE$192/Factors!$K$112,0)+VLOOKUP($AE$209,$C$186:$AM$190,MATCH($E$209,$C$185:$AM$185,0),0)/Factors!$K$112 -> 0 | AH212: x | AI212: =IFERROR(VLOOKUP($I$179,Factors!$B$56:$D$58,3,0),0) -> 0 | AJ212: = | AK212: =AI212*AG212 -> 0 | AL212: x | AM212: =Factors!$I$134 -> 2.2046 | AN212: = | AO212: =AM212*AK212 -> 0 | AS212: CO2e | AU212: =IF($AS$209=$C$192,$AE$192/Factors!$K$112,0)+VLOOKUP($AS$209,$C$186:$AM$190,MATCH($E$209,$C$185:$AM$185,0),0)/Factors!$K$112 -> 0 | AV212: x | AW212: =IFERROR(VLOOKUP($I$180,Factors!$B$56:$D$58,3,0),0) -> 0 | AX212: = | AY212: =AW212*AU212 -> 0 | AZ212: x | BA212: =Factors!$I$134 -> 2.2046 | BB212: = | BC212: =BA212*AY212 -> 0 | BG212: CO2e | BI212: =IF($BG$209=$C$192,$AE$192/Factors!$K$112,0)+VLOOKUP($BG$209,$C$186:$AM$190,MATCH($E$209,$C$185:$AM$185,0),0)/Factors!$K$112 -> 0 | BJ212: x | BK212: =IFERROR(VLOOKUP($I$181,Factors!$B$56:$D$58,3,0),0) -> 0 | BL212: = | BM212: =BK212*BI212 -> 0 | BN212: x | BO212: =Factors!$I$134 -> 2.2046 | BP212: = | BQ212: =BO212*BM212 -> 0
E214: hp-hr | G214: g/hp-hr | I214: Pollutant (grams) | K214: lbs/g | M214: Pollutants (lbs) | S214: hp-hr | U214: g/hp-hr | W214: Pollutant (grams) | Y214: lbs/g | AA214: Pollutants (lbs) | AG214: hp-hr | AI214: g/hp-hr | AK214: Pollutant (grams) | AM214: lbs/g | AO214: Pollutants (lbs) | AU214: hp-hr | AW214: g/hp-hr | AY214: Pollutant (grams) | BA214: lbs/g | BC214: Pollutants (lbs) | BI214: hp-hr | BK214: g/hp-hr | BM214: Pollutant (grams) | BO214: lbs/g | BQ214: Pollutants (lbs)
C215: HC | E215: =IF($C$209=$C$192,$AA$192,0)+VLOOKUP($C$209,$C$186:$AM$190,MATCH($E$214,$C$185:$AM$185,0),0) -> 0 | F215: x | G215: =IFERROR(VLOOKUP($I$177,Factors!$G$56:$K$58,2,0),0) -> 0.27 | H215: = | I215: =G215*E215 -> 0 | J215: x | K215: =Factors!$I$133 -> 0.0022 | L215: = | M215: =K215*I215 -> 0 | Q215: HC | S215: =IF($Q$209=$C$192,$AA$192,0)+VLOOKUP($Q$209,$C$186:$AM$190,MATCH($E$214,$C$185:$AM$185,0),0) -> 0 | T215: x | U215: =IFERROR(VLOOKUP($I$178,Factors!$G$56:$K$58,2,0),0) -> 0 | V215: = | W215: =U215*S215 -> 0 | X215: x | Y215: =Factors!$I$133 -> 0.0022 | Z215: = | AA215: =Y215*W215 -> 0 | AE215: HC | AG215: =IF($AE$209=$C$192,$AA$192,0)+VLOOKUP($AE$209,$C$186:$AM$190,MATCH($E$214,$C$185:$AM$185,0),0) -> 0 | AH215: x | AI215: =IFERROR(VLOOKUP($I$179,Factors!$G$56:$K$58,2,0),0) -> 0 | AJ215: = | AK215: =AI215*AG215 -> 0 | AL215: x | AM215: =Factors!$I$133 -> 0.0022 | AN215: = | AO215: =AM215*AK215 -> 0 | AS215: HC | AU215: =IF($AS$209=$C$192,$AA$192,0)+VLOOKUP($AS$209,$C$186:$AM$190,MATCH($E$214,$C$185:$AM$185,0),0) -> 0 | AV215: x | AW215: =IFERROR(VLOOKUP($I$180,Factors!$G$56:$K$58,2,0),0) -> 0 | AX215: = | AY215: =AW215*AU215 -> 0 | AZ215: x | BA215: =Factors!$I$133 -> 0.0022 | BB215: = | BC215: =BA215*AY215 -> 0 | BG215: HC | BI215: =IF($BG$209=$C$192,$AA$192,0)+VLOOKUP($BG$209,$C$186:$AM$190,MATCH($E$214,$C$185:$AM$185,0),0) -> 0 | BJ215: x | BK215: =IFERROR(VLOOKUP($I$181,Factors!$G$56:$K$58,2,0),0) -> 0 | BL215: = | BM215: =BK215*BI215 -> 0 | BN215: x | BO215: =Factors!$I$133 -> 0.0022 | BP215: = | BQ215: =BO215*BM215 -> 0
C216: CO | E216: =IF($C$209=$C$192,$AA$192,0)+VLOOKUP($C$209,$C$186:$AM$190,MATCH($E$214,$C$185:$AM$185,0),0) -> 0 | F216: x | G216: =IFERROR(VLOOKUP($I$177,Factors!$G$56:$K$58,3,0),0) -> 11.94 | H216: = | I216: =G216*E216 -> 0 | J216: x | K216: =Factors!$I$133 -> 0.0022 | L216: = | M216: 0 | Q216: CO | S216: =IF($Q$209=$C$192,$AA$192,0)+VLOOKUP($Q$209,$C$186:$AM$190,MATCH($E$214,$C$185:$AM$185,0),0) -> 0 | T216: x | U216: =IFERROR(VLOOKUP($I$178,Factors!$G$56:$K$58,3,0),0) -> 0 | V216: = | W216: =U216*S216 -> 0 | X216: x | Y216: =Factors!$I$133 -> 0.0022 | Z216: = | AA216: =Y216*W216 -> 0 | AE216: CO | AG216: =IF($AE$209=$C$192,$AA$192,0)+VLOOKUP($AE$209,$C$186:$AM$190,MATCH($E$214,$C$185:$AM$185,0),0) -> 0 | AH216: x | AI216: =IFERROR(VLOOKUP($I$179,Factors!$G$56:$K$58,3,0),0) -> 0 | AJ216: = | AK216: =AI216*AG216 -> 0 | AL216: x | AM216: =Factors!$I$133 -> 0.0022 | AN216: = | AO216: 0 | AS216: CO | AU216: =IF($AS$209=$C$192,$AA$192,0)+VLOOKUP($AS$209,$C$186:$AM$190,MATCH($E$214,$C$185:$AM$185,0),0) -> 0 | AV216: x | AW216: =IFERROR(VLOOKUP($I$180,Factors!$G$56:$K$58,3,0),0) -> 0 | AX216: = | AY216: =AW216*AU216 -> 0 | AZ216: x | BA216: =Factors!$I$133 -> 0.0022 | BB216: = | BC216: 0 | BG216: CO | BI216: =IF($BG$209=$C$192,$AA$192,0)+VLOOKUP($BG$209,$C$186:$AM$190,MATCH($E$214,$C$185:$AM$185,0),0) -> 0 | BJ216: x | BK216: =IFERROR(VLOOKUP($I$181,Factors!$G$56:$K$58,3,0),0) -> 0 | BL216: = | BM216: =BK216*BI216 -> 0 | BN216: x | BO216: =Factors!$I$133 -> 0.0022 | BP216: = | BQ216: 0
C217: NOx | E217: =IF($C$209=$C$192,$AA$192,0)+VLOOKUP($C$209,$C$186:$AM$190,MATCH($E$214,$C$185:$AM$185,0),0) -> 0 | F217: x | G217: =IFERROR(VLOOKUP($I$177,Factors!$G$56:$K$58,4,0),0) -> 0.69 | H217: = | I217: 0 | J217: x | K217: =Factors!$I$133 -> 0.0022 | L217: = | M217: 0 | Q217: NOx | S217: =IF($Q$209=$C$192,$AA$192,0)+VLOOKUP($Q$209,$C$186:$AM$190,MATCH($E$214,$C$185:$AM$185,0),0) -> 0 | T217: x | U217: =IFERROR(VLOOKUP($I$178,Factors!$G$56:$K$58,4,0),0) -> 0 | V217: = | W217: =U217*S217 -> 0 | X217: x | Y217: =Factors!$I$133 -> 0.0022 | Z217: = | AA217: =Y217*W217 -> 0 | AE217: NOx | AG217: =IF($AE$209=$C$192,$AA$192,0)+VLOOKUP($AE$209,$C$186:$AM$190,MATCH($E$214,$C$185:$AM$185,0),0) -> 0 | AH217: x | AI217: =IFERROR(VLOOKUP($I$179,Factors!$G$56:$K$58,4,0),0) -> 0 | AJ217: = | AK217: 0 | AL217: x | AM217: =Factors!$I$133 -> 0.0022 | AN217: = | AO217: 0 | AS217: NOx | AU217: =IF($AS$209=$C$192,$AA$192,0)+VLOOKUP($AS$209,$C$186:$AM$190,MATCH($E$214,$C$185:$AM$185,0),0) -> 0 | AV217: x | AW217: =IFERROR(VLOOKUP($I$180,Factors!$G$56:$K$58,4,0),0) -> 0 | AX217: = | AY217: 0 | AZ217: x | BA217: =Factors!$I$133 -> 0.0022 | BB217: = | BC217: 0 | BG217: NOx | BI217: =IF($BG$209=$C$192,$AA$192,0)+VLOOKUP($BG$209,$C$186:$AM$190,MATCH($E$214,$C$185:$AM$185,0),0) -> 0 | BJ217: x | BK217: =IFERROR(VLOOKUP($I$181,Factors!$G$56:$K$58,4,0),0) -> 0 | BL217: = | BM217: 0 | BN217: x | BO217: =Factors!$I$133 -> 0.0022 | BP217: = | BQ217: 0
C218: PM | E218: =IF($C$209=$C$192,$AA$192,0)+VLOOKUP($C$209,$C$186:$AM$190,MATCH($E$214,$C$185:$AM$185,0),0) -> 0 | F218: x | G218: =IFERROR(VLOOKUP($I$177,Factors!$G$56:$K$58,5,0),0) -> 7.7 | H218: = | I218: 0 | J218: x | K218: =Factors!$I$133 -> 0.0022 | L218: = | M218: 0 | Q218: PM | S218: =IF($Q$209=$C$192,$AA$192,0)+VLOOKUP($Q$209,$C$186:$AM$190,MATCH($E$214,$C$185:$AM$185,0),0) -> 0 | T218: x | U218: =IFERROR(VLOOKUP($I$178,Factors!$G$56:$K$58,5,0),0) -> 0 | V218: = | W218: =U218*S218 -> 0 | X218: x | Y218: =Factors!$I$133 -> 0.0022 | Z218: = | AA218: =Y218*W218 -> 0 | AE218: PM | AG218: =IF($AE$209=$C$192,$AA$192,0)+VLOOKUP($AE$209,$C$186:$AM$190,MATCH($E$214,$C$185:$AM$185,0),0) -> 0 | AH218: x | AI218: =IFERROR(VLOOKUP($I$179,Factors!$G$56:$K$58,5,0),0) -> 0 | AJ218: = | AK218: 0 | AL218: x | AM218: =Factors!$I$133 -> 0.0022 | AN218: = | AO218: 0 | AS218: PM | AU218: =IF($AS$209=$C$192,$AA$192,0)+VLOOKUP($AS$209,$C$186:$AM$190,MATCH($E$214,$C$185:$AM$185,0),0) -> 0 | AV218: x | AW218: =IFERROR(VLOOKUP($I$180,Factors!$G$56:$K$58,5,0),0) -> 0 | AX218: = | AY218: 0 | AZ218: x | BA218: =Factors!$I$133 -> 0.0022 | BB218: = | BC218: 0 | BG218: PM | BI218: =IF($BG$209=$C$192,$AA$192,0)+VLOOKUP($BG$209,$C$186:$AM$190,MATCH($E$214,$C$185:$AM$185,0),0) -> 0 | BJ218: x | BK218: =IFERROR(VLOOKUP($I$181,Factors!$G$56:$K$58,5,0),0) -> 0 | BL218: = | BM218: 0 | BN218: x | BO218: =Factors!$I$133 -> 0.0022 | BP218: = | BQ218: 0
C221: Total | E221: GHGs (lbsCO2e)
C222: Upstream CO2 | E222: =SUM(M211,AA211,AO211,BC211,BQ211) -> 0
C223: CO2e | E223: =SUM(M212,AA212,AO212,BC212,BQ212) -> 0
C225: Total | E225: =SUM(E222:E223) -> 0
E227: Pollutants (lbs)
C228: HC | E228: =SUM(M215,AA215,AO215,BC215,BQ215) -> 0
C229: CO | E229: =SUM(M216,AA216,AO216,BC216,BQ216) -> 0
C230: NOx | E230: =SUM(M217,AA217,AO217,BC217,BQ217) -> 0
C231: PM | E231: =SUM(M218,AA218,AO218,BC218,BQ218) -> 0
B233: Calculations for a Planned Irrigation Scenario
E235: Irrigated Acres | G235: Irrigation Rate (inches per application) | I235: Irrigation Cycle Amount (gallons/ inch/ acre) | K235: Irrigation Volume (gallons/cycle) | M235: Irrigation Cycles per Season | O235: Seasonal Irrigation Volume (gallons)
B236: 1) | C236: Mowed Area | E236: =IFERROR(IF(B126="a",'Mowing Scenario'!N129,C114),0) ->  | F236: x | G236: =IFERROR(IF(B126="a",'Mowing Scenario'!L133,E114),0) -> 1 | H236: x | I236: =Factors!$H$70 -> 27000 | J236: = | K236: =IFERROR(I236*G236*E236,0) -> 0 | L236: x | M236: =IFERROR(IF(B126="a",'Mowing Scenario'!L131,K114),0) ->  | N236: = | O236: =IFERROR(M236*K236,0) -> 0
B237: 2) | C237: Unmowed Area | E237: =IFERROR('Mowing Scenario'!N138,0) -> 0 | F237: x | G237: =IFERROR('Mowing Scenario'!L142,0) -> 1 | H237: x | I237: =Factors!$H$70 -> 27000 | J237: = | K237: =IFERROR(I237*G237*E237,0) -> 0 | L237: x | M237: =IFERROR('Mowing Scenario'!L140,0) ->  | N237: = | O237: =IFERROR(M237*K237,0) -> 0
C239: Total | E239: =SUM(E236:E237) -> 0 | K239: =SUM(K236:K237) -> 0 | O239: =SUM(O236:O237) -> 0

Sheet Factors
B2: Conversion and Emission Factors
B6: IPCC SAR Global Warming Potential (GWPs)
B7: Gas | C7: GWP
B8: CO2 | C8: 1
B9: CH4 | C9: 21
B10: N2O | C10: 310
B11: HFC-23 | C11: 11700
B12: HFC-32 | C12: 650
B13: HFC-125 | C13: 2800
B14: HFC-134a | C14: 1300
B15: HFC-143a | C15: 3800
B16: HFC-152a | C16: 140
B17: HFC-227ea | C17: 2900
B18: HFC-236fa | C18: 6300
B19: HFC-4310mee | C19: 1300
B20: CF4 | C20: 6500
B21: C2F6 | C21: 9200
B22: C4F10 | C22: 7000
B23: C6F14 | C23: 7400
B24: SF6 | C24: 23900
B25: Source: U.S. Inventory of Greenhouse Gas Emissions and Sinks 1990-2005 (Table ES-1), US EPA
B26: Available online: | C26: http://www.epa.gov/climatechange/emissions/usgginv_archive.html
B28: CO2/C | C28: 3.666666667
B30: Gasoline Gallon Equivalents (GGE)
B31: Fuel Type | C31: Description | D31: Natural Units | E31: GGE Conversion | F31: GGE UOM
B32: Gasoline | C32: Gasoline | D32: Gallons | E32: 1 | F32: GGE/Gal
B33: Diesel | C33: Diesel | D33: Gallons | E33: 1.147 | F33: GGE/Gal
B34: Propane | C34: Propane | D34: Gallons | E34: 0.74 | F34: GGE/Gal
B35: LNG | C35: LNG | D35: Gallons at 14.7psi and -234 degrees F | E35: 0.66 | F35: GGE/Gal
B36: CNG (2400 psi) | C36: CNG at 2400 psi | D36: Gallons at 2400 psi | E36: 0.18 | F36: GGE/Gal
B37: CNG (3000 psi) | C37: CNG at 3000 psi | D37: Gallons at 3000 psi | E37: 0.225 | F37: GGE/Gal
B38: CNG (3600 psi) | C38: CNG at 3600 psi | D38: Gallons at 3600 psi | E38: 0.27 | F38: GGE/Gal
B39: Biodiesel - B20 | C39: Biodiesel 20 | D39: Gallons | E39: 1.126 | F39: GGE/Gal
B40: Biodiesel - B100 | C40: Biodiesel 100 | D40: Gallons | E40: 1.015 | F40: GGE/Gal
B41: E85 | C41: Ethanol 85 | D41: Gallons | E41: 0.72 | F41: GGE/Gal
B43: Fuel Costs
C44: $/gallon
B45: Gasoline | C45: 3.7
B46: Diesel | C46: 3.91
B47: Propane | C47: 3.07
B48: Source: Department of Energy, Alternatives Fuels Data Center
B49: http://www.afdc.energy.gov/fuels/prices.html
B52: GHG Emission Factors | G52: Pollutant Emission Factors
C54: Upstream | D54: Tailpipe | E54: Total | H54: HC | I54: CO | J54: NOx | K54: PM
C55: kgCO2e/hp-hr | D55: kgCO2/MMbtu | E55: kgCO2e/hp-hr | H55: g/hp-hr | I55: g/hp-hr | J55: g/hp-hr | K55: g/hp-hr
B56: Gasoline | D56: 71.4182 | G56: Gasoline | H56: 0.27 | I56: 11.94 | J56: 0.69 | K56: 7.7
B57: Diesel | D57: 74.0239 | G57: Diesel | H57: 0.6 | I57: 2.5 | J57: 5 | K57: 0.6
B58: Propane | D58: 61.7661 | G58: Propane | H58: 0.1 | I58: 3.92 | J58: 0.85 | K58: 0.05
B60: Source: U.S. Inventory of Greenhouse Gas Emissions and Sinks | G60: Source: Review of Life Cycle GHG Emissions from LPG Riding Mowers
B61: http://epa.gov/climatechange/Downloads/ghgemissions/fastfacts.pdf | G61: http://www.cleancitiessacramento.org/sites/all/themes/cc/files/Final%20LCA_-_LPG%20PERC%20Mower%20v5%201.pdf
B63: Mow Rate Coefficient | D63: Swath overlap
B64: 108.9 | D64: 0.9
B65: Please note: The mow rate coefficient includes the acres per hour dimesions and a 10% time factor for tunring at the end of swaths
B66: Source: | C66: http://www.encoreequipment.com/test/wp-content/uploads/2012/06/Mowing-Times-and-Productivity.pdf
B68: Brake Specific Fuel Consumption (BSFC) | G68: Irrigation Levels
C70: Btu/hp-hr | D70: EER* | E70: Btu/gallon | G70: 1 inch per acre | H70: 27000 | I70: gallons
B71: Gasoline | C71: 9039 | D71: 1 | E71: 125000 | G71: Source: http://www.google.com/url?url=http://www.caes.uga.edu/extension/floyd/anr/documents/Howtowateryourlawnright.docx&rct=j&frm=1&q=&esrc=s&sa=U&ei=-CngU86nHo2GyATJ4oB4&ved=0CBQQFjAA&sig2=kHG3DI-Z_HRb7AteKXW87A&usg=AFQjCNEPCO0NcOyb9pPLrRAco6bXCdtqrA
B72: Diesel | C72: 7505 | D72: =C71/C72 -> 1.204397069 | E72: 138000
B73: Propane | C73: 8134 | D73: =C71/C73 -> 1.111261372 | E73: 91000
B75: * Energy Economy Ratio
B76: Please note - Propane is assumed to be derived from natural gas
B77: Source: Review of Life Cycle GHG Emissions from LPG Riding Mowers
B78: http://www.cleancitiessacramento.org/sites/all/themes/cc/files/Final%20LCA_-_LPG%20PERC%20Mower%20v5%201.pdf
B79: Energy Factors: | C79: http://www.epa.gov/ghgreporting/documents/pdf/2009/GHG-MRR-FinalRule.pdf
B82: Physical Conversions
B84: Area
D85: sq. foot | E85: sq. mile | F85: sq. yard | G85: sq. meter | H85: sq. kilometer | I85: acre | J85: hectare
B86: 1 | C86: sq. foot | D86: 1 | E86: 3.59e-08 | F86: 0.1111111 | G86: 0.09290304 | H86: 9.29e-08 | I86: 2.3e-05 | J86: 9.29e-06
B87: 1 | C87: sq. mile | D87: 27900000 | E87: 1 | F87: 3097600 | G87: 2589988 | H87: 2.589988 | I87: 639.9974 | J87: 258.9988
B88: 1 | C88: sq. yard | D88: 9 | E88: 3.23e-07 | F88: 1 | G88: 0.8361274 | H88: 8.36e-07 | I88: 0.000206611 | J88: 8.36e-05
B89: 1 | C89: sq. meter | D89: 10.76391 | E89: 3.86e-07 | F89: 1.19599 | G89: 1 | H89: 1e-06 | I89: 0.000247104 | J89: 0.0001
B90: 1 | C90: sq. kilometer | D90: 10800000 | E90: 0.3861022 | F90: 1195990 | G90: 1000000 | H90: 1 | I90: 247.1044 | J90: 100
B91: 1 | C91: acre | D91: 43560 | E91: 0.0015625 | F91: 4839.963 | G91: 4046.825 | H91: 0.004046859 | I91: 1 | J91: 0.4046863
B92: 1 | C92: hectare | D92: 107639.1 | E92: 0.003861022 | F92: 11959.9 | G92: 10000 | H92: 0.01 | I92: 2.471044 | J92: 1
B94: Distance
D95: meter | E95: kilometer | F95: foot | G95: yard | H95: mile
B96: 1 | C96: meter | D96: 1 | E96: 0.001 | F96: 3.28083 | G96: 1.09361 | H96: 0.000621371
B97: 1 | C97: kilometer | D97: 1000 | E97: 1 | F97: 3280.83 | G97: 1093.613 | H97: 0.6213712
B98: 1 | C98: foot | D98: 0.3048 | E98: 0.000304801 | F98: 1 | G98: 0.3333333 | H98: 0.000189394
B99: 1 | C99: yard | D99: 0.9144 | E99: 0.000914403 | F99: 3 | G99: 1 | H99: 0.000568182
B100: 1 | C100: mile | D100: 1609.344 | E100: 1.609344 | F100: 5280 | G100: 1760 | H100: 1
B102: Energy
D103: watt-hour | E103: kilowatt-hour | F103: megawatt-hour | G103: gigawatt-hour | H103: joule | I103: kilojoule | J103: megajoule | K103: BTU | L103: MMBtu | M103: therm
B104: 1 | C104: watt-hour | D104: 1 | E104: 0.001 | F104: 1e-06 | G104: 1e-09 | H104: 3600 | I104: 3.6 | J104: 0.0036 | K104: 3.412142 | L104: 3.41214e-06 | M104: 3.41e-05
B105: 1 | C105: kilowatt-hour | D105: 1000 | E105: 1 | F105: 0.001 | G105: 1e-06 | H105: 3600000 | I105: 3600 | J105: 3.6 | K105: 3412.142 | L105: 0.003412142 | M105: 0.03412128
B106: 1 | C106: megawatt-hour | D106: 1000000 | E106: 1000 | F106: 1 | G106: 0.001 | H106: 3600000000 | I106: 3600000 | J106: 3600 | K106: 3412142 | L106: 3.412142 | M106: 34.12128
B107: 1 | C107: gigawatt-hour | D107: 1000000000 | E107: 1000000 | F107: 1000 | G107: 1 | H107: 3600000000000 | I107: 3600000000 | J107: 3600000 | K107: 3410000000 | L107: 3412.142 | M107: 34121.28
B108: 1 | C108: joule | D108: 0.000277778 | E108: 2.78e-07 | F108: 2.78e-10 | G108: 2.78e-13 | H108: 1 | I108: 0.001 | J108: 1e-06 | K108: 0.000947817 | L108: 9.47817e-10 | M108: 9.48e-09
B109: 1 | C109: kilojoule | D109: 0.2777778 | E109: 0.000277778 | F109: 2.78e-07 | G109: 2.78e-10 | H109: 1000 | I109: 1 | J109: 0.001 | K109: 0.9478171 | L109: 9.47817e-07 | M109: 9.48e-06
B110: 1 | C110: megajoule | D110: 277.7778 | E110: 0.2777778 | F110: 0.000277778 | G110: 2.78e-07 | H110: 1000000 | I110: 1000 | J110: 1 | K110: 947.8171 | L110: 0.000947817 | M110: 0.009478134
B111: 1 | C111: BTU | D111: 0.2930711 | E111: 0.000293071 | F111: 2.93e-07 | G111: 2.93e-10 | H111: 1055.056 | I111: 1.055056 | J111: 0.001055056 | K111: 1 | L111: 1e-06 | M111: 1e-05
B112: 1 | C112: MMBtu | D112: 293071.1 | E112: 293.0711 | F112: 0.2930711 | G112: 0.000293071 | H112: 1055056000 | I112: 1055056 | J112: 1055.056 | K112: 1000000 | L112: 1 | M112: 9.999961
B113: 1 | C113: therm | D113: 29307.22 | E113: 29.30722 | F113: 0.02930722 | G113: 2.93e-05 | H113: 106000000 | I113: 105506 | J113: 105.506 | K113: 100000.4 | L113: 0.1000004 | M113: 1
B115: Flow
D116: centimeter3/hour | E116: foot3/hour | F116: yard3/hour | G116: meter3/hour | H116: gallon/hour | I116: liter/hour
B117: 1 | C117: centimeter3/hour | D117: 1 | E117: 3.53e-05 | F117: 1.31e-06 | G117: 1e-06 | H117: 0.000264172 | I117: 0.001
B118: 1 | C118: foot3/hour | D118: 28300 | E118: 1 | F118: 0.03703704 | G118: 0.02831685 | H118: 7.480519 | I118: 28.31685
B119: 1 | C119: yard3/hour | D119: 765000 | E119: 27 | F119: 1 | G119: 0.7645549 | H119: 201.974 | I119: 764.5549
B120: 1 | C120: meter3/hour | D120: 1000000 | E120: 35.3 | F120: 1.307951 | G120: 1 | H120: 264.1721 | I120: 1000
B121: 1 | C121: gallon/hour | D121: 3785.412 | E121: 0.1336806 | F121: 0.004951132 | G121: 0.003785412 | H121: 1 | I121: 3.785412
B122: 1 | C122: liter/hour | D122: 1000 | E122: 0.03531467 | F122: 0.001307951 | G122: 0.001 | H122: 0.2641721 | I122: 1
B124: Light
D125: Flame | E125: Foot-Candles | F125: Lux | G125: Meter-Candles
B126: 1 | C126: Flame | D126: 1 | E126: 4 | F126: 43.05564 | G126: 43.05564
B127: 1 | C127: Foot-Candles | D127: 0.25 | E127: 1 | F127: 10.76391 | G127: 10.76391
B128: 1 | C128: Lux | D128: 0.02322576 | E128: 0.09290304 | F128: 1 | G128: 1
B129: 1 | C129: Meter-Candles | D129: 0.02322576 | E129: 0.09290304 | F129: 1 | G129: 1
B131: Mass
D132: gram | E132: kilogram | F132: Megagram (tonne) | G132: Gigagram | H132: Teragram (MMT) | I132: pound | J132: short ton
B133: 1 | C133: gram | D133: 1 | E133: 0.001 | F133: 1e-06 | G133: 1e-09 | H133: 1e-12 | I133: 0.0022 | J133: 1.10231e-06
B134: 1 | C134: kilogram | D134: 1000 | E134: 1 | F134: 0.001 | G134: 1e-06 | H134: 1e-09 | I134: 2.2046 | J134: 0.001102311
B135: 1 | C135: Megagram (tonne) | D135: 1000000 | E135: 1000 | F135: 1 | G135: 0.001 | H135: 1e-06 | I135: 2205 | J135: 1.102311311
B136: 1 | C136: Gigagram | D136: 1000000000 | E136: 1000000 | F136: 1000 | G136: 1 | H136: 0.001 | I136: 2204623 | J136: 1102.3
B137: 1 | C137: Teragram (MMT) | D137: 1000000000000 | E137: 1000000000 | F137: 1000000 | G137: 1000 | H137: 1 | I137: 2204622622 | J137: 1102311
B138: 1 | C138: pound | D138: 454 | E138: 0.45359237 | F138: 0.000453592 | G138: 4.53592e-07 | H138: 4.53592e-10 | I138: 1 | J138: 0.0005
B139: 1 | C139: short ton | D139: 907185 | E139: 907.18474 | F139: 0.90718474 | G139: 0.000907185 | H139: 9.07185e-07 | I139: 2000 | J139: 1
B141: Power
D142: watt | E142: kilowatt | F142: megawatt | G142: BTU/hour
B143: 1 | C143: watt | D143: 1 | E143: 0.001 | F143: 1e-06 | G143: 3.415179
B144: 1 | C144: kilowatt | D144: 1000 | E144: 1 | F144: 0.001 | G144: 3415.179
B145: 1 | C145: megawatt | D145: 1000000 | E145: 1000 | F145: 1 | G145: 3415179
B146: 1 | C146: BTU/hour | D146: 0.2928104 | E146: 0.00029281 | F146: 2.93e-07 | G146: 1
B148: Pressure
D149: pascal | E149: kilopascal | F149: megapascal | G149: pound/inch2 | H149: pound/foot2 | I149: millimeters of mercury
B150: 1 | C150: pascal | D150: 1 | E150: 0.001 | F150: 1e-06 | G150: 0.000145038 | H150: 0.02088543 | I150: 0.007500617
B151: 1 | C151: kilopascal | D151: 1000 | E151: 1 | F151: 0.001 | G151: 0.1450377 | H151: 20.88543 | I151: 7.500617
B152: 1 | C152: megapascal | D152: 1000000 | E152: 1000 | F152: 1 | G152: 145.0377 | H152: 20885.43 | I152: 7500.617
B153: 1 | C153: pound/inch2 | D153: 6894.757 | E153: 6.894757 | F153: 0.006894757 | G153: 1 | H153: 144 | I153: 51.71493
B154: 1 | C154: pound/foot2 | D154: 47.88026 | E154: 0.04788026 | F154: 4.79e-05 | G154: 0.006944444 | H154: 1 | I154: 0.3591315
B155: 1 | C155: millimeters of mercury | D155: 133.3224 | E155: 0.1333224 | F155: 0.000133322 | G155: 0.01933677 | H155: 2.784496 | I155: 1
B157: Speed
D158: foot/hour | E158: mile/hour | F158: meter/hour | G158: kilometer/hour
B159: 1 | C159: foot/hour | D159: 1 | E159: 0.000189394 | F159: 0.3048 | G159: 0.0003048
B160: 1 | C160: mile/hour | D160: 5280 | E160: 1 | F160: 1609.344 | G160: 1.609344
B161: 1 | C161: meter/hour | D161: 3.28084 | E161: 0.000621371 | F161: 1 | G161: 0.001
B162: 1 | C162: kilometer/hour | D162: 3280.84 | E162: 0.6213712 | F162: 1000 | G162: 1
B164: Temperature
D165: Fahrenheit | E165: Celsius
B166: 1 | C166: Fahrenheit | D166: 1 | E166: -17.22222
B167: 1 | C167: Celsius | D167: 33.8 | E167: 1
B169: Time
D170: second | E170: minute | F170: hour | G170: day | H170: week | I170: month (30 days) | J170: year | K170: decade | L170: century
B171: 1 | C171: second | D171: 1 | E171: 0.01666667 | F171: 0.000277778 | G171: 1.16e-05 | H171: 1.65e-06 | I171: 3.86e-07 | J171: 3.17e-08 | K171: 3.17e-09 | L171: 3.17e-10
B172: 1 | C172: minute | D172: 60 | E172: 1 | F172: 0.01666667 | G172: 0.000694444 | H172: 9.92e-05 | I172: 2.31e-05 | J172: 1.9e-06 | K172: 1.9e-07 | L172: 1.9e-08
B173: 1 | C173: hour | D173: 3600 | E173: 60 | F173: 1 | G173: 0.04166667 | H173: 0.005952381 | I173: 0.001388889 | J173: 0.000114155 | K173: 1.14e-05 | L173: 1.14e-06
B174: 1 | C174: day | D174: 86400 | E174: 1440 | F174: 24 | G174: 1 | H174: 0.1428571 | I174: 0.03333333 | J174: 0.002739726 | K174: 0.000273973 | L174: 2.74e-05
B175: 1 | C175: week | D175: 604800 | E175: 10080 | F175: 168 | G175: 7 | H175: 1 | I175: 0.2333333 | J175: 0.01917808 | K175: 0.001917808 | L175: 0.000191781
B176: 1 | C176: month (30 days) | D176: 2592000 | E176: 43200 | F176: 720 | G176: 30 | H176: 4.285714 | I176: 1 | J176: 0.08219178 | K176: 0.008219178 | L176: 0.000821918
B177: 1 | C177: year | D177: 31500000 | E177: 525600 | F177: 8760 | G177: 365 | H177: 52.14286 | I177: 12.16667 | J177: 1 | K177: 0.1 | L177: 0.01
B178: 1 | C178: decade | D178: 315000000 | E178: 5256000 | F178: 87600 | G178: 3650 | H178: 521.4286 | I178: 121.6667 | J178: 10 | K178: 1 | L178: 0.1
B179: 1 | C179: century | D179: 3150000000 | E179: 52600000 | F179: 876000 | G179: 36500 | H179: 5214.286 | I179: 1216.667 | J179: 100 | K179: 10 | L179: 1
B181: Volume
D182: liter | E182: gallon | F182: quart | G182: cubic inch | H182: cubic foot | I182: thousand cubic feet (MCF) | J182: million cubic feet (MMCF) | K182: cubic yard | L182: cubic meter
B183: 1 | C183: liter | D183: 1 | E183: 0.2641721 | F183: 1.056688 | G183: 61.02374 | H183: 0.03531467 | I183: 3.53147e-05 | J183: 3.53147e-08 | K183: 0.001307951 | L183: 0.001
B184: 1 | C184: gallon | D184: 3.785412 | E184: 1 | F184: 4 | G184: 231 | H184: 0.1336806 | I184: 0.000133681 | J184: 1.33681e-07 | K184: 0.004951132 | L184: 0.003785412
B185: 1 | C185: quart | D185: 0.9463529 | E185: 0.25 | F185: 1 | G185: 57.75 | H185: 0.03342014 | I185: 3.34201e-05 | J185: 3.34201e-08 | K185: 0.001237783 | L185: 0.000946353
B186: 1 | C186: cubic inch | D186: 0.01638706 | E186: 0.004329004 | F186: 0.01731602 | G186: 1 | H186: 0.000578704 | I186: 5.78704e-07 | J186: 5.78704e-10 | K186: 2.14e-05 | L186: 1.64e-05
B187: 1 | C187: cubic foot | D187: 28.31685 | E187: 7.480519 | F187: 29.92208 | G187: 1728 | H187: 1 | I187: 0.001 | J187: 1e-06 | K187: 0.03703704 | L187: 0.02831685
B188: 1 | C188: thousand cubic feet (MCF) | D188: 28316.85 | E188: 7480.519 | F188: 29922.08 | G188: 1728000 | H188: 1000 | I188: 1 | J188: 0.001 | K188: 37.03704 | L188: 28.31685
B189: 1 | C189: million cubic feet (MMCF) | D189: 28316850 | E189: 7480519 | F189: 29922080 | G189: 1728000000 | H189: 1000000 | I189: 1000 | J189: 1 | K189: 37037.04 | L189: 28316.85
B190: 1 | C190: cubic yard | D190: 764.5549 | E190: 201.974 | F190: 807.8961 | G190: 46656 | H190: 27 | I190: 0.027 | J190: 2.7e-05 | K190: 1 | L190: 0.7645549
B191: 1 | C191: cubic meter | D191: 1000 | E191: 264.1721 | F191: 1056.688 | G191: 61023.74 | H191: 35.31467 | I191: 0.03531467 | J191: 3.53147e-05 | K191: 1.307951 | L191: 1
B192: 1 | C192: petroleum barrel | D192: 158.99 | E192: 42 | F192: 168 | G192: 9702 | H192: 5.61 | I192: 0.005614585 | J192: 5.61459e-06 | K192: 0.21 | L192: 0.16
B196: Wood Conversions
C197: 1.25 | D197: short ton/cord | E197: EIA, Annual Energy Review 2007, Table B3
C198: 0.8 | D198: cords per ton | E198: EIA, Annual Energy Review 2007, Table B3

Sheet Results
B2: Results
B3: The results of your analysis are presented below.
B5: The tables and charts below summarize the results of your calculations for current and future mowing practices. | AB5: Current | AC5: Future | AD5: Savings
AA6: Tailpipe | AB6: =#REF! ->  | AC6: =#REF! -> 
B7: Mowed Area | G7: Seasonal Fuel Use | AA7: Upstream | AB7: =#REF! ->  | AC7: =#REF! -> 
B8: Current | D8: =IFERROR(G50,0) ->  | E8: acres | G8: Current | H8: =IFERROR(G61,0) -> 0 | I8: GGE* | J8: =IFERROR(G64,0) -> 0 | K8: dollars
B9: Future | D9: =IFERROR(I50,0) ->  | E9: acres | G9: Future | H9: =IFERROR(I61,0) -> 0 | I9: GGE | J9: =IFERROR(I64,0) -> 0 | K9: dollars
B10: Reduced | D10: =IFERROR(D8-D9,0) -> 0 | E10: acres | G10: Savings | H10: =IFERROR(H8-H9,0) -> 0 | I10: GGE | J10: =IFERROR(J8-J9,0) -> 0 | K10: dollars
H17: HC | I17: CO | J17: NOx | K17: PM
B18: Seasonal Mowing Hours | G18: Seasonal Greenhouse Gas Emissions
B19: Current | D19: =IFERROR(G63,0) -> 0 | E19: hours | G19: Current | J19: =G66 -> 0 | K19: lbsCO2e**
B20: Future | D20: =IFERROR(I63,0) -> 0 | E20: hours | G20: Future | J20: =I66 -> 0 | K20: lbsCO2e
B21: Savings | D21: =IFERROR(D19-D20,0) -> 0 | E21: hours | G21: Savings | J21: =K66 -> 0 | K21: lbsCO2e
B28: Seasonal Water Use | G28: Seasonal Air Pollutant Emissions (lbs)
B29: Current | D29: =IFERROR(G65,0) -> 0 | E29: gallons | H29: Hydrocarbons (HC) | I29: Carbon Monoxide (CO) | J29: Oxides of Nitrogen (NOx) | K29: Particulate Matter (PM)
B30: Future | D30: =IFERROR(I65,0) -> 0 | E30: gallons | G30: Current | H30: =IFERROR(G68,0) -> 0 | I30: =IFERROR(G69,0) -> 0 | J30: =IFERROR(G70,0) -> 0 | K30: =IFERROR(G71,0) -> 0
B31: Savings | D31: =IFERROR(D29-D30,0) -> 0 | E31: gallons | G31: Future | H31: =IFERROR(I68,0) -> 0 | I31: =IFERROR(I69,0) -> 0 | J31: =IFERROR(I70,0) -> 0 | K31: =IFERROR(I71,0) -> 0
G32: Savings | H32: =IFERROR(H30-H31,0) -> 0 | I32: =IFERROR(I30-I31,0) -> 0 | J32: =IFERROR(J30-J31,0) -> 0 | K32: =IFERROR(K30-K31,0) -> 0
B47: Summary Results for Current and Future Mowing Practices
D48: Unit | G48: Current Practices | I48: Future Practices | K48: Savings
B50: Mowed Area | D50: acres | G50: =IFERROR(Calculations!E13,"") ->  | I50: =IFERROR(Calculations!E130,0) ->  | K50: =IFERROR(G50-I50,0) -> 0
B51: Average Mow Time | D51: hours | G51: =IFERROR(G63/G60,0) -> 0 | I51: =IFERROR(I63/I60,0) -> 0 | K51: =IFERROR(G51-I51,0) -> 0
B52: Mower Deck Size | D52: inches | G52: =IF(Calculations!$E$17="Single",Calculations!E22,"Multiple Mowers") -> 46 | I52: =IF(Calculations!$E$17="Single",Calculations!E138,"Multiple Mowers") -> 
B53: Engine Size | D53: horsepower | G53: =IF(Calculations!$E$17="Single",Calculations!E23,"Multiple Mowers") -> 20 | I53: =IF(Calculations!$E$17="Single",Calculations!E139,"Multiple Mowers") -> 
B54: Fuel Type | G54: =IF(Calculations!$E$17="Single",Calculations!E24,"Multiple Mowers") -> Gasoline | I54: =IF(Calculations!$E$17="Single",Calculations!E140,"Multiple Mowers") -> Gasoline
B55: Fuel Use per Mow | D55: GGE | G55: =IFERROR(G61/G60,0) -> 0 | I55: =IFERROR(I61/I60,0) -> 0 | K55: =IFERROR(G55-I55,0) -> 0
B56: Fuel Cost per Mow | D56: dollars | G56: =G64/G60 -> 0 | I56: =I64/I60 -> 0 | K56: =IFERROR(G56-I56,0) -> 0
B58: Seasonal Current and Future Mowing Practice Totals
D59: Unit | G59: Current Practices | I59: Future Practices | K59: Savings
B60: Mows per Season | G60: =Calculations!E16 -> 26 | I60: =Calculations!E131 -> 26 | K60: =IFERROR(G60-I60,0) -> 0
B61: Fuel Use (GGE) | D61: GGE* | G61: =IFERROR(IF(Mowers=TRUE,Calculations!S37,Calculations!I82),0) -> 0 | I61: =IFERROR(IF(Mowers=TRUE,Calculations!S156,Calculations!I204),0) -> 0 | K61: =G61-I61 -> 0
B62: Fuel Use (gallons) | D62: gallons | G62: =IF(Calculations!$E$17="Single",Calculations!O34,"Multiple Mowers") -> 0 | I62: =IF(Calculations!$E$17="Single",Calculations!O153,"Multiple Mowers") -> 0
B63: Mow Time | D63: hours | G63: =IFERROR(IF(Mowers=TRUE,Calculations!S30,Calculations!W72),0) -> 0 | I63: =IF(Mowers=TRUE,Calculations!U149,Calculations!W194) -> 0 | K63: =G63-I63 -> 0
B64: Fuel Cost | D64: dollars | G64: =IFERROR(IF(Mowers=TRUE,Calculations!S34,Calculations!AM72),0) -> 0 | I64: =IF(Mowers=TRUE,Calculations!S153,Calculations!AM194) -> 0 | K64: =G64-I64 -> 0
B65: Water Use | D65: gallons | G65: =IFERROR(Calculations!M114,0) -> 0 | I65: =IFERROR(Calculations!O239,0) -> 0 | K65: =G65-I65 -> 0
B66: Greenhouse Gas Emissions | D66: lbsCO2e** | G66: =IFERROR(IF(Mowers=TRUE,Calculations!M41,Calculations!E100),0) -> 0 | I66: =IF(Mowers=TRUE,Calculations!M160,Calculations!E223) -> 0 | K66: =G66-I66 -> 0
B67: Air Pollutants
B68: HC | D68: lbs | G68: =IF(Mowers=TRUE,Calculations!M47,Calculations!E105) -> 0 | I68: =IF(Mowers=TRUE,Calculations!M167,Calculations!E228) -> 0 | K68: =G68-I68 -> 0
B69: CO | D69: lbs | G69: =IF(Mowers=TRUE,Calculations!M48,Calculations!E106) -> 0 | I69: =IF(Mowers=TRUE,Calculations!M168,Calculations!E229) -> 0 | K69: =G69-I69 -> 0
B70: NOx | D70: lbs | G70: =IF(Mowers=TRUE,Calculations!M49,Calculations!E107) -> 0 | I70: =IF(Mowers=TRUE,Calculations!M169,Calculations!E230) -> 0 | K70: =G70-I70 -> 0
B71: PM | D71: lbs | G71: =IF(Mowers=TRUE,Calculations!M50,Calculations!E108) -> 0 | I71: =IF(Mowers=TRUE,Calculations!M170,Calculations!E231) -> 0 | K71: =G71-I71 -> 0
B74: * Fuel Saving units are in gallons of gasoline equivalent (GGE) for fuels other than gasoline. A GGE is the amount of fuel it takes to equal the energy content of one liquid gallon of gasoline. It is used here to present fuel savings even if you change the fuels used by the mower.
B76: ** lbsCO2e (pounds of carbon dioxide equivalent) are units used to report greenhouse gas (GHG) savings. GHGs include carbon dioxide, methane, and nitrous oxide, among others. GHGs vary in how much they heat the atmosphere and how long they stay in the atmosphere, which can be expressed numericall as a global warming potential (GWP). For reporting purposes GHGs like methane and nitrous oxide are converted to an equivalent amount of carbon dioxide using their GWP.

Sheet Scenarios
A1: Scenario Name | B1: How large is the area that you mow? | C1: How frequently do you mow the lawn? Once every… | D1: How many weeks long is the mowing season? | E1: How many mowers do you have? | F1: How large is the mower's deck? | G1: What's the mower's horsepower (hp)? | H1: What type of fuel does the mower use? | I1: What's the average fuel cost? | J1: How fast do you go when you're mowing the lawn? | K1: Name | L1: Deck Size (in) | M1: Horsepower (hp) | N1: Fuel Type | O1: Fuel cost ($/gallon) | P1: Mow speed (mph) | Q1: % of total acres | R1: Name | S1: Deck Size (in) | T1: Horsepower (hp) | U1: Fuel Type | V1: Fuel cost ($/gallon) | W1: Mow speed (mph) | X1: % of total acres | Y1: Name | Z1: Deck Size (in) | AA1: Horsepower (hp) | AB1: Fuel Type | AC1: Fuel cost ($/gallon) | AD1: Mow speed (mph) | AE1: % of total acres | AF1: Name | AG1: Deck Size (in) | AH1: Horsepower (hp) | AI1: Fuel Type | AJ1: Fuel cost ($/gallon) | AK1: Mow speed (mph) | AL1: % of total acres | AM1: Name | AN1: Deck Size (in) | AO1: Horsepower (hp) | AP1: Fuel Type | AQ1: Fuel cost ($/gallon) | AR1: Mow speed (mph) | AS1: % of total acres | AT1: What percent of the lawn is irrigated routinely? | AU1: How often you irrigate? | AV1: How much water do you use? | AW1: I would like to mow less area | AX1: Acres | AY1: % of Total | AZ1: Do you still plan to mow the "unmowed" area a few times each season? If so, how many? | BA1: I would like to mow less often | BB1: Once every… | BC1: During a season that lasts… | BD1: I would like to change the type of mower used | BE1: Deck Size: | BF1: Horsepower: | BG1: Fuel Type: | BH1: What's the average fuel cost? | BI1: Mow Speed: | BJ1: Name | BK1: Deck Size (in) | BL1: Horsepower (hp) | BM1: Fuel Type | BN1: Fuel cost ($/gallon) | BO1: Mow speed (mph) | BP1: % of total acres | BQ1: Name | BR1: Deck Size (in) | BS1: Horsepower (hp) | BT1: Fuel Type | BU1: Fuel cost ($/gallon) | BV1: Mow speed (mph) | BW1: % of total acres | BX1: Name | BY1: Deck Size (in) | BZ1: Horsepower (hp) | CA1: Fuel Type | CB1: Fuel cost ($/gallon) | CC1: Mow speed (mph) | CD1: % of total acres | CE1: Name | CF1: Deck Size (in) | CG1: Horsepower (hp) | CH1: Fuel Type | CI1: Fuel cost ($/gallon) | CJ1: Mow speed (mph) | CK1: % of total acres | CL1: Name | CM1: Deck Size (in) | CN1: Horsepower (hp) | CO1: Fuel Type | CP1: Fuel cost ($/gallon) | CQ1: Mow speed (mph) | CR1: % of total acres | CS1: Which of these mowers will you use to mow the 'unmowed' area that you only mow times per season? | CT1: I would like to irrigate less | CU1: What percent of this land do you plan to irrigate? | CV1: How often? | CW1: How much water do you use? | CX1: Do you plan to irrigate the 0.125 acres you no longer mow? | CY1: What percent of this land do you plan to irrigate? | CZ1: How often? | DA1: How much water do you use?
A2: ='Mowing Scenario'!C152 -> 0 | B2: ='Mowing Scenario'!J21 ->  | C2: ='Mowing Scenario'!J23 -> 7 | D2: ='Mowing Scenario'!J25 -> 26 | E2: ='Mowing Scenario'!A30 -> TRUE | F2: ='Mowing Scenario'!J34 -> 46 | G2: ='Mowing Scenario'!J36 -> 20 | H2: ='Mowing Scenario'!J38 -> Gasoline | I2: ='Mowing Scenario'!J40 -> 3.7 | J2: ='Mowing Scenario'!J43 -> 5 | K2: ='Mowing Scenario'!C49 ->  | L2: ='Mowing Scenario'!F49 -> 46 | M2: ='Mowing Scenario'!H49 -> 20 | N2: ='Mowing Scenario'!J49 -> Gasoline | O2: ='Mowing Scenario'!L49 -> 3.7 | P2: ='Mowing Scenario'!N49 -> 5 | Q2: ='Mowing Scenario'!P49 -> 100 | R2: ='Mowing Scenario'!C50 ->  | S2: ='Mowing Scenario'!F50 ->  | T2: ='Mowing Scenario'!H50 ->  | U2: ='Mowing Scenario'!J50 ->  | V2: ='Mowing Scenario'!L50 ->  | W2: ='Mowing Scenario'!N50 ->  | X2: ='Mowing Scenario'!P50 ->  | Y2: ='Mowing Scenario'!C51 ->  | Z2: ='Mowing Scenario'!F51 ->  | AA2: ='Mowing Scenario'!H51 ->  | AB2: ='Mowing Scenario'!J51 ->  | AC2: ='Mowing Scenario'!L51 ->  | AD2: ='Mowing Scenario'!N51 ->  | AE2: ='Mowing Scenario'!P51 ->  | AF2: ='Mowing Scenario'!C52 ->  | AG2: ='Mowing Scenario'!F52 ->  | AH2: ='Mowing Scenario'!H52 ->  | AI2: ='Mowing Scenario'!J52 ->  | AJ2: ='Mowing Scenario'!L52 ->  | AK2: ='Mowing Scenario'!N52 ->  | AL2: ='Mowing Scenario'!P52 ->  | AM2: ='Mowing Scenario'!C53 ->  | AN2: ='Mowing Scenario'!F53 ->  | AO2: ='Mowing Scenario'!H53 ->  | AP2: ='Mowing Scenario'!J53 ->  | AQ2: ='Mowing Scenario'!L53 ->  | AR2: ='Mowing Scenario'!N53 ->  | AS2: ='Mowing Scenario'!P53 ->  | AT2: ='Mowing Scenario'!J58 ->  | AU2: ='Mowing Scenario'!J61 ->  | AV2: ='Mowing Scenario'!J64 -> 1 | AW2: =CheckMowArea -> FALSE | AX2: ='Mowing Scenario'!L75 -> 0 | AY2: ='Mowing Scenario'!N75 -> 0 | AZ2: ='Mowing Scenario'!L80 ->  | BA2: =CheckMowLess -> FALSE | BB2: ='Mowing Scenario'!L87 ->  | BC2: ='Mowing Scenario'!L89 ->  | BD2: =CheckMower -> FALSE | BE2: ='Mowing Scenario'!L99 ->  | BF2: ='Mowing Scenario'!L101 ->  | BG2: ='Mowing Scenario'!L103 -> Gasoline | BH2: ='Mowing Scenario'!L105 ->  | BI2: ='Mowing Scenario'!L108 ->  | BJ2: ='Mowing Scenario'!C114 ->  | BK2: ='Mowing Scenario'!F114 ->  | BL2: ='Mowing Scenario'!H114 ->  | BM2: ='Mowing Scenario'!J114 ->  | BN2: ='Mowing Scenario'!L114 ->  | BO2: ='Mowing Scenario'!N114 ->  | BP2: ='Mowing Scenario'!P114 ->  | BQ2: ='Mowing Scenario'!C115 ->  | BR2: ='Mowing Scenario'!F115 ->  | BS2: ='Mowing Scenario'!H115 ->  | BT2: ='Mowing Scenario'!J115 ->  | BU2: ='Mowing Scenario'!L115 ->  | BV2: ='Mowing Scenario'!N115 ->  | BW2: ='Mowing Scenario'!P115 ->  | BX2: ='Mowing Scenario'!C116 ->  | BY2: ='Mowing Scenario'!F116 ->  | BZ2: ='Mowing Scenario'!H116 ->  | CA2: ='Mowing Scenario'!J116 ->  | CB2: ='Mowing Scenario'!L116 ->  | CC2: ='Mowing Scenario'!N116 ->  | CD2: ='Mowing Scenario'!P116 ->  | CE2: ='Mowing Scenario'!C117 ->  | CF2: ='Mowing Scenario'!F117 ->  | CG2: ='Mowing Scenario'!H117 ->  | CH2: ='Mowing Scenario'!J117 ->  | CI2: ='Mowing Scenario'!L117 ->  | CJ2: ='Mowing Scenario'!N117 ->  | CK2: ='Mowing Scenario'!P117 ->  | CL2: ='Mowing Scenario'!C118 ->  | CM2: ='Mowing Scenario'!F118 ->  | CN2: ='Mowing Scenario'!H118 ->  | CO2: ='Mowing Scenario'!J118 ->  | CP2: ='Mowing Scenario'!L118 ->  | CQ2: ='Mowing Scenario'!N118 ->  | CR2: ='Mowing Scenario'!P118 ->  | CS2: ='Mowing Scenario'!N121 ->  | CT2: =CheckIrrigate -> FALSE | CU2: ='Mowing Scenario'!L129 ->  | CV2: ='Mowing Scenario'!L131 ->  | CW2: ='Mowing Scenario'!L133 -> 1 | CX2: ='Mowing Scenario'!L136 -> no | CY2: ='Mowing Scenario'!L138 ->  | CZ2: ='Mowing Scenario'!L140 ->  | DA2: ='Mowing Scenario'!L142 -> 1
A3: Default | C3: 7 | D3: 26 | E3: TRUE | F3: 46 | G3: 20 | H3: Gasoline | I3: 3.7 | J3: 5 | L3: 46 | M3: 20 | N3: Gasoline | O3: 3.7 | P3: 5 | Q3: 100 | AV3: 1 | AW3: FALSE | BA3: FALSE | BD3: FALSE | BG3: Gasoline | CT3: FALSE | CW3: 1 | CX3: no | DA3: 1
A4: Scenario Name | B4: How large is the area that you mow? | C4: How frequently do you mow the lawn? Once every… | D4: How many weeks long is the mowing season? | E4: How many mowers do you have? | F4: How large is the mower's deck? | G4: What's the mower's horsepower (hp)? | H4: What type of fuel does the mower use? | I4: What's the average fuel cost? | J4: How fast do you go when you're mowing the lawn? | K4: Name | L4: Deck Size (in) | M4: Horsepower (hp) | N4: Fuel Type | O4: Fuel cost ($/gallon) | P4: Mow speed (mph) | Q4: % of total acres | R4: Name2 | S4: Deck Size (in)3 | T4: Horsepower (hp)4 | U4: Fuel Type5 | V4: Fuel cost ($/gallon)6 | W4: Mow speed (mph)7 | X4: % of total acres8 | Y4: Name9 | Z4: Deck Size (in)10 | AA4: Horsepower (hp)11 | AB4: Fuel Type12 | AC4: Fuel cost ($/gallon)13 | AD4: Mow speed (mph)14 | AE4: % of total acres15 | AF4: Name16 | AG4: Deck Size (in)17 | AH4: Horsepower (hp)18 | AI4: Fuel Type19 | AJ4: Fuel cost ($/gallon)20 | AK4: Mow speed (mph)21 | AL4: % of total acres22 | AM4: Name23 | AN4: Deck Size (in)24 | AO4: Horsepower (hp)25 | AP4: Fuel Type26 | AQ4: Fuel cost ($/gallon)27 | AR4: Mow speed (mph)28 | AS4: % of total acres29 | AT4: What percent of the lawn is irrigated routinely? | AU4: How often you irrigate? | AV4: How much water do you use? | AW4: I would like to mow less area | AX4: Acres | AY4: % of Total | AZ4: Do you still plan to mow the "unmowed" area a few times each season? If so, how many? | BA4: I would like to mow less often | BB4: Once every… | BC4: During a season that lasts… | BD4: I would like to change the type of mower used | BE4: Deck Size: | BF4: Horsepower: | BG4: Fuel Type: | BH4: What's the average fuel cost?30 | BI4: Mow Speed: | BJ4: Name31 | BK4: Deck Size (in)32 | BL4: Horsepower (hp)33 | BM4: Fuel Type34 | BN4: Fuel cost ($/gallon)35 | BO4: Mow speed (mph)36 | BP4: % of total acres37 | BQ4: Name38 | BR4: Deck Size (in)39 | BS4: Horsepower (hp)40 | BT4: Fuel Type41 | BU4: Fuel cost ($/gallon)42 | BV4: Mow speed (mph)43 | BW4: % of total acres44 | BX4: Name45 | BY4: Deck Size (in)46 | BZ4: Horsepower (hp)47 | CA4: Fuel Type48 | CB4: Fuel cost ($/gallon)49 | CC4: Mow speed (mph)50 | CD4: % of total acres51 | CE4: Name52 | CF4: Deck Size (in)53 | CG4: Horsepower (hp)54 | CH4: Fuel Type55 | CI4: Fuel cost ($/gallon)56 | CJ4: Mow speed (mph)57 | CK4: % of total acres58 | CL4: Name59 | CM4: Deck Size (in)60 | CN4: Horsepower (hp)61 | CO4: Fuel Type62 | CP4: Fuel cost ($/gallon)63 | CQ4: Mow speed (mph)64 | CR4: % of total acres65 | CS4: % of total acres66 | CT4: I would like to irrigate less | CU4: What percent of this land do you plan to irrigate? | CV4: How often? | CW4: How much water do you use?66 | CX4: Do you plan to irrigate the 0.125 acres you no longer mow? | CY4: What percent of this land do you plan to irrigate? | CZ4: How often?67 | DA4: How much water do you use?68
A5: Select a scenario… | C5: 7 | D5: 26 | E5: TRUE | F5: 46 | G5: 20 | H5: Gasoline | I5: 3.613 | J5: 5 | L5: 46 | M5: 20 | N5: Gasoline | O5: 3.613 | P5: 5 | Q5: 100 | AV5: 1 | AW5: FALSE | AX5: 0 | AY5: 0 | BA5: FALSE | BD5: FALSE | BG5: Gasoline | CT5: FALSE | CW5: 1 | CX5: no | DA5: 1

Sheet Scenarios (2)
A2: ='Mowing Scenario'!C152 -> 0 | B2: ='Mowing Scenario'!J21 ->  | C2: ='Mowing Scenario'!J23 -> 7 | D2: ='Mowing Scenario'!J25 -> 26 | E2: ='Mowing Scenario'!A30 -> TRUE | F2: ='Mowing Scenario'!J34 -> 46 | G2: ='Mowing Scenario'!J36 -> 20 | H2: ='Mowing Scenario'!J38 -> Gasoline | I2: ='Mowing Scenario'!J40 -> 3.7 | J2: ='Mowing Scenario'!J43 -> 5 | K2: ='Mowing Scenario'!C49 ->  | L2: ='Mowing Scenario'!F49 -> 46 | M2: ='Mowing Scenario'!H49 -> 20 | N2: ='Mowing Scenario'!J49 -> Gasoline | O2: ='Mowing Scenario'!L49 -> 3.7 | P2: ='Mowing Scenario'!N49 -> 5 | Q2: ='Mowing Scenario'!P49 -> 100 | R2: ='Mowing Scenario'!C50 ->  | S2: ='Mowing Scenario'!F50 ->  | T2: ='Mowing Scenario'!H50 ->  | U2: ='Mowing Scenario'!J50 ->  | V2: ='Mowing Scenario'!L50 ->  | W2: ='Mowing Scenario'!N50 ->  | X2: ='Mowing Scenario'!P50 ->  | Y2: ='Mowing Scenario'!C51 ->  | Z2: ='Mowing Scenario'!F51 ->  | AA2: ='Mowing Scenario'!H51 ->  | AB2: ='Mowing Scenario'!J51 ->  | AC2: ='Mowing Scenario'!L51 ->  | AD2: ='Mowing Scenario'!N51 ->  | AE2: ='Mowing Scenario'!P51 ->  | AF2: ='Mowing Scenario'!C52 ->  | AG2: ='Mowing Scenario'!F52 ->  | AH2: ='Mowing Scenario'!H52 ->  | AI2: ='Mowing Scenario'!J52 ->  | AJ2: ='Mowing Scenario'!L52 ->  | AK2: ='Mowing Scenario'!N52 ->  | AL2: ='Mowing Scenario'!P52 ->  | AM2: ='Mowing Scenario'!C53 ->  | AN2: ='Mowing Scenario'!F53 ->  | AO2: ='Mowing Scenario'!H53 ->  | AP2: ='Mowing Scenario'!J53 ->  | AQ2: ='Mowing Scenario'!L53 ->  | AR2: ='Mowing Scenario'!N53 ->  | AS2: ='Mowing Scenario'!P53 ->  | AT2: ='Mowing Scenario'!J58 ->  | AU2: ='Mowing Scenario'!J61 ->  | AV2: ='Mowing Scenario'!J64 -> 1 | AW2: =CheckMowArea -> FALSE | AX2: ='Mowing Scenario'!L75 -> 0 | AY2: ='Mowing Scenario'!N75 -> 0 | AZ2: ='Mowing Scenario'!L80 ->  | BA2: =CheckMowLess -> FALSE | BB2: ='Mowing Scenario'!L87 ->  | BC2: ='Mowing Scenario'!L89 ->  | BD2: =CheckMower -> FALSE | BE2: ='Mowing Scenario'!L99 ->  | BF2: ='Mowing Scenario'!L101 ->  | BG2: ='Mowing Scenario'!L103 -> Gasoline | BH2: ='Mowing Scenario'!L105 ->  | BI2: ='Mowing Scenario'!L108 ->  | BJ2: ='Mowing Scenario'!C114 ->  | BK2: ='Mowing Scenario'!F114 ->  | BL2: ='Mowing Scenario'!H114 ->  | BM2: ='Mowing Scenario'!J114 ->  | BN2: ='Mowing Scenario'!L114 ->  | BO2: ='Mowing Scenario'!N114 ->  | BP2: ='Mowing Scenario'!P114 ->  | BQ2: ='Mowing Scenario'!C115 ->  | BR2: ='Mowing Scenario'!F115 ->  | BS2: ='Mowing Scenario'!H115 ->  | BT2: ='Mowing Scenario'!J115 ->  | BU2: ='Mowing Scenario'!L115 ->  | BV2: ='Mowing Scenario'!N115 ->  | BW2: ='Mowing Scenario'!P115 ->  | BX2: ='Mowing Scenario'!C116 ->  | BY2: ='Mowing Scenario'!F116 ->  | BZ2: ='Mowing Scenario'!H116 ->  | CA2: ='Mowing Scenario'!J116 ->  | CB2: ='Mowing Scenario'!L116 ->  | CC2: ='Mowing Scenario'!N116 ->  | CD2: ='Mowing Scenario'!P116 ->  | CE2: ='Mowing Scenario'!C117 ->  | CF2: ='Mowing Scenario'!F117 ->  | CG2: ='Mowing Scenario'!H117 ->  | CH2: ='Mowing Scenario'!J117 ->  | CI2: ='Mowing Scenario'!L117 ->  | CJ2: ='Mowing Scenario'!N117 ->  | CK2: ='Mowing Scenario'!P117 ->  | CL2: ='Mowing Scenario'!C118 ->  | CM2: ='Mowing Scenario'!F118 ->  | CN2: ='Mowing Scenario'!H118 ->  | CO2: ='Mowing Scenario'!J118 ->  | CP2: ='Mowing Scenario'!L118 ->  | CQ2: ='Mowing Scenario'!N118 ->  | CR2: ='Mowing Scenario'!P118 ->  | CS2: ='Mowing Scenario'!N121 ->  | CT2: =CheckIrrigate -> FALSE | CU2: ='Mowing Scenario'!L129 ->  | CV2: ='Mowing Scenario'!L131 ->  | CW2: ='Mowing Scenario'!L133 -> 1 | CX2: ='Mowing Scenario'!L136 -> no | CY2: ='Mowing Scenario'!L138 ->  | CZ2: ='Mowing Scenario'!L140 ->  | DA2: ='Mowing Scenario'!L142 -> 1
A3: Default | C3: 7 | D3: 26 | E3: TRUE | F3: 46 | G3: 20 | H3: Gasoline | I3: 3.613 | J3: 5 | L3: 46 | M3: 20 | N3: Gasoline | O3: 3.613 | P3: 5 | Q3: 100 | AV3: 1 | AW3: FALSE | BA3: FALSE | BD3: FALSE | BG3: Gasoline | CT3: FALSE | CW3: 1 | CX3: no | DA3: 1
A4: Scenario Name | B4: How large is the area that you mow? | C4: How frequently do you mow the lawn? Once every… | D4: How many weeks long is the mowing season? | E4: How many mowers do you have? | F4: How large is the mower's deck? | G4: What's the mower's horsepower (hp)? | H4: What type of fuel does the mower use? | I4: What's the average fuel cost? | J4: How fast do you go when you're mowing the lawn? | K4: Name | L4: Deck Size (in) | M4: Horsepower (hp) | N4: Fuel Type | O4: Fuel cost ($/gallon) | P4: Mow speed (mph) | Q4: % of total acres | R4: Name2 | S4: Deck Size (in)3 | T4: Horsepower (hp)4 | U4: Fuel Type5 | V4: Fuel cost ($/gallon)6 | W4: Mow speed (mph)7 | X4: % of total acres8 | Y4: Name9 | Z4: Deck Size (in)10 | AA4: Horsepower (hp)11 | AB4: Fuel Type12 | AC4: Fuel cost ($/gallon)13 | AD4: Mow speed (mph)14 | AE4: % of total acres15 | AF4: Name16 | AG4: Deck Size (in)17 | AH4: Horsepower (hp)18 | AI4: Fuel Type19 | AJ4: Fuel cost ($/gallon)20 | AK4: Mow speed (mph)21 | AL4: % of total acres22 | AM4: Name23 | AN4: Deck Size (in)24 | AO4: Horsepower (hp)25 | AP4: Fuel Type26 | AQ4: Fuel cost ($/gallon)27 | AR4: Mow speed (mph)28 | AS4: % of total acres29 | AT4: What percent of the lawn is irrigated routinely? | AU4: How often you irrigate? | AV4: How much water do you use? | AW4: I would like to mow less area | AX4: Acres | AY4: % of Total | AZ4: Do you still plan to mow the "unmowed" area a few times each season? If so, how many? | BA4: I would like to mow less often | BB4: Once every… | BC4: During a season that lasts… | BD4: I would like to change the type of mower used | BE4: Deck Size: | BF4: Horsepower: | BG4: Fuel Type: | BH4: What's the average fuel cost?30 | BI4: Mow Speed: | BJ4: Name31 | BK4: Deck Size (in)32 | BL4: Horsepower (hp)33 | BM4: Fuel Type34 | BN4: Fuel cost ($/gallon)35 | BO4: Mow speed (mph)36 | BP4: % of total acres37 | BQ4: Name38 | BR4: Deck Size (in)39 | BS4: Horsepower (hp)40 | BT4: Fuel Type41 | BU4: Fuel cost ($/gallon)42 | BV4: Mow speed (mph)43 | BW4: % of total acres44 | BX4: Name45 | BY4: Deck Size (in)46 | BZ4: Horsepower (hp)47 | CA4: Fuel Type48 | CB4: Fuel cost ($/gallon)49 | CC4: Mow speed (mph)50 | CD4: % of total acres51 | CE4: Name52 | CF4: Deck Size (in)53 | CG4: Horsepower (hp)54 | CH4: Fuel Type55 | CI4: Fuel cost ($/gallon)56 | CJ4: Mow speed (mph)57 | CK4: % of total acres58 | CL4: Name59 | CM4: Deck Size (in)60 | CN4: Horsepower (hp)61 | CO4: Fuel Type62 | CP4: Fuel cost ($/gallon)63 | CQ4: Mow speed (mph)64 | CR4: % of total acres65 | CS4: % of total acres66 | CT4: I would like to irrigate less | CU4: What percent of this land do you plan to irrigate? | CV4: How often? | CW4: How much water do you use?66 | CX4: Do you plan to irrigate the 0.125 acres you no longer mow? | CY4: What percent of this land do you plan to irrigate? | CZ4: How often?67 | DA4: How much water do you use?68
A5: Select a scenario… | C5: 7 | D5: 26 | E5: TRUE | F5: 46 | G5: 20 | H5: Gasoline | I5: 3.613 | J5: 5 | L5: 46 | M5: 20 | N5: Gasoline | O5: 3.613 | P5: 5 | Q5: 100 | AV5: 1 | AW5: FALSE | AX5: 0 | AY5: 0 | BA5: FALSE | BD5: FALSE | BG5: Gasoline | CT5: FALSE | CW5: 1 | CX5: no | DA5: 1
A6: =IFERROR(Scenarios!A6,"") -> 0 | B6: =IFERROR(Scenarios!B6,"") -> 0 | C6: =IFERROR(Scenarios!C6,"") -> 0 | D6: =IFERROR(Scenarios!D6,"") -> 0 | E6: =IFERROR(Scenarios!E6,"") -> 0 | F6: =IFERROR(Scenarios!F6,"") -> 0 | G6: =IFERROR(Scenarios!G6,"") -> 0 | H6: =IFERROR(Scenarios!H6,"") -> 0 | I6: =IFERROR(Scenarios!I6,"") -> 0 | J6: =IFERROR(Scenarios!J6,"") -> 0 | K6: =IFERROR(Scenarios!K6,"") -> 0 | L6: =IFERROR(Scenarios!L6,"") -> 0 | M6: =IFERROR(Scenarios!M6,"") -> 0 | N6: =IFERROR(Scenarios!N6,"") -> 0 | O6: =IFERROR(Scenarios!O6,"") -> 0 | P6: =IFERROR(Scenarios!P6,"") -> 0 | Q6: =IFERROR(Scenarios!Q6,"") -> 0 | R6: =IFERROR(Scenarios!R6,"") -> 0 | S6: =IFERROR(Scenarios!S6,"") -> 0 | T6: =IFERROR(Scenarios!T6,"") -> 0 | U6: =IFERROR(Scenarios!U6,"") -> 0 | V6: =IFERROR(Scenarios!V6,"") -> 0 | W6: =IFERROR(Scenarios!W6,"") -> 0 | X6: =IFERROR(Scenarios!X6,"") -> 0 | Y6: =IFERROR(Scenarios!Y6,"") -> 0 | Z6: =IFERROR(Scenarios!Z6,"") -> 0 | AA6: =IFERROR(Scenarios!AA6,"") -> 0 | AB6: =IFERROR(Scenarios!AB6,"") -> 0 | AC6: =IFERROR(Scenarios!AC6,"") -> 0 | AD6: =IFERROR(Scenarios!AD6,"") -> 0 | AE6: =IFERROR(Scenarios!AE6,"") -> 0 | AF6: =IFERROR(Scenarios!AF6,"") -> 0 | AG6: =IFERROR(Scenarios!AG6,"") -> 0 | AH6: =IFERROR(Scenarios!AH6,"") -> 0 | AI6: =IFERROR(Scenarios!AI6,"") -> 0 | AJ6: =IFERROR(Scenarios!AJ6,"") -> 0 | AK6: =IFERROR(Scenarios!AK6,"") -> 0 | AL6: =IFERROR(Scenarios!AL6,"") -> 0 | AM6: =IFERROR(Scenarios!AM6,"") -> 0 | AN6: =IFERROR(Scenarios!AN6,"") -> 0 | AO6: =IFERROR(Scenarios!AO6,"") -> 0 | AP6: =IFERROR(Scenarios!AP6,"") -> 0 | AQ6: =IFERROR(Scenarios!AQ6,"") -> 0 | AR6: =IFERROR(Scenarios!AR6,"") -> 0 | AS6: =IFERROR(Scenarios!AS6,"") -> 0 | AT6: =IFERROR(Scenarios!AT6,"") -> 0 | AU6: =IFERROR(Scenarios!AU6,"") -> 0 | AV6: =IFERROR(Scenarios!AV6,"") -> 0 | AW6: =IFERROR(Scenarios!AW6,"") -> 0 | AX6: =IFERROR(Scenarios!AX6,"") -> 0 | AY6: =IFERROR(Scenarios!AY6,"") -> 0 | AZ6: =IFERROR(Scenarios!AZ6,"") -> 0 | BA6: =IFERROR(Scenarios!BA6,"") -> 0 | BB6: =IFERROR(Scenarios!BB6,"") -> 0 | BC6: =IFERROR(Scenarios!BC6,"") -> 0 | BD6: =IFERROR(Scenarios!BD6,"") -> 0 | BE6: =IFERROR(Scenarios!BE6,"") -> 0 | BF6: =IFERROR(Scenarios!BF6,"") -> 0 | BG6: =IFERROR(Scenarios!BG6,"") -> 0 | BH6: =IFERROR(Scenarios!BH6,"") -> 0 | BI6: =IFERROR(Scenarios!BI6,"") -> 0 | BJ6: =IFERROR(Scenarios!BJ6,"") -> 0 | BK6: =IFERROR(Scenarios!BK6,"") -> 0 | BL6: =IFERROR(Scenarios!BL6,"") -> 0 | BM6: =IFERROR(Scenarios!BM6,"") -> 0 | BN6: =IFERROR(Scenarios!BN6,"") -> 0 | BO6: =IFERROR(Scenarios!BO6,"") -> 0 | BP6: =IFERROR(Scenarios!BP6,"") -> 0 | BQ6: =IFERROR(Scenarios!BQ6,"") -> 0 | BR6: =IFERROR(Scenarios!BR6,"") -> 0 | BS6: =IFERROR(Scenarios!BS6,"") -> 0 | BT6: =IFERROR(Scenarios!BT6,"") -> 0 | BU6: =IFERROR(Scenarios!BU6,"") -> 0 | BV6: =IFERROR(Scenarios!BV6,"") -> 0 | BW6: =IFERROR(Scenarios!BW6,"") -> 0 | BX6: =IFERROR(Scenarios!BX6,"") -> 0 | BY6: =IFERROR(Scenarios!BY6,"") -> 0 | BZ6: =IFERROR(Scenarios!BZ6,"") -> 0 | CA6: =IFERROR(Scenarios!CA6,"") -> 0 | CB6: =IFERROR(Scenarios!CB6,"") -> 0 | CC6: =IFERROR(Scenarios!CC6,"") -> 0 | CD6: =IFERROR(Scenarios!CD6,"") -> 0 | CE6: =IFERROR(Scenarios!CE6,"") -> 0 | CF6: =IFERROR(Scenarios!CF6,"") -> 0 | CG6: =IFERROR(Scenarios!CG6,"") -> 0 | CH6: =IFERROR(Scenarios!CH6,"") -> 0 | CI6: =IFERROR(Scenarios!CI6,"") -> 0 | CJ6: =IFERROR(Scenarios!CJ6,"") -> 0 | CK6: =IFERROR(Scenarios!CK6,"") -> 0 | CL6: =IFERROR(Scenarios!CL6,"") -> 0 | CM6: =IFERROR(Scenarios!CM6,"") -> 0 | CN6: =IFERROR(Scenarios!CN6,"") -> 0 | CO6: =IFERROR(Scenarios!CO6,"") -> 0 | CP6: =IFERROR(Scenarios!CP6,"") -> 0 | CQ6: =IFERROR(Scenarios!CQ6,"") -> 0 | CR6: =IFERROR(Scenarios!CR6,"") -> 0 | CS6: =IFERROR(Scenarios!CS6,"") -> 0 | CT6: =IFERROR(Scenarios!CT6,"") -> 0 | CU6: =IFERROR(Scenarios!CU6,"") -> 0 | CV6: =IFERROR(Scenarios!CV6,"") -> 0 | CW6: =IFERROR(Scenarios!CW6,"") -> 0 | CX6: =IFERROR(Scenarios!CX6,"") -> 0 | CY6: =IFERROR(Scenarios!CY6,"") -> 0 | CZ6: =IFERROR(Scenarios!CZ6,"") -> 0 | DA6: =IFERROR(Scenarios!DA6,"") -> 0
A7: =IFERROR(Scenarios!A7,"") -> 0 | B7: =IFERROR(Scenarios!B7,"") -> 0 | C7: =IFERROR(Scenarios!C7,"") -> 0 | D7: =IFERROR(Scenarios!D7,"") -> 0 | E7: =IFERROR(Scenarios!E7,"") -> 0 | F7: =IFERROR(Scenarios!F7,"") -> 0 | G7: =IFERROR(Scenarios!G7,"") -> 0 | H7: =IFERROR(Scenarios!H7,"") -> 0 | I7: =IFERROR(Scenarios!I7,"") -> 0 | J7: =IFERROR(Scenarios!J7,"") -> 0 | K7: =IFERROR(Scenarios!K7,"") -> 0 | L7: =IFERROR(Scenarios!L7,"") -> 0 | M7: =IFERROR(Scenarios!M7,"") -> 0 | N7: =IFERROR(Scenarios!N7,"") -> 0 | O7: =IFERROR(Scenarios!O7,"") -> 0 | P7: =IFERROR(Scenarios!P7,"") -> 0 | Q7: =IFERROR(Scenarios!Q7,"") -> 0 | R7: =IFERROR(Scenarios!R7,"") -> 0 | S7: =IFERROR(Scenarios!S7,"") -> 0 | T7: =IFERROR(Scenarios!T7,"") -> 0 | U7: =IFERROR(Scenarios!U7,"") -> 0 | V7: =IFERROR(Scenarios!V7,"") -> 0 | W7: =IFERROR(Scenarios!W7,"") -> 0 | X7: =IFERROR(Scenarios!X7,"") -> 0 | Y7: =IFERROR(Scenarios!Y7,"") -> 0 | Z7: =IFERROR(Scenarios!Z7,"") -> 0 | AA7: =IFERROR(Scenarios!AA7,"") -> 0 | AB7: =IFERROR(Scenarios!AB7,"") -> 0 | AC7: =IFERROR(Scenarios!AC7,"") -> 0 | AD7: =IFERROR(Scenarios!AD7,"") -> 0 | AE7: =IFERROR(Scenarios!AE7,"") -> 0 | AF7: =IFERROR(Scenarios!AF7,"") -> 0 | AG7: =IFERROR(Scenarios!AG7,"") -> 0 | AH7: =IFERROR(Scenarios!AH7,"") -> 0 | AI7: =IFERROR(Scenarios!AI7,"") -> 0 | AJ7: =IFERROR(Scenarios!AJ7,"") -> 0 | AK7: =IFERROR(Scenarios!AK7,"") -> 0 | AL7: =IFERROR(Scenarios!AL7,"") -> 0 | AM7: =IFERROR(Scenarios!AM7,"") -> 0 | AN7: =IFERROR(Scenarios!AN7,"") -> 0 | AO7: =IFERROR(Scenarios!AO7,"") -> 0 | AP7: =IFERROR(Scenarios!AP7,"") -> 0 | AQ7: =IFERROR(Scenarios!AQ7,"") -> 0 | AR7: =IFERROR(Scenarios!AR7,"") -> 0 | AS7: =IFERROR(Scenarios!AS7,"") -> 0 | AT7: =IFERROR(Scenarios!AT7,"") -> 0 | AU7: =IFERROR(Scenarios!AU7,"") -> 0 | AV7: =IFERROR(Scenarios!AV7,"") -> 0 | AW7: =IFERROR(Scenarios!AW7,"") -> 0 | AX7: =IFERROR(Scenarios!AX7,"") -> 0 | AY7: =IFERROR(Scenarios!AY7,"") -> 0 | AZ7: =IFERROR(Scenarios!AZ7,"") -> 0 | BA7: =IFERROR(Scenarios!BA7,"") -> 0 | BB7: =IFERROR(Scenarios!BB7,"") -> 0 | BC7: =IFERROR(Scenarios!BC7,"") -> 0 | BD7: =IFERROR(Scenarios!BD7,"") -> 0 | BE7: =IFERROR(Scenarios!BE7,"") -> 0 | BF7: =IFERROR(Scenarios!BF7,"") -> 0 | BG7: =IFERROR(Scenarios!BG7,"") -> 0 | BH7: =IFERROR(Scenarios!BH7,"") -> 0 | BI7: =IFERROR(Scenarios!BI7,"") -> 0 | BJ7: =IFERROR(Scenarios!BJ7,"") -> 0 | BK7: =IFERROR(Scenarios!BK7,"") -> 0 | BL7: =IFERROR(Scenarios!BL7,"") -> 0 | BM7: =IFERROR(Scenarios!BM7,"") -> 0 | BN7: =IFERROR(Scenarios!BN7,"") -> 0 | BO7: =IFERROR(Scenarios!BO7,"") -> 0 | BP7: =IFERROR(Scenarios!BP7,"") -> 0 | BQ7: =IFERROR(Scenarios!BQ7,"") -> 0 | BR7: =IFERROR(Scenarios!BR7,"") -> 0 | BS7: =IFERROR(Scenarios!BS7,"") -> 0 | BT7: =IFERROR(Scenarios!BT7,"") -> 0 | BU7: =IFERROR(Scenarios!BU7,"") -> 0 | BV7: =IFERROR(Scenarios!BV7,"") -> 0 | BW7: =IFERROR(Scenarios!BW7,"") -> 0 | BX7: =IFERROR(Scenarios!BX7,"") -> 0 | BY7: =IFERROR(Scenarios!BY7,"") -> 0 | BZ7: =IFERROR(Scenarios!BZ7,"") -> 0 | CA7: =IFERROR(Scenarios!CA7,"") -> 0 | CB7: =IFERROR(Scenarios!CB7,"") -> 0 | CC7: =IFERROR(Scenarios!CC7,"") -> 0 | CD7: =IFERROR(Scenarios!CD7,"") -> 0 | CE7: =IFERROR(Scenarios!CE7,"") -> 0 | CF7: =IFERROR(Scenarios!CF7,"") -> 0 | CG7: =IFERROR(Scenarios!CG7,"") -> 0 | CH7: =IFERROR(Scenarios!CH7,"") -> 0 | CI7: =IFERROR(Scenarios!CI7,"") -> 0 | CJ7: =IFERROR(Scenarios!CJ7,"") -> 0 | CK7: =IFERROR(Scenarios!CK7,"") -> 0 | CL7: =IFERROR(Scenarios!CL7,"") -> 0 | CM7: =IFERROR(Scenarios!CM7,"") -> 0 | CN7: =IFERROR(Scenarios!CN7,"") -> 0 | CO7: =IFERROR(Scenarios!CO7,"") -> 0 | CP7: =IFERROR(Scenarios!CP7,"") -> 0 | CQ7: =IFERROR(Scenarios!CQ7,"") -> 0 | CR7: =IFERROR(Scenarios!CR7,"") -> 0 | CS7: =IFERROR(Scenarios!CS7,"") -> 0 | CT7: =IFERROR(Scenarios!CT7,"") -> 0 | CU7: =IFERROR(Scenarios!CU7,"") -> 0 | CV7: =IFERROR(Scenarios!CV7,"") -> 0 | CW7: =IFERROR(Scenarios!CW7,"") -> 0 | CX7: =IFERROR(Scenarios!CX7,"") -> 0 | CY7: =IFERROR(Scenarios!CY7,"") -> 0 | CZ7: =IFERROR(Scenarios!CZ7,"") -> 0 | DA7: =IFERROR(Scenarios!DA7,"") -> 0
A8: =IFERROR(Scenarios!A8,"") -> 0 | B8: =IFERROR(Scenarios!B8,"") -> 0 | C8: =IFERROR(Scenarios!C8,"") -> 0 | D8: =IFERROR(Scenarios!D8,"") -> 0 | E8: =IFERROR(Scenarios!E8,"") -> 0 | F8: =IFERROR(Scenarios!F8,"") -> 0 | G8: =IFERROR(Scenarios!G8,"") -> 0 | H8: =IFERROR(Scenarios!H8,"") -> 0 | I8: =IFERROR(Scenarios!I8,"") -> 0 | J8: =IFERROR(Scenarios!J8,"") -> 0 | K8: =IFERROR(Scenarios!K8,"") -> 0 | L8: =IFERROR(Scenarios!L8,"") -> 0 | M8: =IFERROR(Scenarios!M8,"") -> 0 | N8: =IFERROR(Scenarios!N8,"") -> 0 | O8: =IFERROR(Scenarios!O8,"") -> 0 | P8: =IFERROR(Scenarios!P8,"") -> 0 | Q8: =IFERROR(Scenarios!Q8,"") -> 0 | R8: =IFERROR(Scenarios!R8,"") -> 0 | S8: =IFERROR(Scenarios!S8,"") -> 0 | T8: =IFERROR(Scenarios!T8,"") -> 0 | U8: =IFERROR(Scenarios!U8,"") -> 0 | V8: =IFERROR(Scenarios!V8,"") -> 0 | W8: =IFERROR(Scenarios!W8,"") -> 0 | X8: =IFERROR(Scenarios!X8,"") -> 0 | Y8: =IFERROR(Scenarios!Y8,"") -> 0 | Z8: =IFERROR(Scenarios!Z8,"") -> 0 | AA8: =IFERROR(Scenarios!AA8,"") -> 0 | AB8: =IFERROR(Scenarios!AB8,"") -> 0 | AC8: =IFERROR(Scenarios!AC8,"") -> 0 | AD8: =IFERROR(Scenarios!AD8,"") -> 0 | AE8: =IFERROR(Scenarios!AE8,"") -> 0 | AF8: =IFERROR(Scenarios!AF8,"") -> 0 | AG8: =IFERROR(Scenarios!AG8,"") -> 0 | AH8: =IFERROR(Scenarios!AH8,"") -> 0 | AI8: =IFERROR(Scenarios!AI8,"") -> 0 | AJ8: =IFERROR(Scenarios!AJ8,"") -> 0 | AK8: =IFERROR(Scenarios!AK8,"") -> 0 | AL8: =IFERROR(Scenarios!AL8,"") -> 0 | AM8: =IFERROR(Scenarios!AM8,"") -> 0 | AN8: =IFERROR(Scenarios!AN8,"") -> 0 | AO8: =IFERROR(Scenarios!AO8,"") -> 0 | AP8: =IFERROR(Scenarios!AP8,"") -> 0 | AQ8: =IFERROR(Scenarios!AQ8,"") -> 0 | AR8: =IFERROR(Scenarios!AR8,"") -> 0 | AS8: =IFERROR(Scenarios!AS8,"") -> 0 | AT8: =IFERROR(Scenarios!AT8,"") -> 0 | AU8: =IFERROR(Scenarios!AU8,"") -> 0 | AV8: =IFERROR(Scenarios!AV8,"") -> 0 | AW8: =IFERROR(Scenarios!AW8,"") -> 0 | AX8: =IFERROR(Scenarios!AX8,"") -> 0 | AY8: =IFERROR(Scenarios!AY8,"") -> 0 | AZ8: =IFERROR(Scenarios!AZ8,"") -> 0 | BA8: =IFERROR(Scenarios!BA8,"") -> 0 | BB8: =IFERROR(Scenarios!BB8,"") -> 0 | BC8: =IFERROR(Scenarios!BC8,"") -> 0 | BD8: =IFERROR(Scenarios!BD8,"") -> 0 | BE8: =IFERROR(Scenarios!BE8,"") -> 0 | BF8: =IFERROR(Scenarios!BF8,"") -> 0 | BG8: =IFERROR(Scenarios!BG8,"") -> 0 | BH8: =IFERROR(Scenarios!BH8,"") -> 0 | BI8: =IFERROR(Scenarios!BI8,"") -> 0 | BJ8: =IFERROR(Scenarios!BJ8,"") -> 0 | BK8: =IFERROR(Scenarios!BK8,"") -> 0 | BL8: =IFERROR(Scenarios!BL8,"") -> 0 | BM8: =IFERROR(Scenarios!BM8,"") -> 0 | BN8: =IFERROR(Scenarios!BN8,"") -> 0 | BO8: =IFERROR(Scenarios!BO8,"") -> 0 | BP8: =IFERROR(Scenarios!BP8,"") -> 0 | BQ8: =IFERROR(Scenarios!BQ8,"") -> 0 | BR8: =IFERROR(Scenarios!BR8,"") -> 0 | BS8: =IFERROR(Scenarios!BS8,"") -> 0 | BT8: =IFERROR(Scenarios!BT8,"") -> 0 | BU8: =IFERROR(Scenarios!BU8,"") -> 0 | BV8: =IFERROR(Scenarios!BV8,"") -> 0 | BW8: =IFERROR(Scenarios!BW8,"") -> 0 | BX8: =IFERROR(Scenarios!BX8,"") -> 0 | BY8: =IFERROR(Scenarios!BY8,"") -> 0 | BZ8: =IFERROR(Scenarios!BZ8,"") -> 0 | CA8: =IFERROR(Scenarios!CA8,"") -> 0 | CB8: =IFERROR(Scenarios!CB8,"") -> 0 | CC8: =IFERROR(Scenarios!CC8,"") -> 0 | CD8: =IFERROR(Scenarios!CD8,"") -> 0 | CE8: =IFERROR(Scenarios!CE8,"") -> 0 | CF8: =IFERROR(Scenarios!CF8,"") -> 0 | CG8: =IFERROR(Scenarios!CG8,"") -> 0 | CH8: =IFERROR(Scenarios!CH8,"") -> 0 | CI8: =IFERROR(Scenarios!CI8,"") -> 0 | CJ8: =IFERROR(Scenarios!CJ8,"") -> 0 | CK8: =IFERROR(Scenarios!CK8,"") -> 0 | CL8: =IFERROR(Scenarios!CL8,"") -> 0 | CM8: =IFERROR(Scenarios!CM8,"") -> 0 | CN8: =IFERROR(Scenarios!CN8,"") -> 0 | CO8: =IFERROR(Scenarios!CO8,"") -> 0 | CP8: =IFERROR(Scenarios!CP8,"") -> 0 | CQ8: =IFERROR(Scenarios!CQ8,"") -> 0 | CR8: =IFERROR(Scenarios!CR8,"") -> 0 | CS8: =IFERROR(Scenarios!CS8,"") -> 0 | CT8: =IFERROR(Scenarios!CT8,"") -> 0 | CU8: =IFERROR(Scenarios!CU8,"") -> 0 | CV8: =IFERROR(Scenarios!CV8,"") -> 0 | CW8: =IFERROR(Scenarios!CW8,"") -> 0 | CX8: =IFERROR(Scenarios!CX8,"") -> 0 | CY8: =IFERROR(Scenarios!CY8,"") -> 0 | CZ8: =IFERROR(Scenarios!CZ8,"") -> 0 | DA8: =IFERROR(Scenarios!DA8,"") -> 0
A9: =IFERROR(Scenarios!A9,"") -> 0 | B9: =IFERROR(Scenarios!B9,"") -> 0 | C9: =IFERROR(Scenarios!C9,"") -> 0 | D9: =IFERROR(Scenarios!D9,"") -> 0 | E9: =IFERROR(Scenarios!E9,"") -> 0 | F9: =IFERROR(Scenarios!F9,"") -> 0 | G9: =IFERROR(Scenarios!G9,"") -> 0 | H9: =IFERROR(Scenarios!H9,"") -> 0 | I9: =IFERROR(Scenarios!I9,"") -> 0 | J9: =IFERROR(Scenarios!J9,"") -> 0 | K9: =IFERROR(Scenarios!K9,"") -> 0 | L9: =IFERROR(Scenarios!L9,"") -> 0 | M9: =IFERROR(Scenarios!M9,"") -> 0 | N9: =IFERROR(Scenarios!N9,"") -> 0 | O9: =IFERROR(Scenarios!O9,"") -> 0 | P9: =IFERROR(Scenarios!P9,"") -> 0 | Q9: =IFERROR(Scenarios!Q9,"") -> 0 | R9: =IFERROR(Scenarios!R9,"") -> 0 | S9: =IFERROR(Scenarios!S9,"") -> 0 | T9: =IFERROR(Scenarios!T9,"") -> 0 | U9: =IFERROR(Scenarios!U9,"") -> 0 | V9: =IFERROR(Scenarios!V9,"") -> 0 | W9: =IFERROR(Scenarios!W9,"") -> 0 | X9: =IFERROR(Scenarios!X9,"") -> 0 | Y9: =IFERROR(Scenarios!Y9,"") -> 0 | Z9: =IFERROR(Scenarios!Z9,"") -> 0 | AA9: =IFERROR(Scenarios!AA9,"") -> 0 | AB9: =IFERROR(Scenarios!AB9,"") -> 0 | AC9: =IFERROR(Scenarios!AC9,"") -> 0 | AD9: =IFERROR(Scenarios!AD9,"") -> 0 | AE9: =IFERROR(Scenarios!AE9,"") -> 0 | AF9: =IFERROR(Scenarios!AF9,"") -> 0 | AG9: =IFERROR(Scenarios!AG9,"") -> 0 | AH9: =IFERROR(Scenarios!AH9,"") -> 0 | AI9: =IFERROR(Scenarios!AI9,"") -> 0 | AJ9: =IFERROR(Scenarios!AJ9,"") -> 0 | AK9: =IFERROR(Scenarios!AK9,"") -> 0 | AL9: =IFERROR(Scenarios!AL9,"") -> 0 | AM9: =IFERROR(Scenarios!AM9,"") -> 0 | AN9: =IFERROR(Scenarios!AN9,"") -> 0 | AO9: =IFERROR(Scenarios!AO9,"") -> 0 | AP9: =IFERROR(Scenarios!AP9,"") -> 0 | AQ9: =IFERROR(Scenarios!AQ9,"") -> 0 | AR9: =IFERROR(Scenarios!AR9,"") -> 0 | AS9: =IFERROR(Scenarios!AS9,"") -> 0 | AT9: =IFERROR(Scenarios!AT9,"") -> 0 | AU9: =IFERROR(Scenarios!AU9,"") -> 0 | AV9: =IFERROR(Scenarios!AV9,"") -> 0 | AW9: =IFERROR(Scenarios!AW9,"") -> 0 | AX9: =IFERROR(Scenarios!AX9,"") -> 0 | AY9: =IFERROR(Scenarios!AY9,"") -> 0 | AZ9: =IFERROR(Scenarios!AZ9,"") -> 0 | BA9: =IFERROR(Scenarios!BA9,"") -> 0 | BB9: =IFERROR(Scenarios!BB9,"") -> 0 | BC9: =IFERROR(Scenarios!BC9,"") -> 0 | BD9: =IFERROR(Scenarios!BD9,"") -> 0 | BE9: =IFERROR(Scenarios!BE9,"") -> 0 | BF9: =IFERROR(Scenarios!BF9,"") -> 0 | BG9: =IFERROR(Scenarios!BG9,"") -> 0 | BH9: =IFERROR(Scenarios!BH9,"") -> 0 | BI9: =IFERROR(Scenarios!BI9,"") -> 0 | BJ9: =IFERROR(Scenarios!BJ9,"") -> 0 | BK9: =IFERROR(Scenarios!BK9,"") -> 0 | BL9: =IFERROR(Scenarios!BL9,"") -> 0 | BM9: =IFERROR(Scenarios!BM9,"") -> 0 | BN9: =IFERROR(Scenarios!BN9,"") -> 0 | BO9: =IFERROR(Scenarios!BO9,"") -> 0 | BP9: =IFERROR(Scenarios!BP9,"") -> 0 | BQ9: =IFERROR(Scenarios!BQ9,"") -> 0 | BR9: =IFERROR(Scenarios!BR9,"") -> 0 | BS9: =IFERROR(Scenarios!BS9,"") -> 0 | BT9: =IFERROR(Scenarios!BT9,"") -> 0 | BU9: =IFERROR(Scenarios!BU9,"") -> 0 | BV9: =IFERROR(Scenarios!BV9,"") -> 0 | BW9: =IFERROR(Scenarios!BW9,"") -> 0 | BX9: =IFERROR(Scenarios!BX9,"") -> 0 | BY9: =IFERROR(Scenarios!BY9,"") -> 0 | BZ9: =IFERROR(Scenarios!BZ9,"") -> 0 | CA9: =IFERROR(Scenarios!CA9,"") -> 0 | CB9: =IFERROR(Scenarios!CB9,"") -> 0 | CC9: =IFERROR(Scenarios!CC9,"") -> 0 | CD9: =IFERROR(Scenarios!CD9,"") -> 0 | CE9: =IFERROR(Scenarios!CE9,"") -> 0 | CF9: =IFERROR(Scenarios!CF9,"") -> 0 | CG9: =IFERROR(Scenarios!CG9,"") -> 0 | CH9: =IFERROR(Scenarios!CH9,"") -> 0 | CI9: =IFERROR(Scenarios!CI9,"") -> 0 | CJ9: =IFERROR(Scenarios!CJ9,"") -> 0 | CK9: =IFERROR(Scenarios!CK9,"") -> 0 | CL9: =IFERROR(Scenarios!CL9,"") -> 0 | CM9: =IFERROR(Scenarios!CM9,"") -> 0 | CN9: =IFERROR(Scenarios!CN9,"") -> 0 | CO9: =IFERROR(Scenarios!CO9,"") -> 0 | CP9: =IFERROR(Scenarios!CP9,"") -> 0 | CQ9: =IFERROR(Scenarios!CQ9,"") -> 0 | CR9: =IFERROR(Scenarios!CR9,"") -> 0 | CS9: =IFERROR(Scenarios!CS9,"") -> 0 | CT9: =IFERROR(Scenarios!CT9,"") -> 0 | CU9: =IFERROR(Scenarios!CU9,"") -> 0 | CV9: =IFERROR(Scenarios!CV9,"") -> 0 | CW9: =IFERROR(Scenarios!CW9,"") -> 0 | CX9: =IFERROR(Scenarios!CX9,"") -> 0 | CY9: =IFERROR(Scenarios!CY9,"") -> 0 | CZ9: =IFERROR(Scenarios!CZ9,"") -> 0 | DA9: =IFERROR(Scenarios!DA9,"") -> 0
A10: =IFERROR(Scenarios!A10,"") -> 0 | B10: =IFERROR(Scenarios!B10,"") -> 0 | C10: =IFERROR(Scenarios!C10,"") -> 0 | D10: =IFERROR(Scenarios!D10,"") -> 0 | E10: =IFERROR(Scenarios!E10,"") -> 0 | F10: =IFERROR(Scenarios!F10,"") -> 0 | G10: =IFERROR(Scenarios!G10,"") -> 0 | H10: =IFERROR(Scenarios!H10,"") -> 0 | I10: =IFERROR(Scenarios!I10,"") -> 0 | J10: =IFERROR(Scenarios!J10,"") -> 0 | K10: =IFERROR(Scenarios!K10,"") -> 0 | L10: =IFERROR(Scenarios!L10,"") -> 0 | M10: =IFERROR(Scenarios!M10,"") -> 0 | N10: =IFERROR(Scenarios!N10,"") -> 0 | O10: =IFERROR(Scenarios!O10,"") -> 0 | P10: =IFERROR(Scenarios!P10,"") -> 0 | Q10: =IFERROR(Scenarios!Q10,"") -> 0 | R10: =IFERROR(Scenarios!R10,"") -> 0 | S10: =IFERROR(Scenarios!S10,"") -> 0 | T10: =IFERROR(Scenarios!T10,"") -> 0 | U10: =IFERROR(Scenarios!U10,"") -> 0 | V10: =IFERROR(Scenarios!V10,"") -> 0 | W10: =IFERROR(Scenarios!W10,"") -> 0 | X10: =IFERROR(Scenarios!X10,"") -> 0 | Y10: =IFERROR(Scenarios!Y10,"") -> 0 | Z10: =IFERROR(Scenarios!Z10,"") -> 0 | AA10: =IFERROR(Scenarios!AA10,"") -> 0 | AB10: =IFERROR(Scenarios!AB10,"") -> 0 | AC10: =IFERROR(Scenarios!AC10,"") -> 0 | AD10: =IFERROR(Scenarios!AD10,"") -> 0 | AE10: =IFERROR(Scenarios!AE10,"") -> 0 | AF10: =IFERROR(Scenarios!AF10,"") -> 0 | AG10: =IFERROR(Scenarios!AG10,"") -> 0 | AH10: =IFERROR(Scenarios!AH10,"") -> 0 | AI10: =IFERROR(Scenarios!AI10,"") -> 0 | AJ10: =IFERROR(Scenarios!AJ10,"") -> 0 | AK10: =IFERROR(Scenarios!AK10,"") -> 0 | AL10: =IFERROR(Scenarios!AL10,"") -> 0 | AM10: =IFERROR(Scenarios!AM10,"") -> 0 | AN10: =IFERROR(Scenarios!AN10,"") -> 0 | AO10: =IFERROR(Scenarios!AO10,"") -> 0 | AP10: =IFERROR(Scenarios!AP10,"") -> 0 | AQ10: =IFERROR(Scenarios!AQ10,"") -> 0 | AR10: =IFERROR(Scenarios!AR10,"") -> 0 | AS10: =IFERROR(Scenarios!AS10,"") -> 0 | AT10: =IFERROR(Scenarios!AT10,"") -> 0 | AU10: =IFERROR(Scenarios!AU10,"") -> 0 | AV10: =IFERROR(Scenarios!AV10,"") -> 0 | AW10: =IFERROR(Scenarios!AW10,"") -> 0 | AX10: =IFERROR(Scenarios!AX10,"") -> 0 | AY10: =IFERROR(Scenarios!AY10,"") -> 0 | AZ10: =IFERROR(Scenarios!AZ10,"") -> 0 | BA10: =IFERROR(Scenarios!BA10,"") -> 0 | BB10: =IFERROR(Scenarios!BB10,"") -> 0 | BC10: =IFERROR(Scenarios!BC10,"") -> 0 | BD10: =IFERROR(Scenarios!BD10,"") -> 0 | BE10: =IFERROR(Scenarios!BE10,"") -> 0 | BF10: =IFERROR(Scenarios!BF10,"") -> 0 | BG10: =IFERROR(Scenarios!BG10,"") -> 0 | BH10: =IFERROR(Scenarios!BH10,"") -> 0 | BI10: =IFERROR(Scenarios!BI10,"") -> 0 | BJ10: =IFERROR(Scenarios!BJ10,"") -> 0 | BK10: =IFERROR(Scenarios!BK10,"") -> 0 | BL10: =IFERROR(Scenarios!BL10,"") -> 0 | BM10: =IFERROR(Scenarios!BM10,"") -> 0 | BN10: =IFERROR(Scenarios!BN10,"") -> 0 | BO10: =IFERROR(Scenarios!BO10,"") -> 0 | BP10: =IFERROR(Scenarios!BP10,"") -> 0 | BQ10: =IFERROR(Scenarios!BQ10,"") -> 0 | BR10: =IFERROR(Scenarios!BR10,"") -> 0 | BS10: =IFERROR(Scenarios!BS10,"") -> 0 | BT10: =IFERROR(Scenarios!BT10,"") -> 0 | BU10: =IFERROR(Scenarios!BU10,"") -> 0 | BV10: =IFERROR(Scenarios!BV10,"") -> 0 | BW10: =IFERROR(Scenarios!BW10,"") -> 0 | BX10: =IFERROR(Scenarios!BX10,"") -> 0 | BY10: =IFERROR(Scenarios!BY10,"") -> 0 | BZ10: =IFERROR(Scenarios!BZ10,"") -> 0 | CA10: =IFERROR(Scenarios!CA10,"") -> 0 | CB10: =IFERROR(Scenarios!CB10,"") -> 0 | CC10: =IFERROR(Scenarios!CC10,"") -> 0 | CD10: =IFERROR(Scenarios!CD10,"") -> 0 | CE10: =IFERROR(Scenarios!CE10,"") -> 0 | CF10: =IFERROR(Scenarios!CF10,"") -> 0 | CG10: =IFERROR(Scenarios!CG10,"") -> 0 | CH10: =IFERROR(Scenarios!CH10,"") -> 0 | CI10: =IFERROR(Scenarios!CI10,"") -> 0 | CJ10: =IFERROR(Scenarios!CJ10,"") -> 0 | CK10: =IFERROR(Scenarios!CK10,"") -> 0 | CL10: =IFERROR(Scenarios!CL10,"") -> 0 | CM10: =IFERROR(Scenarios!CM10,"") -> 0 | CN10: =IFERROR(Scenarios!CN10,"") -> 0 | CO10: =IFERROR(Scenarios!CO10,"") -> 0 | CP10: =IFERROR(Scenarios!CP10,"") -> 0 | CQ10: =IFERROR(Scenarios!CQ10,"") -> 0 | CR10: =IFERROR(Scenarios!CR10,"") -> 0 | CS10: =IFERROR(Scenarios!CS10,"") -> 0 | CT10: =IFERROR(Scenarios!CT10,"") -> 0 | CU10: =IFERROR(Scenarios!CU10,"") -> 0 | CV10: =IFERROR(Scenarios!CV10,"") -> 0 | CW10: =IFERROR(Scenarios!CW10,"") -> 0 | CX10: =IFERROR(Scenarios!CX10,"") -> 0 | CY10: =IFERROR(Scenarios!CY10,"") -> 0 | CZ10: =IFERROR(Scenarios!CZ10,"") -> 0 | DA10: =IFERROR(Scenarios!DA10,"") -> 0
A11: =IFERROR(Scenarios!A11,"") -> 0 | B11: =IFERROR(Scenarios!B11,"") -> 0 | C11: =IFERROR(Scenarios!C11,"") -> 0 | D11: =IFERROR(Scenarios!D11,"") -> 0 | E11: =IFERROR(Scenarios!E11,"") -> 0 | F11: =IFERROR(Scenarios!F11,"") -> 0 | G11: =IFERROR(Scenarios!G11,"") -> 0 | H11: =IFERROR(Scenarios!H11,"") -> 0 | I11: =IFERROR(Scenarios!I11,"") -> 0 | J11: =IFERROR(Scenarios!J11,"") -> 0 | K11: =IFERROR(Scenarios!K11,"") -> 0 | L11: =IFERROR(Scenarios!L11,"") -> 0 | M11: =IFERROR(Scenarios!M11,"") -> 0 | N11: =IFERROR(Scenarios!N11,"") -> 0 | O11: =IFERROR(Scenarios!O11,"") -> 0 | P11: =IFERROR(Scenarios!P11,"") -> 0 | Q11: =IFERROR(Scenarios!Q11,"") -> 0 | R11: =IFERROR(Scenarios!R11,"") -> 0 | S11: =IFERROR(Scenarios!S11,"") -> 0 | T11: =IFERROR(Scenarios!T11,"") -> 0 | U11: =IFERROR(Scenarios!U11,"") -> 0 | V11: =IFERROR(Scenarios!V11,"") -> 0 | W11: =IFERROR(Scenarios!W11,"") -> 0 | X11: =IFERROR(Scenarios!X11,"") -> 0 | Y11: =IFERROR(Scenarios!Y11,"") -> 0 | Z11: =IFERROR(Scenarios!Z11,"") -> 0 | AA11: =IFERROR(Scenarios!AA11,"") -> 0 | AB11: =IFERROR(Scenarios!AB11,"") -> 0 | AC11: =IFERROR(Scenarios!AC11,"") -> 0 | AD11: =IFERROR(Scenarios!AD11,"") -> 0 | AE11: =IFERROR(Scenarios!AE11,"") -> 0 | AF11: =IFERROR(Scenarios!AF11,"") -> 0 | AG11: =IFERROR(Scenarios!AG11,"") -> 0 | AH11: =IFERROR(Scenarios!AH11,"") -> 0 | AI11: =IFERROR(Scenarios!AI11,"") -> 0 | AJ11: =IFERROR(Scenarios!AJ11,"") -> 0 | AK11: =IFERROR(Scenarios!AK11,"") -> 0 | AL11: =IFERROR(Scenarios!AL11,"") -> 0 | AM11: =IFERROR(Scenarios!AM11,"") -> 0 | AN11: =IFERROR(Scenarios!AN11,"") -> 0 | AO11: =IFERROR(Scenarios!AO11,"") -> 0 | AP11: =IFERROR(Scenarios!AP11,"") -> 0 | AQ11: =IFERROR(Scenarios!AQ11,"") -> 0 | AR11: =IFERROR(Scenarios!AR11,"") -> 0 | AS11: =IFERROR(Scenarios!AS11,"") -> 0 | AT11: =IFERROR(Scenarios!AT11,"") -> 0 | AU11: =IFERROR(Scenarios!AU11,"") -> 0 | AV11: =IFERROR(Scenarios!AV11,"") -> 0 | AW11: =IFERROR(Scenarios!AW11,"") -> 0 | AX11: =IFERROR(Scenarios!AX11,"") -> 0 | AY11: =IFERROR(Scenarios!AY11,"") -> 0 | AZ11: =IFERROR(Scenarios!AZ11,"") -> 0 | BA11: =IFERROR(Scenarios!BA11,"") -> 0 | BB11: =IFERROR(Scenarios!BB11,"") -> 0 | BC11: =IFERROR(Scenarios!BC11,"") -> 0 | BD11: =IFERROR(Scenarios!BD11,"") -> 0 | BE11: =IFERROR(Scenarios!BE11,"") -> 0 | BF11: =IFERROR(Scenarios!BF11,"") -> 0 | BG11: =IFERROR(Scenarios!BG11,"") -> 0 | BH11: =IFERROR(Scenarios!BH11,"") -> 0 | BI11: =IFERROR(Scenarios!BI11,"") -> 0 | BJ11: =IFERROR(Scenarios!BJ11,"") -> 0 | BK11: =IFERROR(Scenarios!BK11,"") -> 0 | BL11: =IFERROR(Scenarios!BL11,"") -> 0 | BM11: =IFERROR(Scenarios!BM11,"") -> 0 | BN11: =IFERROR(Scenarios!BN11,"") -> 0 | BO11: =IFERROR(Scenarios!BO11,"") -> 0 | BP11: =IFERROR(Scenarios!BP11,"") -> 0 | BQ11: =IFERROR(Scenarios!BQ11,"") -> 0 | BR11: =IFERROR(Scenarios!BR11,"") -> 0 | BS11: =IFERROR(Scenarios!BS11,"") -> 0 | BT11: =IFERROR(Scenarios!BT11,"") -> 0 | BU11: =IFERROR(Scenarios!BU11,"") -> 0 | BV11: =IFERROR(Scenarios!BV11,"") -> 0 | BW11: =IFERROR(Scenarios!BW11,"") -> 0 | BX11: =IFERROR(Scenarios!BX11,"") -> 0 | BY11: =IFERROR(Scenarios!BY11,"") -> 0 | BZ11: =IFERROR(Scenarios!BZ11,"") -> 0 | CA11: =IFERROR(Scenarios!CA11,"") -> 0 | CB11: =IFERROR(Scenarios!CB11,"") -> 0 | CC11: =IFERROR(Scenarios!CC11,"") -> 0 | CD11: =IFERROR(Scenarios!CD11,"") -> 0 | CE11: =IFERROR(Scenarios!CE11,"") -> 0 | CF11: =IFERROR(Scenarios!CF11,"") -> 0 | CG11: =IFERROR(Scenarios!CG11,"") -> 0 | CH11: =IFERROR(Scenarios!CH11,"") -> 0 | CI11: =IFERROR(Scenarios!CI11,"") -> 0 | CJ11: =IFERROR(Scenarios!CJ11,"") -> 0 | CK11: =IFERROR(Scenarios!CK11,"") -> 0 | CL11: =IFERROR(Scenarios!CL11,"") -> 0 | CM11: =IFERROR(Scenarios!CM11,"") -> 0 | CN11: =IFERROR(Scenarios!CN11,"") -> 0 | CO11: =IFERROR(Scenarios!CO11,"") -> 0 | CP11: =IFERROR(Scenarios!CP11,"") -> 0 | CQ11: =IFERROR(Scenarios!CQ11,"") -> 0 | CR11: =IFERROR(Scenarios!CR11,"") -> 0 | CS11: =IFERROR(Scenarios!CS11,"") -> 0 | CT11: =IFERROR(Scenarios!CT11,"") -> 0 | CU11: =IFERROR(Scenarios!CU11,"") -> 0 | CV11: =IFERROR(Scenarios!CV11,"") -> 0 | CW11: =IFERROR(Scenarios!CW11,"") -> 0 | CX11: =IFERROR(Scenarios!CX11,"") -> 0 | CY11: =IFERROR(Scenarios!CY11,"") -> 0 | CZ11: =IFERROR(Scenarios!CZ11,"") -> 0 | DA11: =IFERROR(Scenarios!DA11,"") -> 0
A12: =IFERROR(Scenarios!A12,"") -> 0 | B12: =IFERROR(Scenarios!B12,"") -> 0 | C12: =IFERROR(Scenarios!C12,"") -> 0 | D12: =IFERROR(Scenarios!D12,"") -> 0 | E12: =IFERROR(Scenarios!E12,"") -> 0 | F12: =IFERROR(Scenarios!F12,"") -> 0 | G12: =IFERROR(Scenarios!G12,"") -> 0 | H12: =IFERROR(Scenarios!H12,"") -> 0 | I12: =IFERROR(Scenarios!I12,"") -> 0 | J12: =IFERROR(Scenarios!J12,"") -> 0 | K12: =IFERROR(Scenarios!K12,"") -> 0 | L12: =IFERROR(Scenarios!L12,"") -> 0 | M12: =IFERROR(Scenarios!M12,"") -> 0 | N12: =IFERROR(Scenarios!N12,"") -> 0 | O12: =IFERROR(Scenarios!O12,"") -> 0 | P12: =IFERROR(Scenarios!P12,"") -> 0 | Q12: =IFERROR(Scenarios!Q12,"") -> 0 | R12: =IFERROR(Scenarios!R12,"") -> 0 | S12: =IFERROR(Scenarios!S12,"") -> 0 | T12: =IFERROR(Scenarios!T12,"") -> 0 | U12: =IFERROR(Scenarios!U12,"") -> 0 | V12: =IFERROR(Scenarios!V12,"") -> 0 | W12: =IFERROR(Scenarios!W12,"") -> 0 | X12: =IFERROR(Scenarios!X12,"") -> 0 | Y12: =IFERROR(Scenarios!Y12,"") -> 0 | Z12: =IFERROR(Scenarios!Z12,"") -> 0 | AA12: =IFERROR(Scenarios!AA12,"") -> 0 | AB12: =IFERROR(Scenarios!AB12,"") -> 0 | AC12: =IFERROR(Scenarios!AC12,"") -> 0 | AD12: =IFERROR(Scenarios!AD12,"") -> 0 | AE12: =IFERROR(Scenarios!AE12,"") -> 0 | AF12: =IFERROR(Scenarios!AF12,"") -> 0 | AG12: =IFERROR(Scenarios!AG12,"") -> 0 | AH12: =IFERROR(Scenarios!AH12,"") -> 0 | AI12: =IFERROR(Scenarios!AI12,"") -> 0 | AJ12: =IFERROR(Scenarios!AJ12,"") -> 0 | AK12: =IFERROR(Scenarios!AK12,"") -> 0 | AL12: =IFERROR(Scenarios!AL12,"") -> 0 | AM12: =IFERROR(Scenarios!AM12,"") -> 0 | AN12: =IFERROR(Scenarios!AN12,"") -> 0 | AO12: =IFERROR(Scenarios!AO12,"") -> 0 | AP12: =IFERROR(Scenarios!AP12,"") -> 0 | AQ12: =IFERROR(Scenarios!AQ12,"") -> 0 | AR12: =IFERROR(Scenarios!AR12,"") -> 0 | AS12: =IFERROR(Scenarios!AS12,"") -> 0 | AT12: =IFERROR(Scenarios!AT12,"") -> 0 | AU12: =IFERROR(Scenarios!AU12,"") -> 0 | AV12: =IFERROR(Scenarios!AV12,"") -> 0 | AW12: =IFERROR(Scenarios!AW12,"") -> 0 | AX12: =IFERROR(Scenarios!AX12,"") -> 0 | AY12: =IFERROR(Scenarios!AY12,"") -> 0 | AZ12: =IFERROR(Scenarios!AZ12,"") -> 0 | BA12: =IFERROR(Scenarios!BA12,"") -> 0 | BB12: =IFERROR(Scenarios!BB12,"") -> 0 | BC12: =IFERROR(Scenarios!BC12,"") -> 0 | BD12: =IFERROR(Scenarios!BD12,"") -> 0 | BE12: =IFERROR(Scenarios!BE12,"") -> 0 | BF12: =IFERROR(Scenarios!BF12,"") -> 0 | BG12: =IFERROR(Scenarios!BG12,"") -> 0 | BH12: =IFERROR(Scenarios!BH12,"") -> 0 | BI12: =IFERROR(Scenarios!BI12,"") -> 0 | BJ12: =IFERROR(Scenarios!BJ12,"") -> 0 | BK12: =IFERROR(Scenarios!BK12,"") -> 0 | BL12: =IFERROR(Scenarios!BL12,"") -> 0 | BM12: =IFERROR(Scenarios!BM12,"") -> 0 | BN12: =IFERROR(Scenarios!BN12,"") -> 0 | BO12: =IFERROR(Scenarios!BO12,"") -> 0 | BP12: =IFERROR(Scenarios!BP12,"") -> 0 | BQ12: =IFERROR(Scenarios!BQ12,"") -> 0 | BR12: =IFERROR(Scenarios!BR12,"") -> 0 | BS12: =IFERROR(Scenarios!BS12,"") -> 0 | BT12: =IFERROR(Scenarios!BT12,"") -> 0 | BU12: =IFERROR(Scenarios!BU12,"") -> 0 | BV12: =IFERROR(Scenarios!BV12,"") -> 0 | BW12: =IFERROR(Scenarios!BW12,"") -> 0 | BX12: =IFERROR(Scenarios!BX12,"") -> 0 | BY12: =IFERROR(Scenarios!BY12,"") -> 0 | BZ12: =IFERROR(Scenarios!BZ12,"") -> 0 | CA12: =IFERROR(Scenarios!CA12,"") -> 0 | CB12: =IFERROR(Scenarios!CB12,"") -> 0 | CC12: =IFERROR(Scenarios!CC12,"") -> 0 | CD12: =IFERROR(Scenarios!CD12,"") -> 0 | CE12: =IFERROR(Scenarios!CE12,"") -> 0 | CF12: =IFERROR(Scenarios!CF12,"") -> 0 | CG12: =IFERROR(Scenarios!CG12,"") -> 0 | CH12: =IFERROR(Scenarios!CH12,"") -> 0 | CI12: =IFERROR(Scenarios!CI12,"") -> 0 | CJ12: =IFERROR(Scenarios!CJ12,"") -> 0 | CK12: =IFERROR(Scenarios!CK12,"") -> 0 | CL12: =IFERROR(Scenarios!CL12,"") -> 0 | CM12: =IFERROR(Scenarios!CM12,"") -> 0 | CN12: =IFERROR(Scenarios!CN12,"") -> 0 | CO12: =IFERROR(Scenarios!CO12,"") -> 0 | CP12: =IFERROR(Scenarios!CP12,"") -> 0 | CQ12: =IFERROR(Scenarios!CQ12,"") -> 0 | CR12: =IFERROR(Scenarios!CR12,"") -> 0 | CS12: =IFERROR(Scenarios!CS12,"") -> 0 | CT12: =IFERROR(Scenarios!CT12,"") -> 0 | CU12: =IFERROR(Scenarios!CU12,"") -> 0 | CV12: =IFERROR(Scenarios!CV12,"") -> 0 | CW12: =IFERROR(Scenarios!CW12,"") -> 0 | CX12: =IFERROR(Scenarios!CX12,"") -> 0 | CY12: =IFERROR(Scenarios!CY12,"") -> 0 | CZ12: =IFERROR(Scenarios!CZ12,"") -> 0 | DA12: =IFERROR(Scenarios!DA12,"") -> 0
A13: =IFERROR(Scenarios!A13,"") -> 0 | B13: =IFERROR(Scenarios!B13,"") -> 0 | C13: =IFERROR(Scenarios!C13,"") -> 0 | D13: =IFERROR(Scenarios!D13,"") -> 0 | E13: =IFERROR(Scenarios!E13,"") -> 0 | F13: =IFERROR(Scenarios!F13,"") -> 0 | G13: =IFERROR(Scenarios!G13,"") -> 0 | H13: =IFERROR(Scenarios!H13,"") -> 0 | I13: =IFERROR(Scenarios!I13,"") -> 0 | J13: =IFERROR(Scenarios!J13,"") -> 0 | K13: =IFERROR(Scenarios!K13,"") -> 0 | L13: =IFERROR(Scenarios!L13,"") -> 0 | M13: =IFERROR(Scenarios!M13,"") -> 0 | N13: =IFERROR(Scenarios!N13,"") -> 0 | O13: =IFERROR(Scenarios!O13,"") -> 0 | P13: =IFERROR(Scenarios!P13,"") -> 0 | Q13: =IFERROR(Scenarios!Q13,"") -> 0 | R13: =IFERROR(Scenarios!R13,"") -> 0 | S13: =IFERROR(Scenarios!S13,"") -> 0 | T13: =IFERROR(Scenarios!T13,"") -> 0 | U13: =IFERROR(Scenarios!U13,"") -> 0 | V13: =IFERROR(Scenarios!V13,"") -> 0 | W13: =IFERROR(Scenarios!W13,"") -> 0 | X13: =IFERROR(Scenarios!X13,"") -> 0 | Y13: =IFERROR(Scenarios!Y13,"") -> 0 | Z13: =IFERROR(Scenarios!Z13,"") -> 0 | AA13: =IFERROR(Scenarios!AA13,"") -> 0 | AB13: =IFERROR(Scenarios!AB13,"") -> 0 | AC13: =IFERROR(Scenarios!AC13,"") -> 0 | AD13: =IFERROR(Scenarios!AD13,"") -> 0 | AE13: =IFERROR(Scenarios!AE13,"") -> 0 | AF13: =IFERROR(Scenarios!AF13,"") -> 0 | AG13: =IFERROR(Scenarios!AG13,"") -> 0 | AH13: =IFERROR(Scenarios!AH13,"") -> 0 | AI13: =IFERROR(Scenarios!AI13,"") -> 0 | AJ13: =IFERROR(Scenarios!AJ13,"") -> 0 | AK13: =IFERROR(Scenarios!AK13,"") -> 0 | AL13: =IFERROR(Scenarios!AL13,"") -> 0 | AM13: =IFERROR(Scenarios!AM13,"") -> 0 | AN13: =IFERROR(Scenarios!AN13,"") -> 0 | AO13: =IFERROR(Scenarios!AO13,"") -> 0 | AP13: =IFERROR(Scenarios!AP13,"") -> 0 | AQ13: =IFERROR(Scenarios!AQ13,"") -> 0 | AR13: =IFERROR(Scenarios!AR13,"") -> 0 | AS13: =IFERROR(Scenarios!AS13,"") -> 0 | AT13: =IFERROR(Scenarios!AT13,"") -> 0 | AU13: =IFERROR(Scenarios!AU13,"") -> 0 | AV13: =IFERROR(Scenarios!AV13,"") -> 0 | AW13: =IFERROR(Scenarios!AW13,"") -> 0 | AX13: =IFERROR(Scenarios!AX13,"") -> 0 | AY13: =IFERROR(Scenarios!AY13,"") -> 0 | AZ13: =IFERROR(Scenarios!AZ13,"") -> 0 | BA13: =IFERROR(Scenarios!BA13,"") -> 0 | BB13: =IFERROR(Scenarios!BB13,"") -> 0 | BC13: =IFERROR(Scenarios!BC13,"") -> 0 | BD13: =IFERROR(Scenarios!BD13,"") -> 0 | BE13: =IFERROR(Scenarios!BE13,"") -> 0 | BF13: =IFERROR(Scenarios!BF13,"") -> 0 | BG13: =IFERROR(Scenarios!BG13,"") -> 0 | BH13: =IFERROR(Scenarios!BH13,"") -> 0 | BI13: =IFERROR(Scenarios!BI13,"") -> 0 | BJ13: =IFERROR(Scenarios!BJ13,"") -> 0 | BK13: =IFERROR(Scenarios!BK13,"") -> 0 | BL13: =IFERROR(Scenarios!BL13,"") -> 0 | BM13: =IFERROR(Scenarios!BM13,"") -> 0 | BN13: =IFERROR(Scenarios!BN13,"") -> 0 | BO13: =IFERROR(Scenarios!BO13,"") -> 0 | BP13: =IFERROR(Scenarios!BP13,"") -> 0 | BQ13: =IFERROR(Scenarios!BQ13,"") -> 0 | BR13: =IFERROR(Scenarios!BR13,"") -> 0 | BS13: =IFERROR(Scenarios!BS13,"") -> 0 | BT13: =IFERROR(Scenarios!BT13,"") -> 0 | BU13: =IFERROR(Scenarios!BU13,"") -> 0 | BV13: =IFERROR(Scenarios!BV13,"") -> 0 | BW13: =IFERROR(Scenarios!BW13,"") -> 0 | BX13: =IFERROR(Scenarios!BX13,"") -> 0 | BY13: =IFERROR(Scenarios!BY13,"") -> 0 | BZ13: =IFERROR(Scenarios!BZ13,"") -> 0 | CA13: =IFERROR(Scenarios!CA13,"") -> 0 | CB13: =IFERROR(Scenarios!CB13,"") -> 0 | CC13: =IFERROR(Scenarios!CC13,"") -> 0 | CD13: =IFERROR(Scenarios!CD13,"") -> 0 | CE13: =IFERROR(Scenarios!CE13,"") -> 0 | CF13: =IFERROR(Scenarios!CF13,"") -> 0 | CG13: =IFERROR(Scenarios!CG13,"") -> 0 | CH13: =IFERROR(Scenarios!CH13,"") -> 0 | CI13: =IFERROR(Scenarios!CI13,"") -> 0 | CJ13: =IFERROR(Scenarios!CJ13,"") -> 0 | CK13: =IFERROR(Scenarios!CK13,"") -> 0 | CL13: =IFERROR(Scenarios!CL13,"") -> 0 | CM13: =IFERROR(Scenarios!CM13,"") -> 0 | CN13: =IFERROR(Scenarios!CN13,"") -> 0 | CO13: =IFERROR(Scenarios!CO13,"") -> 0 | CP13: =IFERROR(Scenarios!CP13,"") -> 0 | CQ13: =IFERROR(Scenarios!CQ13,"") -> 0 | CR13: =IFERROR(Scenarios!CR13,"") -> 0 | CS13: =IFERROR(Scenarios!CS13,"") -> 0 | CT13: =IFERROR(Scenarios!CT13,"") -> 0 | CU13: =IFERROR(Scenarios!CU13,"") -> 0 | CV13: =IFERROR(Scenarios!CV13,"") -> 0 | CW13: =IFERROR(Scenarios!CW13,"") -> 0 | CX13: =IFERROR(Scenarios!CX13,"") -> 0 | CY13: =IFERROR(Scenarios!CY13,"") -> 0 | CZ13: =IFERROR(Scenarios!CZ13,"") -> 0 | DA13: =IFERROR(Scenarios!DA13,"") -> 0
A14: =IFERROR(Scenarios!A14,"") -> 0 | B14: =IFERROR(Scenarios!B14,"") -> 0 | C14: =IFERROR(Scenarios!C14,"") -> 0 | D14: =IFERROR(Scenarios!D14,"") -> 0 | E14: =IFERROR(Scenarios!E14,"") -> 0 | F14: =IFERROR(Scenarios!F14,"") -> 0 | G14: =IFERROR(Scenarios!G14,"") -> 0 | H14: =IFERROR(Scenarios!H14,"") -> 0 | I14: =IFERROR(Scenarios!I14,"") -> 0 | J14: =IFERROR(Scenarios!J14,"") -> 0 | K14: =IFERROR(Scenarios!K14,"") -> 0 | L14: =IFERROR(Scenarios!L14,"") -> 0 | M14: =IFERROR(Scenarios!M14,"") -> 0 | N14: =IFERROR(Scenarios!N14,"") -> 0 | O14: =IFERROR(Scenarios!O14,"") -> 0 | P14: =IFERROR(Scenarios!P14,"") -> 0 | Q14: =IFERROR(Scenarios!Q14,"") -> 0 | R14: =IFERROR(Scenarios!R14,"") -> 0 | S14: =IFERROR(Scenarios!S14,"") -> 0 | T14: =IFERROR(Scenarios!T14,"") -> 0 | U14: =IFERROR(Scenarios!U14,"") -> 0 | V14: =IFERROR(Scenarios!V14,"") -> 0 | W14: =IFERROR(Scenarios!W14,"") -> 0 | X14: =IFERROR(Scenarios!X14,"") -> 0 | Y14: =IFERROR(Scenarios!Y14,"") -> 0 | Z14: =IFERROR(Scenarios!Z14,"") -> 0 | AA14: =IFERROR(Scenarios!AA14,"") -> 0 | AB14: =IFERROR(Scenarios!AB14,"") -> 0 | AC14: =IFERROR(Scenarios!AC14,"") -> 0 | AD14: =IFERROR(Scenarios!AD14,"") -> 0 | AE14: =IFERROR(Scenarios!AE14,"") -> 0 | AF14: =IFERROR(Scenarios!AF14,"") -> 0 | AG14: =IFERROR(Scenarios!AG14,"") -> 0 | AH14: =IFERROR(Scenarios!AH14,"") -> 0 | AI14: =IFERROR(Scenarios!AI14,"") -> 0 | AJ14: =IFERROR(Scenarios!AJ14,"") -> 0 | AK14: =IFERROR(Scenarios!AK14,"") -> 0 | AL14: =IFERROR(Scenarios!AL14,"") -> 0 | AM14: =IFERROR(Scenarios!AM14,"") -> 0 | AN14: =IFERROR(Scenarios!AN14,"") -> 0 | AO14: =IFERROR(Scenarios!AO14,"") -> 0 | AP14: =IFERROR(Scenarios!AP14,"") -> 0 | AQ14: =IFERROR(Scenarios!AQ14,"") -> 0 | AR14: =IFERROR(Scenarios!AR14,"") -> 0 | AS14: =IFERROR(Scenarios!AS14,"") -> 0 | AT14: =IFERROR(Scenarios!AT14,"") -> 0 | AU14: =IFERROR(Scenarios!AU14,"") -> 0 | AV14: =IFERROR(Scenarios!AV14,"") -> 0 | AW14: =IFERROR(Scenarios!AW14,"") -> 0 | AX14: =IFERROR(Scenarios!AX14,"") -> 0 | AY14: =IFERROR(Scenarios!AY14,"") -> 0 | AZ14: =IFERROR(Scenarios!AZ14,"") -> 0 | BA14: =IFERROR(Scenarios!BA14,"") -> 0 | BB14: =IFERROR(Scenarios!BB14,"") -> 0 | BC14: =IFERROR(Scenarios!BC14,"") -> 0 | BD14: =IFERROR(Scenarios!BD14,"") -> 0 | BE14: =IFERROR(Scenarios!BE14,"") -> 0 | BF14: =IFERROR(Scenarios!BF14,"") -> 0 | BG14: =IFERROR(Scenarios!BG14,"") -> 0 | BH14: =IFERROR(Scenarios!BH14,"") -> 0 | BI14: =IFERROR(Scenarios!BI14,"") -> 0 | BJ14: =IFERROR(Scenarios!BJ14,"") -> 0 | BK14: =IFERROR(Scenarios!BK14,"") -> 0 | BL14: =IFERROR(Scenarios!BL14,"") -> 0 | BM14: =IFERROR(Scenarios!BM14,"") -> 0 | BN14: =IFERROR(Scenarios!BN14,"") -> 0 | BO14: =IFERROR(Scenarios!BO14,"") -> 0 | BP14: =IFERROR(Scenarios!BP14,"") -> 0 | BQ14: =IFERROR(Scenarios!BQ14,"") -> 0 | BR14: =IFERROR(Scenarios!BR14,"") -> 0 | BS14: =IFERROR(Scenarios!BS14,"") -> 0 | BT14: =IFERROR(Scenarios!BT14,"") -> 0 | BU14: =IFERROR(Scenarios!BU14,"") -> 0 | BV14: =IFERROR(Scenarios!BV14,"") -> 0 | BW14: =IFERROR(Scenarios!BW14,"") -> 0 | BX14: =IFERROR(Scenarios!BX14,"") -> 0 | BY14: =IFERROR(Scenarios!BY14,"") -> 0 | BZ14: =IFERROR(Scenarios!BZ14,"") -> 0 | CA14: =IFERROR(Scenarios!CA14,"") -> 0 | CB14: =IFERROR(Scenarios!CB14,"") -> 0 | CC14: =IFERROR(Scenarios!CC14,"") -> 0 | CD14: =IFERROR(Scenarios!CD14,"") -> 0 | CE14: =IFERROR(Scenarios!CE14,"") -> 0 | CF14: =IFERROR(Scenarios!CF14,"") -> 0 | CG14: =IFERROR(Scenarios!CG14,"") -> 0 | CH14: =IFERROR(Scenarios!CH14,"") -> 0 | CI14: =IFERROR(Scenarios!CI14,"") -> 0 | CJ14: =IFERROR(Scenarios!CJ14,"") -> 0 | CK14: =IFERROR(Scenarios!CK14,"") -> 0 | CL14: =IFERROR(Scenarios!CL14,"") -> 0 | CM14: =IFERROR(Scenarios!CM14,"") -> 0 | CN14: =IFERROR(Scenarios!CN14,"") -> 0 | CO14: =IFERROR(Scenarios!CO14,"") -> 0 | CP14: =IFERROR(Scenarios!CP14,"") -> 0 | CQ14: =IFERROR(Scenarios!CQ14,"") -> 0 | CR14: =IFERROR(Scenarios!CR14,"") -> 0 | CS14: =IFERROR(Scenarios!CS14,"") -> 0 | CT14: =IFERROR(Scenarios!CT14,"") -> 0 | CU14: =IFERROR(Scenarios!CU14,"") -> 0 | CV14: =IFERROR(Scenarios!CV14,"") -> 0 | CW14: =IFERROR(Scenarios!CW14,"") -> 0 | CX14: =IFERROR(Scenarios!CX14,"") -> 0 | CY14: =IFERROR(Scenarios!CY14,"") -> 0 | CZ14: =IFERROR(Scenarios!CZ14,"") -> 0 | DA14: =IFERROR(Scenarios!DA14,"") -> 0
A15: =IFERROR(Scenarios!A15,"") -> 0 | B15: =IFERROR(Scenarios!B15,"") -> 0 | C15: =IFERROR(Scenarios!C15,"") -> 0 | D15: =IFERROR(Scenarios!D15,"") -> 0 | E15: =IFERROR(Scenarios!E15,"") -> 0 | F15: =IFERROR(Scenarios!F15,"") -> 0 | G15: =IFERROR(Scenarios!G15,"") -> 0 | H15: =IFERROR(Scenarios!H15,"") -> 0 | I15: =IFERROR(Scenarios!I15,"") -> 0 | J15: =IFERROR(Scenarios!J15,"") -> 0 | K15: =IFERROR(Scenarios!K15,"") -> 0 | L15: =IFERROR(Scenarios!L15,"") -> 0 | M15: =IFERROR(Scenarios!M15,"") -> 0 | N15: =IFERROR(Scenarios!N15,"") -> 0 | O15: =IFERROR(Scenarios!O15,"") -> 0 | P15: =IFERROR(Scenarios!P15,"") -> 0 | Q15: =IFERROR(Scenarios!Q15,"") -> 0 | R15: =IFERROR(Scenarios!R15,"") -> 0 | S15: =IFERROR(Scenarios!S15,"") -> 0 | T15: =IFERROR(Scenarios!T15,"") -> 0 | U15: =IFERROR(Scenarios!U15,"") -> 0 | V15: =IFERROR(Scenarios!V15,"") -> 0 | W15: =IFERROR(Scenarios!W15,"") -> 0 | X15: =IFERROR(Scenarios!X15,"") -> 0 | Y15: =IFERROR(Scenarios!Y15,"") -> 0 | Z15: =IFERROR(Scenarios!Z15,"") -> 0 | AA15: =IFERROR(Scenarios!AA15,"") -> 0 | AB15: =IFERROR(Scenarios!AB15,"") -> 0 | AC15: =IFERROR(Scenarios!AC15,"") -> 0 | AD15: =IFERROR(Scenarios!AD15,"") -> 0 | AE15: =IFERROR(Scenarios!AE15,"") -> 0 | AF15: =IFERROR(Scenarios!AF15,"") -> 0 | AG15: =IFERROR(Scenarios!AG15,"") -> 0 | AH15: =IFERROR(Scenarios!AH15,"") -> 0 | AI15: =IFERROR(Scenarios!AI15,"") -> 0 | AJ15: =IFERROR(Scenarios!AJ15,"") -> 0 | AK15: =IFERROR(Scenarios!AK15,"") -> 0 | AL15: =IFERROR(Scenarios!AL15,"") -> 0 | AM15: =IFERROR(Scenarios!AM15,"") -> 0 | AN15: =IFERROR(Scenarios!AN15,"") -> 0 | AO15: =IFERROR(Scenarios!AO15,"") -> 0 | AP15: =IFERROR(Scenarios!AP15,"") -> 0 | AQ15: =IFERROR(Scenarios!AQ15,"") -> 0 | AR15: =IFERROR(Scenarios!AR15,"") -> 0 | AS15: =IFERROR(Scenarios!AS15,"") -> 0 | AT15: =IFERROR(Scenarios!AT15,"") -> 0 | AU15: =IFERROR(Scenarios!AU15,"") -> 0 | AV15: =IFERROR(Scenarios!AV15,"") -> 0 | AW15: =IFERROR(Scenarios!AW15,"") -> 0 | AX15: =IFERROR(Scenarios!AX15,"") -> 0 | AY15: =IFERROR(Scenarios!AY15,"") -> 0 | AZ15: =IFERROR(Scenarios!AZ15,"") -> 0 | BA15: =IFERROR(Scenarios!BA15,"") -> 0 | BB15: =IFERROR(Scenarios!BB15,"") -> 0 | BC15: =IFERROR(Scenarios!BC15,"") -> 0 | BD15: =IFERROR(Scenarios!BD15,"") -> 0 | BE15: =IFERROR(Scenarios!BE15,"") -> 0 | BF15: =IFERROR(Scenarios!BF15,"") -> 0 | BG15: =IFERROR(Scenarios!BG15,"") -> 0 | BH15: =IFERROR(Scenarios!BH15,"") -> 0 | BI15: =IFERROR(Scenarios!BI15,"") -> 0 | BJ15: =IFERROR(Scenarios!BJ15,"") -> 0 | BK15: =IFERROR(Scenarios!BK15,"") -> 0 | BL15: =IFERROR(Scenarios!BL15,"") -> 0 | BM15: =IFERROR(Scenarios!BM15,"") -> 0 | BN15: =IFERROR(Scenarios!BN15,"") -> 0 | BO15: =IFERROR(Scenarios!BO15,"") -> 0 | BP15: =IFERROR(Scenarios!BP15,"") -> 0 | BQ15: =IFERROR(Scenarios!BQ15,"") -> 0 | BR15: =IFERROR(Scenarios!BR15,"") -> 0 | BS15: =IFERROR(Scenarios!BS15,"") -> 0 | BT15: =IFERROR(Scenarios!BT15,"") -> 0 | BU15: =IFERROR(Scenarios!BU15,"") -> 0 | BV15: =IFERROR(Scenarios!BV15,"") -> 0 | BW15: =IFERROR(Scenarios!BW15,"") -> 0 | BX15: =IFERROR(Scenarios!BX15,"") -> 0 | BY15: =IFERROR(Scenarios!BY15,"") -> 0 | BZ15: =IFERROR(Scenarios!BZ15,"") -> 0 | CA15: =IFERROR(Scenarios!CA15,"") -> 0 | CB15: =IFERROR(Scenarios!CB15,"") -> 0 | CC15: =IFERROR(Scenarios!CC15,"") -> 0 | CD15: =IFERROR(Scenarios!CD15,"") -> 0 | CE15: =IFERROR(Scenarios!CE15,"") -> 0 | CF15: =IFERROR(Scenarios!CF15,"") -> 0 | CG15: =IFERROR(Scenarios!CG15,"") -> 0 | CH15: =IFERROR(Scenarios!CH15,"") -> 0 | CI15: =IFERROR(Scenarios!CI15,"") -> 0 | CJ15: =IFERROR(Scenarios!CJ15,"") -> 0 | CK15: =IFERROR(Scenarios!CK15,"") -> 0 | CL15: =IFERROR(Scenarios!CL15,"") -> 0 | CM15: =IFERROR(Scenarios!CM15,"") -> 0 | CN15: =IFERROR(Scenarios!CN15,"") -> 0 | CO15: =IFERROR(Scenarios!CO15,"") -> 0 | CP15: =IFERROR(Scenarios!CP15,"") -> 0 | CQ15: =IFERROR(Scenarios!CQ15,"") -> 0 | CR15: =IFERROR(Scenarios!CR15,"") -> 0 | CS15: =IFERROR(Scenarios!CS15,"") -> 0 | CT15: =IFERROR(Scenarios!CT15,"") -> 0 | CU15: =IFERROR(Scenarios!CU15,"") -> 0 | CV15: =IFERROR(Scenarios!CV15,"") -> 0 | CW15: =IFERROR(Scenarios!CW15,"") -> 0 | CX15: =IFERROR(Scenarios!CX15,"") -> 0 | CY15: =IFERROR(Scenarios!CY15,"") -> 0 | CZ15: =IFERROR(Scenarios!CZ15,"") -> 0 | DA15: =IFERROR(Scenarios!DA15,"") -> 0
A16: =IFERROR(Scenarios!A16,"") -> 0 | B16: =IFERROR(Scenarios!B16,"") -> 0 | C16: =IFERROR(Scenarios!C16,"") -> 0 | D16: =IFERROR(Scenarios!D16,"") -> 0 | E16: =IFERROR(Scenarios!E16,"") -> 0 | F16: =IFERROR(Scenarios!F16,"") -> 0 | G16: =IFERROR(Scenarios!G16,"") -> 0 | H16: =IFERROR(Scenarios!H16,"") -> 0 | I16: =IFERROR(Scenarios!I16,"") -> 0 | J16: =IFERROR(Scenarios!J16,"") -> 0 | K16: =IFERROR(Scenarios!K16,"") -> 0 | L16: =IFERROR(Scenarios!L16,"") -> 0 | M16: =IFERROR(Scenarios!M16,"") -> 0 | N16: =IFERROR(Scenarios!N16,"") -> 0 | O16: =IFERROR(Scenarios!O16,"") -> 0 | P16: =IFERROR(Scenarios!P16,"") -> 0 | Q16: =IFERROR(Scenarios!Q16,"") -> 0 | R16: =IFERROR(Scenarios!R16,"") -> 0 | S16: =IFERROR(Scenarios!S16,"") -> 0 | T16: =IFERROR(Scenarios!T16,"") -> 0 | U16: =IFERROR(Scenarios!U16,"") -> 0 | V16: =IFERROR(Scenarios!V16,"") -> 0 | W16: =IFERROR(Scenarios!W16,"") -> 0 | X16: =IFERROR(Scenarios!X16,"") -> 0 | Y16: =IFERROR(Scenarios!Y16,"") -> 0 | Z16: =IFERROR(Scenarios!Z16,"") -> 0 | AA16: =IFERROR(Scenarios!AA16,"") -> 0 | AB16: =IFERROR(Scenarios!AB16,"") -> 0 | AC16: =IFERROR(Scenarios!AC16,"") -> 0 | AD16: =IFERROR(Scenarios!AD16,"") -> 0 | AE16: =IFERROR(Scenarios!AE16,"") -> 0 | AF16: =IFERROR(Scenarios!AF16,"") -> 0 | AG16: =IFERROR(Scenarios!AG16,"") -> 0 | AH16: =IFERROR(Scenarios!AH16,"") -> 0 | AI16: =IFERROR(Scenarios!AI16,"") -> 0 | AJ16: =IFERROR(Scenarios!AJ16,"") -> 0 | AK16: =IFERROR(Scenarios!AK16,"") -> 0 | AL16: =IFERROR(Scenarios!AL16,"") -> 0 | AM16: =IFERROR(Scenarios!AM16,"") -> 0 | AN16: =IFERROR(Scenarios!AN16,"") -> 0 | AO16: =IFERROR(Scenarios!AO16,"") -> 0 | AP16: =IFERROR(Scenarios!AP16,"") -> 0 | AQ16: =IFERROR(Scenarios!AQ16,"") -> 0 | AR16: =IFERROR(Scenarios!AR16,"") -> 0 | AS16: =IFERROR(Scenarios!AS16,"") -> 0 | AT16: =IFERROR(Scenarios!AT16,"") -> 0 | AU16: =IFERROR(Scenarios!AU16,"") -> 0 | AV16: =IFERROR(Scenarios!AV16,"") -> 0 | AW16: =IFERROR(Scenarios!AW16,"") -> 0 | AX16: =IFERROR(Scenarios!AX16,"") -> 0 | AY16: =IFERROR(Scenarios!AY16,"") -> 0 | AZ16: =IFERROR(Scenarios!AZ16,"") -> 0 | BA16: =IFERROR(Scenarios!BA16,"") -> 0 | BB16: =IFERROR(Scenarios!BB16,"") -> 0 | BC16: =IFERROR(Scenarios!BC16,"") -> 0 | BD16: =IFERROR(Scenarios!BD16,"") -> 0 | BE16: =IFERROR(Scenarios!BE16,"") -> 0 | BF16: =IFERROR(Scenarios!BF16,"") -> 0 | BG16: =IFERROR(Scenarios!BG16,"") -> 0 | BH16: =IFERROR(Scenarios!BH16,"") -> 0 | BI16: =IFERROR(Scenarios!BI16,"") -> 0 | BJ16: =IFERROR(Scenarios!BJ16,"") -> 0 | BK16: =IFERROR(Scenarios!BK16,"") -> 0 | BL16: =IFERROR(Scenarios!BL16,"") -> 0 | BM16: =IFERROR(Scenarios!BM16,"") -> 0 | BN16: =IFERROR(Scenarios!BN16,"") -> 0 | BO16: =IFERROR(Scenarios!BO16,"") -> 0 | BP16: =IFERROR(Scenarios!BP16,"") -> 0 | BQ16: =IFERROR(Scenarios!BQ16,"") -> 0 | BR16: =IFERROR(Scenarios!BR16,"") -> 0 | BS16: =IFERROR(Scenarios!BS16,"") -> 0 | BT16: =IFERROR(Scenarios!BT16,"") -> 0 | BU16: =IFERROR(Scenarios!BU16,"") -> 0 | BV16: =IFERROR(Scenarios!BV16,"") -> 0 | BW16: =IFERROR(Scenarios!BW16,"") -> 0 | BX16: =IFERROR(Scenarios!BX16,"") -> 0 | BY16: =IFERROR(Scenarios!BY16,"") -> 0 | BZ16: =IFERROR(Scenarios!BZ16,"") -> 0 | CA16: =IFERROR(Scenarios!CA16,"") -> 0 | CB16: =IFERROR(Scenarios!CB16,"") -> 0 | CC16: =IFERROR(Scenarios!CC16,"") -> 0 | CD16: =IFERROR(Scenarios!CD16,"") -> 0 | CE16: =IFERROR(Scenarios!CE16,"") -> 0 | CF16: =IFERROR(Scenarios!CF16,"") -> 0 | CG16: =IFERROR(Scenarios!CG16,"") -> 0 | CH16: =IFERROR(Scenarios!CH16,"") -> 0 | CI16: =IFERROR(Scenarios!CI16,"") -> 0 | CJ16: =IFERROR(Scenarios!CJ16,"") -> 0 | CK16: =IFERROR(Scenarios!CK16,"") -> 0 | CL16: =IFERROR(Scenarios!CL16,"") -> 0 | CM16: =IFERROR(Scenarios!CM16,"") -> 0 | CN16: =IFERROR(Scenarios!CN16,"") -> 0 | CO16: =IFERROR(Scenarios!CO16,"") -> 0 | CP16: =IFERROR(Scenarios!CP16,"") -> 0 | CQ16: =IFERROR(Scenarios!CQ16,"") -> 0 | CR16: =IFERROR(Scenarios!CR16,"") -> 0 | CS16: =IFERROR(Scenarios!CS16,"") -> 0 | CT16: =IFERROR(Scenarios!CT16,"") -> 0 | CU16: =IFERROR(Scenarios!CU16,"") -> 0 | CV16: =IFERROR(Scenarios!CV16,"") -> 0 | CW16: =IFERROR(Scenarios!CW16,"") -> 0 | CX16: =IFERROR(Scenarios!CX16,"") -> 0 | CY16: =IFERROR(Scenarios!CY16,"") -> 0 | CZ16: =IFERROR(Scenarios!CZ16,"") -> 0 | DA16: =IFERROR(Scenarios!DA16,"") -> 0
A17: =IFERROR(Scenarios!A17,"") -> 0 | B17: =IFERROR(Scenarios!B17,"") -> 0 | C17: =IFERROR(Scenarios!C17,"") -> 0 | D17: =IFERROR(Scenarios!D17,"") -> 0 | E17: =IFERROR(Scenarios!E17,"") -> 0 | F17: =IFERROR(Scenarios!F17,"") -> 0 | G17: =IFERROR(Scenarios!G17,"") -> 0 | H17: =IFERROR(Scenarios!H17,"") -> 0 | I17: =IFERROR(Scenarios!I17,"") -> 0 | J17: =IFERROR(Scenarios!J17,"") -> 0 | K17: =IFERROR(Scenarios!K17,"") -> 0 | L17: =IFERROR(Scenarios!L17,"") -> 0 | M17: =IFERROR(Scenarios!M17,"") -> 0 | N17: =IFERROR(Scenarios!N17,"") -> 0 | O17: =IFERROR(Scenarios!O17,"") -> 0 | P17: =IFERROR(Scenarios!P17,"") -> 0 | Q17: =IFERROR(Scenarios!Q17,"") -> 0 | R17: =IFERROR(Scenarios!R17,"") -> 0 | S17: =IFERROR(Scenarios!S17,"") -> 0 | T17: =IFERROR(Scenarios!T17,"") -> 0 | U17: =IFERROR(Scenarios!U17,"") -> 0 | V17: =IFERROR(Scenarios!V17,"") -> 0 | W17: =IFERROR(Scenarios!W17,"") -> 0 | X17: =IFERROR(Scenarios!X17,"") -> 0 | Y17: =IFERROR(Scenarios!Y17,"") -> 0 | Z17: =IFERROR(Scenarios!Z17,"") -> 0 | AA17: =IFERROR(Scenarios!AA17,"") -> 0 | AB17: =IFERROR(Scenarios!AB17,"") -> 0 | AC17: =IFERROR(Scenarios!AC17,"") -> 0 | AD17: =IFERROR(Scenarios!AD17,"") -> 0 | AE17: =IFERROR(Scenarios!AE17,"") -> 0 | AF17: =IFERROR(Scenarios!AF17,"") -> 0 | AG17: =IFERROR(Scenarios!AG17,"") -> 0 | AH17: =IFERROR(Scenarios!AH17,"") -> 0 | AI17: =IFERROR(Scenarios!AI17,"") -> 0 | AJ17: =IFERROR(Scenarios!AJ17,"") -> 0 | AK17: =IFERROR(Scenarios!AK17,"") -> 0 | AL17: =IFERROR(Scenarios!AL17,"") -> 0 | AM17: =IFERROR(Scenarios!AM17,"") -> 0 | AN17: =IFERROR(Scenarios!AN17,"") -> 0 | AO17: =IFERROR(Scenarios!AO17,"") -> 0 | AP17: =IFERROR(Scenarios!AP17,"") -> 0 | AQ17: =IFERROR(Scenarios!AQ17,"") -> 0 | AR17: =IFERROR(Scenarios!AR17,"") -> 0 | AS17: =IFERROR(Scenarios!AS17,"") -> 0 | AT17: =IFERROR(Scenarios!AT17,"") -> 0 | AU17: =IFERROR(Scenarios!AU17,"") -> 0 | AV17: =IFERROR(Scenarios!AV17,"") -> 0 | AW17: =IFERROR(Scenarios!AW17,"") -> 0 | AX17: =IFERROR(Scenarios!AX17,"") -> 0 | AY17: =IFERROR(Scenarios!AY17,"") -> 0 | AZ17: =IFERROR(Scenarios!AZ17,"") -> 0 | BA17: =IFERROR(Scenarios!BA17,"") -> 0 | BB17: =IFERROR(Scenarios!BB17,"") -> 0 | BC17: =IFERROR(Scenarios!BC17,"") -> 0 | BD17: =IFERROR(Scenarios!BD17,"") -> 0 | BE17: =IFERROR(Scenarios!BE17,"") -> 0 | BF17: =IFERROR(Scenarios!BF17,"") -> 0 | BG17: =IFERROR(Scenarios!BG17,"") -> 0 | BH17: =IFERROR(Scenarios!BH17,"") -> 0 | BI17: =IFERROR(Scenarios!BI17,"") -> 0 | BJ17: =IFERROR(Scenarios!BJ17,"") -> 0 | BK17: =IFERROR(Scenarios!BK17,"") -> 0 | BL17: =IFERROR(Scenarios!BL17,"") -> 0 | BM17: =IFERROR(Scenarios!BM17,"") -> 0 | BN17: =IFERROR(Scenarios!BN17,"") -> 0 | BO17: =IFERROR(Scenarios!BO17,"") -> 0 | BP17: =IFERROR(Scenarios!BP17,"") -> 0 | BQ17: =IFERROR(Scenarios!BQ17,"") -> 0 | BR17: =IFERROR(Scenarios!BR17,"") -> 0 | BS17: =IFERROR(Scenarios!BS17,"") -> 0 | BT17: =IFERROR(Scenarios!BT17,"") -> 0 | BU17: =IFERROR(Scenarios!BU17,"") -> 0 | BV17: =IFERROR(Scenarios!BV17,"") -> 0 | BW17: =IFERROR(Scenarios!BW17,"") -> 0 | BX17: =IFERROR(Scenarios!BX17,"") -> 0 | BY17: =IFERROR(Scenarios!BY17,"") -> 0 | BZ17: =IFERROR(Scenarios!BZ17,"") -> 0 | CA17: =IFERROR(Scenarios!CA17,"") -> 0 | CB17: =IFERROR(Scenarios!CB17,"") -> 0 | CC17: =IFERROR(Scenarios!CC17,"") -> 0 | CD17: =IFERROR(Scenarios!CD17,"") -> 0 | CE17: =IFERROR(Scenarios!CE17,"") -> 0 | CF17: =IFERROR(Scenarios!CF17,"") -> 0 | CG17: =IFERROR(Scenarios!CG17,"") -> 0 | CH17: =IFERROR(Scenarios!CH17,"") -> 0 | CI17: =IFERROR(Scenarios!CI17,"") -> 0 | CJ17: =IFERROR(Scenarios!CJ17,"") -> 0 | CK17: =IFERROR(Scenarios!CK17,"") -> 0 | CL17: =IFERROR(Scenarios!CL17,"") -> 0 | CM17: =IFERROR(Scenarios!CM17,"") -> 0 | CN17: =IFERROR(Scenarios!CN17,"") -> 0 | CO17: =IFERROR(Scenarios!CO17,"") -> 0 | CP17: =IFERROR(Scenarios!CP17,"") -> 0 | CQ17: =IFERROR(Scenarios!CQ17,"") -> 0 | CR17: =IFERROR(Scenarios!CR17,"") -> 0 | CS17: =IFERROR(Scenarios!CS17,"") -> 0 | CT17: =IFERROR(Scenarios!CT17,"") -> 0 | CU17: =IFERROR(Scenarios!CU17,"") -> 0 | CV17: =IFERROR(Scenarios!CV17,"") -> 0 | CW17: =IFERROR(Scenarios!CW17,"") -> 0 | CX17: =IFERROR(Scenarios!CX17,"") -> 0 | CY17: =IFERROR(Scenarios!CY17,"") -> 0 | CZ17: =IFERROR(Scenarios!CZ17,"") -> 0 | DA17: =IFERROR(Scenarios!DA17,"") -> 0
A18: =IFERROR(Scenarios!A18,"") -> 0 | B18: =IFERROR(Scenarios!B18,"") -> 0 | C18: =IFERROR(Scenarios!C18,"") -> 0 | D18: =IFERROR(Scenarios!D18,"") -> 0 | E18: =IFERROR(Scenarios!E18,"") -> 0 | F18: =IFERROR(Scenarios!F18,"") -> 0 | G18: =IFERROR(Scenarios!G18,"") -> 0 | H18: =IFERROR(Scenarios!H18,"") -> 0 | I18: =IFERROR(Scenarios!I18,"") -> 0 | J18: =IFERROR(Scenarios!J18,"") -> 0 | K18: =IFERROR(Scenarios!K18,"") -> 0 | L18: =IFERROR(Scenarios!L18,"") -> 0 | M18: =IFERROR(Scenarios!M18,"") -> 0 | N18: =IFERROR(Scenarios!N18,"") -> 0 | O18: =IFERROR(Scenarios!O18,"") -> 0 | P18: =IFERROR(Scenarios!P18,"") -> 0 | Q18: =IFERROR(Scenarios!Q18,"") -> 0 | R18: =IFERROR(Scenarios!R18,"") -> 0 | S18: =IFERROR(Scenarios!S18,"") -> 0 | T18: =IFERROR(Scenarios!T18,"") -> 0 | U18: =IFERROR(Scenarios!U18,"") -> 0 | V18: =IFERROR(Scenarios!V18,"") -> 0 | W18: =IFERROR(Scenarios!W18,"") -> 0 | X18: =IFERROR(Scenarios!X18,"") -> 0 | Y18: =IFERROR(Scenarios!Y18,"") -> 0 | Z18: =IFERROR(Scenarios!Z18,"") -> 0 | AA18: =IFERROR(Scenarios!AA18,"") -> 0 | AB18: =IFERROR(Scenarios!AB18,"") -> 0 | AC18: =IFERROR(Scenarios!AC18,"") -> 0 | AD18: =IFERROR(Scenarios!AD18,"") -> 0 | AE18: =IFERROR(Scenarios!AE18,"") -> 0 | AF18: =IFERROR(Scenarios!AF18,"") -> 0 | AG18: =IFERROR(Scenarios!AG18,"") -> 0 | AH18: =IFERROR(Scenarios!AH18,"") -> 0 | AI18: =IFERROR(Scenarios!AI18,"") -> 0 | AJ18: =IFERROR(Scenarios!AJ18,"") -> 0 | AK18: =IFERROR(Scenarios!AK18,"") -> 0 | AL18: =IFERROR(Scenarios!AL18,"") -> 0 | AM18: =IFERROR(Scenarios!AM18,"") -> 0 | AN18: =IFERROR(Scenarios!AN18,"") -> 0 | AO18: =IFERROR(Scenarios!AO18,"") -> 0 | AP18: =IFERROR(Scenarios!AP18,"") -> 0 | AQ18: =IFERROR(Scenarios!AQ18,"") -> 0 | AR18: =IFERROR(Scenarios!AR18,"") -> 0 | AS18: =IFERROR(Scenarios!AS18,"") -> 0 | AT18: =IFERROR(Scenarios!AT18,"") -> 0 | AU18: =IFERROR(Scenarios!AU18,"") -> 0 | AV18: =IFERROR(Scenarios!AV18,"") -> 0 | AW18: =IFERROR(Scenarios!AW18,"") -> 0 | AX18: =IFERROR(Scenarios!AX18,"") -> 0 | AY18: =IFERROR(Scenarios!AY18,"") -> 0 | AZ18: =IFERROR(Scenarios!AZ18,"") -> 0 | BA18: =IFERROR(Scenarios!BA18,"") -> 0 | BB18: =IFERROR(Scenarios!BB18,"") -> 0 | BC18: =IFERROR(Scenarios!BC18,"") -> 0 | BD18: =IFERROR(Scenarios!BD18,"") -> 0 | BE18: =IFERROR(Scenarios!BE18,"") -> 0 | BF18: =IFERROR(Scenarios!BF18,"") -> 0 | BG18: =IFERROR(Scenarios!BG18,"") -> 0 | BH18: =IFERROR(Scenarios!BH18,"") -> 0 | BI18: =IFERROR(Scenarios!BI18,"") -> 0 | BJ18: =IFERROR(Scenarios!BJ18,"") -> 0 | BK18: =IFERROR(Scenarios!BK18,"") -> 0 | BL18: =IFERROR(Scenarios!BL18,"") -> 0 | BM18: =IFERROR(Scenarios!BM18,"") -> 0 | BN18: =IFERROR(Scenarios!BN18,"") -> 0 | BO18: =IFERROR(Scenarios!BO18,"") -> 0 | BP18: =IFERROR(Scenarios!BP18,"") -> 0 | BQ18: =IFERROR(Scenarios!BQ18,"") -> 0 | BR18: =IFERROR(Scenarios!BR18,"") -> 0 | BS18: =IFERROR(Scenarios!BS18,"") -> 0 | BT18: =IFERROR(Scenarios!BT18,"") -> 0 | BU18: =IFERROR(Scenarios!BU18,"") -> 0 | BV18: =IFERROR(Scenarios!BV18,"") -> 0 | BW18: =IFERROR(Scenarios!BW18,"") -> 0 | BX18: =IFERROR(Scenarios!BX18,"") -> 0 | BY18: =IFERROR(Scenarios!BY18,"") -> 0 | BZ18: =IFERROR(Scenarios!BZ18,"") -> 0 | CA18: =IFERROR(Scenarios!CA18,"") -> 0 | CB18: =IFERROR(Scenarios!CB18,"") -> 0 | CC18: =IFERROR(Scenarios!CC18,"") -> 0 | CD18: =IFERROR(Scenarios!CD18,"") -> 0 | CE18: =IFERROR(Scenarios!CE18,"") -> 0 | CF18: =IFERROR(Scenarios!CF18,"") -> 0 | CG18: =IFERROR(Scenarios!CG18,"") -> 0 | CH18: =IFERROR(Scenarios!CH18,"") -> 0 | CI18: =IFERROR(Scenarios!CI18,"") -> 0 | CJ18: =IFERROR(Scenarios!CJ18,"") -> 0 | CK18: =IFERROR(Scenarios!CK18,"") -> 0 | CL18: =IFERROR(Scenarios!CL18,"") -> 0 | CM18: =IFERROR(Scenarios!CM18,"") -> 0 | CN18: =IFERROR(Scenarios!CN18,"") -> 0 | CO18: =IFERROR(Scenarios!CO18,"") -> 0 | CP18: =IFERROR(Scenarios!CP18,"") -> 0 | CQ18: =IFERROR(Scenarios!CQ18,"") -> 0 | CR18: =IFERROR(Scenarios!CR18,"") -> 0 | CS18: =IFERROR(Scenarios!CS18,"") -> 0 | CT18: =IFERROR(Scenarios!CT18,"") -> 0 | CU18: =IFERROR(Scenarios!CU18,"") -> 0 | CV18: =IFERROR(Scenarios!CV18,"") -> 0 | CW18: =IFERROR(Scenarios!CW18,"") -> 0 | CX18: =IFERROR(Scenarios!CX18,"") -> 0 | CY18: =IFERROR(Scenarios!CY18,"") -> 0 | CZ18: =IFERROR(Scenarios!CZ18,"") -> 0 | DA18: =IFERROR(Scenarios!DA18,"") -> 0
A19: =IFERROR(Scenarios!A19,"") -> 0 | B19: =IFERROR(Scenarios!B19,"") -> 0 | C19: =IFERROR(Scenarios!C19,"") -> 0 | D19: =IFERROR(Scenarios!D19,"") -> 0 | E19: =IFERROR(Scenarios!E19,"") -> 0 | F19: =IFERROR(Scenarios!F19,"") -> 0 | G19: =IFERROR(Scenarios!G19,"") -> 0 | H19: =IFERROR(Scenarios!H19,"") -> 0 | I19: =IFERROR(Scenarios!I19,"") -> 0 | J19: =IFERROR(Scenarios!J19,"") -> 0 | K19: =IFERROR(Scenarios!K19,"") -> 0 | L19: =IFERROR(Scenarios!L19,"") -> 0 | M19: =IFERROR(Scenarios!M19,"") -> 0 | N19: =IFERROR(Scenarios!N19,"") -> 0 | O19: =IFERROR(Scenarios!O19,"") -> 0 | P19: =IFERROR(Scenarios!P19,"") -> 0 | Q19: =IFERROR(Scenarios!Q19,"") -> 0 | R19: =IFERROR(Scenarios!R19,"") -> 0 | S19: =IFERROR(Scenarios!S19,"") -> 0 | T19: =IFERROR(Scenarios!T19,"") -> 0 | U19: =IFERROR(Scenarios!U19,"") -> 0 | V19: =IFERROR(Scenarios!V19,"") -> 0 | W19: =IFERROR(Scenarios!W19,"") -> 0 | X19: =IFERROR(Scenarios!X19,"") -> 0 | Y19: =IFERROR(Scenarios!Y19,"") -> 0 | Z19: =IFERROR(Scenarios!Z19,"") -> 0 | AA19: =IFERROR(Scenarios!AA19,"") -> 0 | AB19: =IFERROR(Scenarios!AB19,"") -> 0 | AC19: =IFERROR(Scenarios!AC19,"") -> 0 | AD19: =IFERROR(Scenarios!AD19,"") -> 0 | AE19: =IFERROR(Scenarios!AE19,"") -> 0 | AF19: =IFERROR(Scenarios!AF19,"") -> 0 | AG19: =IFERROR(Scenarios!AG19,"") -> 0 | AH19: =IFERROR(Scenarios!AH19,"") -> 0 | AI19: =IFERROR(Scenarios!AI19,"") -> 0 | AJ19: =IFERROR(Scenarios!AJ19,"") -> 0 | AK19: =IFERROR(Scenarios!AK19,"") -> 0 | AL19: =IFERROR(Scenarios!AL19,"") -> 0 | AM19: =IFERROR(Scenarios!AM19,"") -> 0 | AN19: =IFERROR(Scenarios!AN19,"") -> 0 | AO19: =IFERROR(Scenarios!AO19,"") -> 0 | AP19: =IFERROR(Scenarios!AP19,"") -> 0 | AQ19: =IFERROR(Scenarios!AQ19,"") -> 0 | AR19: =IFERROR(Scenarios!AR19,"") -> 0 | AS19: =IFERROR(Scenarios!AS19,"") -> 0 | AT19: =IFERROR(Scenarios!AT19,"") -> 0 | AU19: =IFERROR(Scenarios!AU19,"") -> 0 | AV19: =IFERROR(Scenarios!AV19,"") -> 0 | AW19: =IFERROR(Scenarios!AW19,"") -> 0 | AX19: =IFERROR(Scenarios!AX19,"") -> 0 | AY19: =IFERROR(Scenarios!AY19,"") -> 0 | AZ19: =IFERROR(Scenarios!AZ19,"") -> 0 | BA19: =IFERROR(Scenarios!BA19,"") -> 0 | BB19: =IFERROR(Scenarios!BB19,"") -> 0 | BC19: =IFERROR(Scenarios!BC19,"") -> 0 | BD19: =IFERROR(Scenarios!BD19,"") -> 0 | BE19: =IFERROR(Scenarios!BE19,"") -> 0 | BF19: =IFERROR(Scenarios!BF19,"") -> 0 | BG19: =IFERROR(Scenarios!BG19,"") -> 0 | BH19: =IFERROR(Scenarios!BH19,"") -> 0 | BI19: =IFERROR(Scenarios!BI19,"") -> 0 | BJ19: =IFERROR(Scenarios!BJ19,"") -> 0 | BK19: =IFERROR(Scenarios!BK19,"") -> 0 | BL19: =IFERROR(Scenarios!BL19,"") -> 0 | BM19: =IFERROR(Scenarios!BM19,"") -> 0 | BN19: =IFERROR(Scenarios!BN19,"") -> 0 | BO19: =IFERROR(Scenarios!BO19,"") -> 0 | BP19: =IFERROR(Scenarios!BP19,"") -> 0 | BQ19: =IFERROR(Scenarios!BQ19,"") -> 0 | BR19: =IFERROR(Scenarios!BR19,"") -> 0 | BS19: =IFERROR(Scenarios!BS19,"") -> 0 | BT19: =IFERROR(Scenarios!BT19,"") -> 0 | BU19: =IFERROR(Scenarios!BU19,"") -> 0 | BV19: =IFERROR(Scenarios!BV19,"") -> 0 | BW19: =IFERROR(Scenarios!BW19,"") -> 0 | BX19: =IFERROR(Scenarios!BX19,"") -> 0 | BY19: =IFERROR(Scenarios!BY19,"") -> 0 | BZ19: =IFERROR(Scenarios!BZ19,"") -> 0 | CA19: =IFERROR(Scenarios!CA19,"") -> 0 | CB19: =IFERROR(Scenarios!CB19,"") -> 0 | CC19: =IFERROR(Scenarios!CC19,"") -> 0 | CD19: =IFERROR(Scenarios!CD19,"") -> 0 | CE19: =IFERROR(Scenarios!CE19,"") -> 0 | CF19: =IFERROR(Scenarios!CF19,"") -> 0 | CG19: =IFERROR(Scenarios!CG19,"") -> 0 | CH19: =IFERROR(Scenarios!CH19,"") -> 0 | CI19: =IFERROR(Scenarios!CI19,"") -> 0 | CJ19: =IFERROR(Scenarios!CJ19,"") -> 0 | CK19: =IFERROR(Scenarios!CK19,"") -> 0 | CL19: =IFERROR(Scenarios!CL19,"") -> 0 | CM19: =IFERROR(Scenarios!CM19,"") -> 0 | CN19: =IFERROR(Scenarios!CN19,"") -> 0 | CO19: =IFERROR(Scenarios!CO19,"") -> 0 | CP19: =IFERROR(Scenarios!CP19,"") -> 0 | CQ19: =IFERROR(Scenarios!CQ19,"") -> 0 | CR19: =IFERROR(Scenarios!CR19,"") -> 0 | CS19: =IFERROR(Scenarios!CS19,"") -> 0 | CT19: =IFERROR(Scenarios!CT19,"") -> 0 | CU19: =IFERROR(Scenarios!CU19,"") -> 0 | CV19: =IFERROR(Scenarios!CV19,"") -> 0 | CW19: =IFERROR(Scenarios!CW19,"") -> 0 | CX19: =IFERROR(Scenarios!CX19,"") -> 0 | CY19: =IFERROR(Scenarios!CY19,"") -> 0 | CZ19: =IFERROR(Scenarios!CZ19,"") -> 0 | DA19: =IFERROR(Scenarios!DA19,"") -> 0
A20: =IFERROR(Scenarios!A20,"") -> 0 | B20: =IFERROR(Scenarios!B20,"") -> 0 | C20: =IFERROR(Scenarios!C20,"") -> 0 | D20: =IFERROR(Scenarios!D20,"") -> 0 | E20: =IFERROR(Scenarios!E20,"") -> 0 | F20: =IFERROR(Scenarios!F20,"") -> 0 | G20: =IFERROR(Scenarios!G20,"") -> 0 | H20: =IFERROR(Scenarios!H20,"") -> 0 | I20: =IFERROR(Scenarios!I20,"") -> 0 | J20: =IFERROR(Scenarios!J20,"") -> 0 | K20: =IFERROR(Scenarios!K20,"") -> 0 | L20: =IFERROR(Scenarios!L20,"") -> 0 | M20: =IFERROR(Scenarios!M20,"") -> 0 | N20: =IFERROR(Scenarios!N20,"") -> 0 | O20: =IFERROR(Scenarios!O20,"") -> 0 | P20: =IFERROR(Scenarios!P20,"") -> 0 | Q20: =IFERROR(Scenarios!Q20,"") -> 0 | R20: =IFERROR(Scenarios!R20,"") -> 0 | S20: =IFERROR(Scenarios!S20,"") -> 0 | T20: =IFERROR(Scenarios!T20,"") -> 0 | U20: =IFERROR(Scenarios!U20,"") -> 0 | V20: =IFERROR(Scenarios!V20,"") -> 0 | W20: =IFERROR(Scenarios!W20,"") -> 0 | X20: =IFERROR(Scenarios!X20,"") -> 0 | Y20: =IFERROR(Scenarios!Y20,"") -> 0 | Z20: =IFERROR(Scenarios!Z20,"") -> 0 | AA20: =IFERROR(Scenarios!AA20,"") -> 0 | AB20: =IFERROR(Scenarios!AB20,"") -> 0 | AC20: =IFERROR(Scenarios!AC20,"") -> 0 | AD20: =IFERROR(Scenarios!AD20,"") -> 0 | AE20: =IFERROR(Scenarios!AE20,"") -> 0 | AF20: =IFERROR(Scenarios!AF20,"") -> 0 | AG20: =IFERROR(Scenarios!AG20,"") -> 0 | AH20: =IFERROR(Scenarios!AH20,"") -> 0 | AI20: =IFERROR(Scenarios!AI20,"") -> 0 | AJ20: =IFERROR(Scenarios!AJ20,"") -> 0 | AK20: =IFERROR(Scenarios!AK20,"") -> 0 | AL20: =IFERROR(Scenarios!AL20,"") -> 0 | AM20: =IFERROR(Scenarios!AM20,"") -> 0 | AN20: =IFERROR(Scenarios!AN20,"") -> 0 | AO20: =IFERROR(Scenarios!AO20,"") -> 0 | AP20: =IFERROR(Scenarios!AP20,"") -> 0 | AQ20: =IFERROR(Scenarios!AQ20,"") -> 0 | AR20: =IFERROR(Scenarios!AR20,"") -> 0 | AS20: =IFERROR(Scenarios!AS20,"") -> 0 | AT20: =IFERROR(Scenarios!AT20,"") -> 0 | AU20: =IFERROR(Scenarios!AU20,"") -> 0 | AV20: =IFERROR(Scenarios!AV20,"") -> 0 | AW20: =IFERROR(Scenarios!AW20,"") -> 0 | AX20: =IFERROR(Scenarios!AX20,"") -> 0 | AY20: =IFERROR(Scenarios!AY20,"") -> 0 | AZ20: =IFERROR(Scenarios!AZ20,"") -> 0 | BA20: =IFERROR(Scenarios!BA20,"") -> 0 | BB20: =IFERROR(Scenarios!BB20,"") -> 0 | BC20: =IFERROR(Scenarios!BC20,"") -> 0 | BD20: =IFERROR(Scenarios!BD20,"") -> 0 | BE20: =IFERROR(Scenarios!BE20,"") -> 0 | BF20: =IFERROR(Scenarios!BF20,"") -> 0 | BG20: =IFERROR(Scenarios!BG20,"") -> 0 | BH20: =IFERROR(Scenarios!BH20,"") -> 0 | BI20: =IFERROR(Scenarios!BI20,"") -> 0 | BJ20: =IFERROR(Scenarios!BJ20,"") -> 0 | BK20: =IFERROR(Scenarios!BK20,"") -> 0 | BL20: =IFERROR(Scenarios!BL20,"") -> 0 | BM20: =IFERROR(Scenarios!BM20,"") -> 0 | BN20: =IFERROR(Scenarios!BN20,"") -> 0 | BO20: =IFERROR(Scenarios!BO20,"") -> 0 | BP20: =IFERROR(Scenarios!BP20,"") -> 0 | BQ20: =IFERROR(Scenarios!BQ20,"") -> 0 | BR20: =IFERROR(Scenarios!BR20,"") -> 0 | BS20: =IFERROR(Scenarios!BS20,"") -> 0 | BT20: =IFERROR(Scenarios!BT20,"") -> 0 | BU20: =IFERROR(Scenarios!BU20,"") -> 0 | BV20: =IFERROR(Scenarios!BV20,"") -> 0 | BW20: =IFERROR(Scenarios!BW20,"") -> 0 | BX20: =IFERROR(Scenarios!BX20,"") -> 0 | BY20: =IFERROR(Scenarios!BY20,"") -> 0 | BZ20: =IFERROR(Scenarios!BZ20,"") -> 0 | CA20: =IFERROR(Scenarios!CA20,"") -> 0 | CB20: =IFERROR(Scenarios!CB20,"") -> 0 | CC20: =IFERROR(Scenarios!CC20,"") -> 0 | CD20: =IFERROR(Scenarios!CD20,"") -> 0 | CE20: =IFERROR(Scenarios!CE20,"") -> 0 | CF20: =IFERROR(Scenarios!CF20,"") -> 0 | CG20: =IFERROR(Scenarios!CG20,"") -> 0 | CH20: =IFERROR(Scenarios!CH20,"") -> 0 | CI20: =IFERROR(Scenarios!CI20,"") -> 0 | CJ20: =IFERROR(Scenarios!CJ20,"") -> 0 | CK20: =IFERROR(Scenarios!CK20,"") -> 0 | CL20: =IFERROR(Scenarios!CL20,"") -> 0 | CM20: =IFERROR(Scenarios!CM20,"") -> 0 | CN20: =IFERROR(Scenarios!CN20,"") -> 0 | CO20: =IFERROR(Scenarios!CO20,"") -> 0 | CP20: =IFERROR(Scenarios!CP20,"") -> 0 | CQ20: =IFERROR(Scenarios!CQ20,"") -> 0 | CR20: =IFERROR(Scenarios!CR20,"") -> 0 | CS20: =IFERROR(Scenarios!CS20,"") -> 0 | CT20: =IFERROR(Scenarios!CT20,"") -> 0 | CU20: =IFERROR(Scenarios!CU20,"") -> 0 | CV20: =IFERROR(Scenarios!CV20,"") -> 0 | CW20: =IFERROR(Scenarios!CW20,"") -> 0 | CX20: =IFERROR(Scenarios!CX20,"") -> 0 | CY20: =IFERROR(Scenarios!CY20,"") -> 0 | CZ20: =IFERROR(Scenarios!CZ20,"") -> 0 | DA20: =IFERROR(Scenarios!DA20,"") -> 0
A21: =IFERROR(Scenarios!A21,"") -> 0 | B21: =IFERROR(Scenarios!B21,"") -> 0 | C21: =IFERROR(Scenarios!C21,"") -> 0 | D21: =IFERROR(Scenarios!D21,"") -> 0 | E21: =IFERROR(Scenarios!E21,"") -> 0 | F21: =IFERROR(Scenarios!F21,"") -> 0 | G21: =IFERROR(Scenarios!G21,"") -> 0 | H21: =IFERROR(Scenarios!H21,"") -> 0 | I21: =IFERROR(Scenarios!I21,"") -> 0 | J21: =IFERROR(Scenarios!J21,"") -> 0 | K21: =IFERROR(Scenarios!K21,"") -> 0 | L21: =IFERROR(Scenarios!L21,"") -> 0 | M21: =IFERROR(Scenarios!M21,"") -> 0 | N21: =IFERROR(Scenarios!N21,"") -> 0 | O21: =IFERROR(Scenarios!O21,"") -> 0 | P21: =IFERROR(Scenarios!P21,"") -> 0 | Q21: =IFERROR(Scenarios!Q21,"") -> 0 | R21: =IFERROR(Scenarios!R21,"") -> 0 | S21: =IFERROR(Scenarios!S21,"") -> 0 | T21: =IFERROR(Scenarios!T21,"") -> 0 | U21: =IFERROR(Scenarios!U21,"") -> 0 | V21: =IFERROR(Scenarios!V21,"") -> 0 | W21: =IFERROR(Scenarios!W21,"") -> 0 | X21: =IFERROR(Scenarios!X21,"") -> 0 | Y21: =IFERROR(Scenarios!Y21,"") -> 0 | Z21: =IFERROR(Scenarios!Z21,"") -> 0 | AA21: =IFERROR(Scenarios!AA21,"") -> 0 | AB21: =IFERROR(Scenarios!AB21,"") -> 0 | AC21: =IFERROR(Scenarios!AC21,"") -> 0 | AD21: =IFERROR(Scenarios!AD21,"") -> 0 | AE21: =IFERROR(Scenarios!AE21,"") -> 0 | AF21: =IFERROR(Scenarios!AF21,"") -> 0 | AG21: =IFERROR(Scenarios!AG21,"") -> 0 | AH21: =IFERROR(Scenarios!AH21,"") -> 0 | AI21: =IFERROR(Scenarios!AI21,"") -> 0 | AJ21: =IFERROR(Scenarios!AJ21,"") -> 0 | AK21: =IFERROR(Scenarios!AK21,"") -> 0 | AL21: =IFERROR(Scenarios!AL21,"") -> 0 | AM21: =IFERROR(Scenarios!AM21,"") -> 0 | AN21: =IFERROR(Scenarios!AN21,"") -> 0 | AO21: =IFERROR(Scenarios!AO21,"") -> 0 | AP21: =IFERROR(Scenarios!AP21,"") -> 0 | AQ21: =IFERROR(Scenarios!AQ21,"") -> 0 | AR21: =IFERROR(Scenarios!AR21,"") -> 0 | AS21: =IFERROR(Scenarios!AS21,"") -> 0 | AT21: =IFERROR(Scenarios!AT21,"") -> 0 | AU21: =IFERROR(Scenarios!AU21,"") -> 0 | AV21: =IFERROR(Scenarios!AV21,"") -> 0 | AW21: =IFERROR(Scenarios!AW21,"") -> 0 | AX21: =IFERROR(Scenarios!AX21,"") -> 0 | AY21: =IFERROR(Scenarios!AY21,"") -> 0 | AZ21: =IFERROR(Scenarios!AZ21,"") -> 0 | BA21: =IFERROR(Scenarios!BA21,"") -> 0 | BB21: =IFERROR(Scenarios!BB21,"") -> 0 | BC21: =IFERROR(Scenarios!BC21,"") -> 0 | BD21: =IFERROR(Scenarios!BD21,"") -> 0 | BE21: =IFERROR(Scenarios!BE21,"") -> 0 | BF21: =IFERROR(Scenarios!BF21,"") -> 0 | BG21: =IFERROR(Scenarios!BG21,"") -> 0 | BH21: =IFERROR(Scenarios!BH21,"") -> 0 | BI21: =IFERROR(Scenarios!BI21,"") -> 0 | BJ21: =IFERROR(Scenarios!BJ21,"") -> 0 | BK21: =IFERROR(Scenarios!BK21,"") -> 0 | BL21: =IFERROR(Scenarios!BL21,"") -> 0 | BM21: =IFERROR(Scenarios!BM21,"") -> 0 | BN21: =IFERROR(Scenarios!BN21,"") -> 0 | BO21: =IFERROR(Scenarios!BO21,"") -> 0 | BP21: =IFERROR(Scenarios!BP21,"") -> 0 | BQ21: =IFERROR(Scenarios!BQ21,"") -> 0 | BR21: =IFERROR(Scenarios!BR21,"") -> 0 | BS21: =IFERROR(Scenarios!BS21,"") -> 0 | BT21: =IFERROR(Scenarios!BT21,"") -> 0 | BU21: =IFERROR(Scenarios!BU21,"") -> 0 | BV21: =IFERROR(Scenarios!BV21,"") -> 0 | BW21: =IFERROR(Scenarios!BW21,"") -> 0 | BX21: =IFERROR(Scenarios!BX21,"") -> 0 | BY21: =IFERROR(Scenarios!BY21,"") -> 0 | BZ21: =IFERROR(Scenarios!BZ21,"") -> 0 | CA21: =IFERROR(Scenarios!CA21,"") -> 0 | CB21: =IFERROR(Scenarios!CB21,"") -> 0 | CC21: =IFERROR(Scenarios!CC21,"") -> 0 | CD21: =IFERROR(Scenarios!CD21,"") -> 0 | CE21: =IFERROR(Scenarios!CE21,"") -> 0 | CF21: =IFERROR(Scenarios!CF21,"") -> 0 | CG21: =IFERROR(Scenarios!CG21,"") -> 0 | CH21: =IFERROR(Scenarios!CH21,"") -> 0 | CI21: =IFERROR(Scenarios!CI21,"") -> 0 | CJ21: =IFERROR(Scenarios!CJ21,"") -> 0 | CK21: =IFERROR(Scenarios!CK21,"") -> 0 | CL21: =IFERROR(Scenarios!CL21,"") -> 0 | CM21: =IFERROR(Scenarios!CM21,"") -> 0 | CN21: =IFERROR(Scenarios!CN21,"") -> 0 | CO21: =IFERROR(Scenarios!CO21,"") -> 0 | CP21: =IFERROR(Scenarios!CP21,"") -> 0 | CQ21: =IFERROR(Scenarios!CQ21,"") -> 0 | CR21: =IFERROR(Scenarios!CR21,"") -> 0 | CS21: =IFERROR(Scenarios!CS21,"") -> 0 | CT21: =IFERROR(Scenarios!CT21,"") -> 0 | CU21: =IFERROR(Scenarios!CU21,"") -> 0 | CV21: =IFERROR(Scenarios!CV21,"") -> 0 | CW21: =IFERROR(Scenarios!CW21,"") -> 0 | CX21: =IFERROR(Scenarios!CX21,"") -> 0 | CY21: =IFERROR(Scenarios!CY21,"") -> 0 | CZ21: =IFERROR(Scenarios!CZ21,"") -> 0 | DA21: =IFERROR(Scenarios!DA21,"") -> 0
A22: =IFERROR(Scenarios!A22,"") -> 0 | B22: =IFERROR(Scenarios!B22,"") -> 0 | C22: =IFERROR(Scenarios!C22,"") -> 0 | D22: =IFERROR(Scenarios!D22,"") -> 0 | E22: =IFERROR(Scenarios!E22,"") -> 0 | F22: =IFERROR(Scenarios!F22,"") -> 0 | G22: =IFERROR(Scenarios!G22,"") -> 0 | H22: =IFERROR(Scenarios!H22,"") -> 0 | I22: =IFERROR(Scenarios!I22,"") -> 0 | J22: =IFERROR(Scenarios!J22,"") -> 0 | K22: =IFERROR(Scenarios!K22,"") -> 0 | L22: =IFERROR(Scenarios!L22,"") -> 0 | M22: =IFERROR(Scenarios!M22,"") -> 0 | N22: =IFERROR(Scenarios!N22,"") -> 0 | O22: =IFERROR(Scenarios!O22,"") -> 0 | P22: =IFERROR(Scenarios!P22,"") -> 0 | Q22: =IFERROR(Scenarios!Q22,"") -> 0 | R22: =IFERROR(Scenarios!R22,"") -> 0 | S22: =IFERROR(Scenarios!S22,"") -> 0 | T22: =IFERROR(Scenarios!T22,"") -> 0 | U22: =IFERROR(Scenarios!U22,"") -> 0 | V22: =IFERROR(Scenarios!V22,"") -> 0 | W22: =IFERROR(Scenarios!W22,"") -> 0 | X22: =IFERROR(Scenarios!X22,"") -> 0 | Y22: =IFERROR(Scenarios!Y22,"") -> 0 | Z22: =IFERROR(Scenarios!Z22,"") -> 0 | AA22: =IFERROR(Scenarios!AA22,"") -> 0 | AB22: =IFERROR(Scenarios!AB22,"") -> 0 | AC22: =IFERROR(Scenarios!AC22,"") -> 0 | AD22: =IFERROR(Scenarios!AD22,"") -> 0 | AE22: =IFERROR(Scenarios!AE22,"") -> 0 | AF22: =IFERROR(Scenarios!AF22,"") -> 0 | AG22: =IFERROR(Scenarios!AG22,"") -> 0 | AH22: =IFERROR(Scenarios!AH22,"") -> 0 | AI22: =IFERROR(Scenarios!AI22,"") -> 0 | AJ22: =IFERROR(Scenarios!AJ22,"") -> 0 | AK22: =IFERROR(Scenarios!AK22,"") -> 0 | AL22: =IFERROR(Scenarios!AL22,"") -> 0 | AM22: =IFERROR(Scenarios!AM22,"") -> 0 | AN22: =IFERROR(Scenarios!AN22,"") -> 0 | AO22: =IFERROR(Scenarios!AO22,"") -> 0 | AP22: =IFERROR(Scenarios!AP22,"") -> 0 | AQ22: =IFERROR(Scenarios!AQ22,"") -> 0 | AR22: =IFERROR(Scenarios!AR22,"") -> 0 | AS22: =IFERROR(Scenarios!AS22,"") -> 0 | AT22: =IFERROR(Scenarios!AT22,"") -> 0 | AU22: =IFERROR(Scenarios!AU22,"") -> 0 | AV22: =IFERROR(Scenarios!AV22,"") -> 0 | AW22: =IFERROR(Scenarios!AW22,"") -> 0 | AX22: =IFERROR(Scenarios!AX22,"") -> 0 | AY22: =IFERROR(Scenarios!AY22,"") -> 0 | AZ22: =IFERROR(Scenarios!AZ22,"") -> 0 | BA22: =IFERROR(Scenarios!BA22,"") -> 0 | BB22: =IFERROR(Scenarios!BB22,"") -> 0 | BC22: =IFERROR(Scenarios!BC22,"") -> 0 | BD22: =IFERROR(Scenarios!BD22,"") -> 0 | BE22: =IFERROR(Scenarios!BE22,"") -> 0 | BF22: =IFERROR(Scenarios!BF22,"") -> 0 | BG22: =IFERROR(Scenarios!BG22,"") -> 0 | BH22: =IFERROR(Scenarios!BH22,"") -> 0 | BI22: =IFERROR(Scenarios!BI22,"") -> 0 | BJ22: =IFERROR(Scenarios!BJ22,"") -> 0 | BK22: =IFERROR(Scenarios!BK22,"") -> 0 | BL22: =IFERROR(Scenarios!BL22,"") -> 0 | BM22: =IFERROR(Scenarios!BM22,"") -> 0 | BN22: =IFERROR(Scenarios!BN22,"") -> 0 | BO22: =IFERROR(Scenarios!BO22,"") -> 0 | BP22: =IFERROR(Scenarios!BP22,"") -> 0 | BQ22: =IFERROR(Scenarios!BQ22,"") -> 0 | BR22: =IFERROR(Scenarios!BR22,"") -> 0 | BS22: =IFERROR(Scenarios!BS22,"") -> 0 | BT22: =IFERROR(Scenarios!BT22,"") -> 0 | BU22: =IFERROR(Scenarios!BU22,"") -> 0 | BV22: =IFERROR(Scenarios!BV22,"") -> 0 | BW22: =IFERROR(Scenarios!BW22,"") -> 0 | BX22: =IFERROR(Scenarios!BX22,"") -> 0 | BY22: =IFERROR(Scenarios!BY22,"") -> 0 | BZ22: =IFERROR(Scenarios!BZ22,"") -> 0 | CA22: =IFERROR(Scenarios!CA22,"") -> 0 | CB22: =IFERROR(Scenarios!CB22,"") -> 0 | CC22: =IFERROR(Scenarios!CC22,"") -> 0 | CD22: =IFERROR(Scenarios!CD22,"") -> 0 | CE22: =IFERROR(Scenarios!CE22,"") -> 0 | CF22: =IFERROR(Scenarios!CF22,"") -> 0 | CG22: =IFERROR(Scenarios!CG22,"") -> 0 | CH22: =IFERROR(Scenarios!CH22,"") -> 0 | CI22: =IFERROR(Scenarios!CI22,"") -> 0 | CJ22: =IFERROR(Scenarios!CJ22,"") -> 0 | CK22: =IFERROR(Scenarios!CK22,"") -> 0 | CL22: =IFERROR(Scenarios!CL22,"") -> 0 | CM22: =IFERROR(Scenarios!CM22,"") -> 0 | CN22: =IFERROR(Scenarios!CN22,"") -> 0 | CO22: =IFERROR(Scenarios!CO22,"") -> 0 | CP22: =IFERROR(Scenarios!CP22,"") -> 0 | CQ22: =IFERROR(Scenarios!CQ22,"") -> 0 | CR22: =IFERROR(Scenarios!CR22,"") -> 0 | CS22: =IFERROR(Scenarios!CS22,"") -> 0 | CT22: =IFERROR(Scenarios!CT22,"") -> 0 | CU22: =IFERROR(Scenarios!CU22,"") -> 0 | CV22: =IFERROR(Scenarios!CV22,"") -> 0 | CW22: =IFERROR(Scenarios!CW22,"") -> 0 | CX22: =IFERROR(Scenarios!CX22,"") -> 0 | CY22: =IFERROR(Scenarios!CY22,"") -> 0 | CZ22: =IFERROR(Scenarios!CZ22,"") -> 0 | DA22: =IFERROR(Scenarios!DA22,"") -> 0
A23: =IFERROR(Scenarios!A23,"") -> 0 | B23: =IFERROR(Scenarios!B23,"") -> 0 | C23: =IFERROR(Scenarios!C23,"") -> 0 | D23: =IFERROR(Scenarios!D23,"") -> 0 | E23: =IFERROR(Scenarios!E23,"") -> 0 | F23: =IFERROR(Scenarios!F23,"") -> 0 | G23: =IFERROR(Scenarios!G23,"") -> 0 | H23: =IFERROR(Scenarios!H23,"") -> 0 | I23: =IFERROR(Scenarios!I23,"") -> 0 | J23: =IFERROR(Scenarios!J23,"") -> 0 | K23: =IFERROR(Scenarios!K23,"") -> 0 | L23: =IFERROR(Scenarios!L23,"") -> 0 | M23: =IFERROR(Scenarios!M23,"") -> 0 | N23: =IFERROR(Scenarios!N23,"") -> 0 | O23: =IFERROR(Scenarios!O23,"") -> 0 | P23: =IFERROR(Scenarios!P23,"") -> 0 | Q23: =IFERROR(Scenarios!Q23,"") -> 0 | R23: =IFERROR(Scenarios!R23,"") -> 0 | S23: =IFERROR(Scenarios!S23,"") -> 0 | T23: =IFERROR(Scenarios!T23,"") -> 0 | U23: =IFERROR(Scenarios!U23,"") -> 0 | V23: =IFERROR(Scenarios!V23,"") -> 0 | W23: =IFERROR(Scenarios!W23,"") -> 0 | X23: =IFERROR(Scenarios!X23,"") -> 0 | Y23: =IFERROR(Scenarios!Y23,"") -> 0 | Z23: =IFERROR(Scenarios!Z23,"") -> 0 | AA23: =IFERROR(Scenarios!AA23,"") -> 0 | AB23: =IFERROR(Scenarios!AB23,"") -> 0 | AC23: =IFERROR(Scenarios!AC23,"") -> 0 | AD23: =IFERROR(Scenarios!AD23,"") -> 0 | AE23: =IFERROR(Scenarios!AE23,"") -> 0 | AF23: =IFERROR(Scenarios!AF23,"") -> 0 | AG23: =IFERROR(Scenarios!AG23,"") -> 0 | AH23: =IFERROR(Scenarios!AH23,"") -> 0 | AI23: =IFERROR(Scenarios!AI23,"") -> 0 | AJ23: =IFERROR(Scenarios!AJ23,"") -> 0 | AK23: =IFERROR(Scenarios!AK23,"") -> 0 | AL23: =IFERROR(Scenarios!AL23,"") -> 0 | AM23: =IFERROR(Scenarios!AM23,"") -> 0 | AN23: =IFERROR(Scenarios!AN23,"") -> 0 | AO23: =IFERROR(Scenarios!AO23,"") -> 0 | AP23: =IFERROR(Scenarios!AP23,"") -> 0 | AQ23: =IFERROR(Scenarios!AQ23,"") -> 0 | AR23: =IFERROR(Scenarios!AR23,"") -> 0 | AS23: =IFERROR(Scenarios!AS23,"") -> 0 | AT23: =IFERROR(Scenarios!AT23,"") -> 0 | AU23: =IFERROR(Scenarios!AU23,"") -> 0 | AV23: =IFERROR(Scenarios!AV23,"") -> 0 | AW23: =IFERROR(Scenarios!AW23,"") -> 0 | AX23: =IFERROR(Scenarios!AX23,"") -> 0 | AY23: =IFERROR(Scenarios!AY23,"") -> 0 | AZ23: =IFERROR(Scenarios!AZ23,"") -> 0 | BA23: =IFERROR(Scenarios!BA23,"") -> 0 | BB23: =IFERROR(Scenarios!BB23,"") -> 0 | BC23: =IFERROR(Scenarios!BC23,"") -> 0 | BD23: =IFERROR(Scenarios!BD23,"") -> 0 | BE23: =IFERROR(Scenarios!BE23,"") -> 0 | BF23: =IFERROR(Scenarios!BF23,"") -> 0 | BG23: =IFERROR(Scenarios!BG23,"") -> 0 | BH23: =IFERROR(Scenarios!BH23,"") -> 0 | BI23: =IFERROR(Scenarios!BI23,"") -> 0 | BJ23: =IFERROR(Scenarios!BJ23,"") -> 0 | BK23: =IFERROR(Scenarios!BK23,"") -> 0 | BL23: =IFERROR(Scenarios!BL23,"") -> 0 | BM23: =IFERROR(Scenarios!BM23,"") -> 0 | BN23: =IFERROR(Scenarios!BN23,"") -> 0 | BO23: =IFERROR(Scenarios!BO23,"") -> 0 | BP23: =IFERROR(Scenarios!BP23,"") -> 0 | BQ23: =IFERROR(Scenarios!BQ23,"") -> 0 | BR23: =IFERROR(Scenarios!BR23,"") -> 0 | BS23: =IFERROR(Scenarios!BS23,"") -> 0 | BT23: =IFERROR(Scenarios!BT23,"") -> 0 | BU23: =IFERROR(Scenarios!BU23,"") -> 0 | BV23: =IFERROR(Scenarios!BV23,"") -> 0 | BW23: =IFERROR(Scenarios!BW23,"") -> 0 | BX23: =IFERROR(Scenarios!BX23,"") -> 0 | BY23: =IFERROR(Scenarios!BY23,"") -> 0 | BZ23: =IFERROR(Scenarios!BZ23,"") -> 0 | CA23: =IFERROR(Scenarios!CA23,"") -> 0 | CB23: =IFERROR(Scenarios!CB23,"") -> 0 | CC23: =IFERROR(Scenarios!CC23,"") -> 0 | CD23: =IFERROR(Scenarios!CD23,"") -> 0 | CE23: =IFERROR(Scenarios!CE23,"") -> 0 | CF23: =IFERROR(Scenarios!CF23,"") -> 0 | CG23: =IFERROR(Scenarios!CG23,"") -> 0 | CH23: =IFERROR(Scenarios!CH23,"") -> 0 | CI23: =IFERROR(Scenarios!CI23,"") -> 0 | CJ23: =IFERROR(Scenarios!CJ23,"") -> 0 | CK23: =IFERROR(Scenarios!CK23,"") -> 0 | CL23: =IFERROR(Scenarios!CL23,"") -> 0 | CM23: =IFERROR(Scenarios!CM23,"") -> 0 | CN23: =IFERROR(Scenarios!CN23,"") -> 0 | CO23: =IFERROR(Scenarios!CO23,"") -> 0 | CP23: =IFERROR(Scenarios!CP23,"") -> 0 | CQ23: =IFERROR(Scenarios!CQ23,"") -> 0 | CR23: =IFERROR(Scenarios!CR23,"") -> 0 | CS23: =IFERROR(Scenarios!CS23,"") -> 0 | CT23: =IFERROR(Scenarios!CT23,"") -> 0 | CU23: =IFERROR(Scenarios!CU23,"") -> 0 | CV23: =IFERROR(Scenarios!CV23,"") -> 0 | CW23: =IFERROR(Scenarios!CW23,"") -> 0 | CX23: =IFERROR(Scenarios!CX23,"") -> 0 | CY23: =IFERROR(Scenarios!CY23,"") -> 0 | CZ23: =IFERROR(Scenarios!CZ23,"") -> 0 | DA23: =IFERROR(Scenarios!DA23,"") -> 0
A24: =IFERROR(Scenarios!A24,"") -> 0 | B24: =IFERROR(Scenarios!B24,"") -> 0 | C24: =IFERROR(Scenarios!C24,"") -> 0 | D24: =IFERROR(Scenarios!D24,"") -> 0 | E24: =IFERROR(Scenarios!E24,"") -> 0 | F24: =IFERROR(Scenarios!F24,"") -> 0 | G24: =IFERROR(Scenarios!G24,"") -> 0 | H24: =IFERROR(Scenarios!H24,"") -> 0 | I24: =IFERROR(Scenarios!I24,"") -> 0 | J24: =IFERROR(Scenarios!J24,"") -> 0 | K24: =IFERROR(Scenarios!K24,"") -> 0 | L24: =IFERROR(Scenarios!L24,"") -> 0 | M24: =IFERROR(Scenarios!M24,"") -> 0 | N24: =IFERROR(Scenarios!N24,"") -> 0 | O24: =IFERROR(Scenarios!O24,"") -> 0 | P24: =IFERROR(Scenarios!P24,"") -> 0 | Q24: =IFERROR(Scenarios!Q24,"") -> 0 | R24: =IFERROR(Scenarios!R24,"") -> 0 | S24: =IFERROR(Scenarios!S24,"") -> 0 | T24: =IFERROR(Scenarios!T24,"") -> 0 | U24: =IFERROR(Scenarios!U24,"") -> 0 | V24: =IFERROR(Scenarios!V24,"") -> 0 | W24: =IFERROR(Scenarios!W24,"") -> 0 | X24: =IFERROR(Scenarios!X24,"") -> 0 | Y24: =IFERROR(Scenarios!Y24,"") -> 0 | Z24: =IFERROR(Scenarios!Z24,"") -> 0 | AA24: =IFERROR(Scenarios!AA24,"") -> 0 | AB24: =IFERROR(Scenarios!AB24,"") -> 0 | AC24: =IFERROR(Scenarios!AC24,"") -> 0 | AD24: =IFERROR(Scenarios!AD24,"") -> 0 | AE24: =IFERROR(Scenarios!AE24,"") -> 0 | AF24: =IFERROR(Scenarios!AF24,"") -> 0 | AG24: =IFERROR(Scenarios!AG24,"") -> 0 | AH24: =IFERROR(Scenarios!AH24,"") -> 0 | AI24: =IFERROR(Scenarios!AI24,"") -> 0 | AJ24: =IFERROR(Scenarios!AJ24,"") -> 0 | AK24: =IFERROR(Scenarios!AK24,"") -> 0 | AL24: =IFERROR(Scenarios!AL24,"") -> 0 | AM24: =IFERROR(Scenarios!AM24,"") -> 0 | AN24: =IFERROR(Scenarios!AN24,"") -> 0 | AO24: =IFERROR(Scenarios!AO24,"") -> 0 | AP24: =IFERROR(Scenarios!AP24,"") -> 0 | AQ24: =IFERROR(Scenarios!AQ24,"") -> 0 | AR24: =IFERROR(Scenarios!AR24,"") -> 0 | AS24: =IFERROR(Scenarios!AS24,"") -> 0 | AT24: =IFERROR(Scenarios!AT24,"") -> 0 | AU24: =IFERROR(Scenarios!AU24,"") -> 0 | AV24: =IFERROR(Scenarios!AV24,"") -> 0 | AW24: =IFERROR(Scenarios!AW24,"") -> 0 | AX24: =IFERROR(Scenarios!AX24,"") -> 0 | AY24: =IFERROR(Scenarios!AY24,"") -> 0 | AZ24: =IFERROR(Scenarios!AZ24,"") -> 0 | BA24: =IFERROR(Scenarios!BA24,"") -> 0 | BB24: =IFERROR(Scenarios!BB24,"") -> 0 | BC24: =IFERROR(Scenarios!BC24,"") -> 0 | BD24: =IFERROR(Scenarios!BD24,"") -> 0 | BE24: =IFERROR(Scenarios!BE24,"") -> 0 | BF24: =IFERROR(Scenarios!BF24,"") -> 0 | BG24: =IFERROR(Scenarios!BG24,"") -> 0 | BH24: =IFERROR(Scenarios!BH24,"") -> 0 | BI24: =IFERROR(Scenarios!BI24,"") -> 0 | BJ24: =IFERROR(Scenarios!BJ24,"") -> 0 | BK24: =IFERROR(Scenarios!BK24,"") -> 0 | BL24: =IFERROR(Scenarios!BL24,"") -> 0 | BM24: =IFERROR(Scenarios!BM24,"") -> 0 | BN24: =IFERROR(Scenarios!BN24,"") -> 0 | BO24: =IFERROR(Scenarios!BO24,"") -> 0 | BP24: =IFERROR(Scenarios!BP24,"") -> 0 | BQ24: =IFERROR(Scenarios!BQ24,"") -> 0 | BR24: =IFERROR(Scenarios!BR24,"") -> 0 | BS24: =IFERROR(Scenarios!BS24,"") -> 0 | BT24: =IFERROR(Scenarios!BT24,"") -> 0 | BU24: =IFERROR(Scenarios!BU24,"") -> 0 | BV24: =IFERROR(Scenarios!BV24,"") -> 0 | BW24: =IFERROR(Scenarios!BW24,"") -> 0 | BX24: =IFERROR(Scenarios!BX24,"") -> 0 | BY24: =IFERROR(Scenarios!BY24,"") -> 0 | BZ24: =IFERROR(Scenarios!BZ24,"") -> 0 | CA24: =IFERROR(Scenarios!CA24,"") -> 0 | CB24: =IFERROR(Scenarios!CB24,"") -> 0 | CC24: =IFERROR(Scenarios!CC24,"") -> 0 | CD24: =IFERROR(Scenarios!CD24,"") -> 0 | CE24: =IFERROR(Scenarios!CE24,"") -> 0 | CF24: =IFERROR(Scenarios!CF24,"") -> 0 | CG24: =IFERROR(Scenarios!CG24,"") -> 0 | CH24: =IFERROR(Scenarios!CH24,"") -> 0 | CI24: =IFERROR(Scenarios!CI24,"") -> 0 | CJ24: =IFERROR(Scenarios!CJ24,"") -> 0 | CK24: =IFERROR(Scenarios!CK24,"") -> 0 | CL24: =IFERROR(Scenarios!CL24,"") -> 0 | CM24: =IFERROR(Scenarios!CM24,"") -> 0 | CN24: =IFERROR(Scenarios!CN24,"") -> 0 | CO24: =IFERROR(Scenarios!CO24,"") -> 0 | CP24: =IFERROR(Scenarios!CP24,"") -> 0 | CQ24: =IFERROR(Scenarios!CQ24,"") -> 0 | CR24: =IFERROR(Scenarios!CR24,"") -> 0 | CS24: =IFERROR(Scenarios!CS24,"") -> 0 | CT24: =IFERROR(Scenarios!CT24,"") -> 0 | CU24: =IFERROR(Scenarios!CU24,"") -> 0 | CV24: =IFERROR(Scenarios!CV24,"") -> 0 | CW24: =IFERROR(Scenarios!CW24,"") -> 0 | CX24: =IFERROR(Scenarios!CX24,"") -> 0 | CY24: =IFERROR(Scenarios!CY24,"") -> 0 | CZ24: =IFERROR(Scenarios!CZ24,"") -> 0 | DA24: =IFERROR(Scenarios!DA24,"") -> 0
A25: =IFERROR(Scenarios!A25,"") -> 0 | B25: =IFERROR(Scenarios!B25,"") -> 0 | C25: =IFERROR(Scenarios!C25,"") -> 0 | D25: =IFERROR(Scenarios!D25,"") -> 0 | E25: =IFERROR(Scenarios!E25,"") -> 0 | F25: =IFERROR(Scenarios!F25,"") -> 0 | G25: =IFERROR(Scenarios!G25,"") -> 0 | H25: =IFERROR(Scenarios!H25,"") -> 0 | I25: =IFERROR(Scenarios!I25,"") -> 0 | J25: =IFERROR(Scenarios!J25,"") -> 0 | K25: =IFERROR(Scenarios!K25,"") -> 0 | L25: =IFERROR(Scenarios!L25,"") -> 0 | M25: =IFERROR(Scenarios!M25,"") -> 0 | N25: =IFERROR(Scenarios!N25,"") -> 0 | O25: =IFERROR(Scenarios!O25,"") -> 0 | P25: =IFERROR(Scenarios!P25,"") -> 0 | Q25: =IFERROR(Scenarios!Q25,"") -> 0 | R25: =IFERROR(Scenarios!R25,"") -> 0 | S25: =IFERROR(Scenarios!S25,"") -> 0 | T25: =IFERROR(Scenarios!T25,"") -> 0 | U25: =IFERROR(Scenarios!U25,"") -> 0 | V25: =IFERROR(Scenarios!V25,"") -> 0 | W25: =IFERROR(Scenarios!W25,"") -> 0 | X25: =IFERROR(Scenarios!X25,"") -> 0 | Y25: =IFERROR(Scenarios!Y25,"") -> 0 | Z25: =IFERROR(Scenarios!Z25,"") -> 0 | AA25: =IFERROR(Scenarios!AA25,"") -> 0 | AB25: =IFERROR(Scenarios!AB25,"") -> 0 | AC25: =IFERROR(Scenarios!AC25,"") -> 0 | AD25: =IFERROR(Scenarios!AD25,"") -> 0 | AE25: =IFERROR(Scenarios!AE25,"") -> 0 | AF25: =IFERROR(Scenarios!AF25,"") -> 0 | AG25: =IFERROR(Scenarios!AG25,"") -> 0 | AH25: =IFERROR(Scenarios!AH25,"") -> 0 | AI25: =IFERROR(Scenarios!AI25,"") -> 0 | AJ25: =IFERROR(Scenarios!AJ25,"") -> 0 | AK25: =IFERROR(Scenarios!AK25,"") -> 0 | AL25: =IFERROR(Scenarios!AL25,"") -> 0 | AM25: =IFERROR(Scenarios!AM25,"") -> 0 | AN25: =IFERROR(Scenarios!AN25,"") -> 0 | AO25: =IFERROR(Scenarios!AO25,"") -> 0 | AP25: =IFERROR(Scenarios!AP25,"") -> 0 | AQ25: =IFERROR(Scenarios!AQ25,"") -> 0 | AR25: =IFERROR(Scenarios!AR25,"") -> 0 | AS25: =IFERROR(Scenarios!AS25,"") -> 0 | AT25: =IFERROR(Scenarios!AT25,"") -> 0 | AU25: =IFERROR(Scenarios!AU25,"") -> 0 | AV25: =IFERROR(Scenarios!AV25,"") -> 0 | AW25: =IFERROR(Scenarios!AW25,"") -> 0 | AX25: =IFERROR(Scenarios!AX25,"") -> 0 | AY25: =IFERROR(Scenarios!AY25,"") -> 0 | AZ25: =IFERROR(Scenarios!AZ25,"") -> 0 | BA25: =IFERROR(Scenarios!BA25,"") -> 0 | BB25: =IFERROR(Scenarios!BB25,"") -> 0 | BC25: =IFERROR(Scenarios!BC25,"") -> 0 | BD25: =IFERROR(Scenarios!BD25,"") -> 0 | BE25: =IFERROR(Scenarios!BE25,"") -> 0 | BF25: =IFERROR(Scenarios!BF25,"") -> 0 | BG25: =IFERROR(Scenarios!BG25,"") -> 0 | BH25: =IFERROR(Scenarios!BH25,"") -> 0 | BI25: =IFERROR(Scenarios!BI25,"") -> 0 | BJ25: =IFERROR(Scenarios!BJ25,"") -> 0 | BK25: =IFERROR(Scenarios!BK25,"") -> 0 | BL25: =IFERROR(Scenarios!BL25,"") -> 0 | BM25: =IFERROR(Scenarios!BM25,"") -> 0 | BN25: =IFERROR(Scenarios!BN25,"") -> 0 | BO25: =IFERROR(Scenarios!BO25,"") -> 0 | BP25: =IFERROR(Scenarios!BP25,"") -> 0 | BQ25: =IFERROR(Scenarios!BQ25,"") -> 0 | BR25: =IFERROR(Scenarios!BR25,"") -> 0 | BS25: =IFERROR(Scenarios!BS25,"") -> 0 | BT25: =IFERROR(Scenarios!BT25,"") -> 0 | BU25: =IFERROR(Scenarios!BU25,"") -> 0 | BV25: =IFERROR(Scenarios!BV25,"") -> 0 | BW25: =IFERROR(Scenarios!BW25,"") -> 0 | BX25: =IFERROR(Scenarios!BX25,"") -> 0 | BY25: =IFERROR(Scenarios!BY25,"") -> 0 | BZ25: =IFERROR(Scenarios!BZ25,"") -> 0 | CA25: =IFERROR(Scenarios!CA25,"") -> 0 | CB25: =IFERROR(Scenarios!CB25,"") -> 0 | CC25: =IFERROR(Scenarios!CC25,"") -> 0 | CD25: =IFERROR(Scenarios!CD25,"") -> 0 | CE25: =IFERROR(Scenarios!CE25,"") -> 0 | CF25: =IFERROR(Scenarios!CF25,"") -> 0 | CG25: =IFERROR(Scenarios!CG25,"") -> 0 | CH25: =IFERROR(Scenarios!CH25,"") -> 0 | CI25: =IFERROR(Scenarios!CI25,"") -> 0 | CJ25: =IFERROR(Scenarios!CJ25,"") -> 0 | CK25: =IFERROR(Scenarios!CK25,"") -> 0 | CL25: =IFERROR(Scenarios!CL25,"") -> 0 | CM25: =IFERROR(Scenarios!CM25,"") -> 0 | CN25: =IFERROR(Scenarios!CN25,"") -> 0 | CO25: =IFERROR(Scenarios!CO25,"") -> 0 | CP25: =IFERROR(Scenarios!CP25,"") -> 0 | CQ25: =IFERROR(Scenarios!CQ25,"") -> 0 | CR25: =IFERROR(Scenarios!CR25,"") -> 0 | CS25: =IFERROR(Scenarios!CS25,"") -> 0 | CT25: =IFERROR(Scenarios!CT25,"") -> 0 | CU25: =IFERROR(Scenarios!CU25,"") -> 0 | CV25: =IFERROR(Scenarios!CV25,"") -> 0 | CW25: =IFERROR(Scenarios!CW25,"") -> 0 | CX25: =IFERROR(Scenarios!CX25,"") -> 0 | CY25: =IFERROR(Scenarios!CY25,"") -> 0 | CZ25: =IFERROR(Scenarios!CZ25,"") -> 0 | DA25: =IFERROR(Scenarios!DA25,"") -> 0
A26: =IFERROR(Scenarios!A26,"") -> 0 | B26: =IFERROR(Scenarios!B26,"") -> 0 | C26: =IFERROR(Scenarios!C26,"") -> 0 | D26: =IFERROR(Scenarios!D26,"") -> 0 | E26: =IFERROR(Scenarios!E26,"") -> 0 | F26: =IFERROR(Scenarios!F26,"") -> 0 | G26: =IFERROR(Scenarios!G26,"") -> 0 | H26: =IFERROR(Scenarios!H26,"") -> 0 | I26: =IFERROR(Scenarios!I26,"") -> 0 | J26: =IFERROR(Scenarios!J26,"") -> 0 | K26: =IFERROR(Scenarios!K26,"") -> 0 | L26: =IFERROR(Scenarios!L26,"") -> 0 | M26: =IFERROR(Scenarios!M26,"") -> 0 | N26: =IFERROR(Scenarios!N26,"") -> 0 | O26: =IFERROR(Scenarios!O26,"") -> 0 | P26: =IFERROR(Scenarios!P26,"") -> 0 | Q26: =IFERROR(Scenarios!Q26,"") -> 0 | R26: =IFERROR(Scenarios!R26,"") -> 0 | S26: =IFERROR(Scenarios!S26,"") -> 0 | T26: =IFERROR(Scenarios!T26,"") -> 0 | U26: =IFERROR(Scenarios!U26,"") -> 0 | V26: =IFERROR(Scenarios!V26,"") -> 0 | W26: =IFERROR(Scenarios!W26,"") -> 0 | X26: =IFERROR(Scenarios!X26,"") -> 0 | Y26: =IFERROR(Scenarios!Y26,"") -> 0 | Z26: =IFERROR(Scenarios!Z26,"") -> 0 | AA26: =IFERROR(Scenarios!AA26,"") -> 0 | AB26: =IFERROR(Scenarios!AB26,"") -> 0 | AC26: =IFERROR(Scenarios!AC26,"") -> 0 | AD26: =IFERROR(Scenarios!AD26,"") -> 0 | AE26: =IFERROR(Scenarios!AE26,"") -> 0 | AF26: =IFERROR(Scenarios!AF26,"") -> 0 | AG26: =IFERROR(Scenarios!AG26,"") -> 0 | AH26: =IFERROR(Scenarios!AH26,"") -> 0 | AI26: =IFERROR(Scenarios!AI26,"") -> 0 | AJ26: =IFERROR(Scenarios!AJ26,"") -> 0 | AK26: =IFERROR(Scenarios!AK26,"") -> 0 | AL26: =IFERROR(Scenarios!AL26,"") -> 0 | AM26: =IFERROR(Scenarios!AM26,"") -> 0 | AN26: =IFERROR(Scenarios!AN26,"") -> 0 | AO26: =IFERROR(Scenarios!AO26,"") -> 0 | AP26: =IFERROR(Scenarios!AP26,"") -> 0 | AQ26: =IFERROR(Scenarios!AQ26,"") -> 0 | AR26: =IFERROR(Scenarios!AR26,"") -> 0 | AS26: =IFERROR(Scenarios!AS26,"") -> 0 | AT26: =IFERROR(Scenarios!AT26,"") -> 0 | AU26: =IFERROR(Scenarios!AU26,"") -> 0 | AV26: =IFERROR(Scenarios!AV26,"") -> 0 | AW26: =IFERROR(Scenarios!AW26,"") -> 0 | AX26: =IFERROR(Scenarios!AX26,"") -> 0 | AY26: =IFERROR(Scenarios!AY26,"") -> 0 | AZ26: =IFERROR(Scenarios!AZ26,"") -> 0 | BA26: =IFERROR(Scenarios!BA26,"") -> 0 | BB26: =IFERROR(Scenarios!BB26,"") -> 0 | BC26: =IFERROR(Scenarios!BC26,"") -> 0 | BD26: =IFERROR(Scenarios!BD26,"") -> 0 | BE26: =IFERROR(Scenarios!BE26,"") -> 0 | BF26: =IFERROR(Scenarios!BF26,"") -> 0 | BG26: =IFERROR(Scenarios!BG26,"") -> 0 | BH26: =IFERROR(Scenarios!BH26,"") -> 0 | BI26: =IFERROR(Scenarios!BI26,"") -> 0 | BJ26: =IFERROR(Scenarios!BJ26,"") -> 0 | BK26: =IFERROR(Scenarios!BK26,"") -> 0 | BL26: =IFERROR(Scenarios!BL26,"") -> 0 | BM26: =IFERROR(Scenarios!BM26,"") -> 0 | BN26: =IFERROR(Scenarios!BN26,"") -> 0 | BO26: =IFERROR(Scenarios!BO26,"") -> 0 | BP26: =IFERROR(Scenarios!BP26,"") -> 0 | BQ26: =IFERROR(Scenarios!BQ26,"") -> 0 | BR26: =IFERROR(Scenarios!BR26,"") -> 0 | BS26: =IFERROR(Scenarios!BS26,"") -> 0 | BT26: =IFERROR(Scenarios!BT26,"") -> 0 | BU26: =IFERROR(Scenarios!BU26,"") -> 0 | BV26: =IFERROR(Scenarios!BV26,"") -> 0 | BW26: =IFERROR(Scenarios!BW26,"") -> 0 | BX26: =IFERROR(Scenarios!BX26,"") -> 0 | BY26: =IFERROR(Scenarios!BY26,"") -> 0 | BZ26: =IFERROR(Scenarios!BZ26,"") -> 0 | CA26: =IFERROR(Scenarios!CA26,"") -> 0 | CB26: =IFERROR(Scenarios!CB26,"") -> 0 | CC26: =IFERROR(Scenarios!CC26,"") -> 0 | CD26: =IFERROR(Scenarios!CD26,"") -> 0 | CE26: =IFERROR(Scenarios!CE26,"") -> 0 | CF26: =IFERROR(Scenarios!CF26,"") -> 0 | CG26: =IFERROR(Scenarios!CG26,"") -> 0 | CH26: =IFERROR(Scenarios!CH26,"") -> 0 | CI26: =IFERROR(Scenarios!CI26,"") -> 0 | CJ26: =IFERROR(Scenarios!CJ26,"") -> 0 | CK26: =IFERROR(Scenarios!CK26,"") -> 0 | CL26: =IFERROR(Scenarios!CL26,"") -> 0 | CM26: =IFERROR(Scenarios!CM26,"") -> 0 | CN26: =IFERROR(Scenarios!CN26,"") -> 0 | CO26: =IFERROR(Scenarios!CO26,"") -> 0 | CP26: =IFERROR(Scenarios!CP26,"") -> 0 | CQ26: =IFERROR(Scenarios!CQ26,"") -> 0 | CR26: =IFERROR(Scenarios!CR26,"") -> 0 | CS26: =IFERROR(Scenarios!CS26,"") -> 0 | CT26: =IFERROR(Scenarios!CT26,"") -> 0 | CU26: =IFERROR(Scenarios!CU26,"") -> 0 | CV26: =IFERROR(Scenarios!CV26,"") -> 0 | CW26: =IFERROR(Scenarios!CW26,"") -> 0 | CX26: =IFERROR(Scenarios!CX26,"") -> 0 | CY26: =IFERROR(Scenarios!CY26,"") -> 0 | CZ26: =IFERROR(Scenarios!CZ26,"") -> 0 | DA26: =IFERROR(Scenarios!DA26,"") -> 0
A27: =IFERROR(Scenarios!A27,"") -> 0 | B27: =IFERROR(Scenarios!B27,"") -> 0 | C27: =IFERROR(Scenarios!C27,"") -> 0 | D27: =IFERROR(Scenarios!D27,"") -> 0 | E27: =IFERROR(Scenarios!E27,"") -> 0 | F27: =IFERROR(Scenarios!F27,"") -> 0 | G27: =IFERROR(Scenarios!G27,"") -> 0 | H27: =IFERROR(Scenarios!H27,"") -> 0 | I27: =IFERROR(Scenarios!I27,"") -> 0 | J27: =IFERROR(Scenarios!J27,"") -> 0 | K27: =IFERROR(Scenarios!K27,"") -> 0 | L27: =IFERROR(Scenarios!L27,"") -> 0 | M27: =IFERROR(Scenarios!M27,"") -> 0 | N27: =IFERROR(Scenarios!N27,"") -> 0 | O27: =IFERROR(Scenarios!O27,"") -> 0 | P27: =IFERROR(Scenarios!P27,"") -> 0 | Q27: =IFERROR(Scenarios!Q27,"") -> 0 | R27: =IFERROR(Scenarios!R27,"") -> 0 | S27: =IFERROR(Scenarios!S27,"") -> 0 | T27: =IFERROR(Scenarios!T27,"") -> 0 | U27: =IFERROR(Scenarios!U27,"") -> 0 | V27: =IFERROR(Scenarios!V27,"") -> 0 | W27: =IFERROR(Scenarios!W27,"") -> 0 | X27: =IFERROR(Scenarios!X27,"") -> 0 | Y27: =IFERROR(Scenarios!Y27,"") -> 0 | Z27: =IFERROR(Scenarios!Z27,"") -> 0 | AA27: =IFERROR(Scenarios!AA27,"") -> 0 | AB27: =IFERROR(Scenarios!AB27,"") -> 0 | AC27: =IFERROR(Scenarios!AC27,"") -> 0 | AD27: =IFERROR(Scenarios!AD27,"") -> 0 | AE27: =IFERROR(Scenarios!AE27,"") -> 0 | AF27: =IFERROR(Scenarios!AF27,"") -> 0 | AG27: =IFERROR(Scenarios!AG27,"") -> 0 | AH27: =IFERROR(Scenarios!AH27,"") -> 0 | AI27: =IFERROR(Scenarios!AI27,"") -> 0 | AJ27: =IFERROR(Scenarios!AJ27,"") -> 0 | AK27: =IFERROR(Scenarios!AK27,"") -> 0 | AL27: =IFERROR(Scenarios!AL27,"") -> 0 | AM27: =IFERROR(Scenarios!AM27,"") -> 0 | AN27: =IFERROR(Scenarios!AN27,"") -> 0 | AO27: =IFERROR(Scenarios!AO27,"") -> 0 | AP27: =IFERROR(Scenarios!AP27,"") -> 0 | AQ27: =IFERROR(Scenarios!AQ27,"") -> 0 | AR27: =IFERROR(Scenarios!AR27,"") -> 0 | AS27: =IFERROR(Scenarios!AS27,"") -> 0 | AT27: =IFERROR(Scenarios!AT27,"") -> 0 | AU27: =IFERROR(Scenarios!AU27,"") -> 0 | AV27: =IFERROR(Scenarios!AV27,"") -> 0 | AW27: =IFERROR(Scenarios!AW27,"") -> 0 | AX27: =IFERROR(Scenarios!AX27,"") -> 0 | AY27: =IFERROR(Scenarios!AY27,"") -> 0 | AZ27: =IFERROR(Scenarios!AZ27,"") -> 0 | BA27: =IFERROR(Scenarios!BA27,"") -> 0 | BB27: =IFERROR(Scenarios!BB27,"") -> 0 | BC27: =IFERROR(Scenarios!BC27,"") -> 0 | BD27: =IFERROR(Scenarios!BD27,"") -> 0 | BE27: =IFERROR(Scenarios!BE27,"") -> 0 | BF27: =IFERROR(Scenarios!BF27,"") -> 0 | BG27: =IFERROR(Scenarios!BG27,"") -> 0 | BH27: =IFERROR(Scenarios!BH27,"") -> 0 | BI27: =IFERROR(Scenarios!BI27,"") -> 0 | BJ27: =IFERROR(Scenarios!BJ27,"") -> 0 | BK27: =IFERROR(Scenarios!BK27,"") -> 0 | BL27: =IFERROR(Scenarios!BL27,"") -> 0 | BM27: =IFERROR(Scenarios!BM27,"") -> 0 | BN27: =IFERROR(Scenarios!BN27,"") -> 0 | BO27: =IFERROR(Scenarios!BO27,"") -> 0 | BP27: =IFERROR(Scenarios!BP27,"") -> 0 | BQ27: =IFERROR(Scenarios!BQ27,"") -> 0 | BR27: =IFERROR(Scenarios!BR27,"") -> 0 | BS27: =IFERROR(Scenarios!BS27,"") -> 0 | BT27: =IFERROR(Scenarios!BT27,"") -> 0 | BU27: =IFERROR(Scenarios!BU27,"") -> 0 | BV27: =IFERROR(Scenarios!BV27,"") -> 0 | BW27: =IFERROR(Scenarios!BW27,"") -> 0 | BX27: =IFERROR(Scenarios!BX27,"") -> 0 | BY27: =IFERROR(Scenarios!BY27,"") -> 0 | BZ27: =IFERROR(Scenarios!BZ27,"") -> 0 | CA27: =IFERROR(Scenarios!CA27,"") -> 0 | CB27: =IFERROR(Scenarios!CB27,"") -> 0 | CC27: =IFERROR(Scenarios!CC27,"") -> 0 | CD27: =IFERROR(Scenarios!CD27,"") -> 0 | CE27: =IFERROR(Scenarios!CE27,"") -> 0 | CF27: =IFERROR(Scenarios!CF27,"") -> 0 | CG27: =IFERROR(Scenarios!CG27,"") -> 0 | CH27: =IFERROR(Scenarios!CH27,"") -> 0 | CI27: =IFERROR(Scenarios!CI27,"") -> 0 | CJ27: =IFERROR(Scenarios!CJ27,"") -> 0 | CK27: =IFERROR(Scenarios!CK27,"") -> 0 | CL27: =IFERROR(Scenarios!CL27,"") -> 0 | CM27: =IFERROR(Scenarios!CM27,"") -> 0 | CN27: =IFERROR(Scenarios!CN27,"") -> 0 | CO27: =IFERROR(Scenarios!CO27,"") -> 0 | CP27: =IFERROR(Scenarios!CP27,"") -> 0 | CQ27: =IFERROR(Scenarios!CQ27,"") -> 0 | CR27: =IFERROR(Scenarios!CR27,"") -> 0 | CS27: =IFERROR(Scenarios!CS27,"") -> 0 | CT27: =IFERROR(Scenarios!CT27,"") -> 0 | CU27: =IFERROR(Scenarios!CU27,"") -> 0 | CV27: =IFERROR(Scenarios!CV27,"") -> 0 | CW27: =IFERROR(Scenarios!CW27,"") -> 0 | CX27: =IFERROR(Scenarios!CX27,"") -> 0 | CY27: =IFERROR(Scenarios!CY27,"") -> 0 | CZ27: =IFERROR(Scenarios!CZ27,"") -> 0 | DA27: =IFERROR(Scenarios!DA27,"") -> 0
A28: =IFERROR(Scenarios!A28,"") -> 0 | B28: =IFERROR(Scenarios!B28,"") -> 0 | C28: =IFERROR(Scenarios!C28,"") -> 0 | D28: =IFERROR(Scenarios!D28,"") -> 0 | E28: =IFERROR(Scenarios!E28,"") -> 0 | F28: =IFERROR(Scenarios!F28,"") -> 0 | G28: =IFERROR(Scenarios!G28,"") -> 0 | H28: =IFERROR(Scenarios!H28,"") -> 0 | I28: =IFERROR(Scenarios!I28,"") -> 0 | J28: =IFERROR(Scenarios!J28,"") -> 0 | K28: =IFERROR(Scenarios!K28,"") -> 0 | L28: =IFERROR(Scenarios!L28,"") -> 0 | M28: =IFERROR(Scenarios!M28,"") -> 0 | N28: =IFERROR(Scenarios!N28,"") -> 0 | O28: =IFERROR(Scenarios!O28,"") -> 0 | P28: =IFERROR(Scenarios!P28,"") -> 0 | Q28: =IFERROR(Scenarios!Q28,"") -> 0 | R28: =IFERROR(Scenarios!R28,"") -> 0 | S28: =IFERROR(Scenarios!S28,"") -> 0 | T28: =IFERROR(Scenarios!T28,"") -> 0 | U28: =IFERROR(Scenarios!U28,"") -> 0 | V28: =IFERROR(Scenarios!V28,"") -> 0 | W28: =IFERROR(Scenarios!W28,"") -> 0 | X28: =IFERROR(Scenarios!X28,"") -> 0 | Y28: =IFERROR(Scenarios!Y28,"") -> 0 | Z28: =IFERROR(Scenarios!Z28,"") -> 0 | AA28: =IFERROR(Scenarios!AA28,"") -> 0 | AB28: =IFERROR(Scenarios!AB28,"") -> 0 | AC28: =IFERROR(Scenarios!AC28,"") -> 0 | AD28: =IFERROR(Scenarios!AD28,"") -> 0 | AE28: =IFERROR(Scenarios!AE28,"") -> 0 | AF28: =IFERROR(Scenarios!AF28,"") -> 0 | AG28: =IFERROR(Scenarios!AG28,"") -> 0 | AH28: =IFERROR(Scenarios!AH28,"") -> 0 | AI28: =IFERROR(Scenarios!AI28,"") -> 0 | AJ28: =IFERROR(Scenarios!AJ28,"") -> 0 | AK28: =IFERROR(Scenarios!AK28,"") -> 0 | AL28: =IFERROR(Scenarios!AL28,"") -> 0 | AM28: =IFERROR(Scenarios!AM28,"") -> 0 | AN28: =IFERROR(Scenarios!AN28,"") -> 0 | AO28: =IFERROR(Scenarios!AO28,"") -> 0 | AP28: =IFERROR(Scenarios!AP28,"") -> 0 | AQ28: =IFERROR(Scenarios!AQ28,"") -> 0 | AR28: =IFERROR(Scenarios!AR28,"") -> 0 | AS28: =IFERROR(Scenarios!AS28,"") -> 0 | AT28: =IFERROR(Scenarios!AT28,"") -> 0 | AU28: =IFERROR(Scenarios!AU28,"") -> 0 | AV28: =IFERROR(Scenarios!AV28,"") -> 0 | AW28: =IFERROR(Scenarios!AW28,"") -> 0 | AX28: =IFERROR(Scenarios!AX28,"") -> 0 | AY28: =IFERROR(Scenarios!AY28,"") -> 0 | AZ28: =IFERROR(Scenarios!AZ28,"") -> 0 | BA28: =IFERROR(Scenarios!BA28,"") -> 0 | BB28: =IFERROR(Scenarios!BB28,"") -> 0 | BC28: =IFERROR(Scenarios!BC28,"") -> 0 | BD28: =IFERROR(Scenarios!BD28,"") -> 0 | BE28: =IFERROR(Scenarios!BE28,"") -> 0 | BF28: =IFERROR(Scenarios!BF28,"") -> 0 | BG28: =IFERROR(Scenarios!BG28,"") -> 0 | BH28: =IFERROR(Scenarios!BH28,"") -> 0 | BI28: =IFERROR(Scenarios!BI28,"") -> 0 | BJ28: =IFERROR(Scenarios!BJ28,"") -> 0 | BK28: =IFERROR(Scenarios!BK28,"") -> 0 | BL28: =IFERROR(Scenarios!BL28,"") -> 0 | BM28: =IFERROR(Scenarios!BM28,"") -> 0 | BN28: =IFERROR(Scenarios!BN28,"") -> 0 | BO28: =IFERROR(Scenarios!BO28,"") -> 0 | BP28: =IFERROR(Scenarios!BP28,"") -> 0 | BQ28: =IFERROR(Scenarios!BQ28,"") -> 0 | BR28: =IFERROR(Scenarios!BR28,"") -> 0 | BS28: =IFERROR(Scenarios!BS28,"") -> 0 | BT28: =IFERROR(Scenarios!BT28,"") -> 0 | BU28: =IFERROR(Scenarios!BU28,"") -> 0 | BV28: =IFERROR(Scenarios!BV28,"") -> 0 | BW28: =IFERROR(Scenarios!BW28,"") -> 0 | BX28: =IFERROR(Scenarios!BX28,"") -> 0 | BY28: =IFERROR(Scenarios!BY28,"") -> 0 | BZ28: =IFERROR(Scenarios!BZ28,"") -> 0 | CA28: =IFERROR(Scenarios!CA28,"") -> 0 | CB28: =IFERROR(Scenarios!CB28,"") -> 0 | CC28: =IFERROR(Scenarios!CC28,"") -> 0 | CD28: =IFERROR(Scenarios!CD28,"") -> 0 | CE28: =IFERROR(Scenarios!CE28,"") -> 0 | CF28: =IFERROR(Scenarios!CF28,"") -> 0 | CG28: =IFERROR(Scenarios!CG28,"") -> 0 | CH28: =IFERROR(Scenarios!CH28,"") -> 0 | CI28: =IFERROR(Scenarios!CI28,"") -> 0 | CJ28: =IFERROR(Scenarios!CJ28,"") -> 0 | CK28: =IFERROR(Scenarios!CK28,"") -> 0 | CL28: =IFERROR(Scenarios!CL28,"") -> 0 | CM28: =IFERROR(Scenarios!CM28,"") -> 0 | CN28: =IFERROR(Scenarios!CN28,"") -> 0 | CO28: =IFERROR(Scenarios!CO28,"") -> 0 | CP28: =IFERROR(Scenarios!CP28,"") -> 0 | CQ28: =IFERROR(Scenarios!CQ28,"") -> 0 | CR28: =IFERROR(Scenarios!CR28,"") -> 0 | CS28: =IFERROR(Scenarios!CS28,"") -> 0 | CT28: =IFERROR(Scenarios!CT28,"") -> 0 | CU28: =IFERROR(Scenarios!CU28,"") -> 0 | CV28: =IFERROR(Scenarios!CV28,"") -> 0 | CW28: =IFERROR(Scenarios!CW28,"") -> 0 | CX28: =IFERROR(Scenarios!CX28,"") -> 0 | CY28: =IFERROR(Scenarios!CY28,"") -> 0 | CZ28: =IFERROR(Scenarios!CZ28,"") -> 0 | DA28: =IFERROR(Scenarios!DA28,"") -> 0
A29: =IFERROR(Scenarios!A29,"") -> 0 | B29: =IFERROR(Scenarios!B29,"") -> 0 | C29: =IFERROR(Scenarios!C29,"") -> 0 | D29: =IFERROR(Scenarios!D29,"") -> 0 | E29: =IFERROR(Scenarios!E29,"") -> 0 | F29: =IFERROR(Scenarios!F29,"") -> 0 | G29: =IFERROR(Scenarios!G29,"") -> 0 | H29: =IFERROR(Scenarios!H29,"") -> 0 | I29: =IFERROR(Scenarios!I29,"") -> 0 | J29: =IFERROR(Scenarios!J29,"") -> 0 | K29: =IFERROR(Scenarios!K29,"") -> 0 | L29: =IFERROR(Scenarios!L29,"") -> 0 | M29: =IFERROR(Scenarios!M29,"") -> 0 | N29: =IFERROR(Scenarios!N29,"") -> 0 | O29: =IFERROR(Scenarios!O29,"") -> 0 | P29: =IFERROR(Scenarios!P29,"") -> 0 | Q29: =IFERROR(Scenarios!Q29,"") -> 0 | R29: =IFERROR(Scenarios!R29,"") -> 0 | S29: =IFERROR(Scenarios!S29,"") -> 0 | T29: =IFERROR(Scenarios!T29,"") -> 0 | U29: =IFERROR(Scenarios!U29,"") -> 0 | V29: =IFERROR(Scenarios!V29,"") -> 0 | W29: =IFERROR(Scenarios!W29,"") -> 0 | X29: =IFERROR(Scenarios!X29,"") -> 0 | Y29: =IFERROR(Scenarios!Y29,"") -> 0 | Z29: =IFERROR(Scenarios!Z29,"") -> 0 | AA29: =IFERROR(Scenarios!AA29,"") -> 0 | AB29: =IFERROR(Scenarios!AB29,"") -> 0 | AC29: =IFERROR(Scenarios!AC29,"") -> 0 | AD29: =IFERROR(Scenarios!AD29,"") -> 0 | AE29: =IFERROR(Scenarios!AE29,"") -> 0 | AF29: =IFERROR(Scenarios!AF29,"") -> 0 | AG29: =IFERROR(Scenarios!AG29,"") -> 0 | AH29: =IFERROR(Scenarios!AH29,"") -> 0 | AI29: =IFERROR(Scenarios!AI29,"") -> 0 | AJ29: =IFERROR(Scenarios!AJ29,"") -> 0 | AK29: =IFERROR(Scenarios!AK29,"") -> 0 | AL29: =IFERROR(Scenarios!AL29,"") -> 0 | AM29: =IFERROR(Scenarios!AM29,"") -> 0 | AN29: =IFERROR(Scenarios!AN29,"") -> 0 | AO29: =IFERROR(Scenarios!AO29,"") -> 0 | AP29: =IFERROR(Scenarios!AP29,"") -> 0 | AQ29: =IFERROR(Scenarios!AQ29,"") -> 0 | AR29: =IFERROR(Scenarios!AR29,"") -> 0 | AS29: =IFERROR(Scenarios!AS29,"") -> 0 | AT29: =IFERROR(Scenarios!AT29,"") -> 0 | AU29: =IFERROR(Scenarios!AU29,"") -> 0 | AV29: =IFERROR(Scenarios!AV29,"") -> 0 | AW29: =IFERROR(Scenarios!AW29,"") -> 0 | AX29: =IFERROR(Scenarios!AX29,"") -> 0 | AY29: =IFERROR(Scenarios!AY29,"") -> 0 | AZ29: =IFERROR(Scenarios!AZ29,"") -> 0 | BA29: =IFERROR(Scenarios!BA29,"") -> 0 | BB29: =IFERROR(Scenarios!BB29,"") -> 0 | BC29: =IFERROR(Scenarios!BC29,"") -> 0 | BD29: =IFERROR(Scenarios!BD29,"") -> 0 | BE29: =IFERROR(Scenarios!BE29,"") -> 0 | BF29: =IFERROR(Scenarios!BF29,"") -> 0 | BG29: =IFERROR(Scenarios!BG29,"") -> 0 | BH29: =IFERROR(Scenarios!BH29,"") -> 0 | BI29: =IFERROR(Scenarios!BI29,"") -> 0 | BJ29: =IFERROR(Scenarios!BJ29,"") -> 0 | BK29: =IFERROR(Scenarios!BK29,"") -> 0 | BL29: =IFERROR(Scenarios!BL29,"") -> 0 | BM29: =IFERROR(Scenarios!BM29,"") -> 0 | BN29: =IFERROR(Scenarios!BN29,"") -> 0 | BO29: =IFERROR(Scenarios!BO29,"") -> 0 | BP29: =IFERROR(Scenarios!BP29,"") -> 0 | BQ29: =IFERROR(Scenarios!BQ29,"") -> 0 | BR29: =IFERROR(Scenarios!BR29,"") -> 0 | BS29: =IFERROR(Scenarios!BS29,"") -> 0 | BT29: =IFERROR(Scenarios!BT29,"") -> 0 | BU29: =IFERROR(Scenarios!BU29,"") -> 0 | BV29: =IFERROR(Scenarios!BV29,"") -> 0 | BW29: =IFERROR(Scenarios!BW29,"") -> 0 | BX29: =IFERROR(Scenarios!BX29,"") -> 0 | BY29: =IFERROR(Scenarios!BY29,"") -> 0 | BZ29: =IFERROR(Scenarios!BZ29,"") -> 0 | CA29: =IFERROR(Scenarios!CA29,"") -> 0 | CB29: =IFERROR(Scenarios!CB29,"") -> 0 | CC29: =IFERROR(Scenarios!CC29,"") -> 0 | CD29: =IFERROR(Scenarios!CD29,"") -> 0 | CE29: =IFERROR(Scenarios!CE29,"") -> 0 | CF29: =IFERROR(Scenarios!CF29,"") -> 0 | CG29: =IFERROR(Scenarios!CG29,"") -> 0 | CH29: =IFERROR(Scenarios!CH29,"") -> 0 | CI29: =IFERROR(Scenarios!CI29,"") -> 0 | CJ29: =IFERROR(Scenarios!CJ29,"") -> 0 | CK29: =IFERROR(Scenarios!CK29,"") -> 0 | CL29: =IFERROR(Scenarios!CL29,"") -> 0 | CM29: =IFERROR(Scenarios!CM29,"") -> 0 | CN29: =IFERROR(Scenarios!CN29,"") -> 0 | CO29: =IFERROR(Scenarios!CO29,"") -> 0 | CP29: =IFERROR(Scenarios!CP29,"") -> 0 | CQ29: =IFERROR(Scenarios!CQ29,"") -> 0 | CR29: =IFERROR(Scenarios!CR29,"") -> 0 | CS29: =IFERROR(Scenarios!CS29,"") -> 0 | CT29: =IFERROR(Scenarios!CT29,"") -> 0 | CU29: =IFERROR(Scenarios!CU29,"") -> 0 | CV29: =IFERROR(Scenarios!CV29,"") -> 0 | CW29: =IFERROR(Scenarios!CW29,"") -> 0 | CX29: =IFERROR(Scenarios!CX29,"") -> 0 | CY29: =IFERROR(Scenarios!CY29,"") -> 0 | CZ29: =IFERROR(Scenarios!CZ29,"") -> 0 | DA29: =IFERROR(Scenarios!DA29,"") -> 0
A30: =IFERROR(Scenarios!A30,"") -> 0 | B30: =IFERROR(Scenarios!B30,"") -> 0 | C30: =IFERROR(Scenarios!C30,"") -> 0 | D30: =IFERROR(Scenarios!D30,"") -> 0 | E30: =IFERROR(Scenarios!E30,"") -> 0 | F30: =IFERROR(Scenarios!F30,"") -> 0 | G30: =IFERROR(Scenarios!G30,"") -> 0 | H30: =IFERROR(Scenarios!H30,"") -> 0 | I30: =IFERROR(Scenarios!I30,"") -> 0 | J30: =IFERROR(Scenarios!J30,"") -> 0 | K30: =IFERROR(Scenarios!K30,"") -> 0 | L30: =IFERROR(Scenarios!L30,"") -> 0 | M30: =IFERROR(Scenarios!M30,"") -> 0 | N30: =IFERROR(Scenarios!N30,"") -> 0 | O30: =IFERROR(Scenarios!O30,"") -> 0 | P30: =IFERROR(Scenarios!P30,"") -> 0 | Q30: =IFERROR(Scenarios!Q30,"") -> 0 | R30: =IFERROR(Scenarios!R30,"") -> 0 | S30: =IFERROR(Scenarios!S30,"") -> 0 | T30: =IFERROR(Scenarios!T30,"") -> 0 | U30: =IFERROR(Scenarios!U30,"") -> 0 | V30: =IFERROR(Scenarios!V30,"") -> 0 | W30: =IFERROR(Scenarios!W30,"") -> 0 | X30: =IFERROR(Scenarios!X30,"") -> 0 | Y30: =IFERROR(Scenarios!Y30,"") -> 0 | Z30: =IFERROR(Scenarios!Z30,"") -> 0 | AA30: =IFERROR(Scenarios!AA30,"") -> 0 | AB30: =IFERROR(Scenarios!AB30,"") -> 0 | AC30: =IFERROR(Scenarios!AC30,"") -> 0 | AD30: =IFERROR(Scenarios!AD30,"") -> 0 | AE30: =IFERROR(Scenarios!AE30,"") -> 0 | AF30: =IFERROR(Scenarios!AF30,"") -> 0 | AG30: =IFERROR(Scenarios!AG30,"") -> 0 | AH30: =IFERROR(Scenarios!AH30,"") -> 0 | AI30: =IFERROR(Scenarios!AI30,"") -> 0 | AJ30: =IFERROR(Scenarios!AJ30,"") -> 0 | AK30: =IFERROR(Scenarios!AK30,"") -> 0 | AL30: =IFERROR(Scenarios!AL30,"") -> 0 | AM30: =IFERROR(Scenarios!AM30,"") -> 0 | AN30: =IFERROR(Scenarios!AN30,"") -> 0 | AO30: =IFERROR(Scenarios!AO30,"") -> 0 | AP30: =IFERROR(Scenarios!AP30,"") -> 0 | AQ30: =IFERROR(Scenarios!AQ30,"") -> 0 | AR30: =IFERROR(Scenarios!AR30,"") -> 0 | AS30: =IFERROR(Scenarios!AS30,"") -> 0 | AT30: =IFERROR(Scenarios!AT30,"") -> 0 | AU30: =IFERROR(Scenarios!AU30,"") -> 0 | AV30: =IFERROR(Scenarios!AV30,"") -> 0 | AW30: =IFERROR(Scenarios!AW30,"") -> 0 | AX30: =IFERROR(Scenarios!AX30,"") -> 0 | AY30: =IFERROR(Scenarios!AY30,"") -> 0 | AZ30: =IFERROR(Scenarios!AZ30,"") -> 0 | BA30: =IFERROR(Scenarios!BA30,"") -> 0 | BB30: =IFERROR(Scenarios!BB30,"") -> 0 | BC30: =IFERROR(Scenarios!BC30,"") -> 0 | BD30: =IFERROR(Scenarios!BD30,"") -> 0 | BE30: =IFERROR(Scenarios!BE30,"") -> 0 | BF30: =IFERROR(Scenarios!BF30,"") -> 0 | BG30: =IFERROR(Scenarios!BG30,"") -> 0 | BH30: =IFERROR(Scenarios!BH30,"") -> 0 | BI30: =IFERROR(Scenarios!BI30,"") -> 0 | BJ30: =IFERROR(Scenarios!BJ30,"") -> 0 | BK30: =IFERROR(Scenarios!BK30,"") -> 0 | BL30: =IFERROR(Scenarios!BL30,"") -> 0 | BM30: =IFERROR(Scenarios!BM30,"") -> 0 | BN30: =IFERROR(Scenarios!BN30,"") -> 0 | BO30: =IFERROR(Scenarios!BO30,"") -> 0 | BP30: =IFERROR(Scenarios!BP30,"") -> 0 | BQ30: =IFERROR(Scenarios!BQ30,"") -> 0 | BR30: =IFERROR(Scenarios!BR30,"") -> 0 | BS30: =IFERROR(Scenarios!BS30,"") -> 0 | BT30: =IFERROR(Scenarios!BT30,"") -> 0 | BU30: =IFERROR(Scenarios!BU30,"") -> 0 | BV30: =IFERROR(Scenarios!BV30,"") -> 0 | BW30: =IFERROR(Scenarios!BW30,"") -> 0 | BX30: =IFERROR(Scenarios!BX30,"") -> 0 | BY30: =IFERROR(Scenarios!BY30,"") -> 0 | BZ30: =IFERROR(Scenarios!BZ30,"") -> 0 | CA30: =IFERROR(Scenarios!CA30,"") -> 0 | CB30: =IFERROR(Scenarios!CB30,"") -> 0 | CC30: =IFERROR(Scenarios!CC30,"") -> 0 | CD30: =IFERROR(Scenarios!CD30,"") -> 0 | CE30: =IFERROR(Scenarios!CE30,"") -> 0 | CF30: =IFERROR(Scenarios!CF30,"") -> 0 | CG30: =IFERROR(Scenarios!CG30,"") -> 0 | CH30: =IFERROR(Scenarios!CH30,"") -> 0 | CI30: =IFERROR(Scenarios!CI30,"") -> 0 | CJ30: =IFERROR(Scenarios!CJ30,"") -> 0 | CK30: =IFERROR(Scenarios!CK30,"") -> 0 | CL30: =IFERROR(Scenarios!CL30,"") -> 0 | CM30: =IFERROR(Scenarios!CM30,"") -> 0 | CN30: =IFERROR(Scenarios!CN30,"") -> 0 | CO30: =IFERROR(Scenarios!CO30,"") -> 0 | CP30: =IFERROR(Scenarios!CP30,"") -> 0 | CQ30: =IFERROR(Scenarios!CQ30,"") -> 0 | CR30: =IFERROR(Scenarios!CR30,"") -> 0 | CS30: =IFERROR(Scenarios!CS30,"") -> 0 | CT30: =IFERROR(Scenarios!CT30,"") -> 0 | CU30: =IFERROR(Scenarios!CU30,"") -> 0 | CV30: =IFERROR(Scenarios!CV30,"") -> 0 | CW30: =IFERROR(Scenarios!CW30,"") -> 0 | CX30: =IFERROR(Scenarios!CX30,"") -> 0 | CY30: =IFERROR(Scenarios!CY30,"") -> 0 | CZ30: =IFERROR(Scenarios!CZ30,"") -> 0 | DA30: =IFERROR(Scenarios!DA30,"") -> 0
A31: =IFERROR(Scenarios!A31,"") -> 0 | B31: =IFERROR(Scenarios!B31,"") -> 0 | C31: =IFERROR(Scenarios!C31,"") -> 0 | D31: =IFERROR(Scenarios!D31,"") -> 0 | E31: =IFERROR(Scenarios!E31,"") -> 0 | F31: =IFERROR(Scenarios!F31,"") -> 0 | G31: =IFERROR(Scenarios!G31,"") -> 0 | H31: =IFERROR(Scenarios!H31,"") -> 0 | I31: =IFERROR(Scenarios!I31,"") -> 0 | J31: =IFERROR(Scenarios!J31,"") -> 0 | K31: =IFERROR(Scenarios!K31,"") -> 0 | L31: =IFERROR(Scenarios!L31,"") -> 0 | M31: =IFERROR(Scenarios!M31,"") -> 0 | N31: =IFERROR(Scenarios!N31,"") -> 0 | O31: =IFERROR(Scenarios!O31,"") -> 0 | P31: =IFERROR(Scenarios!P31,"") -> 0 | Q31: =IFERROR(Scenarios!Q31,"") -> 0 | R31: =IFERROR(Scenarios!R31,"") -> 0 | S31: =IFERROR(Scenarios!S31,"") -> 0 | T31: =IFERROR(Scenarios!T31,"") -> 0 | U31: =IFERROR(Scenarios!U31,"") -> 0 | V31: =IFERROR(Scenarios!V31,"") -> 0 | W31: =IFERROR(Scenarios!W31,"") -> 0 | X31: =IFERROR(Scenarios!X31,"") -> 0 | Y31: =IFERROR(Scenarios!Y31,"") -> 0 | Z31: =IFERROR(Scenarios!Z31,"") -> 0 | AA31: =IFERROR(Scenarios!AA31,"") -> 0 | AB31: =IFERROR(Scenarios!AB31,"") -> 0 | AC31: =IFERROR(Scenarios!AC31,"") -> 0 | AD31: =IFERROR(Scenarios!AD31,"") -> 0 | AE31: =IFERROR(Scenarios!AE31,"") -> 0 | AF31: =IFERROR(Scenarios!AF31,"") -> 0 | AG31: =IFERROR(Scenarios!AG31,"") -> 0 | AH31: =IFERROR(Scenarios!AH31,"") -> 0 | AI31: =IFERROR(Scenarios!AI31,"") -> 0 | AJ31: =IFERROR(Scenarios!AJ31,"") -> 0 | AK31: =IFERROR(Scenarios!AK31,"") -> 0 | AL31: =IFERROR(Scenarios!AL31,"") -> 0 | AM31: =IFERROR(Scenarios!AM31,"") -> 0 | AN31: =IFERROR(Scenarios!AN31,"") -> 0 | AO31: =IFERROR(Scenarios!AO31,"") -> 0 | AP31: =IFERROR(Scenarios!AP31,"") -> 0 | AQ31: =IFERROR(Scenarios!AQ31,"") -> 0 | AR31: =IFERROR(Scenarios!AR31,"") -> 0 | AS31: =IFERROR(Scenarios!AS31,"") -> 0 | AT31: =IFERROR(Scenarios!AT31,"") -> 0 | AU31: =IFERROR(Scenarios!AU31,"") -> 0 | AV31: =IFERROR(Scenarios!AV31,"") -> 0 | AW31: =IFERROR(Scenarios!AW31,"") -> 0 | AX31: =IFERROR(Scenarios!AX31,"") -> 0 | AY31: =IFERROR(Scenarios!AY31,"") -> 0 | AZ31: =IFERROR(Scenarios!AZ31,"") -> 0 | BA31: =IFERROR(Scenarios!BA31,"") -> 0 | BB31: =IFERROR(Scenarios!BB31,"") -> 0 | BC31: =IFERROR(Scenarios!BC31,"") -> 0 | BD31: =IFERROR(Scenarios!BD31,"") -> 0 | BE31: =IFERROR(Scenarios!BE31,"") -> 0 | BF31: =IFERROR(Scenarios!BF31,"") -> 0 | BG31: =IFERROR(Scenarios!BG31,"") -> 0 | BH31: =IFERROR(Scenarios!BH31,"") -> 0 | BI31: =IFERROR(Scenarios!BI31,"") -> 0 | BJ31: =IFERROR(Scenarios!BJ31,"") -> 0 | BK31: =IFERROR(Scenarios!BK31,"") -> 0 | BL31: =IFERROR(Scenarios!BL31,"") -> 0 | BM31: =IFERROR(Scenarios!BM31,"") -> 0 | BN31: =IFERROR(Scenarios!BN31,"") -> 0 | BO31: =IFERROR(Scenarios!BO31,"") -> 0 | BP31: =IFERROR(Scenarios!BP31,"") -> 0 | BQ31: =IFERROR(Scenarios!BQ31,"") -> 0 | BR31: =IFERROR(Scenarios!BR31,"") -> 0 | BS31: =IFERROR(Scenarios!BS31,"") -> 0 | BT31: =IFERROR(Scenarios!BT31,"") -> 0 | BU31: =IFERROR(Scenarios!BU31,"") -> 0 | BV31: =IFERROR(Scenarios!BV31,"") -> 0 | BW31: =IFERROR(Scenarios!BW31,"") -> 0 | BX31: =IFERROR(Scenarios!BX31,"") -> 0 | BY31: =IFERROR(Scenarios!BY31,"") -> 0 | BZ31: =IFERROR(Scenarios!BZ31,"") -> 0 | CA31: =IFERROR(Scenarios!CA31,"") -> 0 | CB31: =IFERROR(Scenarios!CB31,"") -> 0 | CC31: =IFERROR(Scenarios!CC31,"") -> 0 | CD31: =IFERROR(Scenarios!CD31,"") -> 0 | CE31: =IFERROR(Scenarios!CE31,"") -> 0 | CF31: =IFERROR(Scenarios!CF31,"") -> 0 | CG31: =IFERROR(Scenarios!CG31,"") -> 0 | CH31: =IFERROR(Scenarios!CH31,"") -> 0 | CI31: =IFERROR(Scenarios!CI31,"") -> 0 | CJ31: =IFERROR(Scenarios!CJ31,"") -> 0 | CK31: =IFERROR(Scenarios!CK31,"") -> 0 | CL31: =IFERROR(Scenarios!CL31,"") -> 0 | CM31: =IFERROR(Scenarios!CM31,"") -> 0 | CN31: =IFERROR(Scenarios!CN31,"") -> 0 | CO31: =IFERROR(Scenarios!CO31,"") -> 0 | CP31: =IFERROR(Scenarios!CP31,"") -> 0 | CQ31: =IFERROR(Scenarios!CQ31,"") -> 0 | CR31: =IFERROR(Scenarios!CR31,"") -> 0 | CS31: =IFERROR(Scenarios!CS31,"") -> 0 | CT31: =IFERROR(Scenarios!CT31,"") -> 0 | CU31: =IFERROR(Scenarios!CU31,"") -> 0 | CV31: =IFERROR(Scenarios!CV31,"") -> 0 | CW31: =IFERROR(Scenarios!CW31,"") -> 0 | CX31: =IFERROR(Scenarios!CX31,"") -> 0 | CY31: =IFERROR(Scenarios!CY31,"") -> 0 | CZ31: =IFERROR(Scenarios!CZ31,"") -> 0 | DA31: =IFERROR(Scenarios!DA31,"") -> 0
A32: =IFERROR(Scenarios!A32,"") -> 0 | B32: =IFERROR(Scenarios!B32,"") -> 0 | C32: =IFERROR(Scenarios!C32,"") -> 0 | D32: =IFERROR(Scenarios!D32,"") -> 0 | E32: =IFERROR(Scenarios!E32,"") -> 0 | F32: =IFERROR(Scenarios!F32,"") -> 0 | G32: =IFERROR(Scenarios!G32,"") -> 0 | H32: =IFERROR(Scenarios!H32,"") -> 0 | I32: =IFERROR(Scenarios!I32,"") -> 0 | J32: =IFERROR(Scenarios!J32,"") -> 0 | K32: =IFERROR(Scenarios!K32,"") -> 0 | L32: =IFERROR(Scenarios!L32,"") -> 0 | M32: =IFERROR(Scenarios!M32,"") -> 0 | N32: =IFERROR(Scenarios!N32,"") -> 0 | O32: =IFERROR(Scenarios!O32,"") -> 0 | P32: =IFERROR(Scenarios!P32,"") -> 0 | Q32: =IFERROR(Scenarios!Q32,"") -> 0 | R32: =IFERROR(Scenarios!R32,"") -> 0 | S32: =IFERROR(Scenarios!S32,"") -> 0 | T32: =IFERROR(Scenarios!T32,"") -> 0 | U32: =IFERROR(Scenarios!U32,"") -> 0 | V32: =IFERROR(Scenarios!V32,"") -> 0 | W32: =IFERROR(Scenarios!W32,"") -> 0 | X32: =IFERROR(Scenarios!X32,"") -> 0 | Y32: =IFERROR(Scenarios!Y32,"") -> 0 | Z32: =IFERROR(Scenarios!Z32,"") -> 0 | AA32: =IFERROR(Scenarios!AA32,"") -> 0 | AB32: =IFERROR(Scenarios!AB32,"") -> 0 | AC32: =IFERROR(Scenarios!AC32,"") -> 0 | AD32: =IFERROR(Scenarios!AD32,"") -> 0 | AE32: =IFERROR(Scenarios!AE32,"") -> 0 | AF32: =IFERROR(Scenarios!AF32,"") -> 0 | AG32: =IFERROR(Scenarios!AG32,"") -> 0 | AH32: =IFERROR(Scenarios!AH32,"") -> 0 | AI32: =IFERROR(Scenarios!AI32,"") -> 0 | AJ32: =IFERROR(Scenarios!AJ32,"") -> 0 | AK32: =IFERROR(Scenarios!AK32,"") -> 0 | AL32: =IFERROR(Scenarios!AL32,"") -> 0 | AM32: =IFERROR(Scenarios!AM32,"") -> 0 | AN32: =IFERROR(Scenarios!AN32,"") -> 0 | AO32: =IFERROR(Scenarios!AO32,"") -> 0 | AP32: =IFERROR(Scenarios!AP32,"") -> 0 | AQ32: =IFERROR(Scenarios!AQ32,"") -> 0 | AR32: =IFERROR(Scenarios!AR32,"") -> 0 | AS32: =IFERROR(Scenarios!AS32,"") -> 0 | AT32: =IFERROR(Scenarios!AT32,"") -> 0 | AU32: =IFERROR(Scenarios!AU32,"") -> 0 | AV32: =IFERROR(Scenarios!AV32,"") -> 0 | AW32: =IFERROR(Scenarios!AW32,"") -> 0 | AX32: =IFERROR(Scenarios!AX32,"") -> 0 | AY32: =IFERROR(Scenarios!AY32,"") -> 0 | AZ32: =IFERROR(Scenarios!AZ32,"") -> 0 | BA32: =IFERROR(Scenarios!BA32,"") -> 0 | BB32: =IFERROR(Scenarios!BB32,"") -> 0 | BC32: =IFERROR(Scenarios!BC32,"") -> 0 | BD32: =IFERROR(Scenarios!BD32,"") -> 0 | BE32: =IFERROR(Scenarios!BE32,"") -> 0 | BF32: =IFERROR(Scenarios!BF32,"") -> 0 | BG32: =IFERROR(Scenarios!BG32,"") -> 0 | BH32: =IFERROR(Scenarios!BH32,"") -> 0 | BI32: =IFERROR(Scenarios!BI32,"") -> 0 | BJ32: =IFERROR(Scenarios!BJ32,"") -> 0 | BK32: =IFERROR(Scenarios!BK32,"") -> 0 | BL32: =IFERROR(Scenarios!BL32,"") -> 0 | BM32: =IFERROR(Scenarios!BM32,"") -> 0 | BN32: =IFERROR(Scenarios!BN32,"") -> 0 | BO32: =IFERROR(Scenarios!BO32,"") -> 0 | BP32: =IFERROR(Scenarios!BP32,"") -> 0 | BQ32: =IFERROR(Scenarios!BQ32,"") -> 0 | BR32: =IFERROR(Scenarios!BR32,"") -> 0 | BS32: =IFERROR(Scenarios!BS32,"") -> 0 | BT32: =IFERROR(Scenarios!BT32,"") -> 0 | BU32: =IFERROR(Scenarios!BU32,"") -> 0 | BV32: =IFERROR(Scenarios!BV32,"") -> 0 | BW32: =IFERROR(Scenarios!BW32,"") -> 0 | BX32: =IFERROR(Scenarios!BX32,"") -> 0 | BY32: =IFERROR(Scenarios!BY32,"") -> 0 | BZ32: =IFERROR(Scenarios!BZ32,"") -> 0 | CA32: =IFERROR(Scenarios!CA32,"") -> 0 | CB32: =IFERROR(Scenarios!CB32,"") -> 0 | CC32: =IFERROR(Scenarios!CC32,"") -> 0 | CD32: =IFERROR(Scenarios!CD32,"") -> 0 | CE32: =IFERROR(Scenarios!CE32,"") -> 0 | CF32: =IFERROR(Scenarios!CF32,"") -> 0 | CG32: =IFERROR(Scenarios!CG32,"") -> 0 | CH32: =IFERROR(Scenarios!CH32,"") -> 0 | CI32: =IFERROR(Scenarios!CI32,"") -> 0 | CJ32: =IFERROR(Scenarios!CJ32,"") -> 0 | CK32: =IFERROR(Scenarios!CK32,"") -> 0 | CL32: =IFERROR(Scenarios!CL32,"") -> 0 | CM32: =IFERROR(Scenarios!CM32,"") -> 0 | CN32: =IFERROR(Scenarios!CN32,"") -> 0 | CO32: =IFERROR(Scenarios!CO32,"") -> 0 | CP32: =IFERROR(Scenarios!CP32,"") -> 0 | CQ32: =IFERROR(Scenarios!CQ32,"") -> 0 | CR32: =IFERROR(Scenarios!CR32,"") -> 0 | CS32: =IFERROR(Scenarios!CS32,"") -> 0 | CT32: =IFERROR(Scenarios!CT32,"") -> 0 | CU32: =IFERROR(Scenarios!CU32,"") -> 0 | CV32: =IFERROR(Scenarios!CV32,"") -> 0 | CW32: =IFERROR(Scenarios!CW32,"") -> 0 | CX32: =IFERROR(Scenarios!CX32,"") -> 0 | CY32: =IFERROR(Scenarios!CY32,"") -> 0 | CZ32: =IFERROR(Scenarios!CZ32,"") -> 0 | DA32: =IFERROR(Scenarios!DA32,"") -> 0
A33: =IFERROR(Scenarios!A33,"") -> 0 | B33: =IFERROR(Scenarios!B33,"") -> 0 | C33: =IFERROR(Scenarios!C33,"") -> 0 | D33: =IFERROR(Scenarios!D33,"") -> 0 | E33: =IFERROR(Scenarios!E33,"") -> 0 | F33: =IFERROR(Scenarios!F33,"") -> 0 | G33: =IFERROR(Scenarios!G33,"") -> 0 | H33: =IFERROR(Scenarios!H33,"") -> 0 | I33: =IFERROR(Scenarios!I33,"") -> 0 | J33: =IFERROR(Scenarios!J33,"") -> 0 | K33: =IFERROR(Scenarios!K33,"") -> 0 | L33: =IFERROR(Scenarios!L33,"") -> 0 | M33: =IFERROR(Scenarios!M33,"") -> 0 | N33: =IFERROR(Scenarios!N33,"") -> 0 | O33: =IFERROR(Scenarios!O33,"") -> 0 | P33: =IFERROR(Scenarios!P33,"") -> 0 | Q33: =IFERROR(Scenarios!Q33,"") -> 0 | R33: =IFERROR(Scenarios!R33,"") -> 0 | S33: =IFERROR(Scenarios!S33,"") -> 0 | T33: =IFERROR(Scenarios!T33,"") -> 0 | U33: =IFERROR(Scenarios!U33,"") -> 0 | V33: =IFERROR(Scenarios!V33,"") -> 0 | W33: =IFERROR(Scenarios!W33,"") -> 0 | X33: =IFERROR(Scenarios!X33,"") -> 0 | Y33: =IFERROR(Scenarios!Y33,"") -> 0 | Z33: =IFERROR(Scenarios!Z33,"") -> 0 | AA33: =IFERROR(Scenarios!AA33,"") -> 0 | AB33: =IFERROR(Scenarios!AB33,"") -> 0 | AC33: =IFERROR(Scenarios!AC33,"") -> 0 | AD33: =IFERROR(Scenarios!AD33,"") -> 0 | AE33: =IFERROR(Scenarios!AE33,"") -> 0 | AF33: =IFERROR(Scenarios!AF33,"") -> 0 | AG33: =IFERROR(Scenarios!AG33,"") -> 0 | AH33: =IFERROR(Scenarios!AH33,"") -> 0 | AI33: =IFERROR(Scenarios!AI33,"") -> 0 | AJ33: =IFERROR(Scenarios!AJ33,"") -> 0 | AK33: =IFERROR(Scenarios!AK33,"") -> 0 | AL33: =IFERROR(Scenarios!AL33,"") -> 0 | AM33: =IFERROR(Scenarios!AM33,"") -> 0 | AN33: =IFERROR(Scenarios!AN33,"") -> 0 | AO33: =IFERROR(Scenarios!AO33,"") -> 0 | AP33: =IFERROR(Scenarios!AP33,"") -> 0 | AQ33: =IFERROR(Scenarios!AQ33,"") -> 0 | AR33: =IFERROR(Scenarios!AR33,"") -> 0 | AS33: =IFERROR(Scenarios!AS33,"") -> 0 | AT33: =IFERROR(Scenarios!AT33,"") -> 0 | AU33: =IFERROR(Scenarios!AU33,"") -> 0 | AV33: =IFERROR(Scenarios!AV33,"") -> 0 | AW33: =IFERROR(Scenarios!AW33,"") -> 0 | AX33: =IFERROR(Scenarios!AX33,"") -> 0 | AY33: =IFERROR(Scenarios!AY33,"") -> 0 | AZ33: =IFERROR(Scenarios!AZ33,"") -> 0 | BA33: =IFERROR(Scenarios!BA33,"") -> 0 | BB33: =IFERROR(Scenarios!BB33,"") -> 0 | BC33: =IFERROR(Scenarios!BC33,"") -> 0 | BD33: =IFERROR(Scenarios!BD33,"") -> 0 | BE33: =IFERROR(Scenarios!BE33,"") -> 0 | BF33: =IFERROR(Scenarios!BF33,"") -> 0 | BG33: =IFERROR(Scenarios!BG33,"") -> 0 | BH33: =IFERROR(Scenarios!BH33,"") -> 0 | BI33: =IFERROR(Scenarios!BI33,"") -> 0 | BJ33: =IFERROR(Scenarios!BJ33,"") -> 0 | BK33: =IFERROR(Scenarios!BK33,"") -> 0 | BL33: =IFERROR(Scenarios!BL33,"") -> 0 | BM33: =IFERROR(Scenarios!BM33,"") -> 0 | BN33: =IFERROR(Scenarios!BN33,"") -> 0 | BO33: =IFERROR(Scenarios!BO33,"") -> 0 | BP33: =IFERROR(Scenarios!BP33,"") -> 0 | BQ33: =IFERROR(Scenarios!BQ33,"") -> 0 | BR33: =IFERROR(Scenarios!BR33,"") -> 0 | BS33: =IFERROR(Scenarios!BS33,"") -> 0 | BT33: =IFERROR(Scenarios!BT33,"") -> 0 | BU33: =IFERROR(Scenarios!BU33,"") -> 0 | BV33: =IFERROR(Scenarios!BV33,"") -> 0 | BW33: =IFERROR(Scenarios!BW33,"") -> 0 | BX33: =IFERROR(Scenarios!BX33,"") -> 0 | BY33: =IFERROR(Scenarios!BY33,"") -> 0 | BZ33: =IFERROR(Scenarios!BZ33,"") -> 0 | CA33: =IFERROR(Scenarios!CA33,"") -> 0 | CB33: =IFERROR(Scenarios!CB33,"") -> 0 | CC33: =IFERROR(Scenarios!CC33,"") -> 0 | CD33: =IFERROR(Scenarios!CD33,"") -> 0 | CE33: =IFERROR(Scenarios!CE33,"") -> 0 | CF33: =IFERROR(Scenarios!CF33,"") -> 0 | CG33: =IFERROR(Scenarios!CG33,"") -> 0 | CH33: =IFERROR(Scenarios!CH33,"") -> 0 | CI33: =IFERROR(Scenarios!CI33,"") -> 0 | CJ33: =IFERROR(Scenarios!CJ33,"") -> 0 | CK33: =IFERROR(Scenarios!CK33,"") -> 0 | CL33: =IFERROR(Scenarios!CL33,"") -> 0 | CM33: =IFERROR(Scenarios!CM33,"") -> 0 | CN33: =IFERROR(Scenarios!CN33,"") -> 0 | CO33: =IFERROR(Scenarios!CO33,"") -> 0 | CP33: =IFERROR(Scenarios!CP33,"") -> 0 | CQ33: =IFERROR(Scenarios!CQ33,"") -> 0 | CR33: =IFERROR(Scenarios!CR33,"") -> 0 | CS33: =IFERROR(Scenarios!CS33,"") -> 0 | CT33: =IFERROR(Scenarios!CT33,"") -> 0 | CU33: =IFERROR(Scenarios!CU33,"") -> 0 | CV33: =IFERROR(Scenarios!CV33,"") -> 0 | CW33: =IFERROR(Scenarios!CW33,"") -> 0 | CX33: =IFERROR(Scenarios!CX33,"") -> 0 | CY33: =IFERROR(Scenarios!CY33,"") -> 0 | CZ33: =IFERROR(Scenarios!CZ33,"") -> 0 | DA33: =IFERROR(Scenarios!DA33,"") -> 0
A34: =IFERROR(Scenarios!A34,"") -> 0 | B34: =IFERROR(Scenarios!B34,"") -> 0 | C34: =IFERROR(Scenarios!C34,"") -> 0 | D34: =IFERROR(Scenarios!D34,"") -> 0 | E34: =IFERROR(Scenarios!E34,"") -> 0 | F34: =IFERROR(Scenarios!F34,"") -> 0 | G34: =IFERROR(Scenarios!G34,"") -> 0 | H34: =IFERROR(Scenarios!H34,"") -> 0 | I34: =IFERROR(Scenarios!I34,"") -> 0 | J34: =IFERROR(Scenarios!J34,"") -> 0 | K34: =IFERROR(Scenarios!K34,"") -> 0 | L34: =IFERROR(Scenarios!L34,"") -> 0 | M34: =IFERROR(Scenarios!M34,"") -> 0 | N34: =IFERROR(Scenarios!N34,"") -> 0 | O34: =IFERROR(Scenarios!O34,"") -> 0 | P34: =IFERROR(Scenarios!P34,"") -> 0 | Q34: =IFERROR(Scenarios!Q34,"") -> 0 | R34: =IFERROR(Scenarios!R34,"") -> 0 | S34: =IFERROR(Scenarios!S34,"") -> 0 | T34: =IFERROR(Scenarios!T34,"") -> 0 | U34: =IFERROR(Scenarios!U34,"") -> 0 | V34: =IFERROR(Scenarios!V34,"") -> 0 | W34: =IFERROR(Scenarios!W34,"") -> 0 | X34: =IFERROR(Scenarios!X34,"") -> 0 | Y34: =IFERROR(Scenarios!Y34,"") -> 0 | Z34: =IFERROR(Scenarios!Z34,"") -> 0 | AA34: =IFERROR(Scenarios!AA34,"") -> 0 | AB34: =IFERROR(Scenarios!AB34,"") -> 0 | AC34: =IFERROR(Scenarios!AC34,"") -> 0 | AD34: =IFERROR(Scenarios!AD34,"") -> 0 | AE34: =IFERROR(Scenarios!AE34,"") -> 0 | AF34: =IFERROR(Scenarios!AF34,"") -> 0 | AG34: =IFERROR(Scenarios!AG34,"") -> 0 | AH34: =IFERROR(Scenarios!AH34,"") -> 0 | AI34: =IFERROR(Scenarios!AI34,"") -> 0 | AJ34: =IFERROR(Scenarios!AJ34,"") -> 0 | AK34: =IFERROR(Scenarios!AK34,"") -> 0 | AL34: =IFERROR(Scenarios!AL34,"") -> 0 | AM34: =IFERROR(Scenarios!AM34,"") -> 0 | AN34: =IFERROR(Scenarios!AN34,"") -> 0 | AO34: =IFERROR(Scenarios!AO34,"") -> 0 | AP34: =IFERROR(Scenarios!AP34,"") -> 0 | AQ34: =IFERROR(Scenarios!AQ34,"") -> 0 | AR34: =IFERROR(Scenarios!AR34,"") -> 0 | AS34: =IFERROR(Scenarios!AS34,"") -> 0 | AT34: =IFERROR(Scenarios!AT34,"") -> 0 | AU34: =IFERROR(Scenarios!AU34,"") -> 0 | AV34: =IFERROR(Scenarios!AV34,"") -> 0 | AW34: =IFERROR(Scenarios!AW34,"") -> 0 | AX34: =IFERROR(Scenarios!AX34,"") -> 0 | AY34: =IFERROR(Scenarios!AY34,"") -> 0 | AZ34: =IFERROR(Scenarios!AZ34,"") -> 0 | BA34: =IFERROR(Scenarios!BA34,"") -> 0 | BB34: =IFERROR(Scenarios!BB34,"") -> 0 | BC34: =IFERROR(Scenarios!BC34,"") -> 0 | BD34: =IFERROR(Scenarios!BD34,"") -> 0 | BE34: =IFERROR(Scenarios!BE34,"") -> 0 | BF34: =IFERROR(Scenarios!BF34,"") -> 0 | BG34: =IFERROR(Scenarios!BG34,"") -> 0 | BH34: =IFERROR(Scenarios!BH34,"") -> 0 | BI34: =IFERROR(Scenarios!BI34,"") -> 0 | BJ34: =IFERROR(Scenarios!BJ34,"") -> 0 | BK34: =IFERROR(Scenarios!BK34,"") -> 0 | BL34: =IFERROR(Scenarios!BL34,"") -> 0 | BM34: =IFERROR(Scenarios!BM34,"") -> 0 | BN34: =IFERROR(Scenarios!BN34,"") -> 0 | BO34: =IFERROR(Scenarios!BO34,"") -> 0 | BP34: =IFERROR(Scenarios!BP34,"") -> 0 | BQ34: =IFERROR(Scenarios!BQ34,"") -> 0 | BR34: =IFERROR(Scenarios!BR34,"") -> 0 | BS34: =IFERROR(Scenarios!BS34,"") -> 0 | BT34: =IFERROR(Scenarios!BT34,"") -> 0 | BU34: =IFERROR(Scenarios!BU34,"") -> 0 | BV34: =IFERROR(Scenarios!BV34,"") -> 0 | BW34: =IFERROR(Scenarios!BW34,"") -> 0 | BX34: =IFERROR(Scenarios!BX34,"") -> 0 | BY34: =IFERROR(Scenarios!BY34,"") -> 0 | BZ34: =IFERROR(Scenarios!BZ34,"") -> 0 | CA34: =IFERROR(Scenarios!CA34,"") -> 0 | CB34: =IFERROR(Scenarios!CB34,"") -> 0 | CC34: =IFERROR(Scenarios!CC34,"") -> 0 | CD34: =IFERROR(Scenarios!CD34,"") -> 0 | CE34: =IFERROR(Scenarios!CE34,"") -> 0 | CF34: =IFERROR(Scenarios!CF34,"") -> 0 | CG34: =IFERROR(Scenarios!CG34,"") -> 0 | CH34: =IFERROR(Scenarios!CH34,"") -> 0 | CI34: =IFERROR(Scenarios!CI34,"") -> 0 | CJ34: =IFERROR(Scenarios!CJ34,"") -> 0 | CK34: =IFERROR(Scenarios!CK34,"") -> 0 | CL34: =IFERROR(Scenarios!CL34,"") -> 0 | CM34: =IFERROR(Scenarios!CM34,"") -> 0 | CN34: =IFERROR(Scenarios!CN34,"") -> 0 | CO34: =IFERROR(Scenarios!CO34,"") -> 0 | CP34: =IFERROR(Scenarios!CP34,"") -> 0 | CQ34: =IFERROR(Scenarios!CQ34,"") -> 0 | CR34: =IFERROR(Scenarios!CR34,"") -> 0 | CS34: =IFERROR(Scenarios!CS34,"") -> 0 | CT34: =IFERROR(Scenarios!CT34,"") -> 0 | CU34: =IFERROR(Scenarios!CU34,"") -> 0 | CV34: =IFERROR(Scenarios!CV34,"") -> 0 | CW34: =IFERROR(Scenarios!CW34,"") -> 0 | CX34: =IFERROR(Scenarios!CX34,"") -> 0 | CY34: =IFERROR(Scenarios!CY34,"") -> 0 | CZ34: =IFERROR(Scenarios!CZ34,"") -> 0 | DA34: =IFERROR(Scenarios!DA34,"") -> 0
A35: =IFERROR(Scenarios!A35,"") -> 0 | B35: =IFERROR(Scenarios!B35,"") -> 0 | C35: =IFERROR(Scenarios!C35,"") -> 0 | D35: =IFERROR(Scenarios!D35,"") -> 0 | E35: =IFERROR(Scenarios!E35,"") -> 0 | F35: =IFERROR(Scenarios!F35,"") -> 0 | G35: =IFERROR(Scenarios!G35,"") -> 0 | H35: =IFERROR(Scenarios!H35,"") -> 0 | I35: =IFERROR(Scenarios!I35,"") -> 0 | J35: =IFERROR(Scenarios!J35,"") -> 0 | K35: =IFERROR(Scenarios!K35,"") -> 0 | L35: =IFERROR(Scenarios!L35,"") -> 0 | M35: =IFERROR(Scenarios!M35,"") -> 0 | N35: =IFERROR(Scenarios!N35,"") -> 0 | O35: =IFERROR(Scenarios!O35,"") -> 0 | P35: =IFERROR(Scenarios!P35,"") -> 0 | Q35: =IFERROR(Scenarios!Q35,"") -> 0 | R35: =IFERROR(Scenarios!R35,"") -> 0 | S35: =IFERROR(Scenarios!S35,"") -> 0 | T35: =IFERROR(Scenarios!T35,"") -> 0 | U35: =IFERROR(Scenarios!U35,"") -> 0 | V35: =IFERROR(Scenarios!V35,"") -> 0 | W35: =IFERROR(Scenarios!W35,"") -> 0 | X35: =IFERROR(Scenarios!X35,"") -> 0 | Y35: =IFERROR(Scenarios!Y35,"") -> 0 | Z35: =IFERROR(Scenarios!Z35,"") -> 0 | AA35: =IFERROR(Scenarios!AA35,"") -> 0 | AB35: =IFERROR(Scenarios!AB35,"") -> 0 | AC35: =IFERROR(Scenarios!AC35,"") -> 0 | AD35: =IFERROR(Scenarios!AD35,"") -> 0 | AE35: =IFERROR(Scenarios!AE35,"") -> 0 | AF35: =IFERROR(Scenarios!AF35,"") -> 0 | AG35: =IFERROR(Scenarios!AG35,"") -> 0 | AH35: =IFERROR(Scenarios!AH35,"") -> 0 | AI35: =IFERROR(Scenarios!AI35,"") -> 0 | AJ35: =IFERROR(Scenarios!AJ35,"") -> 0 | AK35: =IFERROR(Scenarios!AK35,"") -> 0 | AL35: =IFERROR(Scenarios!AL35,"") -> 0 | AM35: =IFERROR(Scenarios!AM35,"") -> 0 | AN35: =IFERROR(Scenarios!AN35,"") -> 0 | AO35: =IFERROR(Scenarios!AO35,"") -> 0 | AP35: =IFERROR(Scenarios!AP35,"") -> 0 | AQ35: =IFERROR(Scenarios!AQ35,"") -> 0 | AR35: =IFERROR(Scenarios!AR35,"") -> 0 | AS35: =IFERROR(Scenarios!AS35,"") -> 0 | AT35: =IFERROR(Scenarios!AT35,"") -> 0 | AU35: =IFERROR(Scenarios!AU35,"") -> 0 | AV35: =IFERROR(Scenarios!AV35,"") -> 0 | AW35: =IFERROR(Scenarios!AW35,"") -> 0 | AX35: =IFERROR(Scenarios!AX35,"") -> 0 | AY35: =IFERROR(Scenarios!AY35,"") -> 0 | AZ35: =IFERROR(Scenarios!AZ35,"") -> 0 | BA35: =IFERROR(Scenarios!BA35,"") -> 0 | BB35: =IFERROR(Scenarios!BB35,"") -> 0 | BC35: =IFERROR(Scenarios!BC35,"") -> 0 | BD35: =IFERROR(Scenarios!BD35,"") -> 0 | BE35: =IFERROR(Scenarios!BE35,"") -> 0 | BF35: =IFERROR(Scenarios!BF35,"") -> 0 | BG35: =IFERROR(Scenarios!BG35,"") -> 0 | BH35: =IFERROR(Scenarios!BH35,"") -> 0 | BI35: =IFERROR(Scenarios!BI35,"") -> 0 | BJ35: =IFERROR(Scenarios!BJ35,"") -> 0 | BK35: =IFERROR(Scenarios!BK35,"") -> 0 | BL35: =IFERROR(Scenarios!BL35,"") -> 0 | BM35: =IFERROR(Scenarios!BM35,"") -> 0 | BN35: =IFERROR(Scenarios!BN35,"") -> 0 | BO35: =IFERROR(Scenarios!BO35,"") -> 0 | BP35: =IFERROR(Scenarios!BP35,"") -> 0 | BQ35: =IFERROR(Scenarios!BQ35,"") -> 0 | BR35: =IFERROR(Scenarios!BR35,"") -> 0 | BS35: =IFERROR(Scenarios!BS35,"") -> 0 | BT35: =IFERROR(Scenarios!BT35,"") -> 0 | BU35: =IFERROR(Scenarios!BU35,"") -> 0 | BV35: =IFERROR(Scenarios!BV35,"") -> 0 | BW35: =IFERROR(Scenarios!BW35,"") -> 0 | BX35: =IFERROR(Scenarios!BX35,"") -> 0 | BY35: =IFERROR(Scenarios!BY35,"") -> 0 | BZ35: =IFERROR(Scenarios!BZ35,"") -> 0 | CA35: =IFERROR(Scenarios!CA35,"") -> 0 | CB35: =IFERROR(Scenarios!CB35,"") -> 0 | CC35: =IFERROR(Scenarios!CC35,"") -> 0 | CD35: =IFERROR(Scenarios!CD35,"") -> 0 | CE35: =IFERROR(Scenarios!CE35,"") -> 0 | CF35: =IFERROR(Scenarios!CF35,"") -> 0 | CG35: =IFERROR(Scenarios!CG35,"") -> 0 | CH35: =IFERROR(Scenarios!CH35,"") -> 0 | CI35: =IFERROR(Scenarios!CI35,"") -> 0 | CJ35: =IFERROR(Scenarios!CJ35,"") -> 0 | CK35: =IFERROR(Scenarios!CK35,"") -> 0 | CL35: =IFERROR(Scenarios!CL35,"") -> 0 | CM35: =IFERROR(Scenarios!CM35,"") -> 0 | CN35: =IFERROR(Scenarios!CN35,"") -> 0 | CO35: =IFERROR(Scenarios!CO35,"") -> 0 | CP35: =IFERROR(Scenarios!CP35,"") -> 0 | CQ35: =IFERROR(Scenarios!CQ35,"") -> 0 | CR35: =IFERROR(Scenarios!CR35,"") -> 0 | CS35: =IFERROR(Scenarios!CS35,"") -> 0 | CT35: =IFERROR(Scenarios!CT35,"") -> 0 | CU35: =IFERROR(Scenarios!CU35,"") -> 0 | CV35: =IFERROR(Scenarios!CV35,"") -> 0 | CW35: =IFERROR(Scenarios!CW35,"") -> 0 | CX35: =IFERROR(Scenarios!CX35,"") -> 0 | CY35: =IFERROR(Scenarios!CY35,"") -> 0 | CZ35: =IFERROR(Scenarios!CZ35,"") -> 0 | DA35: =IFERROR(Scenarios!DA35,"") -> 0
A36: =IFERROR(Scenarios!A36,"") -> 0 | B36: =IFERROR(Scenarios!B36,"") -> 0 | C36: =IFERROR(Scenarios!C36,"") -> 0 | D36: =IFERROR(Scenarios!D36,"") -> 0 | E36: =IFERROR(Scenarios!E36,"") -> 0 | F36: =IFERROR(Scenarios!F36,"") -> 0 | G36: =IFERROR(Scenarios!G36,"") -> 0 | H36: =IFERROR(Scenarios!H36,"") -> 0 | I36: =IFERROR(Scenarios!I36,"") -> 0 | J36: =IFERROR(Scenarios!J36,"") -> 0 | K36: =IFERROR(Scenarios!K36,"") -> 0 | L36: =IFERROR(Scenarios!L36,"") -> 0 | M36: =IFERROR(Scenarios!M36,"") -> 0 | N36: =IFERROR(Scenarios!N36,"") -> 0 | O36: =IFERROR(Scenarios!O36,"") -> 0 | P36: =IFERROR(Scenarios!P36,"") -> 0 | Q36: =IFERROR(Scenarios!Q36,"") -> 0 | R36: =IFERROR(Scenarios!R36,"") -> 0 | S36: =IFERROR(Scenarios!S36,"") -> 0 | T36: =IFERROR(Scenarios!T36,"") -> 0 | U36: =IFERROR(Scenarios!U36,"") -> 0 | V36: =IFERROR(Scenarios!V36,"") -> 0 | W36: =IFERROR(Scenarios!W36,"") -> 0 | X36: =IFERROR(Scenarios!X36,"") -> 0 | Y36: =IFERROR(Scenarios!Y36,"") -> 0 | Z36: =IFERROR(Scenarios!Z36,"") -> 0 | AA36: =IFERROR(Scenarios!AA36,"") -> 0 | AB36: =IFERROR(Scenarios!AB36,"") -> 0 | AC36: =IFERROR(Scenarios!AC36,"") -> 0 | AD36: =IFERROR(Scenarios!AD36,"") -> 0 | AE36: =IFERROR(Scenarios!AE36,"") -> 0 | AF36: =IFERROR(Scenarios!AF36,"") -> 0 | AG36: =IFERROR(Scenarios!AG36,"") -> 0 | AH36: =IFERROR(Scenarios!AH36,"") -> 0 | AI36: =IFERROR(Scenarios!AI36,"") -> 0 | AJ36: =IFERROR(Scenarios!AJ36,"") -> 0 | AK36: =IFERROR(Scenarios!AK36,"") -> 0 | AL36: =IFERROR(Scenarios!AL36,"") -> 0 | AM36: =IFERROR(Scenarios!AM36,"") -> 0 | AN36: =IFERROR(Scenarios!AN36,"") -> 0 | AO36: =IFERROR(Scenarios!AO36,"") -> 0 | AP36: =IFERROR(Scenarios!AP36,"") -> 0 | AQ36: =IFERROR(Scenarios!AQ36,"") -> 0 | AR36: =IFERROR(Scenarios!AR36,"") -> 0 | AS36: =IFERROR(Scenarios!AS36,"") -> 0 | AT36: =IFERROR(Scenarios!AT36,"") -> 0 | AU36: =IFERROR(Scenarios!AU36,"") -> 0 | AV36: =IFERROR(Scenarios!AV36,"") -> 0 | AW36: =IFERROR(Scenarios!AW36,"") -> 0 | AX36: =IFERROR(Scenarios!AX36,"") -> 0 | AY36: =IFERROR(Scenarios!AY36,"") -> 0 | AZ36: =IFERROR(Scenarios!AZ36,"") -> 0 | BA36: =IFERROR(Scenarios!BA36,"") -> 0 | BB36: =IFERROR(Scenarios!BB36,"") -> 0 | BC36: =IFERROR(Scenarios!BC36,"") -> 0 | BD36: =IFERROR(Scenarios!BD36,"") -> 0 | BE36: =IFERROR(Scenarios!BE36,"") -> 0 | BF36: =IFERROR(Scenarios!BF36,"") -> 0 | BG36: =IFERROR(Scenarios!BG36,"") -> 0 | BH36: =IFERROR(Scenarios!BH36,"") -> 0 | BI36: =IFERROR(Scenarios!BI36,"") -> 0 | BJ36: =IFERROR(Scenarios!BJ36,"") -> 0 | BK36: =IFERROR(Scenarios!BK36,"") -> 0 | BL36: =IFERROR(Scenarios!BL36,"") -> 0 | BM36: =IFERROR(Scenarios!BM36,"") -> 0 | BN36: =IFERROR(Scenarios!BN36,"") -> 0 | BO36: =IFERROR(Scenarios!BO36,"") -> 0 | BP36: =IFERROR(Scenarios!BP36,"") -> 0 | BQ36: =IFERROR(Scenarios!BQ36,"") -> 0 | BR36: =IFERROR(Scenarios!BR36,"") -> 0 | BS36: =IFERROR(Scenarios!BS36,"") -> 0 | BT36: =IFERROR(Scenarios!BT36,"") -> 0 | BU36: =IFERROR(Scenarios!BU36,"") -> 0 | BV36: =IFERROR(Scenarios!BV36,"") -> 0 | BW36: =IFERROR(Scenarios!BW36,"") -> 0 | BX36: =IFERROR(Scenarios!BX36,"") -> 0 | BY36: =IFERROR(Scenarios!BY36,"") -> 0 | BZ36: =IFERROR(Scenarios!BZ36,"") -> 0 | CA36: =IFERROR(Scenarios!CA36,"") -> 0 | CB36: =IFERROR(Scenarios!CB36,"") -> 0 | CC36: =IFERROR(Scenarios!CC36,"") -> 0 | CD36: =IFERROR(Scenarios!CD36,"") -> 0 | CE36: =IFERROR(Scenarios!CE36,"") -> 0 | CF36: =IFERROR(Scenarios!CF36,"") -> 0 | CG36: =IFERROR(Scenarios!CG36,"") -> 0 | CH36: =IFERROR(Scenarios!CH36,"") -> 0 | CI36: =IFERROR(Scenarios!CI36,"") -> 0 | CJ36: =IFERROR(Scenarios!CJ36,"") -> 0 | CK36: =IFERROR(Scenarios!CK36,"") -> 0 | CL36: =IFERROR(Scenarios!CL36,"") -> 0 | CM36: =IFERROR(Scenarios!CM36,"") -> 0 | CN36: =IFERROR(Scenarios!CN36,"") -> 0 | CO36: =IFERROR(Scenarios!CO36,"") -> 0 | CP36: =IFERROR(Scenarios!CP36,"") -> 0 | CQ36: =IFERROR(Scenarios!CQ36,"") -> 0 | CR36: =IFERROR(Scenarios!CR36,"") -> 0 | CS36: =IFERROR(Scenarios!CS36,"") -> 0 | CT36: =IFERROR(Scenarios!CT36,"") -> 0 | CU36: =IFERROR(Scenarios!CU36,"") -> 0 | CV36: =IFERROR(Scenarios!CV36,"") -> 0 | CW36: =IFERROR(Scenarios!CW36,"") -> 0 | CX36: =IFERROR(Scenarios!CX36,"") -> 0 | CY36: =IFERROR(Scenarios!CY36,"") -> 0 | CZ36: =IFERROR(Scenarios!CZ36,"") -> 0 | DA36: =IFERROR(Scenarios!DA36,"") -> 0
A37: =IFERROR(Scenarios!A37,"") -> 0 | B37: =IFERROR(Scenarios!B37,"") -> 0 | C37: =IFERROR(Scenarios!C37,"") -> 0 | D37: =IFERROR(Scenarios!D37,"") -> 0 | E37: =IFERROR(Scenarios!E37,"") -> 0 | F37: =IFERROR(Scenarios!F37,"") -> 0 | G37: =IFERROR(Scenarios!G37,"") -> 0 | H37: =IFERROR(Scenarios!H37,"") -> 0 | I37: =IFERROR(Scenarios!I37,"") -> 0 | J37: =IFERROR(Scenarios!J37,"") -> 0 | K37: =IFERROR(Scenarios!K37,"") -> 0 | L37: =IFERROR(Scenarios!L37,"") -> 0 | M37: =IFERROR(Scenarios!M37,"") -> 0 | N37: =IFERROR(Scenarios!N37,"") -> 0 | O37: =IFERROR(Scenarios!O37,"") -> 0 | P37: =IFERROR(Scenarios!P37,"") -> 0 | Q37: =IFERROR(Scenarios!Q37,"") -> 0 | R37: =IFERROR(Scenarios!R37,"") -> 0 | S37: =IFERROR(Scenarios!S37,"") -> 0 | T37: =IFERROR(Scenarios!T37,"") -> 0 | U37: =IFERROR(Scenarios!U37,"") -> 0 | V37: =IFERROR(Scenarios!V37,"") -> 0 | W37: =IFERROR(Scenarios!W37,"") -> 0 | X37: =IFERROR(Scenarios!X37,"") -> 0 | Y37: =IFERROR(Scenarios!Y37,"") -> 0 | Z37: =IFERROR(Scenarios!Z37,"") -> 0 | AA37: =IFERROR(Scenarios!AA37,"") -> 0 | AB37: =IFERROR(Scenarios!AB37,"") -> 0 | AC37: =IFERROR(Scenarios!AC37,"") -> 0 | AD37: =IFERROR(Scenarios!AD37,"") -> 0 | AE37: =IFERROR(Scenarios!AE37,"") -> 0 | AF37: =IFERROR(Scenarios!AF37,"") -> 0 | AG37: =IFERROR(Scenarios!AG37,"") -> 0 | AH37: =IFERROR(Scenarios!AH37,"") -> 0 | AI37: =IFERROR(Scenarios!AI37,"") -> 0 | AJ37: =IFERROR(Scenarios!AJ37,"") -> 0 | AK37: =IFERROR(Scenarios!AK37,"") -> 0 | AL37: =IFERROR(Scenarios!AL37,"") -> 0 | AM37: =IFERROR(Scenarios!AM37,"") -> 0 | AN37: =IFERROR(Scenarios!AN37,"") -> 0 | AO37: =IFERROR(Scenarios!AO37,"") -> 0 | AP37: =IFERROR(Scenarios!AP37,"") -> 0 | AQ37: =IFERROR(Scenarios!AQ37,"") -> 0 | AR37: =IFERROR(Scenarios!AR37,"") -> 0 | AS37: =IFERROR(Scenarios!AS37,"") -> 0 | AT37: =IFERROR(Scenarios!AT37,"") -> 0 | AU37: =IFERROR(Scenarios!AU37,"") -> 0 | AV37: =IFERROR(Scenarios!AV37,"") -> 0 | AW37: =IFERROR(Scenarios!AW37,"") -> 0 | AX37: =IFERROR(Scenarios!AX37,"") -> 0 | AY37: =IFERROR(Scenarios!AY37,"") -> 0 | AZ37: =IFERROR(Scenarios!AZ37,"") -> 0 | BA37: =IFERROR(Scenarios!BA37,"") -> 0 | BB37: =IFERROR(Scenarios!BB37,"") -> 0 | BC37: =IFERROR(Scenarios!BC37,"") -> 0 | BD37: =IFERROR(Scenarios!BD37,"") -> 0 | BE37: =IFERROR(Scenarios!BE37,"") -> 0 | BF37: =IFERROR(Scenarios!BF37,"") -> 0 | BG37: =IFERROR(Scenarios!BG37,"") -> 0 | BH37: =IFERROR(Scenarios!BH37,"") -> 0 | BI37: =IFERROR(Scenarios!BI37,"") -> 0 | BJ37: =IFERROR(Scenarios!BJ37,"") -> 0 | BK37: =IFERROR(Scenarios!BK37,"") -> 0 | BL37: =IFERROR(Scenarios!BL37,"") -> 0 | BM37: =IFERROR(Scenarios!BM37,"") -> 0 | BN37: =IFERROR(Scenarios!BN37,"") -> 0 | BO37: =IFERROR(Scenarios!BO37,"") -> 0 | BP37: =IFERROR(Scenarios!BP37,"") -> 0 | BQ37: =IFERROR(Scenarios!BQ37,"") -> 0 | BR37: =IFERROR(Scenarios!BR37,"") -> 0 | BS37: =IFERROR(Scenarios!BS37,"") -> 0 | BT37: =IFERROR(Scenarios!BT37,"") -> 0 | BU37: =IFERROR(Scenarios!BU37,"") -> 0 | BV37: =IFERROR(Scenarios!BV37,"") -> 0 | BW37: =IFERROR(Scenarios!BW37,"") -> 0 | BX37: =IFERROR(Scenarios!BX37,"") -> 0 | BY37: =IFERROR(Scenarios!BY37,"") -> 0 | BZ37: =IFERROR(Scenarios!BZ37,"") -> 0 | CA37: =IFERROR(Scenarios!CA37,"") -> 0 | CB37: =IFERROR(Scenarios!CB37,"") -> 0 | CC37: =IFERROR(Scenarios!CC37,"") -> 0 | CD37: =IFERROR(Scenarios!CD37,"") -> 0 | CE37: =IFERROR(Scenarios!CE37,"") -> 0 | CF37: =IFERROR(Scenarios!CF37,"") -> 0 | CG37: =IFERROR(Scenarios!CG37,"") -> 0 | CH37: =IFERROR(Scenarios!CH37,"") -> 0 | CI37: =IFERROR(Scenarios!CI37,"") -> 0 | CJ37: =IFERROR(Scenarios!CJ37,"") -> 0 | CK37: =IFERROR(Scenarios!CK37,"") -> 0 | CL37: =IFERROR(Scenarios!CL37,"") -> 0 | CM37: =IFERROR(Scenarios!CM37,"") -> 0 | CN37: =IFERROR(Scenarios!CN37,"") -> 0 | CO37: =IFERROR(Scenarios!CO37,"") -> 0 | CP37: =IFERROR(Scenarios!CP37,"") -> 0 | CQ37: =IFERROR(Scenarios!CQ37,"") -> 0 | CR37: =IFERROR(Scenarios!CR37,"") -> 0 | CS37: =IFERROR(Scenarios!CS37,"") -> 0 | CT37: =IFERROR(Scenarios!CT37,"") -> 0 | CU37: =IFERROR(Scenarios!CU37,"") -> 0 | CV37: =IFERROR(Scenarios!CV37,"") -> 0 | CW37: =IFERROR(Scenarios!CW37,"") -> 0 | CX37: =IFERROR(Scenarios!CX37,"") -> 0 | CY37: =IFERROR(Scenarios!CY37,"") -> 0 | CZ37: =IFERROR(Scenarios!CZ37,"") -> 0 | DA37: =IFERROR(Scenarios!DA37,"") -> 0
A38: =IFERROR(Scenarios!A38,"") -> 0 | B38: =IFERROR(Scenarios!B38,"") -> 0 | C38: =IFERROR(Scenarios!C38,"") -> 0 | D38: =IFERROR(Scenarios!D38,"") -> 0 | E38: =IFERROR(Scenarios!E38,"") -> 0 | F38: =IFERROR(Scenarios!F38,"") -> 0 | G38: =IFERROR(Scenarios!G38,"") -> 0 | H38: =IFERROR(Scenarios!H38,"") -> 0 | I38: =IFERROR(Scenarios!I38,"") -> 0 | J38: =IFERROR(Scenarios!J38,"") -> 0 | K38: =IFERROR(Scenarios!K38,"") -> 0 | L38: =IFERROR(Scenarios!L38,"") -> 0 | M38: =IFERROR(Scenarios!M38,"") -> 0 | N38: =IFERROR(Scenarios!N38,"") -> 0 | O38: =IFERROR(Scenarios!O38,"") -> 0 | P38: =IFERROR(Scenarios!P38,"") -> 0 | Q38: =IFERROR(Scenarios!Q38,"") -> 0 | R38: =IFERROR(Scenarios!R38,"") -> 0 | S38: =IFERROR(Scenarios!S38,"") -> 0 | T38: =IFERROR(Scenarios!T38,"") -> 0 | U38: =IFERROR(Scenarios!U38,"") -> 0 | V38: =IFERROR(Scenarios!V38,"") -> 0 | W38: =IFERROR(Scenarios!W38,"") -> 0 | X38: =IFERROR(Scenarios!X38,"") -> 0 | Y38: =IFERROR(Scenarios!Y38,"") -> 0 | Z38: =IFERROR(Scenarios!Z38,"") -> 0 | AA38: =IFERROR(Scenarios!AA38,"") -> 0 | AB38: =IFERROR(Scenarios!AB38,"") -> 0 | AC38: =IFERROR(Scenarios!AC38,"") -> 0 | AD38: =IFERROR(Scenarios!AD38,"") -> 0 | AE38: =IFERROR(Scenarios!AE38,"") -> 0 | AF38: =IFERROR(Scenarios!AF38,"") -> 0 | AG38: =IFERROR(Scenarios!AG38,"") -> 0 | AH38: =IFERROR(Scenarios!AH38,"") -> 0 | AI38: =IFERROR(Scenarios!AI38,"") -> 0 | AJ38: =IFERROR(Scenarios!AJ38,"") -> 0 | AK38: =IFERROR(Scenarios!AK38,"") -> 0 | AL38: =IFERROR(Scenarios!AL38,"") -> 0 | AM38: =IFERROR(Scenarios!AM38,"") -> 0 | AN38: =IFERROR(Scenarios!AN38,"") -> 0 | AO38: =IFERROR(Scenarios!AO38,"") -> 0 | AP38: =IFERROR(Scenarios!AP38,"") -> 0 | AQ38: =IFERROR(Scenarios!AQ38,"") -> 0 | AR38: =IFERROR(Scenarios!AR38,"") -> 0 | AS38: =IFERROR(Scenarios!AS38,"") -> 0 | AT38: =IFERROR(Scenarios!AT38,"") -> 0 | AU38: =IFERROR(Scenarios!AU38,"") -> 0 | AV38: =IFERROR(Scenarios!AV38,"") -> 0 | AW38: =IFERROR(Scenarios!AW38,"") -> 0 | AX38: =IFERROR(Scenarios!AX38,"") -> 0 | AY38: =IFERROR(Scenarios!AY38,"") -> 0 | AZ38: =IFERROR(Scenarios!AZ38,"") -> 0 | BA38: =IFERROR(Scenarios!BA38,"") -> 0 | BB38: =IFERROR(Scenarios!BB38,"") -> 0 | BC38: =IFERROR(Scenarios!BC38,"") -> 0 | BD38: =IFERROR(Scenarios!BD38,"") -> 0 | BE38: =IFERROR(Scenarios!BE38,"") -> 0 | BF38: =IFERROR(Scenarios!BF38,"") -> 0 | BG38: =IFERROR(Scenarios!BG38,"") -> 0 | BH38: =IFERROR(Scenarios!BH38,"") -> 0 | BI38: =IFERROR(Scenarios!BI38,"") -> 0 | BJ38: =IFERROR(Scenarios!BJ38,"") -> 0 | BK38: =IFERROR(Scenarios!BK38,"") -> 0 | BL38: =IFERROR(Scenarios!BL38,"") -> 0 | BM38: =IFERROR(Scenarios!BM38,"") -> 0 | BN38: =IFERROR(Scenarios!BN38,"") -> 0 | BO38: =IFERROR(Scenarios!BO38,"") -> 0 | BP38: =IFERROR(Scenarios!BP38,"") -> 0 | BQ38: =IFERROR(Scenarios!BQ38,"") -> 0 | BR38: =IFERROR(Scenarios!BR38,"") -> 0 | BS38: =IFERROR(Scenarios!BS38,"") -> 0 | BT38: =IFERROR(Scenarios!BT38,"") -> 0 | BU38: =IFERROR(Scenarios!BU38,"") -> 0 | BV38: =IFERROR(Scenarios!BV38,"") -> 0 | BW38: =IFERROR(Scenarios!BW38,"") -> 0 | BX38: =IFERROR(Scenarios!BX38,"") -> 0 | BY38: =IFERROR(Scenarios!BY38,"") -> 0 | BZ38: =IFERROR(Scenarios!BZ38,"") -> 0 | CA38: =IFERROR(Scenarios!CA38,"") -> 0 | CB38: =IFERROR(Scenarios!CB38,"") -> 0 | CC38: =IFERROR(Scenarios!CC38,"") -> 0 | CD38: =IFERROR(Scenarios!CD38,"") -> 0 | CE38: =IFERROR(Scenarios!CE38,"") -> 0 | CF38: =IFERROR(Scenarios!CF38,"") -> 0 | CG38: =IFERROR(Scenarios!CG38,"") -> 0 | CH38: =IFERROR(Scenarios!CH38,"") -> 0 | CI38: =IFERROR(Scenarios!CI38,"") -> 0 | CJ38: =IFERROR(Scenarios!CJ38,"") -> 0 | CK38: =IFERROR(Scenarios!CK38,"") -> 0 | CL38: =IFERROR(Scenarios!CL38,"") -> 0 | CM38: =IFERROR(Scenarios!CM38,"") -> 0 | CN38: =IFERROR(Scenarios!CN38,"") -> 0 | CO38: =IFERROR(Scenarios!CO38,"") -> 0 | CP38: =IFERROR(Scenarios!CP38,"") -> 0 | CQ38: =IFERROR(Scenarios!CQ38,"") -> 0 | CR38: =IFERROR(Scenarios!CR38,"") -> 0 | CS38: =IFERROR(Scenarios!CS38,"") -> 0 | CT38: =IFERROR(Scenarios!CT38,"") -> 0 | CU38: =IFERROR(Scenarios!CU38,"") -> 0 | CV38: =IFERROR(Scenarios!CV38,"") -> 0 | CW38: =IFERROR(Scenarios!CW38,"") -> 0 | CX38: =IFERROR(Scenarios!CX38,"") -> 0 | CY38: =IFERROR(Scenarios!CY38,"") -> 0 | CZ38: =IFERROR(Scenarios!CZ38,"") -> 0 | DA38: =IFERROR(Scenarios!DA38,"") -> 0
A39: =IFERROR(Scenarios!A39,"") -> 0 | B39: =IFERROR(Scenarios!B39,"") -> 0 | C39: =IFERROR(Scenarios!C39,"") -> 0 | D39: =IFERROR(Scenarios!D39,"") -> 0 | E39: =IFERROR(Scenarios!E39,"") -> 0 | F39: =IFERROR(Scenarios!F39,"") -> 0 | G39: =IFERROR(Scenarios!G39,"") -> 0 | H39: =IFERROR(Scenarios!H39,"") -> 0 | I39: =IFERROR(Scenarios!I39,"") -> 0 | J39: =IFERROR(Scenarios!J39,"") -> 0 | K39: =IFERROR(Scenarios!K39,"") -> 0 | L39: =IFERROR(Scenarios!L39,"") -> 0 | M39: =IFERROR(Scenarios!M39,"") -> 0 | N39: =IFERROR(Scenarios!N39,"") -> 0 | O39: =IFERROR(Scenarios!O39,"") -> 0 | P39: =IFERROR(Scenarios!P39,"") -> 0 | Q39: =IFERROR(Scenarios!Q39,"") -> 0 | R39: =IFERROR(Scenarios!R39,"") -> 0 | S39: =IFERROR(Scenarios!S39,"") -> 0 | T39: =IFERROR(Scenarios!T39,"") -> 0 | U39: =IFERROR(Scenarios!U39,"") -> 0 | V39: =IFERROR(Scenarios!V39,"") -> 0 | W39: =IFERROR(Scenarios!W39,"") -> 0 | X39: =IFERROR(Scenarios!X39,"") -> 0 | Y39: =IFERROR(Scenarios!Y39,"") -> 0 | Z39: =IFERROR(Scenarios!Z39,"") -> 0 | AA39: =IFERROR(Scenarios!AA39,"") -> 0 | AB39: =IFERROR(Scenarios!AB39,"") -> 0 | AC39: =IFERROR(Scenarios!AC39,"") -> 0 | AD39: =IFERROR(Scenarios!AD39,"") -> 0 | AE39: =IFERROR(Scenarios!AE39,"") -> 0 | AF39: =IFERROR(Scenarios!AF39,"") -> 0 | AG39: =IFERROR(Scenarios!AG39,"") -> 0 | AH39: =IFERROR(Scenarios!AH39,"") -> 0 | AI39: =IFERROR(Scenarios!AI39,"") -> 0 | AJ39: =IFERROR(Scenarios!AJ39,"") -> 0 | AK39: =IFERROR(Scenarios!AK39,"") -> 0 | AL39: =IFERROR(Scenarios!AL39,"") -> 0 | AM39: =IFERROR(Scenarios!AM39,"") -> 0 | AN39: =IFERROR(Scenarios!AN39,"") -> 0 | AO39: =IFERROR(Scenarios!AO39,"") -> 0 | AP39: =IFERROR(Scenarios!AP39,"") -> 0 | AQ39: =IFERROR(Scenarios!AQ39,"") -> 0 | AR39: =IFERROR(Scenarios!AR39,"") -> 0 | AS39: =IFERROR(Scenarios!AS39,"") -> 0 | AT39: =IFERROR(Scenarios!AT39,"") -> 0 | AU39: =IFERROR(Scenarios!AU39,"") -> 0 | AV39: =IFERROR(Scenarios!AV39,"") -> 0 | AW39: =IFERROR(Scenarios!AW39,"") -> 0 | AX39: =IFERROR(Scenarios!AX39,"") -> 0 | AY39: =IFERROR(Scenarios!AY39,"") -> 0 | AZ39: =IFERROR(Scenarios!AZ39,"") -> 0 | BA39: =IFERROR(Scenarios!BA39,"") -> 0 | BB39: =IFERROR(Scenarios!BB39,"") -> 0 | BC39: =IFERROR(Scenarios!BC39,"") -> 0 | BD39: =IFERROR(Scenarios!BD39,"") -> 0 | BE39: =IFERROR(Scenarios!BE39,"") -> 0 | BF39: =IFERROR(Scenarios!BF39,"") -> 0 | BG39: =IFERROR(Scenarios!BG39,"") -> 0 | BH39: =IFERROR(Scenarios!BH39,"") -> 0 | BI39: =IFERROR(Scenarios!BI39,"") -> 0 | BJ39: =IFERROR(Scenarios!BJ39,"") -> 0 | BK39: =IFERROR(Scenarios!BK39,"") -> 0 | BL39: =IFERROR(Scenarios!BL39,"") -> 0 | BM39: =IFERROR(Scenarios!BM39,"") -> 0 | BN39: =IFERROR(Scenarios!BN39,"") -> 0 | BO39: =IFERROR(Scenarios!BO39,"") -> 0 | BP39: =IFERROR(Scenarios!BP39,"") -> 0 | BQ39: =IFERROR(Scenarios!BQ39,"") -> 0 | BR39: =IFERROR(Scenarios!BR39,"") -> 0 | BS39: =IFERROR(Scenarios!BS39,"") -> 0 | BT39: =IFERROR(Scenarios!BT39,"") -> 0 | BU39: =IFERROR(Scenarios!BU39,"") -> 0 | BV39: =IFERROR(Scenarios!BV39,"") -> 0 | BW39: =IFERROR(Scenarios!BW39,"") -> 0 | BX39: =IFERROR(Scenarios!BX39,"") -> 0 | BY39: =IFERROR(Scenarios!BY39,"") -> 0 | BZ39: =IFERROR(Scenarios!BZ39,"") -> 0 | CA39: =IFERROR(Scenarios!CA39,"") -> 0 | CB39: =IFERROR(Scenarios!CB39,"") -> 0 | CC39: =IFERROR(Scenarios!CC39,"") -> 0 | CD39: =IFERROR(Scenarios!CD39,"") -> 0 | CE39: =IFERROR(Scenarios!CE39,"") -> 0 | CF39: =IFERROR(Scenarios!CF39,"") -> 0 | CG39: =IFERROR(Scenarios!CG39,"") -> 0 | CH39: =IFERROR(Scenarios!CH39,"") -> 0 | CI39: =IFERROR(Scenarios!CI39,"") -> 0 | CJ39: =IFERROR(Scenarios!CJ39,"") -> 0 | CK39: =IFERROR(Scenarios!CK39,"") -> 0 | CL39: =IFERROR(Scenarios!CL39,"") -> 0 | CM39: =IFERROR(Scenarios!CM39,"") -> 0 | CN39: =IFERROR(Scenarios!CN39,"") -> 0 | CO39: =IFERROR(Scenarios!CO39,"") -> 0 | CP39: =IFERROR(Scenarios!CP39,"") -> 0 | CQ39: =IFERROR(Scenarios!CQ39,"") -> 0 | CR39: =IFERROR(Scenarios!CR39,"") -> 0 | CS39: =IFERROR(Scenarios!CS39,"") -> 0 | CT39: =IFERROR(Scenarios!CT39,"") -> 0 | CU39: =IFERROR(Scenarios!CU39,"") -> 0 | CV39: =IFERROR(Scenarios!CV39,"") -> 0 | CW39: =IFERROR(Scenarios!CW39,"") -> 0 | CX39: =IFERROR(Scenarios!CX39,"") -> 0 | CY39: =IFERROR(Scenarios!CY39,"") -> 0 | CZ39: =IFERROR(Scenarios!CZ39,"") -> 0 | DA39: =IFERROR(Scenarios!DA39,"") -> 0
A40: =IFERROR(Scenarios!A40,"") -> 0 | B40: =IFERROR(Scenarios!B40,"") -> 0 | C40: =IFERROR(Scenarios!C40,"") -> 0 | D40: =IFERROR(Scenarios!D40,"") -> 0 | E40: =IFERROR(Scenarios!E40,"") -> 0 | F40: =IFERROR(Scenarios!F40,"") -> 0 | G40: =IFERROR(Scenarios!G40,"") -> 0 | H40: =IFERROR(Scenarios!H40,"") -> 0 | I40: =IFERROR(Scenarios!I40,"") -> 0 | J40: =IFERROR(Scenarios!J40,"") -> 0 | K40: =IFERROR(Scenarios!K40,"") -> 0 | L40: =IFERROR(Scenarios!L40,"") -> 0 | M40: =IFERROR(Scenarios!M40,"") -> 0 | N40: =IFERROR(Scenarios!N40,"") -> 0 | O40: =IFERROR(Scenarios!O40,"") -> 0 | P40: =IFERROR(Scenarios!P40,"") -> 0 | Q40: =IFERROR(Scenarios!Q40,"") -> 0 | R40: =IFERROR(Scenarios!R40,"") -> 0 | S40: =IFERROR(Scenarios!S40,"") -> 0 | T40: =IFERROR(Scenarios!T40,"") -> 0 | U40: =IFERROR(Scenarios!U40,"") -> 0 | V40: =IFERROR(Scenarios!V40,"") -> 0 | W40: =IFERROR(Scenarios!W40,"") -> 0 | X40: =IFERROR(Scenarios!X40,"") -> 0 | Y40: =IFERROR(Scenarios!Y40,"") -> 0 | Z40: =IFERROR(Scenarios!Z40,"") -> 0 | AA40: =IFERROR(Scenarios!AA40,"") -> 0 | AB40: =IFERROR(Scenarios!AB40,"") -> 0 | AC40: =IFERROR(Scenarios!AC40,"") -> 0 | AD40: =IFERROR(Scenarios!AD40,"") -> 0 | AE40: =IFERROR(Scenarios!AE40,"") -> 0 | AF40: =IFERROR(Scenarios!AF40,"") -> 0 | AG40: =IFERROR(Scenarios!AG40,"") -> 0 | AH40: =IFERROR(Scenarios!AH40,"") -> 0 | AI40: =IFERROR(Scenarios!AI40,"") -> 0 | AJ40: =IFERROR(Scenarios!AJ40,"") -> 0 | AK40: =IFERROR(Scenarios!AK40,"") -> 0 | AL40: =IFERROR(Scenarios!AL40,"") -> 0 | AM40: =IFERROR(Scenarios!AM40,"") -> 0 | AN40: =IFERROR(Scenarios!AN40,"") -> 0 | AO40: =IFERROR(Scenarios!AO40,"") -> 0 | AP40: =IFERROR(Scenarios!AP40,"") -> 0 | AQ40: =IFERROR(Scenarios!AQ40,"") -> 0 | AR40: =IFERROR(Scenarios!AR40,"") -> 0 | AS40: =IFERROR(Scenarios!AS40,"") -> 0 | AT40: =IFERROR(Scenarios!AT40,"") -> 0 | AU40: =IFERROR(Scenarios!AU40,"") -> 0 | AV40: =IFERROR(Scenarios!AV40,"") -> 0 | AW40: =IFERROR(Scenarios!AW40,"") -> 0 | AX40: =IFERROR(Scenarios!AX40,"") -> 0 | AY40: =IFERROR(Scenarios!AY40,"") -> 0 | AZ40: =IFERROR(Scenarios!AZ40,"") -> 0 | BA40: =IFERROR(Scenarios!BA40,"") -> 0 | BB40: =IFERROR(Scenarios!BB40,"") -> 0 | BC40: =IFERROR(Scenarios!BC40,"") -> 0 | BD40: =IFERROR(Scenarios!BD40,"") -> 0 | BE40: =IFERROR(Scenarios!BE40,"") -> 0 | BF40: =IFERROR(Scenarios!BF40,"") -> 0 | BG40: =IFERROR(Scenarios!BG40,"") -> 0 | BH40: =IFERROR(Scenarios!BH40,"") -> 0 | BI40: =IFERROR(Scenarios!BI40,"") -> 0 | BJ40: =IFERROR(Scenarios!BJ40,"") -> 0 | BK40: =IFERROR(Scenarios!BK40,"") -> 0 | BL40: =IFERROR(Scenarios!BL40,"") -> 0 | BM40: =IFERROR(Scenarios!BM40,"") -> 0 | BN40: =IFERROR(Scenarios!BN40,"") -> 0 | BO40: =IFERROR(Scenarios!BO40,"") -> 0 | BP40: =IFERROR(Scenarios!BP40,"") -> 0 | BQ40: =IFERROR(Scenarios!BQ40,"") -> 0 | BR40: =IFERROR(Scenarios!BR40,"") -> 0 | BS40: =IFERROR(Scenarios!BS40,"") -> 0 | BT40: =IFERROR(Scenarios!BT40,"") -> 0 | BU40: =IFERROR(Scenarios!BU40,"") -> 0 | BV40: =IFERROR(Scenarios!BV40,"") -> 0 | BW40: =IFERROR(Scenarios!BW40,"") -> 0 | BX40: =IFERROR(Scenarios!BX40,"") -> 0 | BY40: =IFERROR(Scenarios!BY40,"") -> 0 | BZ40: =IFERROR(Scenarios!BZ40,"") -> 0 | CA40: =IFERROR(Scenarios!CA40,"") -> 0 | CB40: =IFERROR(Scenarios!CB40,"") -> 0 | CC40: =IFERROR(Scenarios!CC40,"") -> 0 | CD40: =IFERROR(Scenarios!CD40,"") -> 0 | CE40: =IFERROR(Scenarios!CE40,"") -> 0 | CF40: =IFERROR(Scenarios!CF40,"") -> 0 | CG40: =IFERROR(Scenarios!CG40,"") -> 0 | CH40: =IFERROR(Scenarios!CH40,"") -> 0 | CI40: =IFERROR(Scenarios!CI40,"") -> 0 | CJ40: =IFERROR(Scenarios!CJ40,"") -> 0 | CK40: =IFERROR(Scenarios!CK40,"") -> 0 | CL40: =IFERROR(Scenarios!CL40,"") -> 0 | CM40: =IFERROR(Scenarios!CM40,"") -> 0 | CN40: =IFERROR(Scenarios!CN40,"") -> 0 | CO40: =IFERROR(Scenarios!CO40,"") -> 0 | CP40: =IFERROR(Scenarios!CP40,"") -> 0 | CQ40: =IFERROR(Scenarios!CQ40,"") -> 0 | CR40: =IFERROR(Scenarios!CR40,"") -> 0 | CS40: =IFERROR(Scenarios!CS40,"") -> 0 | CT40: =IFERROR(Scenarios!CT40,"") -> 0 | CU40: =IFERROR(Scenarios!CU40,"") -> 0 | CV40: =IFERROR(Scenarios!CV40,"") -> 0 | CW40: =IFERROR(Scenarios!CW40,"") -> 0 | CX40: =IFERROR(Scenarios!CX40,"") -> 0 | CY40: =IFERROR(Scenarios!CY40,"") -> 0 | CZ40: =IFERROR(Scenarios!CZ40,"") -> 0 | DA40: =IFERROR(Scenarios!DA40,"") -> 0
A41: =IFERROR(Scenarios!A41,"") -> 0 | B41: =IFERROR(Scenarios!B41,"") -> 0 | C41: =IFERROR(Scenarios!C41,"") -> 0 | D41: =IFERROR(Scenarios!D41,"") -> 0 | E41: =IFERROR(Scenarios!E41,"") -> 0 | F41: =IFERROR(Scenarios!F41,"") -> 0 | G41: =IFERROR(Scenarios!G41,"") -> 0 | H41: =IFERROR(Scenarios!H41,"") -> 0 | I41: =IFERROR(Scenarios!I41,"") -> 0 | J41: =IFERROR(Scenarios!J41,"") -> 0 | K41: =IFERROR(Scenarios!K41,"") -> 0 | L41: =IFERROR(Scenarios!L41,"") -> 0 | M41: =IFERROR(Scenarios!M41,"") -> 0 | N41: =IFERROR(Scenarios!N41,"") -> 0 | O41: =IFERROR(Scenarios!O41,"") -> 0 | P41: =IFERROR(Scenarios!P41,"") -> 0 | Q41: =IFERROR(Scenarios!Q41,"") -> 0 | R41: =IFERROR(Scenarios!R41,"") -> 0 | S41: =IFERROR(Scenarios!S41,"") -> 0 | T41: =IFERROR(Scenarios!T41,"") -> 0 | U41: =IFERROR(Scenarios!U41,"") -> 0 | V41: =IFERROR(Scenarios!V41,"") -> 0 | W41: =IFERROR(Scenarios!W41,"") -> 0 | X41: =IFERROR(Scenarios!X41,"") -> 0 | Y41: =IFERROR(Scenarios!Y41,"") -> 0 | Z41: =IFERROR(Scenarios!Z41,"") -> 0 | AA41: =IFERROR(Scenarios!AA41,"") -> 0 | AB41: =IFERROR(Scenarios!AB41,"") -> 0 | AC41: =IFERROR(Scenarios!AC41,"") -> 0 | AD41: =IFERROR(Scenarios!AD41,"") -> 0 | AE41: =IFERROR(Scenarios!AE41,"") -> 0 | AF41: =IFERROR(Scenarios!AF41,"") -> 0 | AG41: =IFERROR(Scenarios!AG41,"") -> 0 | AH41: =IFERROR(Scenarios!AH41,"") -> 0 | AI41: =IFERROR(Scenarios!AI41,"") -> 0 | AJ41: =IFERROR(Scenarios!AJ41,"") -> 0 | AK41: =IFERROR(Scenarios!AK41,"") -> 0 | AL41: =IFERROR(Scenarios!AL41,"") -> 0 | AM41: =IFERROR(Scenarios!AM41,"") -> 0 | AN41: =IFERROR(Scenarios!AN41,"") -> 0 | AO41: =IFERROR(Scenarios!AO41,"") -> 0 | AP41: =IFERROR(Scenarios!AP41,"") -> 0 | AQ41: =IFERROR(Scenarios!AQ41,"") -> 0 | AR41: =IFERROR(Scenarios!AR41,"") -> 0 | AS41: =IFERROR(Scenarios!AS41,"") -> 0 | AT41: =IFERROR(Scenarios!AT41,"") -> 0 | AU41: =IFERROR(Scenarios!AU41,"") -> 0 | AV41: =IFERROR(Scenarios!AV41,"") -> 0 | AW41: =IFERROR(Scenarios!AW41,"") -> 0 | AX41: =IFERROR(Scenarios!AX41,"") -> 0 | AY41: =IFERROR(Scenarios!AY41,"") -> 0 | AZ41: =IFERROR(Scenarios!AZ41,"") -> 0 | BA41: =IFERROR(Scenarios!BA41,"") -> 0 | BB41: =IFERROR(Scenarios!BB41,"") -> 0 | BC41: =IFERROR(Scenarios!BC41,"") -> 0 | BD41: =IFERROR(Scenarios!BD41,"") -> 0 | BE41: =IFERROR(Scenarios!BE41,"") -> 0 | BF41: =IFERROR(Scenarios!BF41,"") -> 0 | BG41: =IFERROR(Scenarios!BG41,"") -> 0 | BH41: =IFERROR(Scenarios!BH41,"") -> 0 | BI41: =IFERROR(Scenarios!BI41,"") -> 0 | BJ41: =IFERROR(Scenarios!BJ41,"") -> 0 | BK41: =IFERROR(Scenarios!BK41,"") -> 0 | BL41: =IFERROR(Scenarios!BL41,"") -> 0 | BM41: =IFERROR(Scenarios!BM41,"") -> 0 | BN41: =IFERROR(Scenarios!BN41,"") -> 0 | BO41: =IFERROR(Scenarios!BO41,"") -> 0 | BP41: =IFERROR(Scenarios!BP41,"") -> 0 | BQ41: =IFERROR(Scenarios!BQ41,"") -> 0 | BR41: =IFERROR(Scenarios!BR41,"") -> 0 | BS41: =IFERROR(Scenarios!BS41,"") -> 0 | BT41: =IFERROR(Scenarios!BT41,"") -> 0 | BU41: =IFERROR(Scenarios!BU41,"") -> 0 | BV41: =IFERROR(Scenarios!BV41,"") -> 0 | BW41: =IFERROR(Scenarios!BW41,"") -> 0 | BX41: =IFERROR(Scenarios!BX41,"") -> 0 | BY41: =IFERROR(Scenarios!BY41,"") -> 0 | BZ41: =IFERROR(Scenarios!BZ41,"") -> 0 | CA41: =IFERROR(Scenarios!CA41,"") -> 0 | CB41: =IFERROR(Scenarios!CB41,"") -> 0 | CC41: =IFERROR(Scenarios!CC41,"") -> 0 | CD41: =IFERROR(Scenarios!CD41,"") -> 0 | CE41: =IFERROR(Scenarios!CE41,"") -> 0 | CF41: =IFERROR(Scenarios!CF41,"") -> 0 | CG41: =IFERROR(Scenarios!CG41,"") -> 0 | CH41: =IFERROR(Scenarios!CH41,"") -> 0 | CI41: =IFERROR(Scenarios!CI41,"") -> 0 | CJ41: =IFERROR(Scenarios!CJ41,"") -> 0 | CK41: =IFERROR(Scenarios!CK41,"") -> 0 | CL41: =IFERROR(Scenarios!CL41,"") -> 0 | CM41: =IFERROR(Scenarios!CM41,"") -> 0 | CN41: =IFERROR(Scenarios!CN41,"") -> 0 | CO41: =IFERROR(Scenarios!CO41,"") -> 0 | CP41: =IFERROR(Scenarios!CP41,"") -> 0 | CQ41: =IFERROR(Scenarios!CQ41,"") -> 0 | CR41: =IFERROR(Scenarios!CR41,"") -> 0 | CS41: =IFERROR(Scenarios!CS41,"") -> 0 | CT41: =IFERROR(Scenarios!CT41,"") -> 0 | CU41: =IFERROR(Scenarios!CU41,"") -> 0 | CV41: =IFERROR(Scenarios!CV41,"") -> 0 | CW41: =IFERROR(Scenarios!CW41,"") -> 0 | CX41: =IFERROR(Scenarios!CX41,"") -> 0 | CY41: =IFERROR(Scenarios!CY41,"") -> 0 | CZ41: =IFERROR(Scenarios!CZ41,"") -> 0 | DA41: =IFERROR(Scenarios!DA41,"") -> 0
A42: =IFERROR(Scenarios!A42,"") -> 0 | B42: =IFERROR(Scenarios!B42,"") -> 0 | C42: =IFERROR(Scenarios!C42,"") -> 0 | D42: =IFERROR(Scenarios!D42,"") -> 0 | E42: =IFERROR(Scenarios!E42,"") -> 0 | F42: =IFERROR(Scenarios!F42,"") -> 0 | G42: =IFERROR(Scenarios!G42,"") -> 0 | H42: =IFERROR(Scenarios!H42,"") -> 0 | I42: =IFERROR(Scenarios!I42,"") -> 0 | J42: =IFERROR(Scenarios!J42,"") -> 0 | K42: =IFERROR(Scenarios!K42,"") -> 0 | L42: =IFERROR(Scenarios!L42,"") -> 0 | M42: =IFERROR(Scenarios!M42,"") -> 0 | N42: =IFERROR(Scenarios!N42,"") -> 0 | O42: =IFERROR(Scenarios!O42,"") -> 0 | P42: =IFERROR(Scenarios!P42,"") -> 0 | Q42: =IFERROR(Scenarios!Q42,"") -> 0 | R42: =IFERROR(Scenarios!R42,"") -> 0 | S42: =IFERROR(Scenarios!S42,"") -> 0 | T42: =IFERROR(Scenarios!T42,"") -> 0 | U42: =IFERROR(Scenarios!U42,"") -> 0 | V42: =IFERROR(Scenarios!V42,"") -> 0 | W42: =IFERROR(Scenarios!W42,"") -> 0 | X42: =IFERROR(Scenarios!X42,"") -> 0 | Y42: =IFERROR(Scenarios!Y42,"") -> 0 | Z42: =IFERROR(Scenarios!Z42,"") -> 0 | AA42: =IFERROR(Scenarios!AA42,"") -> 0 | AB42: =IFERROR(Scenarios!AB42,"") -> 0 | AC42: =IFERROR(Scenarios!AC42,"") -> 0 | AD42: =IFERROR(Scenarios!AD42,"") -> 0 | AE42: =IFERROR(Scenarios!AE42,"") -> 0 | AF42: =IFERROR(Scenarios!AF42,"") -> 0 | AG42: =IFERROR(Scenarios!AG42,"") -> 0 | AH42: =IFERROR(Scenarios!AH42,"") -> 0 | AI42: =IFERROR(Scenarios!AI42,"") -> 0 | AJ42: =IFERROR(Scenarios!AJ42,"") -> 0 | AK42: =IFERROR(Scenarios!AK42,"") -> 0 | AL42: =IFERROR(Scenarios!AL42,"") -> 0 | AM42: =IFERROR(Scenarios!AM42,"") -> 0 | AN42: =IFERROR(Scenarios!AN42,"") -> 0 | AO42: =IFERROR(Scenarios!AO42,"") -> 0 | AP42: =IFERROR(Scenarios!AP42,"") -> 0 | AQ42: =IFERROR(Scenarios!AQ42,"") -> 0 | AR42: =IFERROR(Scenarios!AR42,"") -> 0 | AS42: =IFERROR(Scenarios!AS42,"") -> 0 | AT42: =IFERROR(Scenarios!AT42,"") -> 0 | AU42: =IFERROR(Scenarios!AU42,"") -> 0 | AV42: =IFERROR(Scenarios!AV42,"") -> 0 | AW42: =IFERROR(Scenarios!AW42,"") -> 0 | AX42: =IFERROR(Scenarios!AX42,"") -> 0 | AY42: =IFERROR(Scenarios!AY42,"") -> 0 | AZ42: =IFERROR(Scenarios!AZ42,"") -> 0 | BA42: =IFERROR(Scenarios!BA42,"") -> 0 | BB42: =IFERROR(Scenarios!BB42,"") -> 0 | BC42: =IFERROR(Scenarios!BC42,"") -> 0 | BD42: =IFERROR(Scenarios!BD42,"") -> 0 | BE42: =IFERROR(Scenarios!BE42,"") -> 0 | BF42: =IFERROR(Scenarios!BF42,"") -> 0 | BG42: =IFERROR(Scenarios!BG42,"") -> 0 | BH42: =IFERROR(Scenarios!BH42,"") -> 0 | BI42: =IFERROR(Scenarios!BI42,"") -> 0 | BJ42: =IFERROR(Scenarios!BJ42,"") -> 0 | BK42: =IFERROR(Scenarios!BK42,"") -> 0 | BL42: =IFERROR(Scenarios!BL42,"") -> 0 | BM42: =IFERROR(Scenarios!BM42,"") -> 0 | BN42: =IFERROR(Scenarios!BN42,"") -> 0 | BO42: =IFERROR(Scenarios!BO42,"") -> 0 | BP42: =IFERROR(Scenarios!BP42,"") -> 0 | BQ42: =IFERROR(Scenarios!BQ42,"") -> 0 | BR42: =IFERROR(Scenarios!BR42,"") -> 0 | BS42: =IFERROR(Scenarios!BS42,"") -> 0 | BT42: =IFERROR(Scenarios!BT42,"") -> 0 | BU42: =IFERROR(Scenarios!BU42,"") -> 0 | BV42: =IFERROR(Scenarios!BV42,"") -> 0 | BW42: =IFERROR(Scenarios!BW42,"") -> 0 | BX42: =IFERROR(Scenarios!BX42,"") -> 0 | BY42: =IFERROR(Scenarios!BY42,"") -> 0 | BZ42: =IFERROR(Scenarios!BZ42,"") -> 0 | CA42: =IFERROR(Scenarios!CA42,"") -> 0 | CB42: =IFERROR(Scenarios!CB42,"") -> 0 | CC42: =IFERROR(Scenarios!CC42,"") -> 0 | CD42: =IFERROR(Scenarios!CD42,"") -> 0 | CE42: =IFERROR(Scenarios!CE42,"") -> 0 | CF42: =IFERROR(Scenarios!CF42,"") -> 0 | CG42: =IFERROR(Scenarios!CG42,"") -> 0 | CH42: =IFERROR(Scenarios!CH42,"") -> 0 | CI42: =IFERROR(Scenarios!CI42,"") -> 0 | CJ42: =IFERROR(Scenarios!CJ42,"") -> 0 | CK42: =IFERROR(Scenarios!CK42,"") -> 0 | CL42: =IFERROR(Scenarios!CL42,"") -> 0 | CM42: =IFERROR(Scenarios!CM42,"") -> 0 | CN42: =IFERROR(Scenarios!CN42,"") -> 0 | CO42: =IFERROR(Scenarios!CO42,"") -> 0 | CP42: =IFERROR(Scenarios!CP42,"") -> 0 | CQ42: =IFERROR(Scenarios!CQ42,"") -> 0 | CR42: =IFERROR(Scenarios!CR42,"") -> 0 | CS42: =IFERROR(Scenarios!CS42,"") -> 0 | CT42: =IFERROR(Scenarios!CT42,"") -> 0 | CU42: =IFERROR(Scenarios!CU42,"") -> 0 | CV42: =IFERROR(Scenarios!CV42,"") -> 0 | CW42: =IFERROR(Scenarios!CW42,"") -> 0 | CX42: =IFERROR(Scenarios!CX42,"") -> 0 | CY42: =IFERROR(Scenarios!CY42,"") -> 0 | CZ42: =IFERROR(Scenarios!CZ42,"") -> 0 | DA42: =IFERROR(Scenarios!DA42,"") -> 0
A43: =IFERROR(Scenarios!A43,"") -> 0 | B43: =IFERROR(Scenarios!B43,"") -> 0 | C43: =IFERROR(Scenarios!C43,"") -> 0 | D43: =IFERROR(Scenarios!D43,"") -> 0 | E43: =IFERROR(Scenarios!E43,"") -> 0 | F43: =IFERROR(Scenarios!F43,"") -> 0 | G43: =IFERROR(Scenarios!G43,"") -> 0 | H43: =IFERROR(Scenarios!H43,"") -> 0 | I43: =IFERROR(Scenarios!I43,"") -> 0 | J43: =IFERROR(Scenarios!J43,"") -> 0 | K43: =IFERROR(Scenarios!K43,"") -> 0 | L43: =IFERROR(Scenarios!L43,"") -> 0 | M43: =IFERROR(Scenarios!M43,"") -> 0 | N43: =IFERROR(Scenarios!N43,"") -> 0 | O43: =IFERROR(Scenarios!O43,"") -> 0 | P43: =IFERROR(Scenarios!P43,"") -> 0 | Q43: =IFERROR(Scenarios!Q43,"") -> 0 | R43: =IFERROR(Scenarios!R43,"") -> 0 | S43: =IFERROR(Scenarios!S43,"") -> 0 | T43: =IFERROR(Scenarios!T43,"") -> 0 | U43: =IFERROR(Scenarios!U43,"") -> 0 | V43: =IFERROR(Scenarios!V43,"") -> 0 | W43: =IFERROR(Scenarios!W43,"") -> 0 | X43: =IFERROR(Scenarios!X43,"") -> 0 | Y43: =IFERROR(Scenarios!Y43,"") -> 0 | Z43: =IFERROR(Scenarios!Z43,"") -> 0 | AA43: =IFERROR(Scenarios!AA43,"") -> 0 | AB43: =IFERROR(Scenarios!AB43,"") -> 0 | AC43: =IFERROR(Scenarios!AC43,"") -> 0 | AD43: =IFERROR(Scenarios!AD43,"") -> 0 | AE43: =IFERROR(Scenarios!AE43,"") -> 0 | AF43: =IFERROR(Scenarios!AF43,"") -> 0 | AG43: =IFERROR(Scenarios!AG43,"") -> 0 | AH43: =IFERROR(Scenarios!AH43,"") -> 0 | AI43: =IFERROR(Scenarios!AI43,"") -> 0 | AJ43: =IFERROR(Scenarios!AJ43,"") -> 0 | AK43: =IFERROR(Scenarios!AK43,"") -> 0 | AL43: =IFERROR(Scenarios!AL43,"") -> 0 | AM43: =IFERROR(Scenarios!AM43,"") -> 0 | AN43: =IFERROR(Scenarios!AN43,"") -> 0 | AO43: =IFERROR(Scenarios!AO43,"") -> 0 | AP43: =IFERROR(Scenarios!AP43,"") -> 0 | AQ43: =IFERROR(Scenarios!AQ43,"") -> 0 | AR43: =IFERROR(Scenarios!AR43,"") -> 0 | AS43: =IFERROR(Scenarios!AS43,"") -> 0 | AT43: =IFERROR(Scenarios!AT43,"") -> 0 | AU43: =IFERROR(Scenarios!AU43,"") -> 0 | AV43: =IFERROR(Scenarios!AV43,"") -> 0 | AW43: =IFERROR(Scenarios!AW43,"") -> 0 | AX43: =IFERROR(Scenarios!AX43,"") -> 0 | AY43: =IFERROR(Scenarios!AY43,"") -> 0 | AZ43: =IFERROR(Scenarios!AZ43,"") -> 0 | BA43: =IFERROR(Scenarios!BA43,"") -> 0 | BB43: =IFERROR(Scenarios!BB43,"") -> 0 | BC43: =IFERROR(Scenarios!BC43,"") -> 0 | BD43: =IFERROR(Scenarios!BD43,"") -> 0 | BE43: =IFERROR(Scenarios!BE43,"") -> 0 | BF43: =IFERROR(Scenarios!BF43,"") -> 0 | BG43: =IFERROR(Scenarios!BG43,"") -> 0 | BH43: =IFERROR(Scenarios!BH43,"") -> 0 | BI43: =IFERROR(Scenarios!BI43,"") -> 0 | BJ43: =IFERROR(Scenarios!BJ43,"") -> 0 | BK43: =IFERROR(Scenarios!BK43,"") -> 0 | BL43: =IFERROR(Scenarios!BL43,"") -> 0 | BM43: =IFERROR(Scenarios!BM43,"") -> 0 | BN43: =IFERROR(Scenarios!BN43,"") -> 0 | BO43: =IFERROR(Scenarios!BO43,"") -> 0 | BP43: =IFERROR(Scenarios!BP43,"") -> 0 | BQ43: =IFERROR(Scenarios!BQ43,"") -> 0 | BR43: =IFERROR(Scenarios!BR43,"") -> 0 | BS43: =IFERROR(Scenarios!BS43,"") -> 0 | BT43: =IFERROR(Scenarios!BT43,"") -> 0 | BU43: =IFERROR(Scenarios!BU43,"") -> 0 | BV43: =IFERROR(Scenarios!BV43,"") -> 0 | BW43: =IFERROR(Scenarios!BW43,"") -> 0 | BX43: =IFERROR(Scenarios!BX43,"") -> 0 | BY43: =IFERROR(Scenarios!BY43,"") -> 0 | BZ43: =IFERROR(Scenarios!BZ43,"") -> 0 | CA43: =IFERROR(Scenarios!CA43,"") -> 0 | CB43: =IFERROR(Scenarios!CB43,"") -> 0 | CC43: =IFERROR(Scenarios!CC43,"") -> 0 | CD43: =IFERROR(Scenarios!CD43,"") -> 0 | CE43: =IFERROR(Scenarios!CE43,"") -> 0 | CF43: =IFERROR(Scenarios!CF43,"") -> 0 | CG43: =IFERROR(Scenarios!CG43,"") -> 0 | CH43: =IFERROR(Scenarios!CH43,"") -> 0 | CI43: =IFERROR(Scenarios!CI43,"") -> 0 | CJ43: =IFERROR(Scenarios!CJ43,"") -> 0 | CK43: =IFERROR(Scenarios!CK43,"") -> 0 | CL43: =IFERROR(Scenarios!CL43,"") -> 0 | CM43: =IFERROR(Scenarios!CM43,"") -> 0 | CN43: =IFERROR(Scenarios!CN43,"") -> 0 | CO43: =IFERROR(Scenarios!CO43,"") -> 0 | CP43: =IFERROR(Scenarios!CP43,"") -> 0 | CQ43: =IFERROR(Scenarios!CQ43,"") -> 0 | CR43: =IFERROR(Scenarios!CR43,"") -> 0 | CS43: =IFERROR(Scenarios!CS43,"") -> 0 | CT43: =IFERROR(Scenarios!CT43,"") -> 0 | CU43: =IFERROR(Scenarios!CU43,"") -> 0 | CV43: =IFERROR(Scenarios!CV43,"") -> 0 | CW43: =IFERROR(Scenarios!CW43,"") -> 0 | CX43: =IFERROR(Scenarios!CX43,"") -> 0 | CY43: =IFERROR(Scenarios!CY43,"") -> 0 | CZ43: =IFERROR(Scenarios!CZ43,"") -> 0 | DA43: =IFERROR(Scenarios!DA43,"") -> 0
A44: =IFERROR(Scenarios!A44,"") -> 0 | B44: =IFERROR(Scenarios!B44,"") -> 0 | C44: =IFERROR(Scenarios!C44,"") -> 0 | D44: =IFERROR(Scenarios!D44,"") -> 0 | E44: =IFERROR(Scenarios!E44,"") -> 0 | F44: =IFERROR(Scenarios!F44,"") -> 0 | G44: =IFERROR(Scenarios!G44,"") -> 0 | H44: =IFERROR(Scenarios!H44,"") -> 0 | I44: =IFERROR(Scenarios!I44,"") -> 0 | J44: =IFERROR(Scenarios!J44,"") -> 0 | K44: =IFERROR(Scenarios!K44,"") -> 0 | L44: =IFERROR(Scenarios!L44,"") -> 0 | M44: =IFERROR(Scenarios!M44,"") -> 0 | N44: =IFERROR(Scenarios!N44,"") -> 0 | O44: =IFERROR(Scenarios!O44,"") -> 0 | P44: =IFERROR(Scenarios!P44,"") -> 0 | Q44: =IFERROR(Scenarios!Q44,"") -> 0 | R44: =IFERROR(Scenarios!R44,"") -> 0 | S44: =IFERROR(Scenarios!S44,"") -> 0 | T44: =IFERROR(Scenarios!T44,"") -> 0 | U44: =IFERROR(Scenarios!U44,"") -> 0 | V44: =IFERROR(Scenarios!V44,"") -> 0 | W44: =IFERROR(Scenarios!W44,"") -> 0 | X44: =IFERROR(Scenarios!X44,"") -> 0 | Y44: =IFERROR(Scenarios!Y44,"") -> 0 | Z44: =IFERROR(Scenarios!Z44,"") -> 0 | AA44: =IFERROR(Scenarios!AA44,"") -> 0 | AB44: =IFERROR(Scenarios!AB44,"") -> 0 | AC44: =IFERROR(Scenarios!AC44,"") -> 0 | AD44: =IFERROR(Scenarios!AD44,"") -> 0 | AE44: =IFERROR(Scenarios!AE44,"") -> 0 | AF44: =IFERROR(Scenarios!AF44,"") -> 0 | AG44: =IFERROR(Scenarios!AG44,"") -> 0 | AH44: =IFERROR(Scenarios!AH44,"") -> 0 | AI44: =IFERROR(Scenarios!AI44,"") -> 0 | AJ44: =IFERROR(Scenarios!AJ44,"") -> 0 | AK44: =IFERROR(Scenarios!AK44,"") -> 0 | AL44: =IFERROR(Scenarios!AL44,"") -> 0 | AM44: =IFERROR(Scenarios!AM44,"") -> 0 | AN44: =IFERROR(Scenarios!AN44,"") -> 0 | AO44: =IFERROR(Scenarios!AO44,"") -> 0 | AP44: =IFERROR(Scenarios!AP44,"") -> 0 | AQ44: =IFERROR(Scenarios!AQ44,"") -> 0 | AR44: =IFERROR(Scenarios!AR44,"") -> 0 | AS44: =IFERROR(Scenarios!AS44,"") -> 0 | AT44: =IFERROR(Scenarios!AT44,"") -> 0 | AU44: =IFERROR(Scenarios!AU44,"") -> 0 | AV44: =IFERROR(Scenarios!AV44,"") -> 0 | AW44: =IFERROR(Scenarios!AW44,"") -> 0 | AX44: =IFERROR(Scenarios!AX44,"") -> 0 | AY44: =IFERROR(Scenarios!AY44,"") -> 0 | AZ44: =IFERROR(Scenarios!AZ44,"") -> 0 | BA44: =IFERROR(Scenarios!BA44,"") -> 0 | BB44: =IFERROR(Scenarios!BB44,"") -> 0 | BC44: =IFERROR(Scenarios!BC44,"") -> 0 | BD44: =IFERROR(Scenarios!BD44,"") -> 0 | BE44: =IFERROR(Scenarios!BE44,"") -> 0 | BF44: =IFERROR(Scenarios!BF44,"") -> 0 | BG44: =IFERROR(Scenarios!BG44,"") -> 0 | BH44: =IFERROR(Scenarios!BH44,"") -> 0 | BI44: =IFERROR(Scenarios!BI44,"") -> 0 | BJ44: =IFERROR(Scenarios!BJ44,"") -> 0 | BK44: =IFERROR(Scenarios!BK44,"") -> 0 | BL44: =IFERROR(Scenarios!BL44,"") -> 0 | BM44: =IFERROR(Scenarios!BM44,"") -> 0 | BN44: =IFERROR(Scenarios!BN44,"") -> 0 | BO44: =IFERROR(Scenarios!BO44,"") -> 0 | BP44: =IFERROR(Scenarios!BP44,"") -> 0 | BQ44: =IFERROR(Scenarios!BQ44,"") -> 0 | BR44: =IFERROR(Scenarios!BR44,"") -> 0 | BS44: =IFERROR(Scenarios!BS44,"") -> 0 | BT44: =IFERROR(Scenarios!BT44,"") -> 0 | BU44: =IFERROR(Scenarios!BU44,"") -> 0 | BV44: =IFERROR(Scenarios!BV44,"") -> 0 | BW44: =IFERROR(Scenarios!BW44,"") -> 0 | BX44: =IFERROR(Scenarios!BX44,"") -> 0 | BY44: =IFERROR(Scenarios!BY44,"") -> 0 | BZ44: =IFERROR(Scenarios!BZ44,"") -> 0 | CA44: =IFERROR(Scenarios!CA44,"") -> 0 | CB44: =IFERROR(Scenarios!CB44,"") -> 0 | CC44: =IFERROR(Scenarios!CC44,"") -> 0 | CD44: =IFERROR(Scenarios!CD44,"") -> 0 | CE44: =IFERROR(Scenarios!CE44,"") -> 0 | CF44: =IFERROR(Scenarios!CF44,"") -> 0 | CG44: =IFERROR(Scenarios!CG44,"") -> 0 | CH44: =IFERROR(Scenarios!CH44,"") -> 0 | CI44: =IFERROR(Scenarios!CI44,"") -> 0 | CJ44: =IFERROR(Scenarios!CJ44,"") -> 0 | CK44: =IFERROR(Scenarios!CK44,"") -> 0 | CL44: =IFERROR(Scenarios!CL44,"") -> 0 | CM44: =IFERROR(Scenarios!CM44,"") -> 0 | CN44: =IFERROR(Scenarios!CN44,"") -> 0 | CO44: =IFERROR(Scenarios!CO44,"") -> 0 | CP44: =IFERROR(Scenarios!CP44,"") -> 0 | CQ44: =IFERROR(Scenarios!CQ44,"") -> 0 | CR44: =IFERROR(Scenarios!CR44,"") -> 0 | CS44: =IFERROR(Scenarios!CS44,"") -> 0 | CT44: =IFERROR(Scenarios!CT44,"") -> 0 | CU44: =IFERROR(Scenarios!CU44,"") -> 0 | CV44: =IFERROR(Scenarios!CV44,"") -> 0 | CW44: =IFERROR(Scenarios!CW44,"") -> 0 | CX44: =IFERROR(Scenarios!CX44,"") -> 0 | CY44: =IFERROR(Scenarios!CY44,"") -> 0 | CZ44: =IFERROR(Scenarios!CZ44,"") -> 0 | DA44: =IFERROR(Scenarios!DA44,"") -> 0
A45: =IFERROR(Scenarios!A45,"") -> 0 | B45: =IFERROR(Scenarios!B45,"") -> 0 | C45: =IFERROR(Scenarios!C45,"") -> 0 | D45: =IFERROR(Scenarios!D45,"") -> 0 | E45: =IFERROR(Scenarios!E45,"") -> 0 | F45: =IFERROR(Scenarios!F45,"") -> 0 | G45: =IFERROR(Scenarios!G45,"") -> 0 | H45: =IFERROR(Scenarios!H45,"") -> 0 | I45: =IFERROR(Scenarios!I45,"") -> 0 | J45: =IFERROR(Scenarios!J45,"") -> 0 | K45: =IFERROR(Scenarios!K45,"") -> 0 | L45: =IFERROR(Scenarios!L45,"") -> 0 | M45: =IFERROR(Scenarios!M45,"") -> 0 | N45: =IFERROR(Scenarios!N45,"") -> 0 | O45: =IFERROR(Scenarios!O45,"") -> 0 | P45: =IFERROR(Scenarios!P45,"") -> 0 | Q45: =IFERROR(Scenarios!Q45,"") -> 0 | R45: =IFERROR(Scenarios!R45,"") -> 0 | S45: =IFERROR(Scenarios!S45,"") -> 0 | T45: =IFERROR(Scenarios!T45,"") -> 0 | U45: =IFERROR(Scenarios!U45,"") -> 0 | V45: =IFERROR(Scenarios!V45,"") -> 0 | W45: =IFERROR(Scenarios!W45,"") -> 0 | X45: =IFERROR(Scenarios!X45,"") -> 0 | Y45: =IFERROR(Scenarios!Y45,"") -> 0 | Z45: =IFERROR(Scenarios!Z45,"") -> 0 | AA45: =IFERROR(Scenarios!AA45,"") -> 0 | AB45: =IFERROR(Scenarios!AB45,"") -> 0 | AC45: =IFERROR(Scenarios!AC45,"") -> 0 | AD45: =IFERROR(Scenarios!AD45,"") -> 0 | AE45: =IFERROR(Scenarios!AE45,"") -> 0 | AF45: =IFERROR(Scenarios!AF45,"") -> 0 | AG45: =IFERROR(Scenarios!AG45,"") -> 0 | AH45: =IFERROR(Scenarios!AH45,"") -> 0 | AI45: =IFERROR(Scenarios!AI45,"") -> 0 | AJ45: =IFERROR(Scenarios!AJ45,"") -> 0 | AK45: =IFERROR(Scenarios!AK45,"") -> 0 | AL45: =IFERROR(Scenarios!AL45,"") -> 0 | AM45: =IFERROR(Scenarios!AM45,"") -> 0 | AN45: =IFERROR(Scenarios!AN45,"") -> 0 | AO45: =IFERROR(Scenarios!AO45,"") -> 0 | AP45: =IFERROR(Scenarios!AP45,"") -> 0 | AQ45: =IFERROR(Scenarios!AQ45,"") -> 0 | AR45: =IFERROR(Scenarios!AR45,"") -> 0 | AS45: =IFERROR(Scenarios!AS45,"") -> 0 | AT45: =IFERROR(Scenarios!AT45,"") -> 0 | AU45: =IFERROR(Scenarios!AU45,"") -> 0 | AV45: =IFERROR(Scenarios!AV45,"") -> 0 | AW45: =IFERROR(Scenarios!AW45,"") -> 0 | AX45: =IFERROR(Scenarios!AX45,"") -> 0 | AY45: =IFERROR(Scenarios!AY45,"") -> 0 | AZ45: =IFERROR(Scenarios!AZ45,"") -> 0 | BA45: =IFERROR(Scenarios!BA45,"") -> 0 | BB45: =IFERROR(Scenarios!BB45,"") -> 0 | BC45: =IFERROR(Scenarios!BC45,"") -> 0 | BD45: =IFERROR(Scenarios!BD45,"") -> 0 | BE45: =IFERROR(Scenarios!BE45,"") -> 0 | BF45: =IFERROR(Scenarios!BF45,"") -> 0 | BG45: =IFERROR(Scenarios!BG45,"") -> 0 | BH45: =IFERROR(Scenarios!BH45,"") -> 0 | BI45: =IFERROR(Scenarios!BI45,"") -> 0 | BJ45: =IFERROR(Scenarios!BJ45,"") -> 0 | BK45: =IFERROR(Scenarios!BK45,"") -> 0 | BL45: =IFERROR(Scenarios!BL45,"") -> 0 | BM45: =IFERROR(Scenarios!BM45,"") -> 0 | BN45: =IFERROR(Scenarios!BN45,"") -> 0 | BO45: =IFERROR(Scenarios!BO45,"") -> 0 | BP45: =IFERROR(Scenarios!BP45,"") -> 0 | BQ45: =IFERROR(Scenarios!BQ45,"") -> 0 | BR45: =IFERROR(Scenarios!BR45,"") -> 0 | BS45: =IFERROR(Scenarios!BS45,"") -> 0 | BT45: =IFERROR(Scenarios!BT45,"") -> 0 | BU45: =IFERROR(Scenarios!BU45,"") -> 0 | BV45: =IFERROR(Scenarios!BV45,"") -> 0 | BW45: =IFERROR(Scenarios!BW45,"") -> 0 | BX45: =IFERROR(Scenarios!BX45,"") -> 0 | BY45: =IFERROR(Scenarios!BY45,"") -> 0 | BZ45: =IFERROR(Scenarios!BZ45,"") -> 0 | CA45: =IFERROR(Scenarios!CA45,"") -> 0 | CB45: =IFERROR(Scenarios!CB45,"") -> 0 | CC45: =IFERROR(Scenarios!CC45,"") -> 0 | CD45: =IFERROR(Scenarios!CD45,"") -> 0 | CE45: =IFERROR(Scenarios!CE45,"") -> 0 | CF45: =IFERROR(Scenarios!CF45,"") -> 0 | CG45: =IFERROR(Scenarios!CG45,"") -> 0 | CH45: =IFERROR(Scenarios!CH45,"") -> 0 | CI45: =IFERROR(Scenarios!CI45,"") -> 0 | CJ45: =IFERROR(Scenarios!CJ45,"") -> 0 | CK45: =IFERROR(Scenarios!CK45,"") -> 0 | CL45: =IFERROR(Scenarios!CL45,"") -> 0 | CM45: =IFERROR(Scenarios!CM45,"") -> 0 | CN45: =IFERROR(Scenarios!CN45,"") -> 0 | CO45: =IFERROR(Scenarios!CO45,"") -> 0 | CP45: =IFERROR(Scenarios!CP45,"") -> 0 | CQ45: =IFERROR(Scenarios!CQ45,"") -> 0 | CR45: =IFERROR(Scenarios!CR45,"") -> 0 | CS45: =IFERROR(Scenarios!CS45,"") -> 0 | CT45: =IFERROR(Scenarios!CT45,"") -> 0 | CU45: =IFERROR(Scenarios!CU45,"") -> 0 | CV45: =IFERROR(Scenarios!CV45,"") -> 0 | CW45: =IFERROR(Scenarios!CW45,"") -> 0 | CX45: =IFERROR(Scenarios!CX45,"") -> 0 | CY45: =IFERROR(Scenarios!CY45,"") -> 0 | CZ45: =IFERROR(Scenarios!CZ45,"") -> 0 | DA45: =IFERROR(Scenarios!DA45,"") -> 0
A46: =IFERROR(Scenarios!A46,"") -> 0 | B46: =IFERROR(Scenarios!B46,"") -> 0 | C46: =IFERROR(Scenarios!C46,"") -> 0 | D46: =IFERROR(Scenarios!D46,"") -> 0 | E46: =IFERROR(Scenarios!E46,"") -> 0 | F46: =IFERROR(Scenarios!F46,"") -> 0 | G46: =IFERROR(Scenarios!G46,"") -> 0 | H46: =IFERROR(Scenarios!H46,"") -> 0 | I46: =IFERROR(Scenarios!I46,"") -> 0 | J46: =IFERROR(Scenarios!J46,"") -> 0 | K46: =IFERROR(Scenarios!K46,"") -> 0 | L46: =IFERROR(Scenarios!L46,"") -> 0 | M46: =IFERROR(Scenarios!M46,"") -> 0 | N46: =IFERROR(Scenarios!N46,"") -> 0 | O46: =IFERROR(Scenarios!O46,"") -> 0 | P46: =IFERROR(Scenarios!P46,"") -> 0 | Q46: =IFERROR(Scenarios!Q46,"") -> 0 | R46: =IFERROR(Scenarios!R46,"") -> 0 | S46: =IFERROR(Scenarios!S46,"") -> 0 | T46: =IFERROR(Scenarios!T46,"") -> 0 | U46: =IFERROR(Scenarios!U46,"") -> 0 | V46: =IFERROR(Scenarios!V46,"") -> 0 | W46: =IFERROR(Scenarios!W46,"") -> 0 | X46: =IFERROR(Scenarios!X46,"") -> 0 | Y46: =IFERROR(Scenarios!Y46,"") -> 0 | Z46: =IFERROR(Scenarios!Z46,"") -> 0 | AA46: =IFERROR(Scenarios!AA46,"") -> 0 | AB46: =IFERROR(Scenarios!AB46,"") -> 0 | AC46: =IFERROR(Scenarios!AC46,"") -> 0 | AD46: =IFERROR(Scenarios!AD46,"") -> 0 | AE46: =IFERROR(Scenarios!AE46,"") -> 0 | AF46: =IFERROR(Scenarios!AF46,"") -> 0 | AG46: =IFERROR(Scenarios!AG46,"") -> 0 | AH46: =IFERROR(Scenarios!AH46,"") -> 0 | AI46: =IFERROR(Scenarios!AI46,"") -> 0 | AJ46: =IFERROR(Scenarios!AJ46,"") -> 0 | AK46: =IFERROR(Scenarios!AK46,"") -> 0 | AL46: =IFERROR(Scenarios!AL46,"") -> 0 | AM46: =IFERROR(Scenarios!AM46,"") -> 0 | AN46: =IFERROR(Scenarios!AN46,"") -> 0 | AO46: =IFERROR(Scenarios!AO46,"") -> 0 | AP46: =IFERROR(Scenarios!AP46,"") -> 0 | AQ46: =IFERROR(Scenarios!AQ46,"") -> 0 | AR46: =IFERROR(Scenarios!AR46,"") -> 0 | AS46: =IFERROR(Scenarios!AS46,"") -> 0 | AT46: =IFERROR(Scenarios!AT46,"") -> 0 | AU46: =IFERROR(Scenarios!AU46,"") -> 0 | AV46: =IFERROR(Scenarios!AV46,"") -> 0 | AW46: =IFERROR(Scenarios!AW46,"") -> 0 | AX46: =IFERROR(Scenarios!AX46,"") -> 0 | AY46: =IFERROR(Scenarios!AY46,"") -> 0 | AZ46: =IFERROR(Scenarios!AZ46,"") -> 0 | BA46: =IFERROR(Scenarios!BA46,"") -> 0 | BB46: =IFERROR(Scenarios!BB46,"") -> 0 | BC46: =IFERROR(Scenarios!BC46,"") -> 0 | BD46: =IFERROR(Scenarios!BD46,"") -> 0 | BE46: =IFERROR(Scenarios!BE46,"") -> 0 | BF46: =IFERROR(Scenarios!BF46,"") -> 0 | BG46: =IFERROR(Scenarios!BG46,"") -> 0 | BH46: =IFERROR(Scenarios!BH46,"") -> 0 | BI46: =IFERROR(Scenarios!BI46,"") -> 0 | BJ46: =IFERROR(Scenarios!BJ46,"") -> 0 | BK46: =IFERROR(Scenarios!BK46,"") -> 0 | BL46: =IFERROR(Scenarios!BL46,"") -> 0 | BM46: =IFERROR(Scenarios!BM46,"") -> 0 | BN46: =IFERROR(Scenarios!BN46,"") -> 0 | BO46: =IFERROR(Scenarios!BO46,"") -> 0 | BP46: =IFERROR(Scenarios!BP46,"") -> 0 | BQ46: =IFERROR(Scenarios!BQ46,"") -> 0 | BR46: =IFERROR(Scenarios!BR46,"") -> 0 | BS46: =IFERROR(Scenarios!BS46,"") -> 0 | BT46: =IFERROR(Scenarios!BT46,"") -> 0 | BU46: =IFERROR(Scenarios!BU46,"") -> 0 | BV46: =IFERROR(Scenarios!BV46,"") -> 0 | BW46: =IFERROR(Scenarios!BW46,"") -> 0 | BX46: =IFERROR(Scenarios!BX46,"") -> 0 | BY46: =IFERROR(Scenarios!BY46,"") -> 0 | BZ46: =IFERROR(Scenarios!BZ46,"") -> 0 | CA46: =IFERROR(Scenarios!CA46,"") -> 0 | CB46: =IFERROR(Scenarios!CB46,"") -> 0 | CC46: =IFERROR(Scenarios!CC46,"") -> 0 | CD46: =IFERROR(Scenarios!CD46,"") -> 0 | CE46: =IFERROR(Scenarios!CE46,"") -> 0 | CF46: =IFERROR(Scenarios!CF46,"") -> 0 | CG46: =IFERROR(Scenarios!CG46,"") -> 0 | CH46: =IFERROR(Scenarios!CH46,"") -> 0 | CI46: =IFERROR(Scenarios!CI46,"") -> 0 | CJ46: =IFERROR(Scenarios!CJ46,"") -> 0 | CK46: =IFERROR(Scenarios!CK46,"") -> 0 | CL46: =IFERROR(Scenarios!CL46,"") -> 0 | CM46: =IFERROR(Scenarios!CM46,"") -> 0 | CN46: =IFERROR(Scenarios!CN46,"") -> 0 | CO46: =IFERROR(Scenarios!CO46,"") -> 0 | CP46: =IFERROR(Scenarios!CP46,"") -> 0 | CQ46: =IFERROR(Scenarios!CQ46,"") -> 0 | CR46: =IFERROR(Scenarios!CR46,"") -> 0 | CS46: =IFERROR(Scenarios!CS46,"") -> 0 | CT46: =IFERROR(Scenarios!CT46,"") -> 0 | CU46: =IFERROR(Scenarios!CU46,"") -> 0 | CV46: =IFERROR(Scenarios!CV46,"") -> 0 | CW46: =IFERROR(Scenarios!CW46,"") -> 0 | CX46: =IFERROR(Scenarios!CX46,"") -> 0 | CY46: =IFERROR(Scenarios!CY46,"") -> 0 | CZ46: =IFERROR(Scenarios!CZ46,"") -> 0 | DA46: =IFERROR(Scenarios!DA46,"") -> 0
A47: =IFERROR(Scenarios!A47,"") -> 0 | B47: =IFERROR(Scenarios!B47,"") -> 0 | C47: =IFERROR(Scenarios!C47,"") -> 0 | D47: =IFERROR(Scenarios!D47,"") -> 0 | E47: =IFERROR(Scenarios!E47,"") -> 0 | F47: =IFERROR(Scenarios!F47,"") -> 0 | G47: =IFERROR(Scenarios!G47,"") -> 0 | H47: =IFERROR(Scenarios!H47,"") -> 0 | I47: =IFERROR(Scenarios!I47,"") -> 0 | J47: =IFERROR(Scenarios!J47,"") -> 0 | K47: =IFERROR(Scenarios!K47,"") -> 0 | L47: =IFERROR(Scenarios!L47,"") -> 0 | M47: =IFERROR(Scenarios!M47,"") -> 0 | N47: =IFERROR(Scenarios!N47,"") -> 0 | O47: =IFERROR(Scenarios!O47,"") -> 0 | P47: =IFERROR(Scenarios!P47,"") -> 0 | Q47: =IFERROR(Scenarios!Q47,"") -> 0 | R47: =IFERROR(Scenarios!R47,"") -> 0 | S47: =IFERROR(Scenarios!S47,"") -> 0 | T47: =IFERROR(Scenarios!T47,"") -> 0 | U47: =IFERROR(Scenarios!U47,"") -> 0 | V47: =IFERROR(Scenarios!V47,"") -> 0 | W47: =IFERROR(Scenarios!W47,"") -> 0 | X47: =IFERROR(Scenarios!X47,"") -> 0 | Y47: =IFERROR(Scenarios!Y47,"") -> 0 | Z47: =IFERROR(Scenarios!Z47,"") -> 0 | AA47: =IFERROR(Scenarios!AA47,"") -> 0 | AB47: =IFERROR(Scenarios!AB47,"") -> 0 | AC47: =IFERROR(Scenarios!AC47,"") -> 0 | AD47: =IFERROR(Scenarios!AD47,"") -> 0 | AE47: =IFERROR(Scenarios!AE47,"") -> 0 | AF47: =IFERROR(Scenarios!AF47,"") -> 0 | AG47: =IFERROR(Scenarios!AG47,"") -> 0 | AH47: =IFERROR(Scenarios!AH47,"") -> 0 | AI47: =IFERROR(Scenarios!AI47,"") -> 0 | AJ47: =IFERROR(Scenarios!AJ47,"") -> 0 | AK47: =IFERROR(Scenarios!AK47,"") -> 0 | AL47: =IFERROR(Scenarios!AL47,"") -> 0 | AM47: =IFERROR(Scenarios!AM47,"") -> 0 | AN47: =IFERROR(Scenarios!AN47,"") -> 0 | AO47: =IFERROR(Scenarios!AO47,"") -> 0 | AP47: =IFERROR(Scenarios!AP47,"") -> 0 | AQ47: =IFERROR(Scenarios!AQ47,"") -> 0 | AR47: =IFERROR(Scenarios!AR47,"") -> 0 | AS47: =IFERROR(Scenarios!AS47,"") -> 0 | AT47: =IFERROR(Scenarios!AT47,"") -> 0 | AU47: =IFERROR(Scenarios!AU47,"") -> 0 | AV47: =IFERROR(Scenarios!AV47,"") -> 0 | AW47: =IFERROR(Scenarios!AW47,"") -> 0 | AX47: =IFERROR(Scenarios!AX47,"") -> 0 | AY47: =IFERROR(Scenarios!AY47,"") -> 0 | AZ47: =IFERROR(Scenarios!AZ47,"") -> 0 | BA47: =IFERROR(Scenarios!BA47,"") -> 0 | BB47: =IFERROR(Scenarios!BB47,"") -> 0 | BC47: =IFERROR(Scenarios!BC47,"") -> 0 | BD47: =IFERROR(Scenarios!BD47,"") -> 0 | BE47: =IFERROR(Scenarios!BE47,"") -> 0 | BF47: =IFERROR(Scenarios!BF47,"") -> 0 | BG47: =IFERROR(Scenarios!BG47,"") -> 0 | BH47: =IFERROR(Scenarios!BH47,"") -> 0 | BI47: =IFERROR(Scenarios!BI47,"") -> 0 | BJ47: =IFERROR(Scenarios!BJ47,"") -> 0 | BK47: =IFERROR(Scenarios!BK47,"") -> 0 | BL47: =IFERROR(Scenarios!BL47,"") -> 0 | BM47: =IFERROR(Scenarios!BM47,"") -> 0 | BN47: =IFERROR(Scenarios!BN47,"") -> 0 | BO47: =IFERROR(Scenarios!BO47,"") -> 0 | BP47: =IFERROR(Scenarios!BP47,"") -> 0 | BQ47: =IFERROR(Scenarios!BQ47,"") -> 0 | BR47: =IFERROR(Scenarios!BR47,"") -> 0 | BS47: =IFERROR(Scenarios!BS47,"") -> 0 | BT47: =IFERROR(Scenarios!BT47,"") -> 0 | BU47: =IFERROR(Scenarios!BU47,"") -> 0 | BV47: =IFERROR(Scenarios!BV47,"") -> 0 | BW47: =IFERROR(Scenarios!BW47,"") -> 0 | BX47: =IFERROR(Scenarios!BX47,"") -> 0 | BY47: =IFERROR(Scenarios!BY47,"") -> 0 | BZ47: =IFERROR(Scenarios!BZ47,"") -> 0 | CA47: =IFERROR(Scenarios!CA47,"") -> 0 | CB47: =IFERROR(Scenarios!CB47,"") -> 0 | CC47: =IFERROR(Scenarios!CC47,"") -> 0 | CD47: =IFERROR(Scenarios!CD47,"") -> 0 | CE47: =IFERROR(Scenarios!CE47,"") -> 0 | CF47: =IFERROR(Scenarios!CF47,"") -> 0 | CG47: =IFERROR(Scenarios!CG47,"") -> 0 | CH47: =IFERROR(Scenarios!CH47,"") -> 0 | CI47: =IFERROR(Scenarios!CI47,"") -> 0 | CJ47: =IFERROR(Scenarios!CJ47,"") -> 0 | CK47: =IFERROR(Scenarios!CK47,"") -> 0 | CL47: =IFERROR(Scenarios!CL47,"") -> 0 | CM47: =IFERROR(Scenarios!CM47,"") -> 0 | CN47: =IFERROR(Scenarios!CN47,"") -> 0 | CO47: =IFERROR(Scenarios!CO47,"") -> 0 | CP47: =IFERROR(Scenarios!CP47,"") -> 0 | CQ47: =IFERROR(Scenarios!CQ47,"") -> 0 | CR47: =IFERROR(Scenarios!CR47,"") -> 0 | CS47: =IFERROR(Scenarios!CS47,"") -> 0 | CT47: =IFERROR(Scenarios!CT47,"") -> 0 | CU47: =IFERROR(Scenarios!CU47,"") -> 0 | CV47: =IFERROR(Scenarios!CV47,"") -> 0 | CW47: =IFERROR(Scenarios!CW47,"") -> 0 | CX47: =IFERROR(Scenarios!CX47,"") -> 0 | CY47: =IFERROR(Scenarios!CY47,"") -> 0 | CZ47: =IFERROR(Scenarios!CZ47,"") -> 0 | DA47: =IFERROR(Scenarios!DA47,"") -> 0
A48: =IFERROR(Scenarios!A48,"") -> 0 | B48: =IFERROR(Scenarios!B48,"") -> 0 | C48: =IFERROR(Scenarios!C48,"") -> 0 | D48: =IFERROR(Scenarios!D48,"") -> 0 | E48: =IFERROR(Scenarios!E48,"") -> 0 | F48: =IFERROR(Scenarios!F48,"") -> 0 | G48: =IFERROR(Scenarios!G48,"") -> 0 | H48: =IFERROR(Scenarios!H48,"") -> 0 | I48: =IFERROR(Scenarios!I48,"") -> 0 | J48: =IFERROR(Scenarios!J48,"") -> 0 | K48: =IFERROR(Scenarios!K48,"") -> 0 | L48: =IFERROR(Scenarios!L48,"") -> 0 | M48: =IFERROR(Scenarios!M48,"") -> 0 | N48: =IFERROR(Scenarios!N48,"") -> 0 | O48: =IFERROR(Scenarios!O48,"") -> 0 | P48: =IFERROR(Scenarios!P48,"") -> 0 | Q48: =IFERROR(Scenarios!Q48,"") -> 0 | R48: =IFERROR(Scenarios!R48,"") -> 0 | S48: =IFERROR(Scenarios!S48,"") -> 0 | T48: =IFERROR(Scenarios!T48,"") -> 0 | U48: =IFERROR(Scenarios!U48,"") -> 0 | V48: =IFERROR(Scenarios!V48,"") -> 0 | W48: =IFERROR(Scenarios!W48,"") -> 0 | X48: =IFERROR(Scenarios!X48,"") -> 0 | Y48: =IFERROR(Scenarios!Y48,"") -> 0 | Z48: =IFERROR(Scenarios!Z48,"") -> 0 | AA48: =IFERROR(Scenarios!AA48,"") -> 0 | AB48: =IFERROR(Scenarios!AB48,"") -> 0 | AC48: =IFERROR(Scenarios!AC48,"") -> 0 | AD48: =IFERROR(Scenarios!AD48,"") -> 0 | AE48: =IFERROR(Scenarios!AE48,"") -> 0 | AF48: =IFERROR(Scenarios!AF48,"") -> 0 | AG48: =IFERROR(Scenarios!AG48,"") -> 0 | AH48: =IFERROR(Scenarios!AH48,"") -> 0 | AI48: =IFERROR(Scenarios!AI48,"") -> 0 | AJ48: =IFERROR(Scenarios!AJ48,"") -> 0 | AK48: =IFERROR(Scenarios!AK48,"") -> 0 | AL48: =IFERROR(Scenarios!AL48,"") -> 0 | AM48: =IFERROR(Scenarios!AM48,"") -> 0 | AN48: =IFERROR(Scenarios!AN48,"") -> 0 | AO48: =IFERROR(Scenarios!AO48,"") -> 0 | AP48: =IFERROR(Scenarios!AP48,"") -> 0 | AQ48: =IFERROR(Scenarios!AQ48,"") -> 0 | AR48: =IFERROR(Scenarios!AR48,"") -> 0 | AS48: =IFERROR(Scenarios!AS48,"") -> 0 | AT48: =IFERROR(Scenarios!AT48,"") -> 0 | AU48: =IFERROR(Scenarios!AU48,"") -> 0 | AV48: =IFERROR(Scenarios!AV48,"") -> 0 | AW48: =IFERROR(Scenarios!AW48,"") -> 0 | AX48: =IFERROR(Scenarios!AX48,"") -> 0 | AY48: =IFERROR(Scenarios!AY48,"") -> 0 | AZ48: =IFERROR(Scenarios!AZ48,"") -> 0 | BA48: =IFERROR(Scenarios!BA48,"") -> 0 | BB48: =IFERROR(Scenarios!BB48,"") -> 0 | BC48: =IFERROR(Scenarios!BC48,"") -> 0 | BD48: =IFERROR(Scenarios!BD48,"") -> 0 | BE48: =IFERROR(Scenarios!BE48,"") -> 0 | BF48: =IFERROR(Scenarios!BF48,"") -> 0 | BG48: =IFERROR(Scenarios!BG48,"") -> 0 | BH48: =IFERROR(Scenarios!BH48,"") -> 0 | BI48: =IFERROR(Scenarios!BI48,"") -> 0 | BJ48: =IFERROR(Scenarios!BJ48,"") -> 0 | BK48: =IFERROR(Scenarios!BK48,"") -> 0 | BL48: =IFERROR(Scenarios!BL48,"") -> 0 | BM48: =IFERROR(Scenarios!BM48,"") -> 0 | BN48: =IFERROR(Scenarios!BN48,"") -> 0 | BO48: =IFERROR(Scenarios!BO48,"") -> 0 | BP48: =IFERROR(Scenarios!BP48,"") -> 0 | BQ48: =IFERROR(Scenarios!BQ48,"") -> 0 | BR48: =IFERROR(Scenarios!BR48,"") -> 0 | BS48: =IFERROR(Scenarios!BS48,"") -> 0 | BT48: =IFERROR(Scenarios!BT48,"") -> 0 | BU48: =IFERROR(Scenarios!BU48,"") -> 0 | BV48: =IFERROR(Scenarios!BV48,"") -> 0 | BW48: =IFERROR(Scenarios!BW48,"") -> 0 | BX48: =IFERROR(Scenarios!BX48,"") -> 0 | BY48: =IFERROR(Scenarios!BY48,"") -> 0 | BZ48: =IFERROR(Scenarios!BZ48,"") -> 0 | CA48: =IFERROR(Scenarios!CA48,"") -> 0 | CB48: =IFERROR(Scenarios!CB48,"") -> 0 | CC48: =IFERROR(Scenarios!CC48,"") -> 0 | CD48: =IFERROR(Scenarios!CD48,"") -> 0 | CE48: =IFERROR(Scenarios!CE48,"") -> 0 | CF48: =IFERROR(Scenarios!CF48,"") -> 0 | CG48: =IFERROR(Scenarios!CG48,"") -> 0 | CH48: =IFERROR(Scenarios!CH48,"") -> 0 | CI48: =IFERROR(Scenarios!CI48,"") -> 0 | CJ48: =IFERROR(Scenarios!CJ48,"") -> 0 | CK48: =IFERROR(Scenarios!CK48,"") -> 0 | CL48: =IFERROR(Scenarios!CL48,"") -> 0 | CM48: =IFERROR(Scenarios!CM48,"") -> 0 | CN48: =IFERROR(Scenarios!CN48,"") -> 0 | CO48: =IFERROR(Scenarios!CO48,"") -> 0 | CP48: =IFERROR(Scenarios!CP48,"") -> 0 | CQ48: =IFERROR(Scenarios!CQ48,"") -> 0 | CR48: =IFERROR(Scenarios!CR48,"") -> 0 | CS48: =IFERROR(Scenarios!CS48,"") -> 0 | CT48: =IFERROR(Scenarios!CT48,"") -> 0 | CU48: =IFERROR(Scenarios!CU48,"") -> 0 | CV48: =IFERROR(Scenarios!CV48,"") -> 0 | CW48: =IFERROR(Scenarios!CW48,"") -> 0 | CX48: =IFERROR(Scenarios!CX48,"") -> 0 | CY48: =IFERROR(Scenarios!CY48,"") -> 0 | CZ48: =IFERROR(Scenarios!CZ48,"") -> 0 | DA48: =IFERROR(Scenarios!DA48,"") -> 0
A49: =IFERROR(Scenarios!A49,"") -> 0 | B49: =IFERROR(Scenarios!B49,"") -> 0 | C49: =IFERROR(Scenarios!C49,"") -> 0 | D49: =IFERROR(Scenarios!D49,"") -> 0 | E49: =IFERROR(Scenarios!E49,"") -> 0 | F49: =IFERROR(Scenarios!F49,"") -> 0 | G49: =IFERROR(Scenarios!G49,"") -> 0 | H49: =IFERROR(Scenarios!H49,"") -> 0 | I49: =IFERROR(Scenarios!I49,"") -> 0 | J49: =IFERROR(Scenarios!J49,"") -> 0 | K49: =IFERROR(Scenarios!K49,"") -> 0 | L49: =IFERROR(Scenarios!L49,"") -> 0 | M49: =IFERROR(Scenarios!M49,"") -> 0 | N49: =IFERROR(Scenarios!N49,"") -> 0 | O49: =IFERROR(Scenarios!O49,"") -> 0 | P49: =IFERROR(Scenarios!P49,"") -> 0 | Q49: =IFERROR(Scenarios!Q49,"") -> 0 | R49: =IFERROR(Scenarios!R49,"") -> 0 | S49: =IFERROR(Scenarios!S49,"") -> 0 | T49: =IFERROR(Scenarios!T49,"") -> 0 | U49: =IFERROR(Scenarios!U49,"") -> 0 | V49: =IFERROR(Scenarios!V49,"") -> 0 | W49: =IFERROR(Scenarios!W49,"") -> 0 | X49: =IFERROR(Scenarios!X49,"") -> 0 | Y49: =IFERROR(Scenarios!Y49,"") -> 0 | Z49: =IFERROR(Scenarios!Z49,"") -> 0 | AA49: =IFERROR(Scenarios!AA49,"") -> 0 | AB49: =IFERROR(Scenarios!AB49,"") -> 0 | AC49: =IFERROR(Scenarios!AC49,"") -> 0 | AD49: =IFERROR(Scenarios!AD49,"") -> 0 | AE49: =IFERROR(Scenarios!AE49,"") -> 0 | AF49: =IFERROR(Scenarios!AF49,"") -> 0 | AG49: =IFERROR(Scenarios!AG49,"") -> 0 | AH49: =IFERROR(Scenarios!AH49,"") -> 0 | AI49: =IFERROR(Scenarios!AI49,"") -> 0 | AJ49: =IFERROR(Scenarios!AJ49,"") -> 0 | AK49: =IFERROR(Scenarios!AK49,"") -> 0 | AL49: =IFERROR(Scenarios!AL49,"") -> 0 | AM49: =IFERROR(Scenarios!AM49,"") -> 0 | AN49: =IFERROR(Scenarios!AN49,"") -> 0 | AO49: =IFERROR(Scenarios!AO49,"") -> 0 | AP49: =IFERROR(Scenarios!AP49,"") -> 0 | AQ49: =IFERROR(Scenarios!AQ49,"") -> 0 | AR49: =IFERROR(Scenarios!AR49,"") -> 0 | AS49: =IFERROR(Scenarios!AS49,"") -> 0 | AT49: =IFERROR(Scenarios!AT49,"") -> 0 | AU49: =IFERROR(Scenarios!AU49,"") -> 0 | AV49: =IFERROR(Scenarios!AV49,"") -> 0 | AW49: =IFERROR(Scenarios!AW49,"") -> 0 | AX49: =IFERROR(Scenarios!AX49,"") -> 0 | AY49: =IFERROR(Scenarios!AY49,"") -> 0 | AZ49: =IFERROR(Scenarios!AZ49,"") -> 0 | BA49: =IFERROR(Scenarios!BA49,"") -> 0 | BB49: =IFERROR(Scenarios!BB49,"") -> 0 | BC49: =IFERROR(Scenarios!BC49,"") -> 0 | BD49: =IFERROR(Scenarios!BD49,"") -> 0 | BE49: =IFERROR(Scenarios!BE49,"") -> 0 | BF49: =IFERROR(Scenarios!BF49,"") -> 0 | BG49: =IFERROR(Scenarios!BG49,"") -> 0 | BH49: =IFERROR(Scenarios!BH49,"") -> 0 | BI49: =IFERROR(Scenarios!BI49,"") -> 0 | BJ49: =IFERROR(Scenarios!BJ49,"") -> 0 | BK49: =IFERROR(Scenarios!BK49,"") -> 0 | BL49: =IFERROR(Scenarios!BL49,"") -> 0 | BM49: =IFERROR(Scenarios!BM49,"") -> 0 | BN49: =IFERROR(Scenarios!BN49,"") -> 0 | BO49: =IFERROR(Scenarios!BO49,"") -> 0 | BP49: =IFERROR(Scenarios!BP49,"") -> 0 | BQ49: =IFERROR(Scenarios!BQ49,"") -> 0 | BR49: =IFERROR(Scenarios!BR49,"") -> 0 | BS49: =IFERROR(Scenarios!BS49,"") -> 0 | BT49: =IFERROR(Scenarios!BT49,"") -> 0 | BU49: =IFERROR(Scenarios!BU49,"") -> 0 | BV49: =IFERROR(Scenarios!BV49,"") -> 0 | BW49: =IFERROR(Scenarios!BW49,"") -> 0 | BX49: =IFERROR(Scenarios!BX49,"") -> 0 | BY49: =IFERROR(Scenarios!BY49,"") -> 0 | BZ49: =IFERROR(Scenarios!BZ49,"") -> 0 | CA49: =IFERROR(Scenarios!CA49,"") -> 0 | CB49: =IFERROR(Scenarios!CB49,"") -> 0 | CC49: =IFERROR(Scenarios!CC49,"") -> 0 | CD49: =IFERROR(Scenarios!CD49,"") -> 0 | CE49: =IFERROR(Scenarios!CE49,"") -> 0 | CF49: =IFERROR(Scenarios!CF49,"") -> 0 | CG49: =IFERROR(Scenarios!CG49,"") -> 0 | CH49: =IFERROR(Scenarios!CH49,"") -> 0 | CI49: =IFERROR(Scenarios!CI49,"") -> 0 | CJ49: =IFERROR(Scenarios!CJ49,"") -> 0 | CK49: =IFERROR(Scenarios!CK49,"") -> 0 | CL49: =IFERROR(Scenarios!CL49,"") -> 0 | CM49: =IFERROR(Scenarios!CM49,"") -> 0 | CN49: =IFERROR(Scenarios!CN49,"") -> 0 | CO49: =IFERROR(Scenarios!CO49,"") -> 0 | CP49: =IFERROR(Scenarios!CP49,"") -> 0 | CQ49: =IFERROR(Scenarios!CQ49,"") -> 0 | CR49: =IFERROR(Scenarios!CR49,"") -> 0 | CS49: =IFERROR(Scenarios!CS49,"") -> 0 | CT49: =IFERROR(Scenarios!CT49,"") -> 0 | CU49: =IFERROR(Scenarios!CU49,"") -> 0 | CV49: =IFERROR(Scenarios!CV49,"") -> 0 | CW49: =IFERROR(Scenarios!CW49,"") -> 0 | CX49: =IFERROR(Scenarios!CX49,"") -> 0 | CY49: =IFERROR(Scenarios!CY49,"") -> 0 | CZ49: =IFERROR(Scenarios!CZ49,"") -> 0 | DA49: =IFERROR(Scenarios!DA49,"") -> 0
